Workbook

Sheet PGERAL (2)

Sheet PGERAL (3)

Sheet PQPEXMME
M12: CGRH/MME
J30: QUADRO DE PESSOAL EM EXERCÍCIO NO MME: | O30: =[1]ATIVO!K16&" servidores/empregados" -> 490 servidores/empregados
L33: +
J35: AGUARDANDO EXERCÍCIO | O35: =[1]ATIVO!K17&" servidores/empregados" -> 27 servidores/empregados
L38: =
J40: =[1]ATIVO!K16+[1]ATIVO!K17&" servidores/empregados em exercício no MME" -> 517 servidores/empregados em exercício no MME | L40: =[2]ATIVO!C54+[2]ATIVO!C55&" servidores/empregados" -> 0 servidores/empregados | N40: =[2]ATIVO!E54+[2]ATIVO!E55&" servidores/empregados" -> 0 servidores/empregados | P40: =[2]ATIVO!G54+[2]ATIVO!G55&" servidores/empregados" -> 8 servidores/empregados
J44: QUADRO DE PESSOAL GERAL DO MME: | O44: =([1]GLOBAL!D17+[1]GLOBAL!F17+[1]GLOBAL!H17+[1]GLOBAL!J17+[1]GLOBAL!L17+[1]GLOBAL!N17+[1]GLOBAL!P17+[1]GLOBAL!R17)&" servidores/empregados" -> 954 servidores/empregados

Sheet PQPSERVIDORES
A1: RELAÇÃO DE SERVIDORES/EMPREGADOS - EXERCÍCIO MME
A2: =NOW() -> 2020-11-05T17:54:43.780
A3: =[1]BASE!A6 -> SERVIDOR/EMPREGADO | B3: =[1]BASE!B6 -> MATRÍCULA SIAPE | C3: =[1]BASE!C6 -> CARGO/EMPREGO | D3: =[1]BASE!D6 -> SITUAÇÃO FUNCIONAL | E3: =[1]BASE!E6 -> ORGÃO DE ORIGEM | F3: =[1]BASE!F6 -> FUNÇÃO | G3: =[1]BASE!G6 -> GRATIFICAÇÃO | H3: =[1]BASE!H6 -> UNIDADE DE EXERCÍCIO | I3: =[1]BASE!I6 -> CÓDIGO UNIDADE
A4: =[1]BASE!A7 -> ABADIA RODRIGUES DA SILVA | B4: =[1]BASE!B7 -> 451653 | C4: =[1]BASE!C7 -> Datilógrafo | D4: =[1]BASE!D7 -> Ativo Permanente | E4: =[1]BASE!E7 -> MME - Ministério de Minas e Energia | F4: =[1]BASE!F7 -> FGR 1 | G4: =[1]BASE!G7 ->  | H4: =[1]BASE!H7 -> SPE / CHEFIA DE GABINETE SPE | I4: =[1]BASE!I7 -> 10.100.000
A5: =[1]BASE!A8 -> ABDON TAVARES REIS | B5: =[1]BASE!B8 -> 7129830 | C5: =[1]BASE!C8 -> Técnico de Orçamento | D5: =[1]BASE!D8 -> Exercício Descentralizado | E5: =[1]BASE!E8 -> ME - Ministério da Economia | F5: =[1]BASE!F8 -> FCPE 102.1 | G5: =[1]BASE!G8 ->  | H5: =[1]BASE!H8 -> SE / SPOA / CGOF / COORDENAÇÃO DE ADMINISTRAÇÃO FINANCEIRA -COAF | I5: =[1]BASE!I8 -> 8.105.510
A6: =[1]BASE!A9 -> ADAO MARTINS TEIXEIRA JUNIOR | B6: =[1]BASE!B9 -> 2280944 | C6: =[1]BASE!C9 -> Auxiliar Administrativo | D6: =[1]BASE!D9 -> Anistiado MME | E6: =[1]BASE!E9 -> MME - Ministério de Minas e Energia | F6: =[1]BASE!F9 ->  | G6: =[1]BASE!G9 ->  | H6: =[1]BASE!H9 -> SPE / DEPARTAMENTO DE PLANEJAMENTO ENERGÉTICO - DPE | I6: =[1]BASE!I9 -> 10.101.000
A7: =[1]BASE!A10 -> ADÍLIA EVANGELISTA DE SOUSA | B7: =[1]BASE!B10 -> 451457 | C7: =[1]BASE!C10 -> Agente Administrativo | D7: =[1]BASE!D10 -> Ativo Permanente | E7: =[1]BASE!E10 -> MME - Ministério de Minas e Energia | F7: =[1]BASE!F10 -> FCT 11 | G7: =[1]BASE!G10 ->  | H7: =[1]BASE!H10 -> SE / SPOA / CGRL / COORDENAÇÃO DE ADMINISTRAÇÃO DE MATERIAL E EXECUÇÃO FINANCEIRA - COMEF | I7: =[1]BASE!I10 -> 8.105.110
A8: =[1]BASE!A11 -> ADILSON DE MELO RAMOS | B8: =[1]BASE!B11 -> 451568 | C8: =[1]BASE!C11 -> Agente Administrativo | D8: =[1]BASE!D11 -> Ativo Permanente | E8: =[1]BASE!E11 -> MME - Ministério de Minas e Energia | F8: =[1]BASE!F11 ->  | G8: =[1]BASE!G11 -> GSISTE Intermediário | H8: =[1]BASE!H11 -> SE / SPOA / COORDENAÇÃO GERAL DE RECURSOS LOGÍSTICOS - CGRL | I8: =[1]BASE!I11 -> 8.105.100
A9: =[1]BASE!A12 -> ADRIMAR VENANCIO DO NASCIMENTO | B9: =[1]BASE!B12 -> 5692188 | C9: =[1]BASE!C12 -> Analista de Infraestrutura | D9: =[1]BASE!D12 -> Exercício Descentralizado | E9: =[1]BASE!E12 -> ME - Ministério da Economia | F9: =[1]BASE!F12 -> DAS 101.4 | G9: =[1]BASE!G12 ->  | H9: =[1]BASE!H12 -> SEE / DGSE / COORDENAÇÃO GERAL DE GESTÃO DE PROGRAMAS E REGULAMENTAÇÃO | I9: =[1]BASE!I12 -> 12.101.200
A10: =[1]BASE!A13 -> AGDA LELES ZEDES | B10: =[1]BASE!B13 -> 1974215 | C10: =[1]BASE!C13 -> Analista de Infraestrutura | D10: =[1]BASE!D13 -> Exercício Descentralizado | E10: =[1]BASE!E13 -> ME - Ministério da Economia | F10: =[1]BASE!F13 ->  | G10: =[1]BASE!G13 ->  | H10: =[1]BASE!H13 -> SGM / DEPARTAMENTO DE GEOLOGIA E PRODUÇÃO MINERAL - DGPM | I10: =[1]BASE!I13 -> 9.102.000
A11: =[1]BASE!A14 -> AGNES MARIA DE ARAGAO DA COSTA | B11: =[1]BASE!B14 -> 3482731 | C11: =[1]BASE!C14 -> Especialista em Política Pública e Gestão Governamental | D11: =[1]BASE!D14 -> Exercício Descentralizado | E11: =[1]BASE!E14 -> ME - Ministério da Economia | F11: =[1]BASE!F14 -> DAS 101.5 | G11: =[1]BASE!G14 ->  | H11: =[1]BASE!H14 -> SE / ASSESSORIA ESPECIAL EM ASSUNTOS REGULATÓRIOS - AEREG | I11: =[1]BASE!I14 -> 8.102.000
A12: =[1]BASE!A15 -> AIDA MARIA RODRIGUES CORDEIRO | B12: =[1]BASE!B15 -> 2172526 | C12: =[1]BASE!C15 -> Escriturário III | D12: =[1]BASE!D15 -> Anistiado MME | E12: =[1]BASE!E15 -> MME - Ministério de Minas e Energia | F12: =[1]BASE!F15 ->  | G12: =[1]BASE!G15 ->  | H12: =[1]BASE!H15 -> Aguardando Lotação/Exercício | I12: =[1]BASE!I15 -> 88.000.000
A13: =[1]BASE!A16 -> AIRTON OLIVEIRA LIMA | B13: =[1]BASE!B16 -> 1466129 | C13: =[1]BASE!C16 -> Sem Cargo/Emprego | D13: =[1]BASE!D16 -> Sem Vínculo | E13: =[1]BASE!E16 -> Sem Vínculo | F13: =[1]BASE!F16 -> DAS 102.1 | G13: =[1]BASE!G16 ->  | H13: =[1]BASE!H16 -> SE / SPOA / CGRL / COORDENAÇÃO DE ATIVIDADES GERAIS - COAGE | I13: =[1]BASE!I16 -> 8.105.120
A14: =[1]BASE!A17 -> ALAN SAMPAIO SANTOS | B14: =[1]BASE!B17 -> 1310848 | C14: =[1]BASE!C17 -> Sem Cargo/Emprego | D14: =[1]BASE!D17 -> Sem Vínculo | E14: =[1]BASE!E17 -> Sem Vínculo | F14: =[1]BASE!F17 -> DAS 102.5 | G14: =[1]BASE!G17 ->  | H14: =[1]BASE!H17 -> ASSESSORIA ESPECIAL DE ACOMPANHAMENTO DE POLÍTICAS, ESTRATÉGIAS E DESEMPENHO SETORIAL - AEPED | I14: =[1]BASE!I17 -> 4.000.000
A15: =[1]BASE!A18 -> ALCIDEMES LIMA FRANCO | B15: =[1]BASE!B18 -> 454362 | C15: =[1]BASE!C18 -> Agente Administrativo | D15: =[1]BASE!D18 -> Ativo Permanente | E15: =[1]BASE!E18 -> MME - Ministério de Minas e Energia | F15: =[1]BASE!F18 -> FCPE 102.1 | G15: =[1]BASE!G18 -> GSISTE Intermediário | H15: =[1]BASE!H18 -> GM / ASTAD / COORDENAÇÃO DE ATIVIDADES ADMINISTRATIVAS | I15: =[1]BASE!I18 -> 2.100.101
A16: =[1]BASE!A19 -> ALDAIDES CAVALCANTE MAGALHAES | B16: =[1]BASE!B19 -> 14800666 | C16: =[1]BASE!C19 -> Sem Cargo/Emprego | D16: =[1]BASE!D19 -> Sem Vínculo | E16: =[1]BASE!E19 -> Sem Vínculo | F16: =[1]BASE!F19 -> DAS 102.2 | G16: =[1]BASE!G19 ->  | H16: =[1]BASE!H19 -> SEE / CHEFIA DE GABINETE SEE | I16: =[1]BASE!I19 -> 12.100.000
A17: =[1]BASE!A20 -> ALDINEA DO CARMO CORDEIRO NOGUEIRA | B17: =[1]BASE!B20 -> 1771716 | C17: =[1]BASE!C20 -> Sem Cargo/Emprego | D17: =[1]BASE!D20 -> Sem Vínculo | E17: =[1]BASE!E20 -> Sem Vínculo | F17: =[1]BASE!F20 -> DAS 102.2 | G17: =[1]BASE!G20 ->  | H17: =[1]BASE!H20 -> SE / CHEFIA DE GABINETE SE | I17: =[1]BASE!I20 -> 8.100.000
A18: =[1]BASE!A21 -> ALDO BARROSO CORES JUNIOR | B18: =[1]BASE!B21 -> 2660765 | C18: =[1]BASE!C21 -> Analista de Infraestrutura | D18: =[1]BASE!D21 -> Exercício Descentralizado | E18: =[1]BASE!E21 -> ME - Ministério da Economia | F18: =[1]BASE!F21 -> DAS 101.4 | G18: =[1]BASE!G21 ->  | H18: =[1]BASE!H21 -> SPG / DGN / COORDENAÇÃO GERAL DE PROCESSAMENTO DE INFRAESTRUTURA E LOGÍSTICA | I18: =[1]BASE!I21 -> 11.102.200
A19: =[1]BASE!A22 -> ALEXANDRA ALBUQUERQUE MACIEL | B19: =[1]BASE!B22 -> 1651345 | C19: =[1]BASE!C22 -> Analista de Infraestrutura | D19: =[1]BASE!D22 -> Exercício Descentralizado | E19: =[1]BASE!E22 -> ME - Ministério da Economia | F19: =[1]BASE!F22 ->  | G19: =[1]BASE!G22 ->  | H19: =[1]BASE!H22 -> SPE / DEPARTAMENTO DE DESENVOLVIMENTO ENERGÉTICO - DDE | I19: =[1]BASE!I22 -> 10.102.000
A20: =[1]BASE!A23 -> ALEXANDRE BRAZ DA SILVA | B20: =[1]BASE!B23 -> 2061035 | C20: =[1]BASE!C23 -> Sem Cargo/Emprego | D20: =[1]BASE!D23 -> Sem Vínculo | E20: =[1]BASE!E23 -> Sem Vínculo | F20: =[1]BASE!F23 -> DAS 102.2 | G20: =[1]BASE!G23 ->  | H20: =[1]BASE!H23 -> CONJUR / CGAA / COORDENAÇÃO DE APOIO ADMINISTRATIVO | I20: =[1]BASE!I23 -> 7.100.310
A21: =[1]BASE!A24 -> ALEXANDRE LAURI HENRIKSEN | B21: =[1]BASE!B24 -> 2535472 | C21: =[1]BASE!C24 -> Especialista em Política Pública e Gestão Governamental | D21: =[1]BASE!D24 -> Requisitado de Órgãos | E21: =[1]BASE!E24 -> ME - Ministério da Economia | F21: =[1]BASE!F24 -> DAS 102.4 | G21: =[1]BASE!G24 ->  | H21: =[1]BASE!H24 -> ASSESSORIA ESPECIAL DE ASSUNTOS ECONÔMICOS - ASSEC | I21: =[1]BASE!I24 -> 6.000.000
A22: =[1]BASE!A25 -> ALEXANDRE LEME FRANCO | B22: =[1]BASE!B25 -> 1356383 | C22: =[1]BASE!C25 -> Advogado da União | D22: =[1]BASE!D25 -> Exercício Descentralizado | E22: =[1]BASE!E25 -> AGU - Advocacia Geral da União | F22: =[1]BASE!F25 ->  | G22: =[1]BASE!G25 ->  | H22: =[1]BASE!H25 -> CONJUR / COORDENAÇÃO GERAL DE ASSUNTOS DE PETRÓLEO E MINERAÇÃO | I22: =[1]BASE!I25 -> 7.100.200
A23: =[1]BASE!A26 -> ALEXANDRE VIDIGAL DE OLIVEIRA | B23: =[1]BASE!B26 -> 3085737 | C23: =[1]BASE!C26 -> Sem Cargo/Emprego | D23: =[1]BASE!D26 -> Sem Vínculo | E23: =[1]BASE!E26 -> Sem Vínculo | F23: =[1]BASE!F26 -> DAS 101.6 | G23: =[1]BASE!G26 ->  | H23: =[1]BASE!H26 -> SECRETARIA DE GEOLOGIA, MINERAÇÃO E TRANSFORMAÇÃO MINERAL - SGM | I23: =[1]BASE!I26 -> 9.000.000
A24: =[1]BASE!A27 -> ALEXANDRE XISTO DE ASSIS | B24: =[1]BASE!B27 -> 1092745 | C24: =[1]BASE!C27 -> Agente Administrativo | D24: =[1]BASE!D27 -> Ativo Permanente | E24: =[1]BASE!E27 -> MME - Ministério de Minas e Energia | F24: =[1]BASE!F27 -> FCT 7 | G24: =[1]BASE!G27 -> GSISTE Intermediário | H24: =[1]BASE!H27 -> SE / SPOA / CGRH / COORDENAÇÃO DE ADMINISTRAÇÃO DE PESSOAL - CAPES | I24: =[1]BASE!I27 -> 8.105.210
A25: =[1]BASE!A28 -> ALINE DA COSTA PINHEIRO | B25: =[1]BASE!B28 -> 1753322 | C25: =[1]BASE!C28 -> Sem Cargo/Emprego | D25: =[1]BASE!D28 -> Sem Vínculo | E25: =[1]BASE!E28 -> Sem Vínculo | F25: =[1]BASE!F28 -> DAS 101.2 | G25: =[1]BASE!G28 ->  | H25: =[1]BASE!H28 -> SE / SPOA / CGRL / COORDENAÇÃO DE ADMINISTRAÇÃO DE MATERIAL E EXECUÇÃO FINANCEIRA - COMEF | I25: =[1]BASE!I28 -> 8.105.110
A26: =[1]BASE!A29 -> ALLAN CARLO LOPES DE MENEZES | B26: =[1]BASE!B29 -> 54498 | C26: =[1]BASE!C29 -> Sem Cargo/Emprego | D26: =[1]BASE!D29 -> Sem Vínculo | E26: =[1]BASE!E29 -> Sem Vínculo | F26: =[1]BASE!F29 -> DAS 102.2 | G26: =[1]BASE!G29 ->  | H26: =[1]BASE!H29 -> SE / AEGE / CGPE / COORDENAÇÃO DE SUPERVISÃO E AVALIAÇÃO DA GESTÃO | I26: =[1]BASE!I29 -> 8.101.120
A27: =[1]BASE!A30 -> ALMIR DE SOUZA FIGUEIREDO | B27: =[1]BASE!B30 -> 1093237 | C27: =[1]BASE!C30 -> Motorista Oficial | D27: =[1]BASE!D30 -> Ativo Permanente | E27: =[1]BASE!E30 -> MME - Ministério de Minas e Energia | F27: =[1]BASE!F30 -> FCPE 102.1 | G27: =[1]BASE!G30 ->  | H27: =[1]BASE!H30 -> GM / ASTAD / COORDENAÇÃO DE ATIVIDADES ADMINISTRATIVAS | I27: =[1]BASE!I30 -> 2.100.101
A28: =[1]BASE!A31 -> ALTAMIRO MOREIRA CALDEIRA | B28: =[1]BASE!B31 -> 1094291 | C28: =[1]BASE!C31 -> Agente Administrativo | D28: =[1]BASE!D31 -> Ativo Permanente | E28: =[1]BASE!E31 -> MME - Ministério de Minas e Energia | F28: =[1]BASE!F31 -> FCPE 102.2 | G28: =[1]BASE!G31 ->  | H28: =[1]BASE!H31 -> GM / ASTAD / COORDENAÇÃO DE ATIVIDADES ADMINISTRATIVAS | I28: =[1]BASE!I31 -> 2.100.101
A29: =[1]BASE!A32 -> ALVANIR DA SILVA CARVALHO | B29: =[1]BASE!B32 -> 6053314 | C29: =[1]BASE!C32 -> Sem Cargo/Emprego | D29: =[1]BASE!D32 -> Sem Vínculo | E29: =[1]BASE!E32 -> Sem Vínculo | F29: =[1]BASE!F32 -> DAS 101.3 | G29: =[1]BASE!G32 ->  | H29: =[1]BASE!H32 -> SE / SPOA / CGRL / COORDENAÇÃO DE ATIVIDADES GERAIS - COAGE | I29: =[1]BASE!I32 -> 8.105.120
A30: =[1]BASE!A33 -> ALYNE SOUSA CARVALHO LIBERAL FERREIRA | B30: =[1]BASE!B33 -> 2745994 | C30: =[1]BASE!C33 -> Sem Cargo/Emprego | D30: =[1]BASE!D33 -> Sem Vínculo | E30: =[1]BASE!E33 -> Sem Vínculo | F30: =[1]BASE!F33 -> DAS 102.2 | G30: =[1]BASE!G33 ->  | H30: =[1]BASE!H33 -> SE / CHEFIA DE GABINETE SE | I30: =[1]BASE!I33 -> 8.100.000
A31: =[1]BASE!A34 -> AMANTINO SOARES DE OLIVEIRA | B31: =[1]BASE!B34 -> 7129831 | C31: =[1]BASE!C34 -> Técnico de Orçamento | D31: =[1]BASE!D34 -> Exercício Descentralizado | E31: =[1]BASE!E34 -> ME - Ministério da Economia | F31: =[1]BASE!F34 -> DAS 101.3 | G31: =[1]BASE!G34 ->  | H31: =[1]BASE!H34 -> SE / SPOA / CGOF / COORDENAÇÃO DE ADMINISTRAÇÃO FINANCEIRA -COAF | I31: =[1]BASE!I34 -> 8.105.510
A32: =[1]BASE!A35 -> ANA CARLOTA OLIVEIRA VIEIRA | B32: =[1]BASE!B35 -> 1686942 | C32: =[1]BASE!C35 -> Telefonista | D32: =[1]BASE!D35 -> Anistiado MME | E32: =[1]BASE!E35 -> MME - Ministério de Minas e Energia | F32: =[1]BASE!F35 ->  | G32: =[1]BASE!G35 ->  | H32: =[1]BASE!H35 -> Aguardando Lotação/Exercício | I32: =[1]BASE!I35 -> 88.000.000
A33: =[1]BASE!A36 -> ANA CAROLINA CARVALHO RODRIGUES | B33: =[1]BASE!B36 -> 1483473 | C33: =[1]BASE!C36 -> Sem Cargo/Emprego | D33: =[1]BASE!D36 -> Sem Vínculo | E33: =[1]BASE!E36 -> Sem Vínculo | F33: =[1]BASE!F36 -> DAS 102.1 | G33: =[1]BASE!G36 ->  | H33: =[1]BASE!H36 -> CONJUR / CGAA / COORDENAÇÃO DE APOIO ADMINISTRATIVO | I33: =[1]BASE!I36 -> 7.100.310
A34: =[1]BASE!A37 -> ANA CRISTINA NOGUEIRA GONCALVES | B34: =[1]BASE!B37 -> 1586250 | C34: =[1]BASE!C37 -> Codificador de Dados I | D34: =[1]BASE!D37 -> Anistiado MME | E34: =[1]BASE!E37 -> MME - Ministério de Minas e Energia | F34: =[1]BASE!F37 ->  | G34: =[1]BASE!G37 ->  | H34: =[1]BASE!H37 -> SE / SPOA / CGRH / COORDENAÇÃO DE DESENVOLVIMENTO E SEGURIDADE SOCIAL - CODES | I34: =[1]BASE!I37 -> 8.105.220
A35: =[1]BASE!A38 -> ANA LUCIA ALVARES ALVES | B35: =[1]BASE!B38 -> 1165470 | C35: =[1]BASE!C38 -> Analista de Infraestrutura | D35: =[1]BASE!D38 -> Requisitado de Órgãos | E35: =[1]BASE!E38 -> ME - Ministério da Economia | F35: =[1]BASE!F38 -> DAS 102.3 | G35: =[1]BASE!G38 ->  | H35: =[1]BASE!H38 -> SEE / DMSE / COORDENAÇÃO GERAL DE MONITORAMENTO DO DESEMPENHO DO SISTEMA ELÉTRICO | I35: =[1]BASE!I38 -> 12.102.400
A36: =[1]BASE!A39 -> ANA MARIA DIAS DE OLIVEIRA DINIZ | B36: =[1]BASE!B39 -> 451529 | C36: =[1]BASE!C39 -> Agente Administrativo | D36: =[1]BASE!D39 -> Ativo Permanente | E36: =[1]BASE!E39 -> MME - Ministério de Minas e Energia | F36: =[1]BASE!F39 -> FGR 1 | G36: =[1]BASE!G39 ->  | H36: =[1]BASE!H39 -> SE / SPOA / CGRH / COORDENAÇÃO DE DESENVOLVIMENTO E SEGURIDADE SOCIAL - CODES | I36: =[1]BASE!I39 -> 8.105.220
A37: =[1]BASE!A40 -> ANA MARIA FIGUEIREDO AGUIAR | B37: =[1]BASE!B40 -> 452229 | C37: =[1]BASE!C40 -> Agente Administrativo | D37: =[1]BASE!D40 -> Ativo Permanente | E37: =[1]BASE!E40 -> MME - Ministério de Minas e Energia | F37: =[1]BASE!F40 ->  | G37: =[1]BASE!G40 -> GSISTE Intermediário | H37: =[1]BASE!H40 -> SE / SPOA / CGRL / COORDENAÇÃO DE ATIVIDADES GERAIS - COAGE | I37: =[1]BASE!I40 -> 8.105.120
A38: =[1]BASE!A41 -> ANA PAULA ALVES DE SOUZA | B38: =[1]BASE!B41 -> 2603376 | C38: =[1]BASE!C41 -> Marinha | D38: =[1]BASE!D41 -> Requisitado Militar | E38: =[1]BASE!E41 -> Marinha | F38: =[1]BASE!F41 -> DAS 102.5 | G38: =[1]BASE!G41 ->  | H38: =[1]BASE!H41 -> GABINETE DO MINISTRO - GM | I38: =[1]BASE!I41 -> 2.000.000
A39: =[1]BASE!A42 -> ANA PAULA DE CASTRO | B39: =[1]BASE!B42 -> 1100246 | C39: =[1]BASE!C42 -> Técnico de Arquivo | D39: =[1]BASE!D42 -> Ativo Permanente | E39: =[1]BASE!E42 -> MME - Ministério de Minas e Energia | F39: =[1]BASE!F42 -> FGR 1 | G39: =[1]BASE!G42 ->  | H39: =[1]BASE!H42 -> SE / SPOA / CGRH / COORDENAÇÃO DE ADMINISTRAÇÃO DE PESSOAL - CAPES | I39: =[1]BASE!I42 -> 8.105.210
A40: =[1]BASE!A43 -> ANA PAULA NOGUEIRA RIGAUD | B40: =[1]BASE!B43 -> 1670483 | C40: =[1]BASE!C43 -> Codificador de Dados I | D40: =[1]BASE!D43 -> Anistiado MME | E40: =[1]BASE!E43 -> MME - Ministério de Minas e Energia | F40: =[1]BASE!F43 ->  | G40: =[1]BASE!G43 ->  | H40: =[1]BASE!H43 -> SE / SPOA / CGRH / COORDENAÇÃO DE DESENVOLVIMENTO E SEGURIDADE SOCIAL - CODES | I40: =[1]BASE!I43 -> 8.105.220
A41: =[1]BASE!A44 -> ANADERGI ROSA DE FREITAS | B41: =[1]BASE!B44 -> 2666801 | C41: =[1]BASE!C44 -> Sem Cargo/Emprego | D41: =[1]BASE!D44 -> Sem Vínculo | E41: =[1]BASE!E44 -> Sem Vínculo | F41: =[1]BASE!F44 -> DAS 102.2 | G41: =[1]BASE!G44 ->  | H41: =[1]BASE!H44 -> SE / SPOA / CGRL / COORDENAÇÃO DE ATIVIDADES GERAIS - COAGE | I41: =[1]BASE!I44 -> 8.105.120
A42: =[1]BASE!A45 -> ANAHIDES SANTOS BUCAR | B42: =[1]BASE!B45 -> 6225035 | C42: =[1]BASE!C45 -> Sem Cargo/Emprego | D42: =[1]BASE!D45 -> Sem Vínculo | E42: =[1]BASE!E45 -> Sem Vínculo | F42: =[1]BASE!F45 -> DAS 102.2 | G42: =[1]BASE!G45 ->  | H42: =[1]BASE!H45 -> SGM / DEPARTAMENTO DE GESTÃO DAS POLÍTICAS DE GEOLOGIA, MINERAÇÃOE TRANSFORMAÇÃO - DPGM | I42: =[1]BASE!I45 -> 9.101.000
A43: =[1]BASE!A46 -> ANDERSON DA CRUZ NEVES | B43: =[1]BASE!B46 -> 1729574 | C43: =[1]BASE!C46 -> Analista Técnico Administrativo | D43: =[1]BASE!D46 -> Requisitado de Órgãos | E43: =[1]BASE!E46 -> MDR - Ministério do Desenvolvimento Regional | F43: =[1]BASE!F46 ->  | G43: =[1]BASE!G46 -> GSISTE Superior (MPEOF) | H43: =[1]BASE!H46 -> SE / SPOA / CGOF / COORDENAÇÃO DE ADMINISTRAÇÃO FINANCEIRA -COAF | I43: =[1]BASE!I46 -> 8.105.510
A44: =[1]BASE!A47 -> ANDERSON MARCIO DE OLIVEIRA | B44: =[1]BASE!B47 -> 1793429 | C44: =[1]BASE!C47 -> Advogado | D44: =[1]BASE!D47 -> Requisitado de Empresa | E44: =[1]BASE!E47 -> BNDES - Banco Nacional de Desenvolvimento Econômico e Social | F44: =[1]BASE!F47 -> DAS 101.5 | G44: =[1]BASE!G47 ->  | H44: =[1]BASE!H47 -> SE / CHEFIA DE GABINETE SE | I44: =[1]BASE!I47 -> 8.100.000
A45: =[1]BASE!A48 -> ANDRÉ GROBÉRIO LOPES PERIM | B45: =[1]BASE!B48 -> 2974323 | C45: =[1]BASE!C48 -> Analista de Infraestrutura | D45: =[1]BASE!D48 -> Exercício Descentralizado | E45: =[1]BASE!E48 -> ME - Ministério da Economia | F45: =[1]BASE!F48 -> FCPE 101.4 | G45: =[1]BASE!G48 ->  | H45: =[1]BASE!H48 -> SEE / DMSE / COORDENAÇÃO GERAL DE MONITORAMENTO DA EXPANSÃO DA TRANSMISSÃO | I45: =[1]BASE!I48 -> 12.102.200
A46: =[1]BASE!A49 -> ANDRE KRAUSS QUEIROZ | B46: =[1]BASE!B49 -> 2660202 | C46: =[1]BASE!C49 -> Analista de Infraestrutura | D46: =[1]BASE!D49 -> Exercício Descentralizado | E46: =[1]BASE!E49 -> ME - Ministério da Economia | F46: =[1]BASE!F49 -> DAS 101.5 | G46: =[1]BASE!G49 ->  | H46: =[1]BASE!H49 -> SPE / DEPARTAMENTO DE OUTORGAS DE CONCESSÕES, PERMISSÕES E AUTORIZAÇÕES - DOC | I46: =[1]BASE!I49 -> 10.103.000
A47: =[1]BASE!A50 -> ANDRÉ LUIS GONÇALVES DE OLIVEIRA | B47: =[1]BASE!B50 -> 3660584 | C47: =[1]BASE!C50 -> Analista de Infraestrutura | D47: =[1]BASE!D50 -> Exercício Descentralizado | E47: =[1]BASE!E50 -> ME - Ministério da Economia | F47: =[1]BASE!F50 -> FCPE 102.3 | G47: =[1]BASE!G50 ->  | H47: =[1]BASE!H50 -> SEE / CHEFIA DE GABINETE SEE | I47: =[1]BASE!I50 -> 12.100.000
A48: =[1]BASE!A51 -> ANDRÉ LUIZ DIAS DE OLIVEIRA | B48: =[1]BASE!B51 -> 2425941 | C48: =[1]BASE!C51 -> Especialista em Política Pública e Gestão Governamental | D48: =[1]BASE!D51 -> Exercício Descentralizado | E48: =[1]BASE!E51 -> ME - Ministério da Economia | F48: =[1]BASE!F51 -> FCPE 102.3 | G48: =[1]BASE!G51 ->  | H48: =[1]BASE!H51 -> SEE / DGSE / COORDENAÇÃO GERAL DE GESTÃO DE PROGRAMAS E REGULAMENTAÇÃO | I48: =[1]BASE!I51 -> 12.101.200
A49: =[1]BASE!A52 -> ANDRE LUIZ RODRIGUES OSORIO | B49: =[1]BASE!B52 -> 1677889 | C49: =[1]BASE!C52 -> Analista de Pesquisa Energética | D49: =[1]BASE!D52 -> Requisitado de Órgãos | E49: =[1]BASE!E52 -> EPE - Empresa de Pesquisa Energética | F49: =[1]BASE!F52 -> DAS 101.5 | G49: =[1]BASE!G52 ->  | H49: =[1]BASE!H52 -> SPE / DEPARTAMENTO DE INFORMAÇÕES E ESTUDOS ENERGÉTICOS - DIEE | I49: =[1]BASE!I52 -> 10.104.000
A50: =[1]BASE!A53 -> ANDRE ROBERTO CORTEZ | B50: =[1]BASE!B53 -> 455219 | C50: =[1]BASE!C53 -> Agente Administrativo | D50: =[1]BASE!D53 -> Ativo Permanente | E50: =[1]BASE!E53 -> MME - Ministério de Minas e Energia | F50: =[1]BASE!F53 -> FCPE 102.1 | G50: =[1]BASE!G53 ->  | H50: =[1]BASE!H53 -> SE / AEGE / COORDENAÇÃO GERAL DE PLANEJAMENTO ESTRATÉGICO, SUPERVISÃO E AVALIAÇÃO - CGPE | I50: =[1]BASE!I53 -> 8.101.100
A51: =[1]BASE!A54 -> ANDREA CRISTINA ANDRADE SANTOS CARVALHO | B51: =[1]BASE!B54 -> 1095477 | C51: =[1]BASE!C54 -> Administrador | D51: =[1]BASE!D54 -> Ativo Permanente | E51: =[1]BASE!E54 -> MME - Ministério de Minas e Energia | F51: =[1]BASE!F54 -> DAS 101.4 | G51: =[1]BASE!G54 -> GSISTE Superior | H51: =[1]BASE!H54 -> SE / SPOA / COORDENAÇÃO GERAL DE RECURSOS LOGÍSTICOS - CGRL | I51: =[1]BASE!I54 -> 8.105.100
A52: =[1]BASE!A55 -> ANDREA CRISTINA GOMES PEREIRA | B52: =[1]BASE!B55 -> 2637600 | C52: =[1]BASE!C55 -> Sem Cargo/Emprego | D52: =[1]BASE!D55 -> Sem Vínculo | E52: =[1]BASE!E55 -> Sem Vínculo | F52: =[1]BASE!F55 -> DAS 102.4 | G52: =[1]BASE!G55 ->  | H52: =[1]BASE!H55 -> SPE / CHEFIA DE GABINETE SPE | I52: =[1]BASE!I55 -> 10.100.000
A53: =[1]BASE!A56 -> ANDREIA ALVES NASCIMENTO FRAGA | B53: =[1]BASE!B56 -> 3373715 | C53: =[1]BASE!C56 -> Sem Cargo/Emprego | D53: =[1]BASE!D56 -> Sem Vínculo | E53: =[1]BASE!E56 -> Sem Vínculo | F53: =[1]BASE!F56 -> DAS 102.4 | G53: =[1]BASE!G56 ->  | H53: =[1]BASE!H56 -> GABINETE DO MINISTRO - GM | I53: =[1]BASE!I56 -> 2.000.000
A54: =[1]BASE!A57 -> ANGELITA SIQUEIRA FAUSTINO | B54: =[1]BASE!B57 -> 451563 | C54: =[1]BASE!C57 -> Agente Administrativo | D54: =[1]BASE!D57 -> Ativo Permanente | E54: =[1]BASE!E57 -> MME - Ministério de Minas e Energia | F54: =[1]BASE!F57 ->  | G54: =[1]BASE!G57 ->  | H54: =[1]BASE!H57 -> SE / SPOA / CGRL / COORDENAÇÃO DE ATIVIDADES GERAIS - COAGE | I54: =[1]BASE!I57 -> 8.105.120
A55: =[1]BASE!A58 -> ANTONIA GONCALVES FILHA PEREIRA | B55: =[1]BASE!B58 -> 455918 | C55: =[1]BASE!C58 -> Agente Administrativo | D55: =[1]BASE!D58 -> Ativo Permanente | E55: =[1]BASE!E58 -> MME - Ministério de Minas e Energia | F55: =[1]BASE!F58 -> FCT 10 | G55: =[1]BASE!G58 -> GSISTE Intermediário | H55: =[1]BASE!H58 -> SE / SUBSECRETARIA DE PLANEJAMENTO, ORÇAMENTO E ADMINISTRAÇÃO - SPOA | I55: =[1]BASE!I58 -> 8.105.000
A56: =[1]BASE!A59 -> ANTONIA TRIPODI | B56: =[1]BASE!B59 -> 1669595 | C56: =[1]BASE!C59 -> Escriturário III | D56: =[1]BASE!D59 -> Anistiado MME | E56: =[1]BASE!E59 -> MME - Ministério de Minas e Energia | F56: =[1]BASE!F59 ->  | G56: =[1]BASE!G59 ->  | H56: =[1]BASE!H59 -> SE / SPOA / CGRH / COORDENAÇÃO DE DESENVOLVIMENTO E SEGURIDADE SOCIAL - CODES | I56: =[1]BASE!I59 -> 8.105.220
A57: =[1]BASE!A60 -> ANTONIELA BRAGGIO STAMM | B57: =[1]BASE!B60 -> 1836721 | C57: =[1]BASE!C60 -> Agente Administrativo | D57: =[1]BASE!D60 -> Requisitado de Órgãos | E57: =[1]BASE!E60 -> ME - Ministério da Economia | F57: =[1]BASE!F60 -> FCPE 102.1 | G57: =[1]BASE!G60 -> GSISTE Intermediário | H57: =[1]BASE!H60 -> SE / SPOA / CGRL / COORDENAÇÃO DE ATIVIDADES GERAIS - COAGE | I57: =[1]BASE!I60 -> 8.105.120
A58: =[1]BASE!A61 -> ANTONIO BENEDITO CAMARGOS | B58: =[1]BASE!B61 -> 1670894 | C58: =[1]BASE!C61 -> Desenhista | D58: =[1]BASE!D61 -> Anistiado MME | E58: =[1]BASE!E61 -> MME - Ministério de Minas e Energia | F58: =[1]BASE!F61 ->  | G58: =[1]BASE!G61 ->  | H58: =[1]BASE!H61 -> SE / SPOA / CGRL / COORDENAÇÃO DE ADMINISTRAÇÃO DE MATERIAL E EXECUÇÃO FINANCEIRA - COMEF | I58: =[1]BASE!I61 -> 8.105.110
A59: =[1]BASE!A62 -> ANTONIO CARLOS ACIOLY FILHO | B59: =[1]BASE!B62 -> 2378913 | C59: =[1]BASE!C62 -> Analista de Licitação | D59: =[1]BASE!D62 -> Contrato Temporário | E59: =[1]BASE!E62 -> MME - Ministério de Minas e Energia | F59: =[1]BASE!F62 ->  | G59: =[1]BASE!G62 ->  | H59: =[1]BASE!H62 -> SE / AEGP / CGGP / COORDENAÇÃO DE LICITAÇÃO | I59: =[1]BASE!I62 -> 8.103.210
A60: =[1]BASE!A63 -> ANTONIO CARLOS DA SILVA LIMA | B60: =[1]BASE!B63 -> 1586232 | C60: =[1]BASE!C63 -> Agente Administrativo | D60: =[1]BASE!D63 -> Anistiado MME | E60: =[1]BASE!E63 -> MME - Ministério de Minas e Energia | F60: =[1]BASE!F63 ->  | G60: =[1]BASE!G63 ->  | H60: =[1]BASE!H63 -> Aguardando Lotação/Exercício | I60: =[1]BASE!I63 -> 88.000.000
A61: =[1]BASE!A64 -> ANTONIO CARLOS DE ANDRADE REZENDE | B61: =[1]BASE!B64 -> 778828 | C61: =[1]BASE!C64 -> Sem Cargo/Emprego | D61: =[1]BASE!D64 -> Sem Vínculo | E61: =[1]BASE!E64 -> Sem Vínculo | F61: =[1]BASE!F64 -> DAS 102.2 | G61: =[1]BASE!G64 ->  | H61: =[1]BASE!H64 -> SGM / DDM / COORDENAÇÃO GERAL DE DESENVOLVIMENTO SOCIOAMBIENTAL NA MINERAÇÃO | I61: =[1]BASE!I64 -> 9.104.100
A62: =[1]BASE!A65 -> ANTONIO CARLOS RAMOS DE BARROS MELLO | B62: =[1]BASE!B65 -> 7455789 | C62: =[1]BASE!C65 -> Sem Cargo/Emprego | D62: =[1]BASE!D65 -> Sem Vínculo | E62: =[1]BASE!E65 -> Sem Vínculo | F62: =[1]BASE!F65 -> DAS 102.5 | G62: =[1]BASE!G65 ->  | H62: =[1]BASE!H65 -> GABINETE DO MINISTRO - GM | I62: =[1]BASE!I65 -> 2.000.000
A63: =[1]BASE!A66 -> ANTONIO DANTAS DE ALENCAR | B63: =[1]BASE!B66 -> 1439176 | C63: =[1]BASE!C66 -> Analista de Infraestrutura | D63: =[1]BASE!D66 -> Exercício Descentralizado | E63: =[1]BASE!E66 -> ME - Ministério da Economia | F63: =[1]BASE!F66 ->  | G63: =[1]BASE!G66 ->  | H63: =[1]BASE!H66 -> SPE / DOC / COORDENAÇÃO GERAL DE OUTORGAS DE GERAÇÃO DE ENERGIA ELÉTRICA | I63: =[1]BASE!I66 -> 10.103.100
A64: =[1]BASE!A67 -> ANTONIO HENRIQUE GODOY RAMOS | B64: =[1]BASE!B67 -> 3364613 | C64: =[1]BASE!C67 -> Especialista em Política Pública e Gestão Governamental | D64: =[1]BASE!D67 -> Exercício Descentralizado | E64: =[1]BASE!E67 -> ME - Ministério da Economia | F64: =[1]BASE!F67 ->  | G64: =[1]BASE!G67 ->  | H64: =[1]BASE!H67 -> SPG / DEPARTAMENTO DE POLÍTICA DE EXPLORAÇÃO E PRODUÇÃO DE PETRÓLEO E GÁS NATURAL - DPGN | I64: =[1]BASE!I67 -> 11.101.000
A65: =[1]BASE!A68 -> ANTONIO JOSE GADELHA ALVES | B65: =[1]BASE!B68 -> 1076077 | C65: =[1]BASE!C68 -> Engenheiro IV | D65: =[1]BASE!D68 -> Anistiado MME | E65: =[1]BASE!E68 -> MME - Ministério de Minas e Energia | F65: =[1]BASE!F68 ->  | G65: =[1]BASE!G68 ->  | H65: =[1]BASE!H68 -> SGM / DEPARTAMENTO DE TRANSFORMAÇÃO E TECNOLOGIA MINERAL - DTTM | I65: =[1]BASE!I68 -> 9.103.000
A66: =[1]BASE!A69 -> ANTONIO JOSE IRMAO | B66: =[1]BASE!B69 -> 1314171 | C66: =[1]BASE!C69 -> Agente de Portaria | D66: =[1]BASE!D69 -> Ativo Permanente | E66: =[1]BASE!E69 -> MME - Ministério de Minas e Energia | F66: =[1]BASE!F69 -> FGR 1 | G66: =[1]BASE!G69 ->  | H66: =[1]BASE!H69 -> GM / ASTAD / COORDENAÇÃO DE ATIVIDADES ADMINISTRATIVAS | I66: =[1]BASE!I69 -> 2.100.101
A67: =[1]BASE!A70 -> ANTONIO LISBOA DE OLIVEIRA | B67: =[1]BASE!B70 -> 451592 | C67: =[1]BASE!C70 -> Agente Administrativo | D67: =[1]BASE!D70 -> Ativo Permanente | E67: =[1]BASE!E70 -> MME - Ministério de Minas e Energia | F67: =[1]BASE!F70 ->  | G67: =[1]BASE!G70 ->  | H67: =[1]BASE!H70 -> Aguardando Lotação/Exercício | I67: =[1]BASE!I70 -> 88.000.000
A68: =[1]BASE!A71 -> ANTONIO ROBERTO COIMBRA | B68: =[1]BASE!B71 -> 2393047 | C68: =[1]BASE!C71 -> Sem Cargo/Emprego | D68: =[1]BASE!D71 -> Sem Vínculo | E68: =[1]BASE!E71 -> Sem Vínculo | F68: =[1]BASE!F71 -> DAS 101.4 | G68: =[1]BASE!G71 ->  | H68: =[1]BASE!H71 -> SPE / DPE / COORDENAÇÃO GERAL DE PLANEJAMENTO DA TRANSMISSÃO | I68: =[1]BASE!I71 -> 10.101.100
A69: =[1]BASE!A72 -> ANTONIO RODRIGUES MONTEIRO | B69: =[1]BASE!B72 -> 1096296 | C69: =[1]BASE!C72 -> Agente de Vigilância | D69: =[1]BASE!D72 -> Ativo Permanente | E69: =[1]BASE!E72 -> MME - Ministério de Minas e Energia | F69: =[1]BASE!F72 -> FGR 1 | G69: =[1]BASE!G72 ->  | H69: =[1]BASE!H72 -> SE / SPOA / CGRL / COORDENAÇÃO DE ATIVIDADES GERAIS - COAGE | I69: =[1]BASE!I72 -> 8.105.120
A70: =[1]BASE!A73 -> AZENIO GONCALVES DOS SANTOS | B70: =[1]BASE!B73 -> 452190 | C70: =[1]BASE!C73 -> Agente de Vigilância | D70: =[1]BASE!D73 -> Ativo Permanente | E70: =[1]BASE!E73 -> MME - Ministério de Minas e Energia | F70: =[1]BASE!F73 -> FGR 1 | G70: =[1]BASE!G73 ->  | H70: =[1]BASE!H73 -> SE / SPOA / CGRL / COORDENAÇÃO DE ATIVIDADES GERAIS - COAGE | I70: =[1]BASE!I73 -> 8.105.120
A71: =[1]BASE!A74 -> BÁRBARA BÉLKIOR DE SOUZA E SILVA | B71: =[1]BASE!B74 -> 1338161 | C71: =[1]BASE!C74 -> Conselheiro | D71: =[1]BASE!D74 -> Requisitado de Órgãos | E71: =[1]BASE!E74 -> MRE - Ministério das Relações Exteriores | F71: =[1]BASE!F74 -> DAS 101.4 | G71: =[1]BASE!G74 ->  | H71: =[1]BASE!H74 -> GM / ASSESSORIA DE APOIO AO MINISTRO - AAM | I71: =[1]BASE!I74 -> 2.100.400
A72: =[1]BASE!A75 -> BEATRIZ BARBOSA DE MELO | B72: =[1]BASE!B75 -> 1658236 | C72: =[1]BASE!C75 -> Sem Cargo/Emprego | D72: =[1]BASE!D75 -> Sem Vínculo | E72: =[1]BASE!E75 -> Sem Vínculo | F72: =[1]BASE!F75 -> DAS 102.2 | G72: =[1]BASE!G75 ->  | H72: =[1]BASE!H75 -> SEE / DEPARTAMENTO DE MONITORAMENTO DO SISTEMA ELÉTRICO - DMSE | I72: =[1]BASE!I75 -> 12.102.000
A73: =[1]BASE!A76 -> BENILDE DOS SANTOS GONCALVES | B73: =[1]BASE!B76 -> 451845 | C73: =[1]BASE!C76 -> Agente Administrativo | D73: =[1]BASE!D76 -> Ativo Permanente | E73: =[1]BASE!E76 -> MME - Ministério de Minas e Energia | F73: =[1]BASE!F76 -> FGR 1 | G73: =[1]BASE!G76 ->  | H73: =[1]BASE!H76 -> Aguardando Lotação/Exercício | I73: =[1]BASE!I76 -> 88.000.000
A74: =[1]BASE!A77 -> BENTO COSTA LIMA LEITE DE ALBUQUERQUE JUNIOR | B74: =[1]BASE!B77 -> 1315936 | C74: =[1]BASE!C77 -> Ministro de Estado | D74: =[1]BASE!D77 -> Sem Vínculo | E74: =[1]BASE!E77 -> Marinha | F74: =[1]BASE!F77 -> NES NES | G74: =[1]BASE!G77 ->  | H74: =[1]BASE!H77 -> MINISTRO | I74: =[1]BASE!I77 -> 1.000.000
A75: =[1]BASE!A78 -> BIANCA MAGALHAES | B75: =[1]BASE!B78 -> 1467247 | C75: =[1]BASE!C78 -> Sem Cargo/Emprego | D75: =[1]BASE!D78 -> Sem Vínculo | E75: =[1]BASE!E78 -> Sem Vínculo | F75: =[1]BASE!F78 -> DAS 102.2 | G75: =[1]BASE!G78 ->  | H75: =[1]BASE!H78 -> CONJUR / CHEFIA DE GABINETE CONJUR | I75: =[1]BASE!I78 -> 7.100.000
A76: =[1]BASE!A79 -> BIANCA MARIA MATOS DE ALENCAR BRAGA | B76: =[1]BASE!B79 -> 4974375 | C76: =[1]BASE!C79 -> Analista de Infraestrutura | D76: =[1]BASE!D79 -> Exercício Descentralizado | E76: =[1]BASE!E79 -> ME - Ministério da Economia | F76: =[1]BASE!F79 -> DAS 101.4 | G76: =[1]BASE!G79 ->  | H76: =[1]BASE!H79 -> SEE / DMSE / COORDENAÇÃO GERAL DE MONITORAMENTO DO DESEMPENHO DO SISTEMA ELÉTRICO | I76: =[1]BASE!I79 -> 12.102.400
A77: =[1]BASE!A80 -> BRENNA KAREN DE OLIVEIRA | B77: =[1]BASE!B80 -> 2617601 | C77: =[1]BASE!C80 -> Analista Técnico Administrativo | D77: =[1]BASE!D80 -> Requisitado de Órgãos | E77: =[1]BASE!E80 -> MDR - Ministério do Desenvolvimento Regional | F77: =[1]BASE!F80 -> FGR 1 | G77: =[1]BASE!G80 -> GSISTE Superior | H77: =[1]BASE!H80 -> SE / SPOA / CGRH / COORDENAÇÃO DE ADMINISTRAÇÃO DE PESSOAL - CAPES | I77: =[1]BASE!I80 -> 8.105.210
A78: =[1]BASE!A81 -> BRENNO LEOPOLDO CAVALCANTE DE PAULA | B78: =[1]BASE!B81 -> 1821871 | C78: =[1]BASE!C81 -> Sem Cargo/Emprego | D78: =[1]BASE!D81 -> Sem Vínculo | E78: =[1]BASE!E81 -> Sem Vínculo | F78: =[1]BASE!F81 -> DAS 101.4 | G78: =[1]BASE!G81 ->  | H78: =[1]BASE!H81 -> GM / ASSESSORIA TÉCNICA E ADMINISTRATIVA - ASTAD | I78: =[1]BASE!I81 -> 2.100.100
A79: =[1]BASE!A82 -> BRUNA RODRIGUES DE OLIVEIRA | B79: =[1]BASE!B82 -> 2839362 | C79: =[1]BASE!C82 -> Sem Cargo/Emprego | D79: =[1]BASE!D82 -> Sem Vínculo | E79: =[1]BASE!E82 -> Sem Vínculo | F79: =[1]BASE!F82 -> DAS 102.2 | G79: =[1]BASE!G82 ->  | H79: =[1]BASE!H82 -> SPE / CHEFIA DE GABINETE SPE | I79: =[1]BASE!I82 -> 10.100.000
A80: =[1]BASE!A83 -> BRUNO CESAR SPADA | B80: =[1]BASE!B83 -> 3117873 | C80: =[1]BASE!C83 -> Sem Cargo/Emprego | D80: =[1]BASE!D83 -> Sem Vínculo | E80: =[1]BASE!E83 -> Sem Vínculo | F80: =[1]BASE!F83 -> DAS 102.3 | G80: =[1]BASE!G83 ->  | H80: =[1]BASE!H83 -> GM / ASSESSORIA DE COMUNICAÇÃO SOCIAL - ASCOM | I80: =[1]BASE!I83 -> 2.100.300
A81: =[1]BASE!A84 -> BRUNO EUSTÁQUIO FERREIRA CASTRO DE CARVALHO | B81: =[1]BASE!B84 -> 1671760 | C81: =[1]BASE!C84 -> Analista de Infraestrutura | D81: =[1]BASE!D84 -> Requisitado de Órgãos | E81: =[1]BASE!E84 -> ME - Ministério da Economia | F81: =[1]BASE!F84 -> DAS 101.6 | G81: =[1]BASE!G84 ->  | H81: =[1]BASE!H84 -> SE / CHEFIA DE GABINETE SE | I81: =[1]BASE!I84 -> 8.100.000
A82: =[1]BASE!A85 -> CAMILLA DE ANDRADE GONÇALVES FERNANDES | B82: =[1]BASE!B85 -> 1559017 | C82: =[1]BASE!C85 -> Especialista em Regulamentação em Energia Elétrica | D82: =[1]BASE!D85 -> Requisitado de Órgãos | E82: =[1]BASE!E85 -> ANEEL - Agência Nacional de Energia Elétrica | F82: =[1]BASE!F85 -> DAS 101.5 | G82: =[1]BASE!G85 ->  | H82: =[1]BASE!H85 -> SE / CHEFIA DE GABINETE SE | I82: =[1]BASE!I85 -> 8.100.000
A83: =[1]BASE!A86 -> CANDICE SOUSA COSTA | B83: =[1]BASE!B86 -> 1553178 | C83: =[1]BASE!C86 -> Procuradora Federal | D83: =[1]BASE!D86 -> Exercício Descentralizado | E83: =[1]BASE!E86 -> AGU - Advocacia Geral da União | F83: =[1]BASE!F86 -> FCPE 101.4 | G83: =[1]BASE!G86 ->  | H83: =[1]BASE!H86 -> CONJUR / COORDENAÇÃO GERAL DE ASSUNTOS DE ENERGIA | I83: =[1]BASE!I86 -> 7.100.100
A84: =[1]BASE!A87 -> CARLOS AGENOR ONOFRE CABRAL | B84: =[1]BASE!B87 -> 1650109 | C84: =[1]BASE!C87 -> Especialista em Regulamentação de Petróleo e Der Alc Com e Gás Natural | D84: =[1]BASE!D87 -> Requisitado de Órgãos | E84: =[1]BASE!E87 -> ANP - Agência Nacional do Petróleo, Gás Natural e Biocombustíveis | F84: =[1]BASE!F87 -> DAS 101.4 | G84: =[1]BASE!G87 ->  | H84: =[1]BASE!H87 -> SPG / DEPARTAMENTO DE POLÍTICA DE EXPLORAÇÃO E PRODUÇÃO DE PETRÓLEO E GÁS NATURAL - DPGN | I84: =[1]BASE!I87 -> 11.101.000
A85: =[1]BASE!A88 -> CARLOS ALBERTO DE OLIVEIRA | B85: =[1]BASE!B88 -> 6451596 | C85: =[1]BASE!C88 -> Arquivista | D85: =[1]BASE!D88 -> Ativo Permanente | E85: =[1]BASE!E88 -> MME - Ministério de Minas e Energia | F85: =[1]BASE!F88 -> FGR 1 | G85: =[1]BASE!G88 ->  | H85: =[1]BASE!H88 -> SE / AEGP / COORDENAÇÃO GERAL DE GESTÃO DE PROJETOS - CGGP | I85: =[1]BASE!I88 -> 8.103.200
A86: =[1]BASE!A89 -> CARLOS ALEXANDRE PRINCIPE PIRES | B86: =[1]BASE!B89 -> 2438064 | C86: =[1]BASE!C89 -> Especialista em Política Pública e Gestão Governamental | D86: =[1]BASE!D89 -> Requisitado de Órgãos | E86: =[1]BASE!E89 -> ME - Ministério da Economia | F86: =[1]BASE!F89 -> DAS 101.5 | G86: =[1]BASE!G89 ->  | H86: =[1]BASE!H89 -> SPE / DEPARTAMENTO DE DESENVOLVIMENTO ENERGÉTICO - DDE | I86: =[1]BASE!I89 -> 10.102.000
A87: =[1]BASE!A90 -> CARLOS ANTONIO DE ABREU | B87: =[1]BASE!B90 -> 161427 | C87: =[1]BASE!C90 -> Agente de Vigilância | D87: =[1]BASE!D90 -> Ativo Permanente | E87: =[1]BASE!E90 -> MME - Ministério de Minas e Energia | F87: =[1]BASE!F90 ->  | G87: =[1]BASE!G90 ->  | H87: =[1]BASE!H90 -> SE / SPOA / CGRL / COORDENAÇÃO DE ATIVIDADES GERAIS - COAGE | I87: =[1]BASE!I90 -> 8.105.120
A88: =[1]BASE!A91 -> CARLOS AUGUSTO FURTADO DE OLIVEIRA NOVAES | B88: =[1]BASE!B91 -> 1547827 | C88: =[1]BASE!C91 -> Analista de Infraestrutura | D88: =[1]BASE!D91 -> Exercício Descentralizado | E88: =[1]BASE!E91 -> ME - Ministério da Economia | F88: =[1]BASE!F91 ->  | G88: =[1]BASE!G91 ->  | H88: =[1]BASE!H91 -> SEE / DMSE / COORDENAÇÃO GERAL DE MONITORAMENTO DO DESEMPENHO DO SISTEMA ELÉTRICO | I88: =[1]BASE!I91 -> 12.102.400
A89: =[1]BASE!A92 -> CARLOS EDUARDO MENDES GALVAO | B89: =[1]BASE!B92 -> 454695 | C89: =[1]BASE!C92 -> Agente Administrativo | D89: =[1]BASE!D92 -> Ativo Permanente | E89: =[1]BASE!E92 -> MME - Ministério de Minas e Energia | F89: =[1]BASE!F92 -> DAS 101.4 | G89: =[1]BASE!G92 -> GSISTE Intermediário | H89: =[1]BASE!H92 -> SE / SPOA / COORDENAÇÃO GERAL DE RECURSOS HUMANOS - CGRH | I89: =[1]BASE!I92 -> 8.105.200
A90: =[1]BASE!A93 -> CARLOS GERARDO DE MESQUITA | B90: =[1]BASE!B93 -> 454390 | C90: =[1]BASE!C93 -> Agente de Portaria | D90: =[1]BASE!D93 -> Ativo Permanente | E90: =[1]BASE!E93 -> MME - Ministério de Minas e Energia | F90: =[1]BASE!F93 -> FGR 1 | G90: =[1]BASE!G93 ->  | H90: =[1]BASE!H93 -> CONJUR / CGAA / COORDENAÇÃO DE APOIO ADMINISTRATIVO | I90: =[1]BASE!I93 -> 7.100.310
A91: =[1]BASE!A94 -> CARLOS JORGE PAVAO DIAS | B91: =[1]BASE!B94 -> 1482723 | C91: =[1]BASE!C94 -> Sem Cargo/Emprego | D91: =[1]BASE!D94 -> Sem Vínculo | E91: =[1]BASE!E94 -> Sem Vínculo | F91: =[1]BASE!F94 -> DAS 102.3 | G91: =[1]BASE!G94 ->  | H91: =[1]BASE!H94 -> SPG / CHEFIA DE GABINETE SPG | I91: =[1]BASE!I94 -> 11.100.000
A92: =[1]BASE!A95 -> CARLOS MODESTO DE ARAUJO | B92: =[1]BASE!B95 -> 1092793 | C92: =[1]BASE!C95 -> Agente Administrativo | D92: =[1]BASE!D95 -> Ativo Permanente | E92: =[1]BASE!E95 -> MME - Ministério de Minas e Energia | F92: =[1]BASE!F95 ->  | G92: =[1]BASE!G95 ->  | H92: =[1]BASE!H95 -> Aguardando Lotação/Exercício | I92: =[1]BASE!I95 -> 88.000.000
A93: =[1]BASE!A96 -> CARLOS ROBERTO NOVAIS DE ALMEIDA | B93: =[1]BASE!B96 -> 455044 | C93: =[1]BASE!C96 -> Agente Administrativo | D93: =[1]BASE!D96 -> Ativo Permanente | E93: =[1]BASE!E96 -> MME - Ministério de Minas e Energia | F93: =[1]BASE!F96 -> FCPE 101.3 | G93: =[1]BASE!G96 ->  | H93: =[1]BASE!H96 -> GM / ASTAD / COORDENAÇÃO DE ATIVIDADES ADMINISTRATIVAS | I93: =[1]BASE!I96 -> 2.100.101
A94: =[1]BASE!A97 -> CASSIO GIULIANI CARVALHO | B94: =[1]BASE!B97 -> 5660896 | C94: =[1]BASE!C97 -> Especialista em Regulamentação de Aviação Civil | D94: =[1]BASE!D97 -> Requisitado de Órgãos | E94: =[1]BASE!E97 -> ANAC - Agência Nacional de Aviação Civil | F94: =[1]BASE!F97 -> DAS 101.4 | G94: =[1]BASE!G97 ->  | H94: =[1]BASE!H97 -> SPE / DPE / COORDENAÇÃO GERAL DA EXPANSÃO ELETROENERGÉTICA | I94: =[1]BASE!I97 -> 10.101.300
A95: =[1]BASE!A98 -> CELIA MARIA BOMTEMPO | B95: =[1]BASE!B98 -> 454348 | C95: =[1]BASE!C98 -> Agente Administrativo | D95: =[1]BASE!D98 -> Ativo Permanente | E95: =[1]BASE!E98 -> MME - Ministério de Minas e Energia | F95: =[1]BASE!F98 -> FCT 5 | G95: =[1]BASE!G98 -> GSISTE Intermediário (MPPFS) | H95: =[1]BASE!H98 -> SE / SPOA / CGOF / COORDENAÇÃO DE CONTABILIDADE - CONT | I95: =[1]BASE!I98 -> 8.105.520
A96: =[1]BASE!A99 -> CESAR FERREIRA BORGES | B96: =[1]BASE!B99 -> 1281488 | C96: =[1]BASE!C99 -> Sem Cargo/Emprego | D96: =[1]BASE!D99 -> Sem Vínculo | E96: =[1]BASE!E99 -> Sem Vínculo | F96: =[1]BASE!F99 -> DAS 102.5 | G96: =[1]BASE!G99 ->  | H96: =[1]BASE!H99 -> GM / ASSESSORIA DE COMUNICAÇÃO SOCIAL - ASCOM | I96: =[1]BASE!I99 -> 2.100.300
A97: =[1]BASE!A100 -> CHRISTIAN DE OLIVEIRA E FERNANDES | B97: =[1]BASE!B100 -> 3355829 | C97: =[1]BASE!C100 -> Advogado da União | D97: =[1]BASE!D100 -> Exercício Descentralizado | E97: =[1]BASE!E100 -> AGU - Advocacia Geral da União | F97: =[1]BASE!F100 ->  | G97: =[1]BASE!G100 ->  | H97: =[1]BASE!H100 -> CONJUR / COORDENAÇÃO GERAL DE ASSUNTOS DE ENERGIA | I97: =[1]BASE!I100 -> 7.100.100
A98: =[1]BASE!A101 -> CHRISTIAN VARGAS | B98: =[1]BASE!B101 -> 0 | C98: =[1]BASE!C101 -> Ministro de Segunda Classe | D98: =[1]BASE!D101 -> Requisitado de Órgãos | E98: =[1]BASE!E101 -> MRE - Ministério das Relações Exteriores | F98: =[1]BASE!F101 -> DAS 101.5 | G98: =[1]BASE!G101 ->  | H98: =[1]BASE!H101 -> ASSESSORIA ESPECIAL DE RELAÇÕES INTERNACIONAIS - ASSINT | I98: =[1]BASE!I101 -> 3.000.000
A99: =[1]BASE!A102 -> CHRISTIANY SALGADO FARIA | B99: =[1]BASE!B102 -> 1453978 | C99: =[1]BASE!C102 -> Analista de Infraestrutura | D99: =[1]BASE!D102 -> Requisitado de Órgãos | E99: =[1]BASE!E102 -> ME - Ministério da Economia | F99: =[1]BASE!F102 -> DAS 102.4 | G99: =[1]BASE!G102 ->  | H99: =[1]BASE!H102 -> ASSESSORIA ESPECIAL DE ASSUNTOS ECONÔMICOS - ASSEC | I99: =[1]BASE!I102 -> 6.000.000
A100: =[1]BASE!A103 -> CICERO DA ROSA ROCHA | B100: =[1]BASE!B103 -> 1669516 | C100: =[1]BASE!C103 -> Escriturário II | D100: =[1]BASE!D103 -> Anistiado MME | E100: =[1]BASE!E103 -> MME - Ministério de Minas e Energia | F100: =[1]BASE!F103 ->  | G100: =[1]BASE!G103 ->  | H100: =[1]BASE!H103 -> SE / SPOA / CGRH / COORDENAÇÃO DE DESENVOLVIMENTO E SEGURIDADE SOCIAL - CODES | I100: =[1]BASE!I103 -> 8.105.220
A101: =[1]BASE!A104 -> CICERO RONALDO VIEIRA DA SILVA | B101: =[1]BASE!B104 -> 451627 | C101: =[1]BASE!C104 -> Agente de Portaria | D101: =[1]BASE!D104 -> Ativo Permanente | E101: =[1]BASE!E104 -> MME - Ministério de Minas e Energia | F101: =[1]BASE!F104 -> FCT 7 | G101: =[1]BASE!G104 ->  | H101: =[1]BASE!H104 -> SE / SPOA / CGRL / COORDENAÇÃO DE ATIVIDADES GERAIS - COAGE | I101: =[1]BASE!I104 -> 8.105.120
A102: =[1]BASE!A105 -> CLARA DE JESUS SILVA | B102: =[1]BASE!B105 -> 1772834 | C102: =[1]BASE!C105 -> Auxiliar Administrativo | D102: =[1]BASE!D105 -> Anistiado MME | E102: =[1]BASE!E105 -> MME - Ministério de Minas e Energia | F102: =[1]BASE!F105 ->  | G102: =[1]BASE!G105 ->  | H102: =[1]BASE!H105 -> Aguardando Lotação/Exercício | I102: =[1]BASE!I105 -> 88.000.000
A103: =[1]BASE!A106 -> CLAREN MARCIA DE AZEVEDO | B103: =[1]BASE!B106 -> 1340463 | C103: =[1]BASE!C106 -> Sem Cargo/Emprego | D103: =[1]BASE!D106 -> Sem Vínculo | E103: =[1]BASE!E106 -> Sem Vínculo | F103: =[1]BASE!F106 -> DAS 102.2 | G103: =[1]BASE!G106 ->  | H103: =[1]BASE!H106 -> SE / CHEFIA DE GABINETE SE | I103: =[1]BASE!I106 -> 8.100.000
A104: =[1]BASE!A107 -> CLARICE GOMES DA SILVA | B104: =[1]BASE!B107 -> 1696906 | C104: =[1]BASE!C107 -> Escriturário I | D104: =[1]BASE!D107 -> Anistiado MME | E104: =[1]BASE!E107 -> MME - Ministério de Minas e Energia | F104: =[1]BASE!F107 -> DAS 102.2 | G104: =[1]BASE!G107 ->  | H104: =[1]BASE!H107 -> SE / SPOA / CGRL / COORDENAÇÃO DE ATIVIDADES GERAIS - COAGE | I104: =[1]BASE!I107 -> 8.105.120
A105: =[1]BASE!A108 -> CLAUDIA CRISTINA DE OLIVEIRA F SILVA | B105: =[1]BASE!B108 -> 455479 | C105: =[1]BASE!C108 -> Telefonista | D105: =[1]BASE!D108 -> Ativo Permanente | E105: =[1]BASE!E108 -> MME - Ministério de Minas e Energia | F105: =[1]BASE!F108 -> FGR 1 | G105: =[1]BASE!G108 ->  | H105: =[1]BASE!H108 -> SE / SPOA / CGRH / COORDENAÇÃO DE DESENVOLVIMENTO E SEGURIDADE SOCIAL - CODES | I105: =[1]BASE!I108 -> 8.105.220
A106: =[1]BASE!A109 -> CLAUDIA MARIA DA SILVA MEIRA | B106: =[1]BASE!B109 -> 1783636 | C106: =[1]BASE!C109 -> Sem Cargo/Emprego | D106: =[1]BASE!D109 -> Sem Vínculo | E106: =[1]BASE!E109 -> Sem Vínculo | F106: =[1]BASE!F109 -> DAS 102.2 | G106: =[1]BASE!G109 ->  | H106: =[1]BASE!H109 -> SE / ASSESSORIA ESPECIAL DE GESTÃO ESTRATÉGICA - AEGE | I106: =[1]BASE!I109 -> 8.101.000
A107: =[1]BASE!A110 -> CLÁUDIA MOTA MONTEIRO | B107: =[1]BASE!B110 -> 454709 | C107: =[1]BASE!C110 -> Agente Administrativo | D107: =[1]BASE!D110 -> Ativo Permanente | E107: =[1]BASE!E110 -> MME - Ministério de Minas e Energia | F107: =[1]BASE!F110 -> DAS 101.3 | G107: =[1]BASE!G110 -> GSISTE Intermediário | H107: =[1]BASE!H110 -> SE / SPOA / CGCC / COORDENAÇÃO DE ADMINISTRAÇÃO DE CONTRATOS - CAC | I107: =[1]BASE!I110 -> 8.105.410
A108: =[1]BASE!A111 -> CLAUDIO OLIMAR INATOMI | B108: =[1]BASE!B111 -> 455322 | C108: =[1]BASE!C111 -> Agente Administrativo | D108: =[1]BASE!D111 -> Ativo Permanente | E108: =[1]BASE!E111 -> MME - Ministério de Minas e Energia | F108: =[1]BASE!F111 -> FCPE 102.2 | G108: =[1]BASE!G111 ->  | H108: =[1]BASE!H111 -> ASSESSORIA ESPECIAL DE RELAÇÕES INTERNACIONAIS - ASSINT | I108: =[1]BASE!I111 -> 3.000.000
A109: =[1]BASE!A112 -> CLAUDIO XAVIER PEREIRA | B109: =[1]BASE!B112 -> 1202804 | C109: =[1]BASE!C112 -> Analista de Planejamento e Orçamento | D109: =[1]BASE!D112 -> Exercício Descentralizado | E109: =[1]BASE!E112 -> ME - Ministério da Economia | F109: =[1]BASE!F112 -> DAS 101.4 | G109: =[1]BASE!G112 ->  | H109: =[1]BASE!H112 -> SE / SPOA / COORDENAÇÃO GERAL DE ORÇAMENTO E FINANÇAS - CGOF | I109: =[1]BASE!I112 -> 8.105.500
A110: =[1]BASE!A113 -> CLAYTON DE SOUZA PONTES | B110: =[1]BASE!B113 -> 3482082 | C110: =[1]BASE!C113 -> Sem Cargo/Emprego | D110: =[1]BASE!D113 -> Sem Vínculo | E110: =[1]BASE!E113 -> Sem Vínculo | F110: =[1]BASE!F113 -> DAS 101.4 | G110: =[1]BASE!G113 ->  | H110: =[1]BASE!H113 -> SPG / DPGN / COORDENAÇÃO GERAL DE POLÍTICA DE CONCESSÃO DE BLOCOS EXPLORATÓRIOS | I110: =[1]BASE!I113 -> 11.101.200
A111: =[1]BASE!A114 -> CLEONICE DE FREITAS DE ALMEIDA | B111: =[1]BASE!B114 -> 2586386 | C111: =[1]BASE!C114 -> Escriturário II | D111: =[1]BASE!D114 -> Anistiado MME | E111: =[1]BASE!E114 -> MME - Ministério de Minas e Energia | F111: =[1]BASE!F114 ->  | G111: =[1]BASE!G114 ->  | H111: =[1]BASE!H114 -> SE / SPOA / CGRH / COORDENAÇÃO DE DESENVOLVIMENTO E SEGURIDADE SOCIAL - CODES | I111: =[1]BASE!I114 -> 8.105.220
A112: =[1]BASE!A115 -> CLEUSA COSTA DE JESUS | B112: =[1]BASE!B115 -> 454729 | C112: =[1]BASE!C115 -> Agente Administrativo | D112: =[1]BASE!D115 -> Ativo Permanente | E112: =[1]BASE!E115 -> MME - Ministério de Minas e Energia | F112: =[1]BASE!F115 -> FGR 1 | G112: =[1]BASE!G115 -> GSISTE Intermediário | H112: =[1]BASE!H115 -> SE / SPOA / CGCC / COORDENAÇÃO DE ADMINISTRAÇÃO DE CONTRATOS - CAC | I112: =[1]BASE!I115 -> 8.105.410
A113: =[1]BASE!A116 -> CONCEICAO CRISTINA ARAUJO LIMA | B113: =[1]BASE!B116 -> 5300147 | C113: =[1]BASE!C116 -> Sem Cargo/Emprego | D113: =[1]BASE!D116 -> Sem Vínculo | E113: =[1]BASE!E116 -> Sem Vínculo | F113: =[1]BASE!F116 -> DAS 101.4 | G113: =[1]BASE!G116 ->  | H113: =[1]BASE!H116 -> SEE / DPUE / COORDENAÇÃO GERAL DE UNIVERSALIZAÇÃO DO ACESSO À ENERGIA | I113: =[1]BASE!I116 -> 12.103.200
A114: =[1]BASE!A117 -> CONCEICAO DE MARIA OLIVEIRA COSTA | B114: =[1]BASE!B117 -> 1094208 | C114: =[1]BASE!C117 -> Administrador | D114: =[1]BASE!D117 -> Ativo Permanente | E114: =[1]BASE!E117 -> MME - Ministério de Minas e Energia | F114: =[1]BASE!F117 -> FCPE 102.1 | G114: =[1]BASE!G117 -> GSISTE Superior | H114: =[1]BASE!H117 -> SE / SPOA / COORDENAÇÃO DE MODERNIZAÇÃO ADMINISTRATIVA - CMA | I114: =[1]BASE!I117 -> 8.105.010
A115: =[1]BASE!A118 -> CORACY NOGUEIRA LOSSO | B115: =[1]BASE!B118 -> 1681461 | C115: =[1]BASE!C118 -> Programador de Sistema III | D115: =[1]BASE!D118 -> Anistiado MME | E115: =[1]BASE!E118 -> MME - Ministério de Minas e Energia | F115: =[1]BASE!F118 ->  | G115: =[1]BASE!G118 ->  | H115: =[1]BASE!H118 -> Aguardando Lotação/Exercício | I115: =[1]BASE!I118 -> 88.000.000
A116: =[1]BASE!A119 -> CRISTIANO MASAYOSHI MENEZES FURUHASHI | B116: =[1]BASE!B119 -> 2661367 | C116: =[1]BASE!C119 -> Analista de Infraestrutura | D116: =[1]BASE!D119 -> Exercício Descentralizado | E116: =[1]BASE!E119 -> ME - Ministério da Economia | F116: =[1]BASE!F119 ->  | G116: =[1]BASE!G119 ->  | H116: =[1]BASE!H119 -> SGM / DEPARTAMENTO DE DESENVOLVIMENTO SUSTENTÁVEL NA MINERAÇÃO - DDM | I116: =[1]BASE!I119 -> 9.104.000
A117: =[1]BASE!A120 -> CRISTOVAO EPAMINONDAS DE LIMA | B117: =[1]BASE!B120 -> 2798687 | C117: =[1]BASE!C120 -> Agente Administrativo | D117: =[1]BASE!D120 -> Requisitado de Órgãos | E117: =[1]BASE!E120 -> MAPA - Ministério da Agricultura, Pecuário e Abastecimento | F117: =[1]BASE!F120 -> FCT 10 | G117: =[1]BASE!G120 -> GSISTE Intermediário | H117: =[1]BASE!H120 -> SE / SPOA / CGRL / COORDENAÇÃO DE ATIVIDADES GERAIS - COAGE | I117: =[1]BASE!I120 -> 8.105.120
A118: =[1]BASE!A121 -> CUSTÓDIA OLIVEIRA PEREIRA | B118: =[1]BASE!B121 -> 2344185 | C118: =[1]BASE!C121 -> Sem Cargo/Emprego | D118: =[1]BASE!D121 -> Sem Vínculo | E118: =[1]BASE!E121 -> Sem Vínculo | F118: =[1]BASE!F121 -> DAS 101.2 | G118: =[1]BASE!G121 ->  | H118: =[1]BASE!H121 -> SE / SPOA / CGRL / COORDENAÇÃO DE ADMINISTRAÇÃO DE MATERIAL E EXECUÇÃO FINANCEIRA - COMEF | I118: =[1]BASE!I121 -> 8.105.110
A119: =[1]BASE!A122 -> DALTON JOSE DE OLIVEIRA | B119: =[1]BASE!B122 -> 452266 | C119: =[1]BASE!C122 -> Administrador | D119: =[1]BASE!D122 -> Ativo Permanente | E119: =[1]BASE!E122 -> MME - Ministério de Minas e Energia | F119: =[1]BASE!F122 -> DAS 102.3 | G119: =[1]BASE!G122 ->  | H119: =[1]BASE!H122 -> ASSESSORIA ESPECIAL DE ACOMPANHAMENTO DE POLÍTICAS, ESTRATÉGIAS E DESEMPENHO SETORIAL - AEPED | I119: =[1]BASE!I122 -> 4.000.000
A120: =[1]BASE!A123 -> DANIEL ALVES LIMA | B120: =[1]BASE!B123 -> 3561759 | C120: =[1]BASE!C123 -> Analista de Infraestrutura | D120: =[1]BASE!D123 -> Requisitado de Órgãos | E120: =[1]BASE!E123 -> ME - Ministério da Economia | F120: =[1]BASE!F123 -> FCPE 101.4 | G120: =[1]BASE!G123 ->  | H120: =[1]BASE!H123 -> SGM / DPGM / COORDENAÇÃO GERAL DE POLÍTICA E PROGRAMAS PARA MINERAÇÃO | I120: =[1]BASE!I123 -> 9.101.100
A121: =[1]BASE!A124 -> DANIEL LOPES PÊGO | B121: =[1]BASE!B124 -> 1048617 | C121: =[1]BASE!C124 -> Analista de Infraestrutura | D121: =[1]BASE!D124 -> Exercício Descentralizado | E121: =[1]BASE!E124 -> ME - Ministério da Economia | F121: =[1]BASE!F124 -> FCPE 102.2 | G121: =[1]BASE!G124 ->  | H121: =[1]BASE!H124 -> SPG / DEPARTAMENTO DE GÁS NATURAL - DGN | I121: =[1]BASE!I124 -> 11.102.000
A122: =[1]BASE!A125 -> DANIELE DE OLIVEIRA BANDEIRA | B122: =[1]BASE!B125 -> 1433965 | C122: =[1]BASE!C125 -> Sem Cargo/Emprego | D122: =[1]BASE!D125 -> Sem Vínculo | E122: =[1]BASE!E125 -> Sem Vínculo | F122: =[1]BASE!F125 -> DAS 102.3 | G122: =[1]BASE!G125 ->  | H122: =[1]BASE!H125 -> SPE / DIEE / COORDENAÇÃO GERAL DE INFORMAÇÕES ENERGÉTICAS | I122: =[1]BASE!I125 -> 10.104.100
A123: =[1]BASE!A126 -> DANIELLE GONCALVES BRITTO | B123: =[1]BASE!B126 -> 3133022 | C123: =[1]BASE!C126 -> Marinha | D123: =[1]BASE!D126 -> Requisitado Militar | E123: =[1]BASE!E126 -> Marinha | F123: =[1]BASE!F126 -> DAS 102.3 | G123: =[1]BASE!G126 ->  | H123: =[1]BASE!H126 -> Escritório Rio de Janeiro/RJ | I123: =[1]BASE!I126 -> 99.000.000
A124: =[1]BASE!A127 -> DANIELLE LANCHARES ORNELAS | B124: =[1]BASE!B127 -> 1650027 | C124: =[1]BASE!C127 -> Especialista em Regulamentação de Petróleo e Der Alc Com e Gás Natural | D124: =[1]BASE!D127 -> Requisitado de Órgãos | E124: =[1]BASE!E127 -> ANP - Agência Nacional do Petróleo, Gás Natural e Biocombustíveis | F124: =[1]BASE!F127 -> DAS 101.4 | G124: =[1]BASE!G127 ->  | H124: =[1]BASE!H127 -> SPG / DCDP / COORDENAÇÃO GERAL DE REFINO, ABASTECIMENTO ...... | I124: =[1]BASE!I127 -> 11.103.200
A125: =[1]BASE!A128 -> DANIELLE SIMOES GUIMARAES | B125: =[1]BASE!B128 -> 2444145 | C125: =[1]BASE!C128 -> Sem Cargo/Emprego | D125: =[1]BASE!D128 -> Sem Vínculo | E125: =[1]BASE!E128 -> Sem Vínculo | F125: =[1]BASE!F128 -> DAS 102.4 | G125: =[1]BASE!G128 ->  | H125: =[1]BASE!H128 -> ASSESSORIA ESPECIAL DE RELAÇÕES INTERNACIONAIS - ASSINT | I125: =[1]BASE!I128 -> 3.000.000
A126: =[1]BASE!A129 -> DARIO SPEGIORIN SILVEIRA | B126: =[1]BASE!B129 -> 2499671 | C126: =[1]BASE!C129 -> Advogado da União | D126: =[1]BASE!D129 -> Exercício Descentralizado | E126: =[1]BASE!E129 -> AGU - Advocacia Geral da União | F126: =[1]BASE!F129 -> FCPE 102.3 | G126: =[1]BASE!G129 ->  | H126: =[1]BASE!H129 -> CONJUR / CHEFIA DE GABINETE CONJUR | I126: =[1]BASE!I129 -> 7.100.000
A127: =[1]BASE!A130 -> DEIVSON MATOS TIMBÓ | B127: =[1]BASE!B130 -> 2661231 | C127: =[1]BASE!C130 -> Analista de Infraestrutura | D127: =[1]BASE!D130 -> Exercício Descentralizado | E127: =[1]BASE!E130 -> ME - Ministério da Economia | F127: =[1]BASE!F130 -> DAS 101.4 | G127: =[1]BASE!G130 ->  | H127: =[1]BASE!H130 -> SPG / DCDP / COORDENAÇÃO GERAL DE ACOMPANHAMENTO DO MERCADO | I127: =[1]BASE!I130 -> 11.103.100
A128: =[1]BASE!A131 -> DENIS DE MOURA SOARES | B128: =[1]BASE!B131 -> 1334799 | C128: =[1]BASE!C131 -> Analista de Planejamento e Orçamento | D128: =[1]BASE!D131 -> Requisitado de Órgãos | E128: =[1]BASE!E131 -> ME - Ministério da Economia | F128: =[1]BASE!F131 -> DAS 101.5 | G128: =[1]BASE!G131 ->  | H128: =[1]BASE!H131 -> SE / ASSESSORIA ESPECIAL DE GESTÃO DE PROJETOS - AEGP | I128: =[1]BASE!I131 -> 8.103.000
A129: =[1]BASE!A132 -> DENIZE VALENTIM | B129: =[1]BASE!B132 -> 1678550 | C129: =[1]BASE!C132 -> Auxiliar Codificação e Conferência | D129: =[1]BASE!D132 -> Anistiado MME | E129: =[1]BASE!E132 -> MME - Ministério de Minas e Energia | F129: =[1]BASE!F132 ->  | G129: =[1]BASE!G132 ->  | H129: =[1]BASE!H132 -> SE / SPOA / COORDENAÇÃO GERAL DE RECURSOS HUMANOS - CGRH | I129: =[1]BASE!I132 -> 8.105.200
A130: =[1]BASE!A133 -> DENNIS OTTO CHAMORRO ZELAYA | B130: =[1]BASE!B133 -> 1669878 | C130: =[1]BASE!C133 -> Analista de Sistema | D130: =[1]BASE!D133 -> Anistiado MME | E130: =[1]BASE!E133 -> MME - Ministério de Minas e Energia | F130: =[1]BASE!F133 ->  | G130: =[1]BASE!G133 ->  | H130: =[1]BASE!H133 -> Aguardando Lotação/Exercício | I130: =[1]BASE!I133 -> 88.000.000
A131: =[1]BASE!A134 -> DIANA BISPO DE JESUS | B131: =[1]BASE!B134 -> 0 | C131: =[1]BASE!C134 -> Sem Cargo/Emprego | D131: =[1]BASE!D134 -> Sem Vínculo | E131: =[1]BASE!E134 -> Sem Vínculo | F131: =[1]BASE!F134 -> DAS 102.2 | G131: =[1]BASE!G134 ->  | H131: =[1]BASE!H134 -> GM / ASSESSORIA DE COMUNICAÇÃO SOCIAL - ASCOM | I131: =[1]BASE!I134 -> 2.100.300
A132: =[1]BASE!A135 -> DIMAS FIGUEIREDO NOBREGA | B132: =[1]BASE!B135 -> 2230294 | C132: =[1]BASE!C135 -> Codificador de Dados I | D132: =[1]BASE!D135 -> Anistiado MME | E132: =[1]BASE!E135 -> MME - Ministério de Minas e Energia | F132: =[1]BASE!F135 ->  | G132: =[1]BASE!G135 ->  | H132: =[1]BASE!H135 -> SE / SPOA / CGRL / COORDENAÇÃO DE ATIVIDADES GERAIS - COAGE | I132: =[1]BASE!I135 -> 8.105.120
A133: =[1]BASE!A136 -> DINALVA FEIJO DE MELO MENDES | B133: =[1]BASE!B136 -> 2083513 | C133: =[1]BASE!C136 -> Advogado | D133: =[1]BASE!D136 -> Anistiado MME | E133: =[1]BASE!E136 -> MME - Ministério de Minas e Energia | F133: =[1]BASE!F136 ->  | G133: =[1]BASE!G136 ->  | H133: =[1]BASE!H136 -> Aguardando Lotação/Exercício | I133: =[1]BASE!I136 -> 88.000.000
A134: =[1]BASE!A137 -> DIOGO SANTOS BALEEIRO | B134: =[1]BASE!B137 -> 2659082 | C134: =[1]BASE!C137 -> Analista de Infraestrutura | D134: =[1]BASE!D137 -> Exercício Descentralizado | E134: =[1]BASE!E137 -> ME - Ministério da Economia | F134: =[1]BASE!F137 -> FCPE 102.2 | G134: =[1]BASE!G137 ->  | H134: =[1]BASE!H137 -> SPG / DEPARTAMENTO DE POLÍTICA DE EXPLORAÇÃO E PRODUÇÃO DE PETRÓLEO E GÁS NATURAL - DPGN | I134: =[1]BASE!I137 -> 11.101.000
A135: =[1]BASE!A138 -> DIONE MACEDO | B135: =[1]BASE!B138 -> 1583128 | C135: =[1]BASE!C138 -> Sem Cargo/Emprego | D135: =[1]BASE!D138 -> Sem Vínculo | E135: =[1]BASE!E138 -> Sem Vínculo | F135: =[1]BASE!F138 -> DAS 101.4 | G135: =[1]BASE!G138 ->  | H135: =[1]BASE!H138 -> SGM / DDM / COORDENAÇÃO GERAL DE DESENVOLVIMENTO SOCIOAMBIENTAL NA MINERAÇÃO | I135: =[1]BASE!I138 -> 9.104.100
A136: =[1]BASE!A139 -> DOMINGOS ROMEU ANDREATTA | B136: =[1]BASE!B139 -> 1495892 | C136: =[1]BASE!C139 -> Engenheiro | D136: =[1]BASE!D139 -> Requisitado de Empresa | E136: =[1]BASE!E139 -> ELETROSUL - Companhia de Geração e Transmissão de Energia Elétrica do Sul do Brasil | F136: =[1]BASE!F139 -> DAS 101.5 | G136: =[1]BASE!G139 ->  | H136: =[1]BASE!H139 -> SEE / CHEFIA DE GABINETE SEE | I136: =[1]BASE!I139 -> 12.100.000
A137: =[1]BASE!A140 -> EDNA PATRICIA DE SENA | B137: =[1]BASE!B140 -> 1669537 | C137: =[1]BASE!C140 -> Escriturário III | D137: =[1]BASE!D140 -> Anistiado MME | E137: =[1]BASE!E140 -> MME - Ministério de Minas e Energia | F137: =[1]BASE!F140 ->  | G137: =[1]BASE!G140 ->  | H137: =[1]BASE!H140 -> SE / SPOA / CGRH / COORDENAÇÃO DE DESENVOLVIMENTO E SEGURIDADE SOCIAL - CODES | I137: =[1]BASE!I140 -> 8.105.220
A138: =[1]BASE!A141 -> EDUARDO JOSÉ FERNANDES PRATA | B138: =[1]BASE!B141 -> 455167 | C138: =[1]BASE!C141 -> Administrador | D138: =[1]BASE!D141 -> Ativo Permanente | E138: =[1]BASE!E141 -> MME - Ministério de Minas e Energia | F138: =[1]BASE!F141 -> FCPE 102.1 | G138: =[1]BASE!G141 -> GSISTE Superior | H138: =[1]BASE!H141 -> SE / SPOA / COORDENAÇÃO DE MODERNIZAÇÃO ADMINISTRATIVA - CMA | I138: =[1]BASE!I141 -> 8.105.010
A139: =[1]BASE!A142 -> EDUARDO SOUZA GRIVOT DE GRAND COURT | B139: =[1]BASE!B142 -> 3204382 | C139: =[1]BASE!C142 -> Sem Cargo/Emprego | D139: =[1]BASE!D142 -> Sem Vínculo | E139: =[1]BASE!E142 -> S/VÍNCULO | F139: =[1]BASE!F142 -> DAS 102.4 | G139: =[1]BASE!G142 ->  | H139: =[1]BASE!H142 -> SE / ASSESSORIA ESPECIAL DE GESTÃO ESTRATÉGICA - AEGE | I139: =[1]BASE!I142 -> 8.101.000
A140: =[1]BASE!A143 -> EDVANDA BARBOSA DA SILVA MELO | B140: =[1]BASE!B143 -> 451530 | C140: =[1]BASE!C143 -> Datilógrafo | D140: =[1]BASE!D143 -> Ativo Permanente | E140: =[1]BASE!E143 -> MME - Ministério de Minas e Energia | F140: =[1]BASE!F143 ->  | G140: =[1]BASE!G143 -> GSISTE Intermediário | H140: =[1]BASE!H143 -> SE / SPOA / CGRL / COORDENAÇÃO DE ATIVIDADES GERAIS - COAGE | I140: =[1]BASE!I143 -> 8.105.120
A141: =[1]BASE!A144 -> ELEAZAR HEPNER | B141: =[1]BASE!B144 -> 1800748 | C141: =[1]BASE!C144 -> Analista de Infraestrutura | D141: =[1]BASE!D144 -> Exercício Descentralizado | E141: =[1]BASE!E144 -> ME - Ministério da Economia | F141: =[1]BASE!F144 ->  | G141: =[1]BASE!G144 ->  | H141: =[1]BASE!H144 -> SPG / DEPARTAMENTO DE GÁS NATURAL - DGN | I141: =[1]BASE!I144 -> 11.102.000
A142: =[1]BASE!A145 -> ELIAS PEREIRA | B142: =[1]BASE!B145 -> 455294 | C142: =[1]BASE!C145 -> Agente de Portaria | D142: =[1]BASE!D145 -> Ativo Permanente | E142: =[1]BASE!E145 -> MME - Ministério de Minas e Energia | F142: =[1]BASE!F145 -> FCT 2 | G142: =[1]BASE!G145 ->  | H142: =[1]BASE!H145 -> SE / SPOA / CGRH / COORDENAÇÃO DE DESENVOLVIMENTO E SEGURIDADE SOCIAL - CODES | I142: =[1]BASE!I145 -> 8.105.220
A143: =[1]BASE!A146 -> ELIS REGINA PIRES GARCIA | B143: =[1]BASE!B146 -> 455221 | C143: =[1]BASE!C146 -> Agente Administrativo | D143: =[1]BASE!D146 -> Ativo Permanente | E143: =[1]BASE!E146 -> MME - Ministério de Minas e Energia | F143: =[1]BASE!F146 -> FCPE 102.2 | G143: =[1]BASE!G146 ->  | H143: =[1]BASE!H146 -> GM / ASTAD / COORDENAÇÃO DE ATIVIDADES ADMINISTRATIVAS | I143: =[1]BASE!I146 -> 2.100.101
A144: =[1]BASE!A147 -> ELISANGELA APARECIDA FERNANDES | B144: =[1]BASE!B147 -> 1331098 | C144: =[1]BASE!C147 -> Sem Cargo/Emprego | D144: =[1]BASE!D147 -> Sem Vínculo | E144: =[1]BASE!E147 -> Sem Vínculo | F144: =[1]BASE!F147 -> DAS 102.1 | G144: =[1]BASE!G147 ->  | H144: =[1]BASE!H147 -> GM / ASSESSORIA PARLAMENTAR - ASPAR | I144: =[1]BASE!I147 -> 2.100.200
A145: =[1]BASE!A148 -> ELIZABETE TEIXEIRA SA FREIRE DE ABREU | B145: =[1]BASE!B148 -> 266924 | C145: =[1]BASE!C148 -> Enfermeiro | D145: =[1]BASE!D148 -> Ativo Permanente | E145: =[1]BASE!E148 -> MME - Ministério de Minas e Energia | F145: =[1]BASE!F148 -> FCT 3 | G145: =[1]BASE!G148 -> GSISTE Superior | H145: =[1]BASE!H148 -> SE / SPOA / CGRH / COORDENAÇÃO DE DESENVOLVIMENTO E SEGURIDADE SOCIAL - CODES | I145: =[1]BASE!I148 -> 8.105.220
A146: =[1]BASE!A149 -> ELIZABETH NOGUEIRA | B146: =[1]BASE!B149 -> 1587079 | C146: =[1]BASE!C149 -> Escriturário IV | D146: =[1]BASE!D149 -> Anistiado MME | E146: =[1]BASE!E149 -> MME - Ministério de Minas e Energia | F146: =[1]BASE!F149 ->  | G146: =[1]BASE!G149 ->  | H146: =[1]BASE!H149 -> SE / SPOA / CGRH / COORDENAÇÃO DE ADMINISTRAÇÃO DE PESSOAL - CAPES | I146: =[1]BASE!I149 -> 8.105.210
A147: =[1]BASE!A150 -> ELIZABETH TAYLOR SOUSA MENESES DE AGUIAR | B147: =[1]BASE!B150 -> 1494863 | C147: =[1]BASE!C150 -> Sem Cargo/Emprego | D147: =[1]BASE!D150 -> Sem Vínculo | E147: =[1]BASE!E150 -> Sem Vínculo | F147: =[1]BASE!F150 -> DAS 102.2 | G147: =[1]BASE!G150 ->  | H147: =[1]BASE!H150 -> CONJUR / CGAA / COORDENAÇÃO DE APOIO ADMINISTRATIVO | I147: =[1]BASE!I150 -> 7.100.310
A148: =[1]BASE!A151 -> ELIZANE VELOZO COSTA GUEDES | B148: =[1]BASE!B151 -> 1095447 | C148: =[1]BASE!C151 -> Agente Administrativo | D148: =[1]BASE!D151 -> Ativo Permanente | E148: =[1]BASE!E151 -> MME - Ministério de Minas e Energia | F148: =[1]BASE!F151 -> DAS 101.3 | G148: =[1]BASE!G151 -> GSISTE Intermediário (MPAAC) | H148: =[1]BASE!H151 -> SE / SPOA / CGOF / COORDENAÇÃO DE CONTABILIDADE - CONT | I148: =[1]BASE!I151 -> 8.105.520
A149: =[1]BASE!A152 -> ELZA MARIA DA ROCHA | B149: =[1]BASE!B152 -> 1669651 | C149: =[1]BASE!C152 -> Auxiliar de Biblioteca | D149: =[1]BASE!D152 -> Anistiado MME | E149: =[1]BASE!E152 -> MME - Ministério de Minas e Energia | F149: =[1]BASE!F152 ->  | G149: =[1]BASE!G152 ->  | H149: =[1]BASE!H152 -> SE / SPOA / CGRH / COORDENAÇÃO DE DESENVOLVIMENTO E SEGURIDADE SOCIAL - CODES | I149: =[1]BASE!I152 -> 8.105.220
A150: =[1]BASE!A153 -> EMANOELLE DE OLIVEIRA LIMA | B150: =[1]BASE!B153 -> 1461010 | C150: =[1]BASE!C153 -> Sem Cargo/Emprego | D150: =[1]BASE!D153 -> Sem Vínculo | E150: =[1]BASE!E153 -> Sem Vínculo | F150: =[1]BASE!F153 -> DAS 102.3 | G150: =[1]BASE!G153 ->  | H150: =[1]BASE!H153 -> SEE / DMSE / COORDENAÇÃO GERAL DE MONITORAMENTO DA EXPANSÃO DA TRANSMISSÃO | I150: =[1]BASE!I153 -> 12.102.200
A151: =[1]BASE!A154 -> EMIDIO JOSE DA SILVA NETO | B151: =[1]BASE!B154 -> 1280722 | C151: =[1]BASE!C154 -> Escriturário | D151: =[1]BASE!D154 -> Anistiado MME | E151: =[1]BASE!E154 -> MME - Ministério de Minas e Energia | F151: =[1]BASE!F154 ->  | G151: =[1]BASE!G154 ->  | H151: =[1]BASE!H154 -> SEE / DGSE / COORDENAÇÃO GERAL DE GESTÃO DA COMERCIALIZAÇÃO DE ENERGIA | I151: =[1]BASE!I154 -> 12.101.100
A152: =[1]BASE!A155 -> ENIR SEBASTIAO MENDES | B152: =[1]BASE!B155 -> 2663548 | C152: =[1]BASE!C155 -> Analista de Infraestrutura | D152: =[1]BASE!D155 -> Exercício Descentralizado | E152: =[1]BASE!E155 -> ME - Ministério da Economia | F152: =[1]BASE!F155 -> DAS 101.5 | G152: =[1]BASE!G155 ->  | H152: =[1]BASE!H155 -> SGM / DEPARTAMENTO DE TRANSFORMAÇÃO E TECNOLOGIA MINERAL - DTTM | I152: =[1]BASE!I155 -> 9.103.000
A153: =[1]BASE!A156 -> ERIKA FLAVIA PFEILSTICKER RIBAS | B153: =[1]BASE!B156 -> 1095148 | C153: =[1]BASE!C156 -> Agente Administrativo | D153: =[1]BASE!D156 -> Ativo Permanente | E153: =[1]BASE!E156 -> MME - Ministério de Minas e Energia | F153: =[1]BASE!F156 -> FCT 2 | G153: =[1]BASE!G156 -> GSISTE Intermediário | H153: =[1]BASE!H156 -> SE / SPOA / COORDENAÇÃO GERAL DE RECURSOS HUMANOS - CGRH | I153: =[1]BASE!I156 -> 8.105.200
A154: =[1]BASE!A157 -> ERIKA TAVARES AGUIRRES | B154: =[1]BASE!B157 -> 1586382 | C154: =[1]BASE!C157 -> Sem Cargo/Emprego | D154: =[1]BASE!D157 -> Sem Vínculo | E154: =[1]BASE!E157 -> Sem Vínculo | F154: =[1]BASE!F157 -> DAS 102.2 | G154: =[1]BASE!G157 ->  | H154: =[1]BASE!H157 -> SE / SPOA / CGCC / COORDENAÇÃO DE ADMINISTRAÇÃO DE CONTRATOS - CAC | I154: =[1]BASE!I157 -> 8.105.410
A155: =[1]BASE!A158 -> ERIVELTO FURTADO NEVES | B155: =[1]BASE!B158 -> 452971 | C155: =[1]BASE!C158 -> Técnico de Contabilidade | D155: =[1]BASE!D158 -> Ativo Permanente | E155: =[1]BASE!E158 -> MME - Ministério de Minas e Energia | F155: =[1]BASE!F158 -> FCPE 102.1 | G155: =[1]BASE!G158 ->  | H155: =[1]BASE!H158 -> GM / ASTAD / COORDENAÇÃO DE ATIVIDADES ADMINISTRATIVAS | I155: =[1]BASE!I158 -> 2.100.101
A156: =[1]BASE!A159 -> ERLENE MARIA LIMA | B156: =[1]BASE!B159 -> 3089519 | C156: =[1]BASE!C159 -> Sem Cargo/Emprego | D156: =[1]BASE!D159 -> Sem Vínculo | E156: =[1]BASE!E159 -> Sem Vínculo | F156: =[1]BASE!F159 -> DAS 101.4 | G156: =[1]BASE!G159 ->  | H156: =[1]BASE!H159 -> SGM / DPGM / COORDENAÇÃO GERAL DE MONITORAMENTO E CONTROLE DA GESTÃO DE PROGRAMA | I156: =[1]BASE!I159 -> 9.101.200
A157: =[1]BASE!A160 -> ESDRAS GODINHO RAMOS | B157: =[1]BASE!B160 -> 1901880 | C157: =[1]BASE!C160 -> Analista de Infraestrutura | D157: =[1]BASE!D160 -> Requisitado de Órgãos | E157: =[1]BASE!E160 -> ME - Ministério da Economia | F157: =[1]BASE!F160 -> DAS 102.2 | G157: =[1]BASE!G160 ->  | H157: =[1]BASE!H160 -> SPG / CHEFIA DE GABINETE SPG | I157: =[1]BASE!I160 -> 11.100.000
A158: =[1]BASE!A161 -> EUCIMAR KWIATKOWSKI AUGUSTINHAK | B158: =[1]BASE!B161 -> 4878036 | C158: =[1]BASE!C161 -> Analista de Infraestrutura | D158: =[1]BASE!D161 -> Exercício Descentralizado | E158: =[1]BASE!E161 -> ME - Ministério da Economia | F158: =[1]BASE!F161 -> FGR 1 | G158: =[1]BASE!G161 ->  | H158: =[1]BASE!H161 -> SEE / DMSE / COORDENAÇÃO GERAL DE MONITORAMENTO DA EXPANSÃO DA TRANSMISSÃO | I158: =[1]BASE!I161 -> 12.102.200
A159: =[1]BASE!A162 -> EVERALDO FERNANDES DE MEDEIROS | B159: =[1]BASE!B162 -> 451511 | C159: =[1]BASE!C162 -> Agente de Portaria | D159: =[1]BASE!D162 -> Ativo Permanente | E159: =[1]BASE!E162 -> MME - Ministério de Minas e Energia | F159: =[1]BASE!F162 -> FCT 11 | G159: =[1]BASE!G162 ->  | H159: =[1]BASE!H162 -> SE / SPOA / COORDENAÇÃO GERAL DE RECURSOS LOGÍSTICOS - CGRL | I159: =[1]BASE!I162 -> 8.105.100
A160: =[1]BASE!A163 -> FABIAN DIE MENEZES CARVALHO | B160: =[1]BASE!B163 -> 2209139 | C160: =[1]BASE!C163 -> Sem Cargo/Emprego | D160: =[1]BASE!D163 -> Sem Vínculo | E160: =[1]BASE!E163 -> Sem Vínculo | F160: =[1]BASE!F163 -> DAS 102.2 | G160: =[1]BASE!G163 ->  | H160: =[1]BASE!H163 -> ASSESSORIA ESPECIAL DE RELAÇÕES INTERNACIONAIS - ASSINT | I160: =[1]BASE!I163 -> 3.000.000
A161: =[1]BASE!A164 -> FABIANA ANGELICA AIRES | B161: =[1]BASE!B164 -> 1339230 | C161: =[1]BASE!C164 -> Sem Cargo/Emprego | D161: =[1]BASE!D164 -> Sem Vínculo | E161: =[1]BASE!E164 -> Sem Vínculo | F161: =[1]BASE!F164 -> DAS 102.2 | G161: =[1]BASE!G164 ->  | H161: =[1]BASE!H164 -> SEE / DEPARTAMENTO DE MONITORAMENTO DO SISTEMA ELÉTRICO - DMSE | I161: =[1]BASE!I164 -> 12.102.000
A162: =[1]BASE!A165 -> FABIANA GAZZONI CEPEDA | B162: =[1]BASE!B165 -> 3090896 | C162: =[1]BASE!C165 -> Especialista em Política Pública e Gestão Governamental | D162: =[1]BASE!D165 -> Exercício Descentralizado | E162: =[1]BASE!E165 -> ME - Ministério da Economia | F162: =[1]BASE!F165 -> DAS 101.5 | G162: =[1]BASE!G165 ->  | H162: =[1]BASE!H165 -> SEE / DEPARTAMENTO DE GESTÃO DO SETOR ELÉTRICO - DGSE | I162: =[1]BASE!I165 -> 12.101.000
A163: =[1]BASE!A166 -> FABIO SKAF NACFUR | B163: =[1]BASE!B166 -> 1047866 | C163: =[1]BASE!C166 -> Sem Cargo/Emprego | D163: =[1]BASE!D166 -> Sem Vínculo | E163: =[1]BASE!E166 -> Sem Vínculo | F163: =[1]BASE!F166 -> DAS 102.2 | G163: =[1]BASE!G166 ->  | H163: =[1]BASE!H166 -> GM / OUVIDORIA GERAL - OUVIR | I163: =[1]BASE!I166 -> 2.100.500
A164: =[1]BASE!A167 -> FÁBIO SOUSA DO VALE | B164: =[1]BASE!B167 -> 1126019 | C164: =[1]BASE!C167 -> Assistente em Administração | D164: =[1]BASE!D167 -> Requisitado de Órgãos | E164: =[1]BASE!E167 -> FUB - Fundação Universidade de Brasília | F164: =[1]BASE!F167 -> DAS 101.2 | G164: =[1]BASE!G167 ->  | H164: =[1]BASE!H167 -> SE / SPOA / CGRH / COORDENAÇÃO DE ADMINISTRAÇÃO DE PESSOAL - CAPES | I164: =[1]BASE!I167 -> 8.105.210
A165: =[1]BASE!A168 -> FABRICCIO QUIXADA STEINDORFER PROENCA | B165: =[1]BASE!B168 -> 1200330 | C165: =[1]BASE!C168 -> Advogado da União | D165: =[1]BASE!D168 -> Exercício Descentralizado | E165: =[1]BASE!E168 -> AGU - Advocacia Geral da União | F165: =[1]BASE!F168 ->  | G165: =[1]BASE!G168 ->  | H165: =[1]BASE!H168 -> CONJUR / COORDENAÇÃO GERAL DE ASSSUNTOS ADMINISTRATIVOS - CGAA | I165: =[1]BASE!I168 -> 7.100.300
A166: =[1]BASE!A169 -> FABRÍCIO DAIREL DE CAMPOS LACERDA | B166: =[1]BASE!B169 -> 3708809 | C166: =[1]BASE!C169 -> Analista de Infraestrutura | D166: =[1]BASE!D169 -> Exercício Descentralizado | E166: =[1]BASE!E169 -> ME - Ministério da Economia | F166: =[1]BASE!F169 -> DAS 101.4 | G166: =[1]BASE!G169 ->  | H166: =[1]BASE!H169 -> SEE / DGSE / COORDENAÇÃO GERAL DE GESTÃO DA COMERCIALIZAÇÃO DE ENERGIA | I166: =[1]BASE!I169 -> 12.101.100
A167: =[1]BASE!A170 -> FATIMA ROSA TEIXEIRA | B167: =[1]BASE!B170 -> 1867203 | C167: =[1]BASE!C170 -> Técnico Industrial Especializado | D167: =[1]BASE!D170 -> Anistiado outros Órgãos | E167: =[1]BASE!E170 -> IMBEL - Indústria de Material Bélico do Brasil | F167: =[1]BASE!F170 ->  | G167: =[1]BASE!G170 ->  | H167: =[1]BASE!H170 -> SE / SPOA / COORDENAÇÃO GERAL DE RECURSOS HUMANOS - CGRH | I167: =[1]BASE!I170 -> 8.105.200
A168: =[1]BASE!A171 -> FERNANDA DE ANDRADE NOVAES | B168: =[1]BASE!B171 -> 1568546 | C168: =[1]BASE!C171 -> Técnico Comunicação Social | D168: =[1]BASE!D171 -> Requisitado de Órgãos | E168: =[1]BASE!E171 -> MDR - Ministério do Desenvolvimento Regional | F168: =[1]BASE!F171 ->  | G168: =[1]BASE!G171 -> GSISTE Superior | H168: =[1]BASE!H171 -> SE / SPOA / CGRH / COORDENAÇÃO DE ADMINISTRAÇÃO DE PESSOAL - CAPES | I168: =[1]BASE!I171 -> 8.105.210
A169: =[1]BASE!A172 -> FERNANDA MARIA DE MELO SILVA MARRA | B169: =[1]BASE!B172 -> 6184178 | C169: =[1]BASE!C172 -> Administrador | D169: =[1]BASE!D172 -> Ativo Permanente | E169: =[1]BASE!E172 -> MME - Ministério de Minas e Energia | F169: =[1]BASE!F172 -> FCPE 102.1 | G169: =[1]BASE!G172 -> GSISTE Superior | H169: =[1]BASE!H172 -> SE / SPOA / COORDENAÇÃO DE MODERNIZAÇÃO ADMINISTRATIVA - CMA | I169: =[1]BASE!I172 -> 8.105.010
A170: =[1]BASE!A173 -> FERNANDO ANTONIO GIFFONI NORONHA LUZ | B170: =[1]BASE!B173 -> 3333896 | C170: =[1]BASE!C173 -> Sem Cargo/Emprego | D170: =[1]BASE!D173 -> Sem Vínculo | E170: =[1]BASE!E173 -> Sem Vínculo | F170: =[1]BASE!F173 -> DAS 101.4 | G170: =[1]BASE!G173 ->  | H170: =[1]BASE!H173 -> SEE / DMSE / COORDENAÇÃO GERAL DE MONITORAMENTO DA EXPANSÃO DA GERAÇÃO | I170: =[1]BASE!I173 -> 12.102.100
A171: =[1]BASE!A174 -> FERNANDO MASSAHARU MATSUMOTO | B171: =[1]BASE!B174 -> 3799409 | C171: =[1]BASE!C174 -> Auditor Federal de Finanças e Controle | D171: =[1]BASE!D174 -> Requisitado de Órgãos | E171: =[1]BASE!E174 -> ME - Ministério da Economia | F171: =[1]BASE!F174 -> DAS 101.4 | G171: =[1]BASE!G174 ->  | H171: =[1]BASE!H174 -> SPG / DEPARTAMENTO DE GÁS NATURAL - DGN | I171: =[1]BASE!I174 -> 11.102.000
A172: =[1]BASE!A175 -> FERNANDO PORTELLA ROSA | B172: =[1]BASE!B175 -> 2393116 | C172: =[1]BASE!C175 -> Gerente de Projeto | D172: =[1]BASE!D175 -> Contrato Temporário | E172: =[1]BASE!E175 -> MME - Ministério de Minas e Energia | F172: =[1]BASE!F175 ->  | G172: =[1]BASE!G175 ->  | H172: =[1]BASE!H175 -> SE / AEGP / COORDENAÇÃO GERAL DE GESTÃO DE PROJETOS - CGGP | I172: =[1]BASE!I175 -> 8.103.200
A173: =[1]BASE!A176 -> FERNANDO YAMASHITA | B173: =[1]BASE!B176 -> 2085644 | C173: =[1]BASE!C176 -> Assistente Técnico Administrativo | D173: =[1]BASE!D176 -> Requisitado de Órgãos | E173: =[1]BASE!E176 -> MDR - Ministério do Desenvolvimento Regional | F173: =[1]BASE!F176 -> DAS 101.3 | G173: =[1]BASE!G176 -> GSISTE Intermediário | H173: =[1]BASE!H176 -> SE / SPOA / CGRL / COORDENAÇÃO DE ADMINISTRAÇÃO DE MATERIAL E EXECUÇÃO FINANCEIRA - COMEF | I173: =[1]BASE!I176 -> 8.105.110
A174: =[1]BASE!A177 -> FLAMARION SOUZA MATOS | B174: =[1]BASE!B177 -> 6028993 | C174: =[1]BASE!C177 -> Sem Cargo/Emprego | D174: =[1]BASE!D177 -> Sem Vínculo | E174: =[1]BASE!E177 -> Sem Vínculo | F174: =[1]BASE!F177 -> DAS 101.5 | G174: =[1]BASE!G177 ->  | H174: =[1]BASE!H177 -> SEE / DEPARTAMENTO DE POLÍTICAS SOCIAIS E UNIVERSALIZAÇÃO DO ACESSO À ENERGIA ELÉTRICA - DPUE | I174: =[1]BASE!I177 -> 12.103.000
A175: =[1]BASE!A178 -> FLAVIO ALVES CARDOSO | B175: =[1]BASE!B178 -> 2280405 | C175: =[1]BASE!C178 -> Advogado | D175: =[1]BASE!D178 -> Anistiado MME | E175: =[1]BASE!E178 -> MME - Ministério de Minas e Energia | F175: =[1]BASE!F178 ->  | G175: =[1]BASE!G178 ->  | H175: =[1]BASE!H178 -> SPE / DEPARTAMENTO DE OUTORGAS DE CONCESSÕES, PERMISSÕES E AUTORIZAÇÕES - DOC | I175: =[1]BASE!I178 -> 10.103.000
A176: =[1]BASE!A179 -> FRANCIMAR SOUSA DE LIMA SAKAMOTO | B176: =[1]BASE!B179 -> 2069736 | C176: =[1]BASE!C179 -> Sem Cargo/Emprego | D176: =[1]BASE!D179 -> Sem Vínculo | E176: =[1]BASE!E179 -> Sem Vínculo | F176: =[1]BASE!F179 -> DAS 102.1 | G176: =[1]BASE!G179 ->  | H176: =[1]BASE!H179 -> SGM / CHEFIA DE GABINETE SGM | I176: =[1]BASE!I179 -> 9.100.000
A177: =[1]BASE!A180 -> FRANCISCA DE FATIMA SOARES DE SOUZA | B177: =[1]BASE!B180 -> 451566 | C177: =[1]BASE!C180 -> Agente Administrativo | D177: =[1]BASE!D180 -> Ativo Permanente | E177: =[1]BASE!E180 -> MME - Ministério de Minas e Energia | F177: =[1]BASE!F180 -> FCT 11 | G177: =[1]BASE!G180 ->  | H177: =[1]BASE!H180 -> SE / SPOA / CGRL / COORDENAÇÃO DE ATIVIDADES GERAIS - COAGE | I177: =[1]BASE!I180 -> 8.105.120
A178: =[1]BASE!A181 -> FRANCISCO ALEXANDRE STECHER DE OLIVEIRA | B178: =[1]BASE!B181 -> 1586720 | C178: =[1]BASE!C181 -> Programador de Sistemas | D178: =[1]BASE!D181 -> Anistiado MME | E178: =[1]BASE!E181 -> MME - Ministério de Minas e Energia | F178: =[1]BASE!F181 -> DAS 102.2 | G178: =[1]BASE!G181 ->  | H178: =[1]BASE!H181 -> SE / SPOA / CGTI / COORDENAÇÃO DE INFRAESTRUTURA TECNOLÓGICA - | I178: =[1]BASE!I181 -> 8.105.310
A179: =[1]BASE!A182 -> FRANCISCO AUGUSTO NOGUEIRA DA SILVA | B179: =[1]BASE!B182 -> 1669854 | C179: =[1]BASE!C182 -> Auxiliar Codificação e Conferência | D179: =[1]BASE!D182 -> Anistiado MME | E179: =[1]BASE!E182 -> MME - Ministério de Minas e Energia | F179: =[1]BASE!F182 ->  | G179: =[1]BASE!G182 ->  | H179: =[1]BASE!H182 -> GM / ASTAD / COORDENAÇÃO DE ATIVIDADES ADMINISTRATIVAS | I179: =[1]BASE!I182 -> 2.100.101
A180: =[1]BASE!A183 -> FRANCISCO BARBOSA DE MORAIS | B180: =[1]BASE!B183 -> 1669557 | C180: =[1]BASE!C183 -> Advogado | D180: =[1]BASE!D183 -> Anistiado MME | E180: =[1]BASE!E183 -> MME - Ministério de Minas e Energia | F180: =[1]BASE!F183 ->  | G180: =[1]BASE!G183 ->  | H180: =[1]BASE!H183 -> Aguardando Lotação/Exercício | I180: =[1]BASE!I183 -> 88.000.000
A181: =[1]BASE!A184 -> FRANCISCO CARLOS FERREIRA RIBEIRO | B181: =[1]BASE!B184 -> 451646 | C181: =[1]BASE!C184 -> Agente Administrativo | D181: =[1]BASE!D184 -> Ativo Permanente | E181: =[1]BASE!E184 -> MME - Ministério de Minas e Energia | F181: =[1]BASE!F184 -> FCT 7 | G181: =[1]BASE!G184 -> GSISTE Intermediário | H181: =[1]BASE!H184 -> SE / SPOA / CGRL / COORDENAÇÃO DE ATIVIDADES GERAIS - COAGE | I181: =[1]BASE!I184 -> 8.105.120
A182: =[1]BASE!A185 -> FRANCISCO DAS CHAGAS FONTELE | B182: =[1]BASE!B185 -> 6001438 | C182: =[1]BASE!C185 -> Agente de Portaria | D182: =[1]BASE!D185 -> Ativo Permanente | E182: =[1]BASE!E185 -> MME - Ministério de Minas e Energia | F182: =[1]BASE!F185 -> FGR 1 | G182: =[1]BASE!G185 ->  | H182: =[1]BASE!H185 -> SE / SPOA / CGRL / COORDENAÇÃO DE ATIVIDADES GERAIS - COAGE | I182: =[1]BASE!I185 -> 8.105.120
A183: =[1]BASE!A186 -> FRANCISCO DAS CHAGAS GOMES DE BRITO | B183: =[1]BASE!B186 -> 452175 | C183: =[1]BASE!C186 -> Agente de Portaria | D183: =[1]BASE!D186 -> Ativo Permanente | E183: =[1]BASE!E186 -> MME - Ministério de Minas e Energia | F183: =[1]BASE!F186 -> FGR 1 | G183: =[1]BASE!G186 ->  | H183: =[1]BASE!H186 -> SE / SPOA / CGRL / COORDENAÇÃO DE ATIVIDADES GERAIS - COAGE | I183: =[1]BASE!I186 -> 8.105.120
A184: =[1]BASE!A187 -> FRANCISCO GOMES DE MATOS | B184: =[1]BASE!B187 -> 454825 | C184: =[1]BASE!C187 -> Motorista Oficial | D184: =[1]BASE!D187 -> Ativo Permanente | E184: =[1]BASE!E187 -> MME - Ministério de Minas e Energia | F184: =[1]BASE!F187 -> FCPE 102.1 | G184: =[1]BASE!G187 ->  | H184: =[1]BASE!H187 -> SE / SPOA / CGRL / COORDENAÇÃO DE ATIVIDADES GERAIS - COAGE | I184: =[1]BASE!I187 -> 8.105.120
A185: =[1]BASE!A188 -> FRANCISCO PAULO RUBINO | B185: =[1]BASE!B188 -> 2839155 | C185: =[1]BASE!C188 -> Analista de Programação Controle Obras | D185: =[1]BASE!D188 -> Anistiado outros Órgãos | E185: =[1]BASE!E188 -> ANM - Agência Nacional de Mineração | F185: =[1]BASE!F188 ->  | G185: =[1]BASE!G188 ->  | H185: =[1]BASE!H188 -> SGM / DPGM / COORDENAÇÃO GERAL DE ECONOMIA MINERAL | I185: =[1]BASE!I188 -> 9.101.300
A186: =[1]BASE!A189 -> FRANCISCO SALES DA SILVA | B186: =[1]BASE!B189 -> 455378 | C186: =[1]BASE!C189 -> Auxiliar Operacional de Serviços Diversos | D186: =[1]BASE!D189 -> Ativo Permanente | E186: =[1]BASE!E189 -> MME - Ministério de Minas e Energia | F186: =[1]BASE!F189 -> FCT 10 | G186: =[1]BASE!G189 ->  | H186: =[1]BASE!H189 -> SPG / CHEFIA DE GABINETE SPG | I186: =[1]BASE!I189 -> 11.100.000
A187: =[1]BASE!A190 -> FRANCISCO SANTANA PEREIRA | B187: =[1]BASE!B190 -> 452270 | C187: =[1]BASE!C190 -> Agente Administrativo | D187: =[1]BASE!D190 -> Ativo Permanente | E187: =[1]BASE!E190 -> MME - Ministério de Minas e Energia | F187: =[1]BASE!F190 -> DAS 102.1 | G187: =[1]BASE!G190 ->  | H187: =[1]BASE!H190 -> GM / ASSESSORIA DE COMUNICAÇÃO SOCIAL - ASCOM | I187: =[1]BASE!I190 -> 2.100.300
A188: =[1]BASE!A191 -> FREDERICO BEDRAN OLIVEIRA | B188: =[1]BASE!B191 -> 2530526 | C188: =[1]BASE!C191 -> Analista de Infraestrutura | D188: =[1]BASE!D191 -> Exercício Descentralizado | E188: =[1]BASE!E191 -> ME - Ministério da Economia | F188: =[1]BASE!F191 -> DAS 101.5 | G188: =[1]BASE!G191 ->  | H188: =[1]BASE!H191 -> SGM / DEPARTAMENTO DE GEOLOGIA E PRODUÇÃO MINERAL - DGPM | I188: =[1]BASE!I191 -> 9.102.000
A189: =[1]BASE!A192 -> FREDERICO DE ARAUJO TELES | B189: =[1]BASE!B192 -> 1558450 | C189: =[1]BASE!C192 -> Especialista em Regulação de Serv Púb de Energia | D189: =[1]BASE!D192 -> Requisitado de Órgãos | E189: =[1]BASE!E192 -> ANEEL - Agência Nacional de Energia Elétrica | F189: =[1]BASE!F192 -> FCPE 102.4 | G189: =[1]BASE!G192 ->  | H189: =[1]BASE!H192 -> ASSESSORIA ESPECIAL DE ASSUNTOS ECONÔMICOS - ASSEC | I189: =[1]BASE!I192 -> 6.000.000
A190: =[1]BASE!A193 -> FRUTUOSO DA SILVA LOREGA NETO | B190: =[1]BASE!B193 -> 3085966 | C190: =[1]BASE!C193 -> Marinha | D190: =[1]BASE!D193 -> Requisitado Militar | E190: =[1]BASE!E193 -> Marinha | F190: =[1]BASE!F193 -> DAS 102.2 | G190: =[1]BASE!G193 ->  | H190: =[1]BASE!H193 -> GABINETE DO MINISTRO - GM | I190: =[1]BASE!I193 -> 2.000.000
A191: =[1]BASE!A194 -> GABRIEL MOTA MALDONADO | B191: =[1]BASE!B194 -> 3090889 | C191: =[1]BASE!C194 -> Sem Cargo/Emprego | D191: =[1]BASE!D194 -> Sem Vínculo | E191: =[1]BASE!E194 -> Sem Vínculo | F191: =[1]BASE!F194 -> DAS 101.5 | G191: =[1]BASE!G194 ->  | H191: =[1]BASE!H194 -> SGM / DEPARTAMENTO DE DESENVOLVIMENTO SUSTENTÁVEL NA MINERAÇÃO - DDM | I191: =[1]BASE!I194 -> 9.104.000
A192: =[1]BASE!A195 -> GABRIELA PEREIRA GONCALVES | B192: =[1]BASE!B195 -> 1844328 | C192: =[1]BASE!C195 -> Sem Cargo/Emprego | D192: =[1]BASE!D195 -> Sem Vínculo | E192: =[1]BASE!E195 -> Sem Vínculo | F192: =[1]BASE!F195 -> DAS 102.3 | G192: =[1]BASE!G195 ->  | H192: =[1]BASE!H195 -> GM / ASSESSORIA PARLAMENTAR - ASPAR | I192: =[1]BASE!I195 -> 2.100.200
A193: =[1]BASE!A196 -> GENESIO SOARES DE OLIVEIRA | B193: =[1]BASE!B196 -> 6460451 | C193: =[1]BASE!C196 -> Sem Cargo/Emprego | D193: =[1]BASE!D196 -> Sem Vínculo | E193: =[1]BASE!E196 -> Sem Vínculo | F193: =[1]BASE!F196 -> DAS 102.1 | G193: =[1]BASE!G196 ->  | H193: =[1]BASE!H196 -> GM / ASTAD / COORDENAÇÃO DE ATIVIDADES ADMINISTRATIVAS | I193: =[1]BASE!I196 -> 2.100.101
A194: =[1]BASE!A197 -> GERALDO DEOCLECIANO DE AZEVEDO | B194: =[1]BASE!B197 -> 455338 | C194: =[1]BASE!C197 -> Agente de Portaria | D194: =[1]BASE!D197 -> Ativo Permanente | E194: =[1]BASE!E197 -> MME - Ministério de Minas e Energia | F194: =[1]BASE!F197 -> FGR 1 | G194: =[1]BASE!G197 ->  | H194: =[1]BASE!H197 -> SE / SPOA / CGRL / COORDENAÇÃO DE ATIVIDADES GERAIS - COAGE | I194: =[1]BASE!I197 -> 8.105.120
A195: =[1]BASE!A198 -> GERALDO RIBEIRO DOS SANTOS | B195: =[1]BASE!B198 -> 451522 | C195: =[1]BASE!C198 -> Datilógrafo | D195: =[1]BASE!D198 -> Ativo Permanente | E195: =[1]BASE!E198 -> MME - Ministério de Minas e Energia | F195: =[1]BASE!F198 -> FCT 7 | G195: =[1]BASE!G198 ->  | H195: =[1]BASE!H198 -> SE / SPOA / CGRL / COORDENAÇÃO DE ATIVIDADES GERAIS - COAGE | I195: =[1]BASE!I198 -> 8.105.120
A196: =[1]BASE!A199 -> GEVALTER DE FREITAS NEVES | B196: =[1]BASE!B199 -> 451635 | C196: =[1]BASE!C199 -> Agente Administrativo | D196: =[1]BASE!D199 -> Ativo Permanente | E196: =[1]BASE!E199 -> MME - Ministério de Minas e Energia | F196: =[1]BASE!F199 -> FCPE 102.3 | G196: =[1]BASE!G199 ->  | H196: =[1]BASE!H199 -> SPE / CHEFIA DE GABINETE SPE | I196: =[1]BASE!I199 -> 10.100.000
A197: =[1]BASE!A200 -> GIACOMO PERROTTA | B197: =[1]BASE!B200 -> 2662515 | C197: =[1]BASE!C200 -> Analista de Infraestrutura | D197: =[1]BASE!D200 -> Exercício Descentralizado | E197: =[1]BASE!E200 -> ME - Ministério da Economia | F197: =[1]BASE!F200 ->  | G197: =[1]BASE!G200 ->  | H197: =[1]BASE!H200 -> SPE / DPE / COORDENAÇÃO GERAL DE PLANEJAMENTO DA TRANSMISSÃO | I197: =[1]BASE!I200 -> 10.101.100
A198: =[1]BASE!A201 -> GILBERTO KWITKO RIBEIRO | B198: =[1]BASE!B201 -> 3310644 | C198: =[1]BASE!C201 -> Especialista em Política Pública e Gestão Governamental | D198: =[1]BASE!D201 -> Exercício Descentralizado | E198: =[1]BASE!E201 -> ME - Ministério da Economia | F198: =[1]BASE!F201 ->  | G198: =[1]BASE!G201 ->  | H198: =[1]BASE!H201 -> SPE / DIEE / COORDENAÇÃO GERAL DE INFORMAÇÕES ENERGÉTICAS | I198: =[1]BASE!I201 -> 10.104.100
A199: =[1]BASE!A202 -> GILDA MARIA LEITE DA FONSECA | B199: =[1]BASE!B202 -> 452261 | C199: =[1]BASE!C202 -> Datilógrafo | D199: =[1]BASE!D202 -> Ativo Permanente | E199: =[1]BASE!E202 -> MME - Ministério de Minas e Energia | F199: =[1]BASE!F202 -> FCPE 102.2 | G199: =[1]BASE!G202 ->  | H199: =[1]BASE!H202 -> SPE / DEPARTAMENTO DE PLANEJAMENTO ENERGÉTICO - DPE | I199: =[1]BASE!I202 -> 10.101.000
A200: =[1]BASE!A203 -> GILVAN DE BARROS COELHO | B200: =[1]BASE!B203 -> 1680740 | C200: =[1]BASE!C203 -> Administrador | D200: =[1]BASE!D203 -> Anistiado MME | E200: =[1]BASE!E203 -> MME - Ministério de Minas e Energia | F200: =[1]BASE!F203 ->  | G200: =[1]BASE!G203 ->  | H200: =[1]BASE!H203 -> Aguardando Lotação/Exercício | I200: =[1]BASE!I203 -> 88.000.000
... 332 more rows

Sheet DETALHEIDADE
D2: DETALHAMENTO IDADE - EXERCÍCIO MME
X48: =SUM(X24:X44) -> 0
Y55: =X48/X45 -> 

Sheet PQPEXMMEDET
A1: QUADRO DETALHADO DE PESSOAL ATIVO EM EXERCÍCIO NO MME
A3: =[1]ATIVO!A4 -> Área | B3: =[1]ATIVO!B4 -> MINISTÉRIO DE MINAS E ENERGIA | C3: =[1]ATIVO!C4 -> Natureza Especial | D3: =[1]ATIVO!D4 -> Ativo Permanente | E3: =[1]ATIVO!E4 -> Requisitado Órgãos | F3: =[1]ATIVO!F4 -> Requisitado Empresas | G3: =[1]ATIVO!G4 -> Sem Vínculo | H3: =[1]ATIVO!H4 -> Exercício Descentralizado | I3: =[1]ATIVO!I4 -> Contrato Temporário | J3: =[1]ATIVO!J4 -> Anistiado | K3: =[1]ATIVO!K4 -> Total | L3: =[1]ATIVO!L4 -> Total Área | M3: =[1]ATIVO!M4 -> Sexo Feminino | N3: =[1]ATIVO!N4 -> Sexo Masculino | O3: =[1]ATIVO!O4 -> Total | P3: =[1]ATIVO!P4 -> Total Área
A4: =[1]ATIVO!A5 -> MEIO | B4: =[1]ATIVO!B5 -> Gabinete do Ministro | C4: =[1]ATIVO!C5 -> 1 | D4: =[1]ATIVO!D5 -> 19 | E4: =[1]ATIVO!E5 -> 13 | F4: =[1]ATIVO!F5 -> 0 | G4: =[1]ATIVO!G5 -> 24 | H4: =[1]ATIVO!H5 -> 0 | I4: =[1]ATIVO!I5 -> 0 | J4: =[1]ATIVO!J5 -> 2 | K4: =[1]ATIVO!K5 -> 59 | L4: =[1]ATIVO!L5 -> 322 | M4: =[1]ATIVO!M5 -> 25 | N4: =[1]ATIVO!N5 -> 34 | O4: =[1]ATIVO!O5 -> 59 | P4: =[1]ATIVO!P5 -> 322
B5: =[1]ATIVO!B6 -> Assessoria Econômica | C5: =[1]ATIVO!C6 -> 0 | D5: =[1]ATIVO!D6 -> 1 | E5: =[1]ATIVO!E6 -> 6 | F5: =[1]ATIVO!F6 -> 0 | G5: =[1]ATIVO!G6 -> 1 | H5: =[1]ATIVO!H6 -> 0 | I5: =[1]ATIVO!I6 -> 0 | J5: =[1]ATIVO!J6 -> 0 | K5: =[1]ATIVO!K6 -> 8 | M5: =[1]ATIVO!M6 -> 5 | N5: =[1]ATIVO!N6 -> 3 | O5: =[1]ATIVO!O6 -> 8
B6: =[1]ATIVO!B7 -> Assessoria Especial de Relações Internacionais | C6: =[1]ATIVO!C7 -> 0 | D6: =[1]ATIVO!D7 -> 1 | E6: =[1]ATIVO!E7 -> 1 | F6: =[1]ATIVO!F7 -> 0 | G6: =[1]ATIVO!G7 -> 2 | H6: =[1]ATIVO!H7 -> 0 | I6: =[1]ATIVO!I7 -> 0 | J6: =[1]ATIVO!J7 -> 0 | K6: =[1]ATIVO!K7 -> 4 | M6: =[1]ATIVO!M7 -> 1 | N6: =[1]ATIVO!N7 -> 3 | O6: =[1]ATIVO!O7 -> 4
B7: =[1]ATIVO!B8 -> Assessoria Especial de Controle Interno | C7: =[1]ATIVO!C8 -> 0 | D7: =[1]ATIVO!D8 -> 1 | E7: =[1]ATIVO!E8 -> 1 | F7: =[1]ATIVO!F8 -> 0 | G7: =[1]ATIVO!G8 -> 2 | H7: =[1]ATIVO!H8 -> 0 | I7: =[1]ATIVO!I8 -> 0 | J7: =[1]ATIVO!J8 -> 0 | K7: =[1]ATIVO!K8 -> 4 | M7: =[1]ATIVO!M8 -> 3 | N7: =[1]ATIVO!N8 -> 1 | O7: =[1]ATIVO!O8 -> 4
B8: =[1]ATIVO!B9 -> Assessoria Especial de Acompanhamento de Políticas, Estratégias e Desempenho Setoriais | C8: =[1]ATIVO!C9 -> 0 | D8: =[1]ATIVO!D9 -> 1 | E8: =[1]ATIVO!E9 -> 0 | F8: =[1]ATIVO!F9 -> 0 | G8: =[1]ATIVO!G9 -> 4 | H8: =[1]ATIVO!H9 -> 0 | I8: =[1]ATIVO!I9 -> 0 | J8: =[1]ATIVO!J9 -> 0 | K8: =[1]ATIVO!K9 -> 5 | M8: =[1]ATIVO!M9 -> 0 | N8: =[1]ATIVO!N9 -> 5 | O8: =[1]ATIVO!O9 -> 5
B9: =[1]ATIVO!B10 -> Consultoria Jurídica | C9: =[1]ATIVO!C10 -> 0 | D9: =[1]ATIVO!D10 -> 3 | E9: =[1]ATIVO!E10 -> 0 | F9: =[1]ATIVO!F10 -> 0 | G9: =[1]ATIVO!G10 -> 7 | H9: =[1]ATIVO!H10 -> 11 | I9: =[1]ATIVO!I10 -> 0 | J9: =[1]ATIVO!J10 -> 0 | K9: =[1]ATIVO!K10 -> 21 | M9: =[1]ATIVO!M10 -> 8 | N9: =[1]ATIVO!N10 -> 13 | O9: =[1]ATIVO!O10 -> 21
B10: =[1]ATIVO!B11 -> Secretaria Executiva | C10: =[1]ATIVO!C11 -> 1 | D10: =[1]ATIVO!D11 -> 90 | E10: =[1]ATIVO!E11 -> 28 | F10: =[1]ATIVO!F11 -> 1 | G10: =[1]ATIVO!G11 -> 29 | H10: =[1]ATIVO!H11 -> 19 | I10: =[1]ATIVO!I11 -> 3 | J10: =[1]ATIVO!J11 -> 50 | K10: =[1]ATIVO!K11 -> 221 | M10: =[1]ATIVO!M11 -> 107 | N10: =[1]ATIVO!N11 -> 114 | O10: =[1]ATIVO!O11 -> 221
A11: =[1]ATIVO!A12 -> FINALISTICA | B11: =[1]ATIVO!B12 -> Secretaria de Geologia, Mineração e Transformação Mineral | C11: =[1]ATIVO!C12 -> 0 | D11: =[1]ATIVO!D12 -> 5 | E11: =[1]ATIVO!E12 -> 3 | F11: =[1]ATIVO!F12 -> 0 | G11: =[1]ATIVO!G12 -> 18 | H11: =[1]ATIVO!H12 -> 8 | I11: =[1]ATIVO!I12 -> 0 | J11: =[1]ATIVO!J12 -> 5 | K11: =[1]ATIVO!K12 -> 39 | L11: =[1]ATIVO!L12 -> 168 | M11: =[1]ATIVO!M12 -> 19 | N11: =[1]ATIVO!N12 -> 20 | O11: =[1]ATIVO!O12 -> 39 | P11: =[1]ATIVO!P12 -> 168
B12: =[1]ATIVO!B13 -> Secretaria de Planejamento e Desenvolvimento Energético | C12: =[1]ATIVO!C13 -> 0 | D12: =[1]ATIVO!D13 -> 7 | E12: =[1]ATIVO!E13 -> 7 | F12: =[1]ATIVO!F13 -> 0 | G12: =[1]ATIVO!G13 -> 12 | H12: =[1]ATIVO!H13 -> 15 | I12: =[1]ATIVO!I13 -> 0 | J12: =[1]ATIVO!J13 -> 4 | K12: =[1]ATIVO!K13 -> 45 | M12: =[1]ATIVO!M13 -> 19 | N12: =[1]ATIVO!N13 -> 26 | O12: =[1]ATIVO!O13 -> 45
B13: =[1]ATIVO!B14 -> Secretaria de Petróleo, Gás Natural e Biocombustíveis | C13: =[1]ATIVO!C14 -> 0 | D13: =[1]ATIVO!D14 -> 2 | E13: =[1]ATIVO!E14 -> 9 | F13: =[1]ATIVO!F14 -> 0 | G13: =[1]ATIVO!G14 -> 5 | H13: =[1]ATIVO!H14 -> 16 | I13: =[1]ATIVO!I14 -> 0 | J13: =[1]ATIVO!J14 -> 0 | K13: =[1]ATIVO!K14 -> 32 | M13: =[1]ATIVO!M14 -> 9 | N13: =[1]ATIVO!N14 -> 23 | O13: =[1]ATIVO!O14 -> 32
B14: =[1]ATIVO!B15 -> Secretaria de Energia Elétrica | C14: =[1]ATIVO!C15 -> 0 | D14: =[1]ATIVO!D15 -> 2 | E14: =[1]ATIVO!E15 -> 3 | F14: =[1]ATIVO!F15 -> 4 | G14: =[1]ATIVO!G15 -> 15 | H14: =[1]ATIVO!H15 -> 19 | I14: =[1]ATIVO!I15 -> 0 | J14: =[1]ATIVO!J15 -> 9 | K14: =[1]ATIVO!K15 -> 52 | M14: =[1]ATIVO!M15 -> 18 | N14: =[1]ATIVO!N15 -> 34 | O14: =[1]ATIVO!O15 -> 52
B15: =[1]ATIVO!B16 -> TOTAL | C15: =[1]ATIVO!C16 -> 2 | D15: =[1]ATIVO!D16 -> 132 | E15: =[1]ATIVO!E16 -> 71 | F15: =[1]ATIVO!F16 -> 5 | G15: =[1]ATIVO!G16 -> 119 | H15: =[1]ATIVO!H16 -> 88 | I15: =[1]ATIVO!I16 -> 3 | J15: =[1]ATIVO!J16 -> 70 | K15: =[1]ATIVO!K16 -> 490 | L15: =[1]ATIVO!L16 -> 490 | M15: =[1]ATIVO!M16 -> 214 | N15: =[1]ATIVO!N16 -> 276 | O15: =[1]ATIVO!O16 -> 490 | P15: =[1]ATIVO!P16 -> 490
B16: =[1]ATIVO!B17 -> Aguardando Exercício | C16: =[1]ATIVO!C17 -> 0 | D16: =[1]ATIVO!D17 -> 5 | E16: =[1]ATIVO!E17 -> 0 | F16: =[1]ATIVO!F17 -> 0 | G16: =[1]ATIVO!G17 -> 0 | H16: =[1]ATIVO!H17 -> 0 | I16: =[1]ATIVO!I17 -> 0 | J16: =[1]ATIVO!J17 -> 22 | K16: =[1]ATIVO!K17 -> 27 | L16: =[1]ATIVO!L17 -> 517 | M16: =[1]ATIVO!M17 -> 10 | N16: =[1]ATIVO!N17 -> 17 | O16: =[1]ATIVO!O17 -> 27 | P16: =[1]ATIVO!P17 -> 517
A18: =[1]ATIVO!A19 -> Área | B18: =[1]ATIVO!B19 -> GABINETE DO MINISTRO | C18: =[1]ATIVO!C19 -> Natureza Especial | D18: =[1]ATIVO!D19 -> Ativo Permanente | E18: =[1]ATIVO!E19 -> Requisitado Órgãos | F18: =[1]ATIVO!F19 -> Requisitado Empresas | G18: =[1]ATIVO!G19 -> Sem Vínculo | H18: =[1]ATIVO!H19 -> Exercício Descentralizado | I18: =[1]ATIVO!I19 -> Contrato Temporário | J18: =[1]ATIVO!J19 -> Anistiado | K18: =[1]ATIVO!K19 -> Total | L18: =[1]ATIVO!L19 -> Total Área | M18: =[1]ATIVO!M19 -> Sexo Feminino | N18: =[1]ATIVO!N19 -> Sexo Masculino | O18: =[1]ATIVO!O19 -> Total | P18: =[1]ATIVO!P19 -> Total Área
A19: =[1]ATIVO!A22 -> MEIO | B19: =[1]ATIVO!B20 -> Chefia de Gabinete | C19: =[1]ATIVO!C20 -> 1 | D19: =[1]ATIVO!D20 -> 0 | E19: =[1]ATIVO!E20 -> 9 | F19: =[1]ATIVO!F20 -> 0 | G19: =[1]ATIVO!G20 -> 3 | H19: =[1]ATIVO!H20 -> 0 | I19: =[1]ATIVO!I20 -> 0 | J19: =[1]ATIVO!J20 -> 0 | K19: =[1]ATIVO!K20 -> 13 | L19: =[1]ATIVO!L20 -> 59 | M19: =[1]ATIVO!M20 -> 5 | N19: =[1]ATIVO!N20 -> 8 | O19: =[1]ATIVO!O20 -> 13 | P19: =[1]ATIVO!P20 -> 59
B20: =[1]ATIVO!B21 -> Assessoria Técnica Administrativa | C20: =[1]ATIVO!C21 -> 0 | D20: =[1]ATIVO!D21 -> 16 | E20: =[1]ATIVO!E21 -> 0 | F20: =[1]ATIVO!F21 -> 0 | G20: =[1]ATIVO!G21 -> 3 | H20: =[1]ATIVO!H21 -> 0 | I20: =[1]ATIVO!I21 -> 0 | J20: =[1]ATIVO!J21 -> 1 | K20: =[1]ATIVO!K21 -> 20 | M20: =[1]ATIVO!M21 -> 3 | N20: =[1]ATIVO!N21 -> 17 | O20: =[1]ATIVO!O21 -> 20
B21: =[1]ATIVO!B22 -> Assessoria Parlamentar | C21: =[1]ATIVO!C22 -> 0 | D21: =[1]ATIVO!D22 -> 0 | E21: =[1]ATIVO!E22 -> 0 | F21: =[1]ATIVO!F22 -> 0 | G21: =[1]ATIVO!G22 -> 8 | H21: =[1]ATIVO!H22 -> 0 | I21: =[1]ATIVO!I22 -> 0 | J21: =[1]ATIVO!J22 -> 0 | K21: =[1]ATIVO!K22 -> 8 | M21: =[1]ATIVO!M22 -> 6 | N21: =[1]ATIVO!N22 -> 2 | O21: =[1]ATIVO!O22 -> 8
B22: =[1]ATIVO!B23 -> Assessoria de Comunicação Social | C22: =[1]ATIVO!C23 -> 0 | D22: =[1]ATIVO!D23 -> 1 | E22: =[1]ATIVO!E23 -> 1 | F22: =[1]ATIVO!F23 -> 0 | G22: =[1]ATIVO!G23 -> 6 | H22: =[1]ATIVO!H23 -> 0 | I22: =[1]ATIVO!I23 -> 0 | J22: =[1]ATIVO!J23 -> 1 | K22: =[1]ATIVO!K23 -> 9 | M22: =[1]ATIVO!M23 -> 4 | N22: =[1]ATIVO!N23 -> 5 | O22: =[1]ATIVO!O23 -> 9
B23: =[1]ATIVO!B24 -> Ouvidoria-Geral | C23: =[1]ATIVO!C24 -> 0 | D23: =[1]ATIVO!D24 -> 2 | E23: =[1]ATIVO!E24 -> 1 | F23: =[1]ATIVO!F24 -> 0 | G23: =[1]ATIVO!G24 -> 1 | H23: =[1]ATIVO!H24 -> 0 | I23: =[1]ATIVO!I24 -> 0 | J23: =[1]ATIVO!J24 -> 0 | K23: =[1]ATIVO!K24 -> 4 | M23: =[1]ATIVO!M24 -> 2 | N23: =[1]ATIVO!N24 -> 2 | O23: =[1]ATIVO!O24 -> 4
B24: =[1]ATIVO!B25 -> Assessoria de Apoio ao Ministro | C24: =[1]ATIVO!C25 -> 0 | D24: =[1]ATIVO!D25 -> 0 | E24: =[1]ATIVO!E25 -> 2 | F24: =[1]ATIVO!F25 -> 0 | G24: =[1]ATIVO!G25 -> 3 | H24: =[1]ATIVO!H25 -> 0 | I24: =[1]ATIVO!I25 -> 0 | J24: =[1]ATIVO!J25 -> 0 | K24: =[1]ATIVO!K25 -> 5 | M24: =[1]ATIVO!M25 -> 5 | N24: =[1]ATIVO!N25 -> 0 | O24: =[1]ATIVO!O25 -> 5
B25: =[1]ATIVO!B26 -> TOTAL | C25: =[1]ATIVO!C26 -> 1 | D25: =[1]ATIVO!D26 -> 19 | E25: =[1]ATIVO!E26 -> 13 | F25: =[1]ATIVO!F26 -> 0 | G25: =[1]ATIVO!G26 -> 24 | H25: =[1]ATIVO!H26 -> 0 | I25: =[1]ATIVO!I26 -> 0 | J25: =[1]ATIVO!J26 -> 2 | K25: =[1]ATIVO!K26 -> 59 | L25: =[1]ATIVO!L26 -> 59 | M25: =[1]ATIVO!M26 -> 25 | N25: =[1]ATIVO!N26 -> 34 | O25: =[1]ATIVO!O26 -> 59 | P25: =[1]ATIVO!P26 -> 59
A27: =[1]ATIVO!A28 -> Área | B27: =[1]ATIVO!B28 -> ASSESSORIA ESPECIAL DE RELAÇÕES INTERNACIONAIS | C27: =[1]ATIVO!C28 -> Natureza Especial | D27: =[1]ATIVO!D28 -> Ativo Permanente | E27: =[1]ATIVO!E28 -> Requisitado Órgãos | F27: =[1]ATIVO!F28 -> Requisitado Empresas | G27: =[1]ATIVO!G28 -> Sem Vínculo | H27: =[1]ATIVO!H28 -> Exercício Descentralizado | I27: =[1]ATIVO!I28 -> Contrato Temporário | J27: =[1]ATIVO!J28 -> Anistiado | K27: =[1]ATIVO!K28 -> Total | L27: =[1]ATIVO!L28 -> Total Área | M27: =[1]ATIVO!M28 -> Sexo Feminino | N27: =[1]ATIVO!N28 -> Sexo Masculino | O27: =[1]ATIVO!O28 -> Total | P27: =[1]ATIVO!P28 -> Total Área
A28: =[1]ATIVO!A29 -> MEIO | B28: =[1]ATIVO!B29 -> Assessoria Especial de Relações Internacionais | C28: =[1]ATIVO!C29 -> 0 | D28: =[1]ATIVO!D29 -> 1 | E28: =[1]ATIVO!E29 -> 1 | F28: =[1]ATIVO!F29 -> 0 | G28: =[1]ATIVO!G29 -> 2 | H28: =[1]ATIVO!H29 -> 0 | I28: =[1]ATIVO!I29 -> 0 | J28: =[1]ATIVO!J29 -> 0 | K28: =[1]ATIVO!K29 -> 4 | L28: =[1]ATIVO!L29 -> 4 | M28: =[1]ATIVO!M29 -> 1 | N28: =[1]ATIVO!N29 -> 3 | O28: =[1]ATIVO!O29 -> 4 | P28: =[1]ATIVO!P29 -> 4
B29: =[1]ATIVO!B30 -> TOTAL | C29: =[1]ATIVO!C30 -> 0 | D29: =[1]ATIVO!D30 -> 1 | E29: =[1]ATIVO!E30 -> 1 | F29: =[1]ATIVO!F30 -> 0 | G29: =[1]ATIVO!G30 -> 2 | H29: =[1]ATIVO!H30 -> 0 | I29: =[1]ATIVO!I30 -> 0 | J29: =[1]ATIVO!J30 -> 0 | K29: =[1]ATIVO!K30 -> 4 | L29: =[1]ATIVO!L30 -> 4 | M29: =[1]ATIVO!M30 -> 1 | N29: =[1]ATIVO!N30 -> 3 | O29: =[1]ATIVO!O30 -> 4 | P29: =[1]ATIVO!P30 -> 4
A31: =[1]ATIVO!A32 -> Área | B31: =[1]ATIVO!B32 -> ASSESSORIA ESPECIAL DE ACOMPANHAMENTO DE POLÍTICAS, ESTRATÉGIAS E DESEMPENHO SETORIAIS | C31: =[1]ATIVO!C32 -> Natureza Especial | D31: =[1]ATIVO!D32 -> Ativo Permanente | E31: =[1]ATIVO!E32 -> Requisitado Órgãos | F31: =[1]ATIVO!F32 -> Requisitado Empresas | G31: =[1]ATIVO!G32 -> Sem Vínculo | H31: =[1]ATIVO!H32 -> Exercício Descentralizado | I31: =[1]ATIVO!I32 -> Contrato Temporário | J31: =[1]ATIVO!J32 -> Anistiado | K31: =[1]ATIVO!K32 -> Total | L31: =[1]ATIVO!L32 -> Total Área | M31: =[1]ATIVO!M32 -> Sexo Feminino | N31: =[1]ATIVO!N32 -> Sexo Masculino | O31: =[1]ATIVO!O32 -> Total | P31: =[1]ATIVO!P32 -> Total Área
A32: =[1]ATIVO!A33 -> MEIO | B32: =[1]ATIVO!B33 -> Assessoria Especial de Acompanhamento de Políticas, Estratégias e Desempenho Setoriais | C32: =[1]ATIVO!C33 -> 0 | D32: =[1]ATIVO!D33 -> 1 | E32: =[1]ATIVO!E33 -> 0 | F32: =[1]ATIVO!F33 -> 0 | G32: =[1]ATIVO!G33 -> 4 | H32: =[1]ATIVO!H33 -> 0 | I32: =[1]ATIVO!I33 -> 0 | J32: =[1]ATIVO!J33 -> 0 | K32: =[1]ATIVO!K33 -> 5 | L32: =[1]ATIVO!L33 -> 5 | M32: =[1]ATIVO!M33 -> 0 | N32: =[1]ATIVO!N33 -> 5 | O32: =[1]ATIVO!O33 -> 5 | P32: =[1]ATIVO!P33 -> 5
B33: =[1]ATIVO!B34 -> TOTAL | C33: =[1]ATIVO!C34 -> 0 | D33: =[1]ATIVO!D34 -> 1 | E33: =[1]ATIVO!E34 -> 0 | F33: =[1]ATIVO!F34 -> 0 | G33: =[1]ATIVO!G34 -> 4 | H33: =[1]ATIVO!H34 -> 0 | I33: =[1]ATIVO!I34 -> 0 | J33: =[1]ATIVO!J34 -> 0 | K33: =[1]ATIVO!K34 -> 5 | L33: =[1]ATIVO!L34 -> 5 | M33: =[1]ATIVO!M34 -> 0 | N33: =[1]ATIVO!N34 -> 5 | O33: =[1]ATIVO!O34 -> 5 | P33: =[1]ATIVO!P34 -> 5
A35: =[1]ATIVO!A36 -> Área | B35: =[1]ATIVO!B36 -> ASSESSORIA ESPECIAL DE CONTROLE INTERNO | C35: =[1]ATIVO!C36 -> Natureza Especial | D35: =[1]ATIVO!D36 -> Ativo Permanente | E35: =[1]ATIVO!E36 -> Requisitado Órgãos | F35: =[1]ATIVO!F36 -> Requisitado Empresas | G35: =[1]ATIVO!G36 -> Sem Vínculo | H35: =[1]ATIVO!H36 -> Exercício Descentralizado | I35: =[1]ATIVO!I36 -> Contrato Temporário | J35: =[1]ATIVO!J36 -> Anistiado | K35: =[1]ATIVO!K36 -> Total | L35: =[1]ATIVO!L36 -> Total Área | M35: =[1]ATIVO!M36 -> Sexo Feminino | N35: =[1]ATIVO!N36 -> Sexo Masculino | O35: =[1]ATIVO!O36 -> Total | P35: =[1]ATIVO!P36 -> Total Área
A36: =[1]ATIVO!A37 -> MEIO | B36: =[1]ATIVO!B37 -> Assessoria Especial de Controle Interno | C36: =[1]ATIVO!C37 -> 0 | D36: =[1]ATIVO!D37 -> 1 | E36: =[1]ATIVO!E37 -> 1 | F36: =[1]ATIVO!F37 -> 0 | G36: =[1]ATIVO!G37 -> 2 | H36: =[1]ATIVO!H37 -> 0 | I36: =[1]ATIVO!I37 -> 0 | J36: =[1]ATIVO!J37 -> 0 | K36: =[1]ATIVO!K37 -> 4 | L36: =[1]ATIVO!L37 -> 4 | M36: =[1]ATIVO!M37 -> 3 | N36: =[1]ATIVO!N37 -> 1 | O36: =[1]ATIVO!O37 -> 4 | P36: =[1]ATIVO!P37 -> 4
B37: =[1]ATIVO!B38 -> TOTAL | C37: =[1]ATIVO!C38 -> 0 | D37: =[1]ATIVO!D38 -> 1 | E37: =[1]ATIVO!E38 -> 1 | F37: =[1]ATIVO!F38 -> 0 | G37: =[1]ATIVO!G38 -> 2 | H37: =[1]ATIVO!H38 -> 0 | I37: =[1]ATIVO!I38 -> 0 | J37: =[1]ATIVO!J38 -> 0 | K37: =[1]ATIVO!K38 -> 4 | L37: =[1]ATIVO!L38 -> 4 | M37: =[1]ATIVO!M38 -> 3 | N37: =[1]ATIVO!N38 -> 1 | O37: =[1]ATIVO!O38 -> 4 | P37: =[1]ATIVO!P38 -> 4
A39: =[1]ATIVO!A40 -> Área | B39: =[1]ATIVO!B40 -> ASSESSORIA ECONÔMICA | C39: =[1]ATIVO!C40 -> Natureza Especial | D39: =[1]ATIVO!D40 -> Ativo Permanente | E39: =[1]ATIVO!E40 -> Requisitado Órgãos | F39: =[1]ATIVO!F40 -> Requisitado Empresas | G39: =[1]ATIVO!G40 -> Sem Vínculo | H39: =[1]ATIVO!H40 -> Exercício Descentralizado | I39: =[1]ATIVO!I40 -> Contrato Temporário | J39: =[1]ATIVO!J40 -> Anistiado | K39: =[1]ATIVO!K40 -> Total | L39: =[1]ATIVO!L40 -> Total Área | M39: =[1]ATIVO!M40 -> Sexo Feminino | N39: =[1]ATIVO!N40 -> Sexo Masculino | O39: =[1]ATIVO!O40 -> Total | P39: =[1]ATIVO!P40 -> Total Área
A40: =[1]ATIVO!A41 -> MEIO | B40: =[1]ATIVO!B41 -> Assessoria Econômica | C40: =[1]ATIVO!C41 -> 0 | D40: =[1]ATIVO!D41 -> 1 | E40: =[1]ATIVO!E41 -> 6 | F40: =[1]ATIVO!F41 -> 0 | G40: =[1]ATIVO!G41 -> 1 | H40: =[1]ATIVO!H41 -> 0 | I40: =[1]ATIVO!I41 -> 0 | J40: =[1]ATIVO!J41 -> 0 | K40: =[1]ATIVO!K41 -> 8 | L40: =[1]ATIVO!L41 -> 8 | M40: =[1]ATIVO!M41 -> 5 | N40: =[1]ATIVO!N41 -> 3 | O40: =[1]ATIVO!O41 -> 8 | P40: =[1]ATIVO!P41 -> 8
B41: =[1]ATIVO!B42 -> TOTAL | C41: =[1]ATIVO!C42 -> 0 | D41: =[1]ATIVO!D42 -> 1 | E41: =[1]ATIVO!E42 -> 6 | F41: =[1]ATIVO!F42 -> 0 | G41: =[1]ATIVO!G42 -> 1 | H41: =[1]ATIVO!H42 -> 0 | I41: =[1]ATIVO!I42 -> 0 | J41: =[1]ATIVO!J42 -> 0 | K41: =[1]ATIVO!K42 -> 8 | L41: =[1]ATIVO!L42 -> 8 | M41: =[1]ATIVO!M42 -> 5 | N41: =[1]ATIVO!N42 -> 3 | O41: =[1]ATIVO!O42 -> 8 | P41: =[1]ATIVO!P42 -> 8
A43: =[1]ATIVO!A44 -> Área | B43: =[1]ATIVO!B44 -> CONSULTORIA JURÍDICA | C43: =[1]ATIVO!C44 -> Natureza Especial | D43: =[1]ATIVO!D44 -> Ativo Permanente | E43: =[1]ATIVO!E44 -> Requisitado Órgãos | F43: =[1]ATIVO!F44 -> Requisitado Empresas | G43: =[1]ATIVO!G44 -> Sem Vínculo | H43: =[1]ATIVO!H44 -> Exercício Descentralizado | I43: =[1]ATIVO!I44 -> Contrato Temporário | J43: =[1]ATIVO!J44 -> Anistiado | K43: =[1]ATIVO!K44 -> Total | L43: =[1]ATIVO!L44 -> Total Área | M43: =[1]ATIVO!M44 -> Sexo Feminino | N43: =[1]ATIVO!N44 -> Sexo Masculino | O43: =[1]ATIVO!O44 -> Total | P43: =[1]ATIVO!P44 -> Total Área
A44: =[1]ATIVO!A45 -> MEIO | B44: =[1]ATIVO!B45 -> Gabinete da Consultoria Jurídica | C44: =[1]ATIVO!C45 -> 0 | D44: =[1]ATIVO!D45 -> 0 | E44: =[1]ATIVO!E45 -> 0 | F44: =[1]ATIVO!F45 -> 0 | G44: =[1]ATIVO!G45 -> 3 | H44: =[1]ATIVO!H45 -> 1 | I44: =[1]ATIVO!I45 -> 0 | J44: =[1]ATIVO!J45 -> 0 | K44: =[1]ATIVO!K45 -> 4 | L44: =[1]ATIVO!L45 -> 21 | M44: =[1]ATIVO!M45 -> 3 | N44: =[1]ATIVO!N45 -> 1 | O44: =[1]ATIVO!O45 -> 4 | P44: =[1]ATIVO!P45 -> 21
B45: =[1]ATIVO!B46 -> Coordenação-Geral de Assuntos de Petróleo e Mineração | C45: =[1]ATIVO!C46 -> 0 | D45: =[1]ATIVO!D46 -> 0 | E45: =[1]ATIVO!E46 -> 0 | F45: =[1]ATIVO!F46 -> 0 | G45: =[1]ATIVO!G46 -> 0 | H45: =[1]ATIVO!H46 -> 3 | I45: =[1]ATIVO!I46 -> 0 | J45: =[1]ATIVO!J46 -> 0 | K45: =[1]ATIVO!K46 -> 3 | M45: =[1]ATIVO!M46 -> 0 | N45: =[1]ATIVO!N46 -> 3 | O45: =[1]ATIVO!O46 -> 3
B46: =[1]ATIVO!B47 -> Coordenação-Geral de Assuntos de Energia | C46: =[1]ATIVO!C47 -> 0 | D46: =[1]ATIVO!D47 -> 0 | E46: =[1]ATIVO!E47 -> 0 | F46: =[1]ATIVO!F47 -> 0 | G46: =[1]ATIVO!G47 -> 0 | H46: =[1]ATIVO!H47 -> 3 | I46: =[1]ATIVO!I47 -> 0 | J46: =[1]ATIVO!J47 -> 0 | K46: =[1]ATIVO!K47 -> 3 | M46: =[1]ATIVO!M47 -> 1 | N46: =[1]ATIVO!N47 -> 2 | O46: =[1]ATIVO!O47 -> 3
B47: =[1]ATIVO!B48 -> Coordenação-Geral de Assuntos Administrativos | C47: =[1]ATIVO!C48 -> 0 | D47: =[1]ATIVO!D48 -> 3 | E47: =[1]ATIVO!E48 -> 0 | F47: =[1]ATIVO!F48 -> 0 | G47: =[1]ATIVO!G48 -> 4 | H47: =[1]ATIVO!H48 -> 4 | I47: =[1]ATIVO!I48 -> 0 | J47: =[1]ATIVO!J48 -> 0 | K47: =[1]ATIVO!K48 -> 11 | M47: =[1]ATIVO!M48 -> 4 | N47: =[1]ATIVO!N48 -> 7 | O47: =[1]ATIVO!O48 -> 11
B48: =[1]ATIVO!B49 -> TOTAL | C48: =[1]ATIVO!C49 -> 0 | D48: =[1]ATIVO!D49 -> 3 | E48: =[1]ATIVO!E49 -> 0 | F48: =[1]ATIVO!F49 -> 0 | G48: =[1]ATIVO!G49 -> 7 | H48: =[1]ATIVO!H49 -> 11 | I48: =[1]ATIVO!I49 -> 0 | J48: =[1]ATIVO!J49 -> 0 | K48: =[1]ATIVO!K49 -> 21 | L48: =[1]ATIVO!L49 -> 21 | M48: =[1]ATIVO!M49 -> 8 | N48: =[1]ATIVO!N49 -> 13 | O48: =[1]ATIVO!O49 -> 21 | P48: =[1]ATIVO!P49 -> 21
A50: =[1]ATIVO!A51 -> Área | B50: =[1]ATIVO!B51 -> SECRETARIA EXECUTIVA | C50: =[1]ATIVO!C51 -> Natureza Especial | D50: =[1]ATIVO!D51 -> Ativo Permanente | E50: =[1]ATIVO!E51 -> Requisitado Órgãos | F50: =[1]ATIVO!F51 -> Requisitado Empresas | G50: =[1]ATIVO!G51 -> Sem Vínculo | H50: =[1]ATIVO!H51 -> Exercício Descentralizado | I50: =[1]ATIVO!I51 -> Contrato Temporário | J50: =[1]ATIVO!J51 -> Anistiado | K50: =[1]ATIVO!K51 -> Total | L50: =[1]ATIVO!L51 -> Total Área | M50: =[1]ATIVO!M51 -> Sexo Feminino | N50: =[1]ATIVO!N51 -> Sexo Masculino | O50: =[1]ATIVO!O51 -> Total | P50: =[1]ATIVO!P51 -> Total Área
A51: =[1]ATIVO!A52 -> MEIO | B51: =[1]ATIVO!B52 -> Gabinete da Secretaria Executiva | C51: =[1]ATIVO!C52 -> 1 | D51: =[1]ATIVO!D52 -> 0 | E51: =[1]ATIVO!E52 -> 3 | F51: =[1]ATIVO!F52 -> 1 | G51: =[1]ATIVO!G52 -> 6 | H51: =[1]ATIVO!H52 -> 0 | I51: =[1]ATIVO!I52 -> 0 | J51: =[1]ATIVO!J52 -> 0 | K51: =[1]ATIVO!K52 -> 11 | L51: =[1]ATIVO!L52 -> 221 | M51: =[1]ATIVO!M52 -> 7 | N51: =[1]ATIVO!N52 -> 4 | O51: =[1]ATIVO!O52 -> 11 | P51: =[1]ATIVO!P52 -> 221
B53: =[1]ATIVO!B54 -> Assessoria Especial de Gestão Estratégica | C53: =[1]ATIVO!C54 -> 0 | D53: =[1]ATIVO!D54 -> 2 | E53: =[1]ATIVO!E54 -> 1 | F53: =[1]ATIVO!F54 -> 0 | G53: =[1]ATIVO!G54 -> 6 | H53: =[1]ATIVO!H54 -> 2 | I53: =[1]ATIVO!I54 -> 0 | J53: =[1]ATIVO!J54 -> 0 | K53: =[1]ATIVO!K54 -> 11 | M53: =[1]ATIVO!M54 -> 1 | N53: =[1]ATIVO!N54 -> 10 | O53: =[1]ATIVO!O54 -> 11
B54: =[1]ATIVO!B55 -> Gabinete da Assessoria Especial de Gestão Estratégica | C54: =[1]ATIVO!C55 -> 0 | D54: =[1]ATIVO!D55 -> 0 | E54: =[1]ATIVO!E55 -> 1 | F54: =[1]ATIVO!F55 -> 0 | G54: =[1]ATIVO!G55 -> 4 | H54: =[1]ATIVO!H55 -> 0 | I54: =[1]ATIVO!I55 -> 0 | J54: =[1]ATIVO!J55 -> 0 | K54: =[1]ATIVO!K55 -> 5 | M54: =[1]ATIVO!M55 -> 1 | N54: =[1]ATIVO!N55 -> 4 | O54: =[1]ATIVO!O55 -> 5
B55: =[1]ATIVO!B56 -> Coordenação-Geral de Planejamento Estratégico, Supervisão e Avaliação | C55: =[1]ATIVO!C56 -> 0 | D55: =[1]ATIVO!D56 -> 2 | E55: =[1]ATIVO!E56 -> 0 | F55: =[1]ATIVO!F56 -> 0 | G55: =[1]ATIVO!G56 -> 2 | H55: =[1]ATIVO!H56 -> 2 | I55: =[1]ATIVO!I56 -> 0 | J55: =[1]ATIVO!J56 -> 0 | K55: =[1]ATIVO!K56 -> 6 | M55: =[1]ATIVO!M56 -> 0 | N55: =[1]ATIVO!N56 -> 6 | O55: =[1]ATIVO!O56 -> 6
B57: =[1]ATIVO!B58 -> Assessoria Especial em Assuntos Regulatórios | C57: =[1]ATIVO!C58 -> 0 | D57: =[1]ATIVO!D58 -> 0 | E57: =[1]ATIVO!E58 -> 0 | F57: =[1]ATIVO!F58 -> 0 | G57: =[1]ATIVO!G58 -> 0 | H57: =[1]ATIVO!H58 -> 1 | I57: =[1]ATIVO!I58 -> 0 | J57: =[1]ATIVO!J58 -> 0 | K57: =[1]ATIVO!K58 -> 1 | M57: =[1]ATIVO!M58 -> 1 | N57: =[1]ATIVO!N58 -> 0 | O57: =[1]ATIVO!O58 -> 1
B59: =[1]ATIVO!B60 -> Assessoria Especial de Gestão de Projetos | C59: =[1]ATIVO!C60 -> 0 | D59: =[1]ATIVO!D60 -> 2 | E59: =[1]ATIVO!E60 -> 3 | F59: =[1]ATIVO!F60 -> 0 | G59: =[1]ATIVO!G60 -> 1 | H59: =[1]ATIVO!H60 -> 2 | I59: =[1]ATIVO!I60 -> 3 | J59: =[1]ATIVO!J60 -> 2 | K59: =[1]ATIVO!K60 -> 13 | M59: =[1]ATIVO!M60 -> 3 | N59: =[1]ATIVO!N60 -> 10 | O59: =[1]ATIVO!O60 -> 13
B60: =[1]ATIVO!B61 -> Gabinete da Assessoria Especial de Gestão de Projetos | C60: =[1]ATIVO!C61 -> 0 | D60: =[1]ATIVO!D61 -> 0 | E60: =[1]ATIVO!E61 -> 1 | F60: =[1]ATIVO!F61 -> 0 | G60: =[1]ATIVO!G61 -> 0 | H60: =[1]ATIVO!H61 -> 0 | I60: =[1]ATIVO!I61 -> 0 | J60: =[1]ATIVO!J61 -> 0 | K60: =[1]ATIVO!K61 -> 1 | M60: =[1]ATIVO!M61 -> 0 | N60: =[1]ATIVO!N61 -> 1 | O60: =[1]ATIVO!O61 -> 1
B61: =[1]ATIVO!B62 -> Coordenação-Geral de Planejamento, Finanças e Controle | C61: =[1]ATIVO!C62 -> 0 | D61: =[1]ATIVO!D62 -> 1 | E61: =[1]ATIVO!E62 -> 1 | F61: =[1]ATIVO!F62 -> 0 | G61: =[1]ATIVO!G62 -> 1 | H61: =[1]ATIVO!H62 -> 0 | I61: =[1]ATIVO!I62 -> 1 | J61: =[1]ATIVO!J62 -> 1 | K61: =[1]ATIVO!K62 -> 5 | M61: =[1]ATIVO!M62 -> 2 | N61: =[1]ATIVO!N62 -> 3 | O61: =[1]ATIVO!O62 -> 5
B62: =[1]ATIVO!B63 -> Coordenação-Geral de Gestão de Projetos | C62: =[1]ATIVO!C63 -> 0 | D62: =[1]ATIVO!D63 -> 1 | E62: =[1]ATIVO!E63 -> 1 | F62: =[1]ATIVO!F63 -> 0 | G62: =[1]ATIVO!G63 -> 0 | H62: =[1]ATIVO!H63 -> 2 | I62: =[1]ATIVO!I63 -> 2 | J62: =[1]ATIVO!J63 -> 1 | K62: =[1]ATIVO!K63 -> 7 | M62: =[1]ATIVO!M63 -> 1 | N62: =[1]ATIVO!N63 -> 6 | O62: =[1]ATIVO!O63 -> 7
B64: =[1]ATIVO!B65 -> Assessoria Especial de Meio Ambiente | C64: =[1]ATIVO!C65 -> 0 | D64: =[1]ATIVO!D65 -> 0 | E64: =[1]ATIVO!E65 -> 1 | F64: =[1]ATIVO!F65 -> 0 | G64: =[1]ATIVO!G65 -> 2 | H64: =[1]ATIVO!H65 -> 3 | I64: =[1]ATIVO!I65 -> 0 | J64: =[1]ATIVO!J65 -> 1 | K64: =[1]ATIVO!K65 -> 7 | M64: =[1]ATIVO!M65 -> 5 | N64: =[1]ATIVO!N65 -> 2 | O64: =[1]ATIVO!O65 -> 7
B65: =[1]ATIVO!B66 -> Gabinete da Assessoria Especial do Meio Ambiente | C65: =[1]ATIVO!C66 -> 0 | D65: =[1]ATIVO!D66 -> 0 | E65: =[1]ATIVO!E66 -> 1 | F65: =[1]ATIVO!F66 -> 0 | G65: =[1]ATIVO!G66 -> 1 | H65: =[1]ATIVO!H66 -> 1 | I65: =[1]ATIVO!I66 -> 0 | J65: =[1]ATIVO!J66 -> 1 | K65: =[1]ATIVO!K66 -> 4 | M65: =[1]ATIVO!M66 -> 2 | N65: =[1]ATIVO!N66 -> 2 | O65: =[1]ATIVO!O66 -> 4
B66: =[1]ATIVO!B67 -> Coordenação-Geral de Avaliação Ambiental e Acompanhamento de Licenciamento | C66: =[1]ATIVO!C67 -> 0 | D66: =[1]ATIVO!D67 -> 0 | E66: =[1]ATIVO!E67 -> 0 | F66: =[1]ATIVO!F67 -> 0 | G66: =[1]ATIVO!G67 -> 1 | H66: =[1]ATIVO!H67 -> 0 | I66: =[1]ATIVO!I67 -> 0 | J66: =[1]ATIVO!J67 -> 0 | K66: =[1]ATIVO!K67 -> 1 | M66: =[1]ATIVO!M67 -> 1 | N66: =[1]ATIVO!N67 -> 0 | O66: =[1]ATIVO!O67 -> 1
B67: =[1]ATIVO!B68 -> Coordenação-Geral de Articulação Institucional em Meio Ambiente | C67: =[1]ATIVO!C68 -> 0 | D67: =[1]ATIVO!D68 -> 0 | E67: =[1]ATIVO!E68 -> 0 | F67: =[1]ATIVO!F68 -> 0 | G67: =[1]ATIVO!G68 -> 0 | H67: =[1]ATIVO!H68 -> 2 | I67: =[1]ATIVO!I68 -> 0 | J67: =[1]ATIVO!J68 -> 0 | K67: =[1]ATIVO!K68 -> 2 | M67: =[1]ATIVO!M68 -> 2 | N67: =[1]ATIVO!N68 -> 0 | O67: =[1]ATIVO!O68 -> 2
B69: =[1]ATIVO!B70 -> Subsecretaria de Planejamento, Orçamento e Administração | C69: =[1]ATIVO!C70 -> 0 | D69: =[1]ATIVO!D70 -> 86 | E69: =[1]ATIVO!E70 -> 20 | F69: =[1]ATIVO!F70 -> 0 | G69: =[1]ATIVO!G70 -> 14 | H69: =[1]ATIVO!H70 -> 11 | I69: =[1]ATIVO!I70 -> 0 | J69: =[1]ATIVO!J70 -> 47 | K69: =[1]ATIVO!K70 -> 178 | M69: =[1]ATIVO!M70 -> 90 | N69: =[1]ATIVO!N70 -> 88 | O69: =[1]ATIVO!O70 -> 178
B70: =[1]ATIVO!B71 -> Gabinete da Subsecretaria de Planejamento, Orçamento e Administração | C70: =[1]ATIVO!C71 -> 0 | D70: =[1]ATIVO!D71 -> 1 | E70: =[1]ATIVO!E71 -> 0 | F70: =[1]ATIVO!F71 -> 0 | G70: =[1]ATIVO!G71 -> 2 | H70: =[1]ATIVO!H71 -> 0 | I70: =[1]ATIVO!I71 -> 0 | J70: =[1]ATIVO!J71 -> 0 | K70: =[1]ATIVO!K71 -> 3 | M70: =[1]ATIVO!M71 -> 1 | N70: =[1]ATIVO!N71 -> 2 | O70: =[1]ATIVO!O71 -> 3
B71: =[1]ATIVO!B72 -> Coordenação-Geral de Recursos Logísticos | C71: =[1]ATIVO!C72 -> 0 | D71: =[1]ATIVO!D72 -> 41 | E71: =[1]ATIVO!E72 -> 8 | F71: =[1]ATIVO!F72 -> 0 | G71: =[1]ATIVO!G72 -> 9 | H71: =[1]ATIVO!H72 -> 0 | I71: =[1]ATIVO!I72 -> 0 | J71: =[1]ATIVO!J72 -> 15 | K71: =[1]ATIVO!K72 -> 73 | M71: =[1]ATIVO!M72 -> 24 | N71: =[1]ATIVO!N72 -> 49 | O71: =[1]ATIVO!O72 -> 73
B72: =[1]ATIVO!B73 -> Coordenação-Geral de Tecnologia da Informação | C72: =[1]ATIVO!C73 -> 0 | D72: =[1]ATIVO!D73 -> 6 | E72: =[1]ATIVO!E73 -> 2 | F72: =[1]ATIVO!F73 -> 0 | G72: =[1]ATIVO!G73 -> 1 | H72: =[1]ATIVO!H73 -> 3 | I72: =[1]ATIVO!I73 -> 0 | J72: =[1]ATIVO!J73 -> 2 | K72: =[1]ATIVO!K73 -> 14 | M72: =[1]ATIVO!M73 -> 3 | N72: =[1]ATIVO!N73 -> 11 | O72: =[1]ATIVO!O73 -> 14
B73: =[1]ATIVO!B74 -> Coordenação-Geral de Compras e Contratos | C73: =[1]ATIVO!C74 -> 0 | D73: =[1]ATIVO!D74 -> 5 | E73: =[1]ATIVO!E74 -> 3 | F73: =[1]ATIVO!F74 -> 0 | G73: =[1]ATIVO!G74 -> 2 | H73: =[1]ATIVO!H74 -> 0 | I73: =[1]ATIVO!I74 -> 0 | J73: =[1]ATIVO!J74 -> 1 | K73: =[1]ATIVO!K74 -> 11 | M73: =[1]ATIVO!M74 -> 11 | N73: =[1]ATIVO!N74 -> 0 | O73: =[1]ATIVO!O74 -> 11
B74: =[1]ATIVO!B75 -> Coordenação-Geral de Recursos Humanos | C74: =[1]ATIVO!C75 -> 0 | D74: =[1]ATIVO!D75 -> 25 | E74: =[1]ATIVO!E75 -> 5 | F74: =[1]ATIVO!F75 -> 0 | G74: =[1]ATIVO!G75 -> 0 | H74: =[1]ATIVO!H75 -> 0 | I74: =[1]ATIVO!I75 -> 0 | J74: =[1]ATIVO!J75 -> 29 | K74: =[1]ATIVO!K75 -> 59 | M74: =[1]ATIVO!M75 -> 44 | N74: =[1]ATIVO!N75 -> 15 | O74: =[1]ATIVO!O75 -> 59
B75: =[1]ATIVO!B76 -> Coordenação-Geral de Orçamento e Finanças | C75: =[1]ATIVO!C76 -> 0 | D75: =[1]ATIVO!D76 -> 4 | E75: =[1]ATIVO!E76 -> 2 | F75: =[1]ATIVO!F76 -> 0 | G75: =[1]ATIVO!G76 -> 0 | H75: =[1]ATIVO!H76 -> 8 | I75: =[1]ATIVO!I76 -> 0 | J75: =[1]ATIVO!J76 -> 0 | K75: =[1]ATIVO!K76 -> 14 | M75: =[1]ATIVO!M76 -> 4 | N75: =[1]ATIVO!N76 -> 10 | O75: =[1]ATIVO!O76 -> 14
B76: =[1]ATIVO!B77 -> Coordenação de Modernização Administrativa | C76: =[1]ATIVO!C77 -> 0 | D76: =[1]ATIVO!D77 -> 4 | E76: =[1]ATIVO!E77 -> 0 | F76: =[1]ATIVO!F77 -> 0 | G76: =[1]ATIVO!G77 -> 0 | H76: =[1]ATIVO!H77 -> 0 | I76: =[1]ATIVO!I77 -> 0 | J76: =[1]ATIVO!J77 -> 0 | K76: =[1]ATIVO!K77 -> 4 | M76: =[1]ATIVO!M77 -> 3 | N76: =[1]ATIVO!N77 -> 1 | O76: =[1]ATIVO!O77 -> 4
B77: =[1]ATIVO!B78 -> TOTAL | C77: =[1]ATIVO!C78 -> 1 | D77: =[1]ATIVO!D78 -> 90 | E77: =[1]ATIVO!E78 -> 28 | F77: =[1]ATIVO!F78 -> 1 | G77: =[1]ATIVO!G78 -> 29 | H77: =[1]ATIVO!H78 -> 19 | I77: =[1]ATIVO!I78 -> 3 | J77: =[1]ATIVO!J78 -> 50 | K77: =[1]ATIVO!K78 -> 221 | L77: =[1]ATIVO!L78 -> 221 | M77: =[1]ATIVO!M78 -> 107 | N77: =[1]ATIVO!N78 -> 114 | O77: =[1]ATIVO!O78 -> 221 | P77: =[1]ATIVO!P78 -> 221
A79: =[1]ATIVO!A80 -> Área | B79: =[1]ATIVO!B80 -> SECRETARIA DE GEOLOGIA, MINERAÇÃO E TRANSFORMAÇÃO MINERAL | C79: =[1]ATIVO!C80 -> Natureza Especial | D79: =[1]ATIVO!D80 -> Ativo Permanente | E79: =[1]ATIVO!E80 -> Requisitado Órgãos | F79: =[1]ATIVO!F80 -> Requisitado Empresas | G79: =[1]ATIVO!G80 -> Sem Vínculo | H79: =[1]ATIVO!H80 -> Exercício Descentralizado | I79: =[1]ATIVO!I80 -> Contrato Temporário | J79: =[1]ATIVO!J80 -> Anistiado | K79: =[1]ATIVO!K80 -> Total | L79: =[1]ATIVO!L80 -> Total Área | M79: =[1]ATIVO!M80 -> Sexo Feminino | N79: =[1]ATIVO!N80 -> Sexo Masculino | O79: =[1]ATIVO!O80 -> Total | P79: =[1]ATIVO!P80 -> Total Área
A80: =[1]ATIVO!A81 -> FINALÍSTICA | B80: =[1]ATIVO!B81 -> Gabinete da Secretaria de Geologia, Mineração e Transformação Mineral | C80: =[1]ATIVO!C81 -> 0 | D80: =[1]ATIVO!D81 -> 2 | E80: =[1]ATIVO!E81 -> 0 | F80: =[1]ATIVO!F81 -> 0 | G80: =[1]ATIVO!G81 -> 4 | H80: =[1]ATIVO!H81 -> 0 | I80: =[1]ATIVO!I81 -> 0 | J80: =[1]ATIVO!J81 -> 0 | K80: =[1]ATIVO!K81 -> 6 | L80: =[1]ATIVO!L81 -> 39 | M80: =[1]ATIVO!M81 -> 3 | N80: =[1]ATIVO!N81 -> 3 | O80: =[1]ATIVO!O81 -> 6 | P80: =[1]ATIVO!P81 -> 39
B82: =[1]ATIVO!B83 -> Departamento de Gestão das Políticas de Geologia, Mineração e Transformação Mineral | C82: =[1]ATIVO!C83 -> 0 | D82: =[1]ATIVO!D83 -> 0 | E82: =[1]ATIVO!E83 -> 2 | F82: =[1]ATIVO!F83 -> 0 | G82: =[1]ATIVO!G83 -> 5 | H82: =[1]ATIVO!H83 -> 1 | I82: =[1]ATIVO!I83 -> 0 | J82: =[1]ATIVO!J83 -> 2 | K82: =[1]ATIVO!K83 -> 10 | M82: =[1]ATIVO!M83 -> 6 | N82: =[1]ATIVO!N83 -> 4 | O82: =[1]ATIVO!O83 -> 10
B83: =[1]ATIVO!B84 -> Gabinete do Depto de Gestão das Políticas de Geologia, Mineração e Transf. Mineral | C83: =[1]ATIVO!C84 -> 0 | D83: =[1]ATIVO!D84 -> 0 | E83: =[1]ATIVO!E84 -> 0 | F83: =[1]ATIVO!F84 -> 0 | G83: =[1]ATIVO!G84 -> 3 | H83: =[1]ATIVO!H84 -> 1 | I83: =[1]ATIVO!I84 -> 0 | J83: =[1]ATIVO!J84 -> 1 | K83: =[1]ATIVO!K84 -> 5 | M83: =[1]ATIVO!M84 -> 3 | N83: =[1]ATIVO!N84 -> 2 | O83: =[1]ATIVO!O84 -> 5
B84: =[1]ATIVO!B85 -> Coordenação-Geral de Política e Programas para Mineração | C84: =[1]ATIVO!C85 -> 0 | D84: =[1]ATIVO!D85 -> 0 | E84: =[1]ATIVO!E85 -> 1 | F84: =[1]ATIVO!F85 -> 0 | G84: =[1]ATIVO!G85 -> 0 | H84: =[1]ATIVO!H85 -> 0 | I84: =[1]ATIVO!I85 -> 0 | J84: =[1]ATIVO!J85 -> 0 | K84: =[1]ATIVO!K85 -> 1 | M84: =[1]ATIVO!M85 -> 0 | N84: =[1]ATIVO!N85 -> 1 | O84: =[1]ATIVO!O85 -> 1
B85: =[1]ATIVO!B86 -> Coordenação-Geral de Monitoramento e Controle da Gestão de Programa | C85: =[1]ATIVO!C86 -> 0 | D85: =[1]ATIVO!D86 -> 0 | E85: =[1]ATIVO!E86 -> 0 | F85: =[1]ATIVO!F86 -> 0 | G85: =[1]ATIVO!G86 -> 2 | H85: =[1]ATIVO!H86 -> 0 | I85: =[1]ATIVO!I86 -> 0 | J85: =[1]ATIVO!J86 -> 0 | K85: =[1]ATIVO!K86 -> 2 | M85: =[1]ATIVO!M86 -> 2 | N85: =[1]ATIVO!N86 -> 0 | O85: =[1]ATIVO!O86 -> 2
B86: =[1]ATIVO!B87 -> Coordenação-Geral de Economia Mineral | C86: =[1]ATIVO!C87 -> 0 | D86: =[1]ATIVO!D87 -> 0 | E86: =[1]ATIVO!E87 -> 1 | F86: =[1]ATIVO!F87 -> 0 | G86: =[1]ATIVO!G87 -> 0 | H86: =[1]ATIVO!H87 -> 0 | I86: =[1]ATIVO!I87 -> 0 | J86: =[1]ATIVO!J87 -> 1 | K86: =[1]ATIVO!K87 -> 2 | M86: =[1]ATIVO!M87 -> 1 | N86: =[1]ATIVO!N87 -> 1 | O86: =[1]ATIVO!O87 -> 2
B88: =[1]ATIVO!B89 -> Departamento de Geologia e Produção Mineral | C88: =[1]ATIVO!C89 -> 0 | D88: =[1]ATIVO!D89 -> 1 | E88: =[1]ATIVO!E89 -> 0 | F88: =[1]ATIVO!F89 -> 0 | G88: =[1]ATIVO!G89 -> 2 | H88: =[1]ATIVO!H89 -> 3 | I88: =[1]ATIVO!I89 -> 0 | J88: =[1]ATIVO!J89 -> 1 | K88: =[1]ATIVO!K89 -> 7 | M88: =[1]ATIVO!M89 -> 3 | N88: =[1]ATIVO!N89 -> 4 | O88: =[1]ATIVO!O89 -> 7
B89: =[1]ATIVO!B90 -> Gabinete do Departamento de Geologia e Produção Mineral | C89: =[1]ATIVO!C90 -> 0 | D89: =[1]ATIVO!D90 -> 1 | E89: =[1]ATIVO!E90 -> 0 | F89: =[1]ATIVO!F90 -> 0 | G89: =[1]ATIVO!G90 -> 1 | H89: =[1]ATIVO!H90 -> 2 | I89: =[1]ATIVO!I90 -> 0 | J89: =[1]ATIVO!J90 -> 1 | K89: =[1]ATIVO!K90 -> 5 | M89: =[1]ATIVO!M90 -> 3 | N89: =[1]ATIVO!N90 -> 2 | O89: =[1]ATIVO!O90 -> 5
B90: =[1]ATIVO!B91 -> Coordenação-Geral de Geologia e Recursos Minerais | C90: =[1]ATIVO!C91 -> 0 | D90: =[1]ATIVO!D91 -> 0 | E90: =[1]ATIVO!E91 -> 0 | F90: =[1]ATIVO!F91 -> 0 | G90: =[1]ATIVO!G91 -> 0 | H90: =[1]ATIVO!H91 -> 1 | I90: =[1]ATIVO!I91 -> 0 | J90: =[1]ATIVO!J91 -> 0 | K90: =[1]ATIVO!K91 -> 1 | M90: =[1]ATIVO!M91 -> 0 | N90: =[1]ATIVO!N91 -> 1 | O90: =[1]ATIVO!O91 -> 1
B91: =[1]ATIVO!B92 -> Coordenação-Geral de Monitoramento e Controle de Concessões Minerais | C91: =[1]ATIVO!C92 -> 0 | D91: =[1]ATIVO!D92 -> 0 | E91: =[1]ATIVO!E92 -> 0 | F91: =[1]ATIVO!F92 -> 0 | G91: =[1]ATIVO!G92 -> 1 | H91: =[1]ATIVO!H92 -> 0 | I91: =[1]ATIVO!I92 -> 0 | J91: =[1]ATIVO!J92 -> 0 | K91: =[1]ATIVO!K92 -> 1 | M91: =[1]ATIVO!M92 -> 0 | N91: =[1]ATIVO!N92 -> 1 | O91: =[1]ATIVO!O92 -> 1
B93: =[1]ATIVO!B94 -> Departamento de Transformação e Tecnologia Mineral | C93: =[1]ATIVO!C94 -> 0 | D93: =[1]ATIVO!D94 -> 2 | E93: =[1]ATIVO!E94 -> 0 | F93: =[1]ATIVO!F94 -> 0 | G93: =[1]ATIVO!G94 -> 2 | H93: =[1]ATIVO!H94 -> 2 | I93: =[1]ATIVO!I94 -> 0 | J93: =[1]ATIVO!J94 -> 2 | K93: =[1]ATIVO!K94 -> 8 | M93: =[1]ATIVO!M94 -> 3 | N93: =[1]ATIVO!N94 -> 5 | O93: =[1]ATIVO!O94 -> 8
B94: =[1]ATIVO!B95 -> Gabinete do Departamento de Transformação e Tecnologia Mineral | C94: =[1]ATIVO!C95 -> 0 | D94: =[1]ATIVO!D95 -> 1 | E94: =[1]ATIVO!E95 -> 0 | F94: =[1]ATIVO!F95 -> 0 | G94: =[1]ATIVO!G95 -> 1 | H94: =[1]ATIVO!H95 -> 2 | I94: =[1]ATIVO!I95 -> 0 | J94: =[1]ATIVO!J95 -> 2 | K94: =[1]ATIVO!K95 -> 6 | M94: =[1]ATIVO!M95 -> 3 | N94: =[1]ATIVO!N95 -> 3 | O94: =[1]ATIVO!O95 -> 6
B95: =[1]ATIVO!B96 -> Coordenação-Geral de Capacitação e Desenvolvimento Tecnológico | C95: =[1]ATIVO!C96 -> 0 | D95: =[1]ATIVO!D96 -> 1 | E95: =[1]ATIVO!E96 -> 0 | F95: =[1]ATIVO!F96 -> 0 | G95: =[1]ATIVO!G96 -> 1 | H95: =[1]ATIVO!H96 -> 0 | I95: =[1]ATIVO!I96 -> 0 | J95: =[1]ATIVO!J96 -> 0 | K95: =[1]ATIVO!K96 -> 2 | M95: =[1]ATIVO!M96 -> 0 | N95: =[1]ATIVO!N96 -> 2 | O95: =[1]ATIVO!O96 -> 2
B97: =[1]ATIVO!B98 -> Departamento de Desenvolvimento Sustentável na Mineração | C97: =[1]ATIVO!C98 -> 0 | D97: =[1]ATIVO!D98 -> 0 | E97: =[1]ATIVO!E98 -> 1 | F97: =[1]ATIVO!F98 -> 0 | G97: =[1]ATIVO!G98 -> 5 | H97: =[1]ATIVO!H98 -> 2 | I97: =[1]ATIVO!I98 -> 0 | J97: =[1]ATIVO!J98 -> 0 | K97: =[1]ATIVO!K98 -> 8 | M97: =[1]ATIVO!M98 -> 4 | N97: =[1]ATIVO!N98 -> 4 | O97: =[1]ATIVO!O98 -> 8
B98: =[1]ATIVO!B99 -> Gabinete do Departamento de Desenvolvimento Sustentável na Mineração | C98: =[1]ATIVO!C99 -> 0 | D98: =[1]ATIVO!D99 -> 0 | E98: =[1]ATIVO!E99 -> 0 | F98: =[1]ATIVO!F99 -> 0 | G98: =[1]ATIVO!G99 -> 2 | H98: =[1]ATIVO!H99 -> 1 | I98: =[1]ATIVO!I99 -> 0 | J98: =[1]ATIVO!J99 -> 0 | K98: =[1]ATIVO!K99 -> 3 | M98: =[1]ATIVO!M99 -> 0 | N98: =[1]ATIVO!N99 -> 3 | O98: =[1]ATIVO!O99 -> 3
B99: =[1]ATIVO!B100 -> Coordenação-Geral de Desenvolvimento Socioambiental na Mineração | C99: =[1]ATIVO!C100 -> 0 | D99: =[1]ATIVO!D100 -> 0 | E99: =[1]ATIVO!E100 -> 0 | F99: =[1]ATIVO!F100 -> 0 | G99: =[1]ATIVO!G100 -> 3 | H99: =[1]ATIVO!H100 -> 0 | I99: =[1]ATIVO!I100 -> 0 | J99: =[1]ATIVO!J100 -> 0 | K99: =[1]ATIVO!K100 -> 3 | M99: =[1]ATIVO!M100 -> 2 | N99: =[1]ATIVO!N100 -> 1 | O99: =[1]ATIVO!O100 -> 3
B100: =[1]ATIVO!B101 -> Coordenação-Geral de Mineração em Áreas de Conservação e Conflito | C100: =[1]ATIVO!C101 -> 0 | D100: =[1]ATIVO!D101 -> 0 | E100: =[1]ATIVO!E101 -> 1 | F100: =[1]ATIVO!F101 -> 0 | G100: =[1]ATIVO!G101 -> 0 | H100: =[1]ATIVO!H101 -> 1 | I100: =[1]ATIVO!I101 -> 0 | J100: =[1]ATIVO!J101 -> 0 | K100: =[1]ATIVO!K101 -> 2 | M100: =[1]ATIVO!M101 -> 2 | N100: =[1]ATIVO!N101 -> 0 | O100: =[1]ATIVO!O101 -> 2
B101: =[1]ATIVO!B102 -> TOTAL | C101: =[1]ATIVO!C102 -> 0 | D101: =[1]ATIVO!D102 -> 5 | E101: =[1]ATIVO!E102 -> 3 | F101: =[1]ATIVO!F102 -> 0 | G101: =[1]ATIVO!G102 -> 18 | H101: =[1]ATIVO!H102 -> 8 | I101: =[1]ATIVO!I102 -> 0 | J101: =[1]ATIVO!J102 -> 5 | K101: =[1]ATIVO!K102 -> 39 | L101: =[1]ATIVO!L102 -> 39 | M101: =[1]ATIVO!M102 -> 19 | N101: =[1]ATIVO!N102 -> 20 | O101: =[1]ATIVO!O102 -> 39 | P101: =[1]ATIVO!P102 -> 39
A103: =[1]ATIVO!A104 -> Área | B103: =[1]ATIVO!B104 -> SECRETARIA DE ENERGIA ELÉTRICA | C103: =[1]ATIVO!C104 -> Natureza Especial | D103: =[1]ATIVO!D104 -> Ativo Permanente | E103: =[1]ATIVO!E104 -> Requisitado Órgãos | F103: =[1]ATIVO!F104 -> Requisitado Empresas | G103: =[1]ATIVO!G104 -> Sem Vínculo | H103: =[1]ATIVO!H104 -> Exercício Descentralizado | I103: =[1]ATIVO!I104 -> Contrato Temporário | J103: =[1]ATIVO!J104 -> Anistiado | K103: =[1]ATIVO!K104 -> Total | L103: =[1]ATIVO!L104 -> Total Área | M103: =[1]ATIVO!M104 -> Sexo Feminino | N103: =[1]ATIVO!N104 -> Sexo Masculino | O103: =[1]ATIVO!O104 -> Total | P103: =[1]ATIVO!P104 -> Total Área
A104: =[1]ATIVO!A105 -> FINALÍSTICA | B104: =[1]ATIVO!B105 -> Gabinete da Secretaria de Energia Elétrica | C104: =[1]ATIVO!C105 -> 0 | D104: =[1]ATIVO!D105 -> 0 | E104: =[1]ATIVO!E105 -> 1 | F104: =[1]ATIVO!F105 -> 3 | G104: =[1]ATIVO!G105 -> 6 | H104: =[1]ATIVO!H105 -> 1 | I104: =[1]ATIVO!I105 -> 0 | J104: =[1]ATIVO!J105 -> 3 | K104: =[1]ATIVO!K105 -> 14 | L104: =[1]ATIVO!L105 -> 52 | M104: =[1]ATIVO!M105 -> 6 | N104: =[1]ATIVO!N105 -> 8 | O104: =[1]ATIVO!O105 -> 14 | P104: =[1]ATIVO!P105 -> 52
B106: =[1]ATIVO!B107 -> Departamento de Gestão do Setor Elétrico | C106: =[1]ATIVO!C107 -> 0 | D106: =[1]ATIVO!D107 -> 0 | E106: =[1]ATIVO!E107 -> 0 | F106: =[1]ATIVO!F107 -> 0 | G106: =[1]ATIVO!G107 -> 0 | H106: =[1]ATIVO!H107 -> 5 | I106: =[1]ATIVO!I107 -> 0 | J106: =[1]ATIVO!J107 -> 2 | K106: =[1]ATIVO!K107 -> 7 | M106: =[1]ATIVO!M107 -> 3 | N106: =[1]ATIVO!N107 -> 4 | O106: =[1]ATIVO!O107 -> 7
B107: =[1]ATIVO!B108 -> Gabinete do Departamento de Gestão do Setor Elétrico | C107: =[1]ATIVO!C108 -> 0 | D107: =[1]ATIVO!D108 -> 0 | E107: =[1]ATIVO!E108 -> 0 | F107: =[1]ATIVO!F108 -> 0 | G107: =[1]ATIVO!G108 -> 0 | H107: =[1]ATIVO!H108 -> 1 | I107: =[1]ATIVO!I108 -> 0 | J107: =[1]ATIVO!J108 -> 0 | K107: =[1]ATIVO!K108 -> 1 | M107: =[1]ATIVO!M108 -> 1 | N107: =[1]ATIVO!N108 -> 0 | O107: =[1]ATIVO!O108 -> 1
B108: =[1]ATIVO!B109 -> Coordenação-Geral de Gestão da Comercialização de Energia | C108: =[1]ATIVO!C109 -> 0 | D108: =[1]ATIVO!D109 -> 0 | E108: =[1]ATIVO!E109 -> 0 | F108: =[1]ATIVO!F109 -> 0 | G108: =[1]ATIVO!G109 -> 0 | H108: =[1]ATIVO!H109 -> 2 | I108: =[1]ATIVO!I109 -> 0 | J108: =[1]ATIVO!J109 -> 1 | K108: =[1]ATIVO!K109 -> 3 | M108: =[1]ATIVO!M109 -> 1 | N108: =[1]ATIVO!N109 -> 2 | O108: =[1]ATIVO!O109 -> 3
B109: =[1]ATIVO!B110 -> Coordenação-Geral de Gestão da Política Tarifária | C109: =[1]ATIVO!C110 -> 0 | D109: =[1]ATIVO!D110 -> 0 | E109: =[1]ATIVO!E110 -> 0 | F109: =[1]ATIVO!F110 -> 0 | G109: =[1]ATIVO!G110 -> 0 | H109: =[1]ATIVO!H110 -> 0 | I109: =[1]ATIVO!I110 -> 0 | J109: =[1]ATIVO!J110 -> 0 | K109: =[1]ATIVO!K110 -> 0 | M109: =[1]ATIVO!M110 -> 0 | N109: =[1]ATIVO!N110 -> 0 | O109: =[1]ATIVO!O110 -> 0
B110: =[1]ATIVO!B111 -> Coordenação-Geral de Gestão de Programas e Regulamentação | C110: =[1]ATIVO!C111 -> 0 | D110: =[1]ATIVO!D111 -> 0 | E110: =[1]ATIVO!E111 -> 0 | F110: =[1]ATIVO!F111 -> 0 | G110: =[1]ATIVO!G111 -> 0 | H110: =[1]ATIVO!H111 -> 2 | I110: =[1]ATIVO!I111 -> 0 | J110: =[1]ATIVO!J111 -> 1 | K110: =[1]ATIVO!K111 -> 3 | M110: =[1]ATIVO!M111 -> 1 | N110: =[1]ATIVO!N111 -> 2 | O110: =[1]ATIVO!O111 -> 3
B112: =[1]ATIVO!B113 -> Departamento de Monitoramento do Sistema Elétrico | C112: =[1]ATIVO!C113 -> 0 | D112: =[1]ATIVO!D113 -> 1 | E112: =[1]ATIVO!E113 -> 1 | F112: =[1]ATIVO!F113 -> 0 | G112: =[1]ATIVO!G113 -> 5 | H112: =[1]ATIVO!H113 -> 12 | I112: =[1]ATIVO!I113 -> 0 | J112: =[1]ATIVO!J113 -> 0 | K112: =[1]ATIVO!K113 -> 19 | M112: =[1]ATIVO!M113 -> 7 | N112: =[1]ATIVO!N113 -> 12 | O112: =[1]ATIVO!O113 -> 19
B113: =[1]ATIVO!B114 -> Gabinete do Departamento de Monitoramento do Sistema Elétrico | C113: =[1]ATIVO!C114 -> 0 | D113: =[1]ATIVO!D114 -> 0 | E113: =[1]ATIVO!E114 -> 0 | F113: =[1]ATIVO!F114 -> 0 | G113: =[1]ATIVO!G114 -> 2 | H113: =[1]ATIVO!H114 -> 1 | I113: =[1]ATIVO!I114 -> 0 | J113: =[1]ATIVO!J114 -> 0 | K113: =[1]ATIVO!K114 -> 3 | M113: =[1]ATIVO!M114 -> 2 | N113: =[1]ATIVO!N114 -> 1 | O113: =[1]ATIVO!O114 -> 3
B114: =[1]ATIVO!B115 -> Coordenação-Geral de Monitoramento da Expansão da Geração | C114: =[1]ATIVO!C115 -> 0 | D114: =[1]ATIVO!D115 -> 0 | E114: =[1]ATIVO!E115 -> 0 | F114: =[1]ATIVO!F115 -> 0 | G114: =[1]ATIVO!G115 -> 2 | H114: =[1]ATIVO!H115 -> 1 | I114: =[1]ATIVO!I115 -> 0 | J114: =[1]ATIVO!J115 -> 0 | K114: =[1]ATIVO!K115 -> 3 | M114: =[1]ATIVO!M115 -> 0 | N114: =[1]ATIVO!N115 -> 3 | O114: =[1]ATIVO!O115 -> 3
B115: =[1]ATIVO!B116 -> Coordenação-Geral de Monitoramento da Expansão da Transmissão | C115: =[1]ATIVO!C116 -> 0 | D115: =[1]ATIVO!D116 -> 0 | E115: =[1]ATIVO!E116 -> 0 | F115: =[1]ATIVO!F116 -> 0 | G115: =[1]ATIVO!G116 -> 1 | H115: =[1]ATIVO!H116 -> 2 | I115: =[1]ATIVO!I116 -> 0 | J115: =[1]ATIVO!J116 -> 0 | K115: =[1]ATIVO!K116 -> 3 | M115: =[1]ATIVO!M116 -> 1 | N115: =[1]ATIVO!N116 -> 2 | O115: =[1]ATIVO!O116 -> 3
B116: =[1]ATIVO!B117 -> Coordenação-Geral de Monitoramento da Distribuição | C116: =[1]ATIVO!C117 -> 0 | D116: =[1]ATIVO!D117 -> 1 | E116: =[1]ATIVO!E117 -> 0 | F116: =[1]ATIVO!F117 -> 0 | G116: =[1]ATIVO!G117 -> 0 | H116: =[1]ATIVO!H117 -> 2 | I116: =[1]ATIVO!I117 -> 0 | J116: =[1]ATIVO!J117 -> 0 | K116: =[1]ATIVO!K117 -> 3 | M116: =[1]ATIVO!M117 -> 1 | N116: =[1]ATIVO!N117 -> 2 | O116: =[1]ATIVO!O117 -> 3
B117: =[1]ATIVO!B118 -> Coordenação-Geral de Monitoramento do Desempenho do Sistema Elétrico | C117: =[1]ATIVO!C118 -> 0 | D117: =[1]ATIVO!D118 -> 0 | E117: =[1]ATIVO!E118 -> 1 | F117: =[1]ATIVO!F118 -> 0 | G117: =[1]ATIVO!G118 -> 0 | H117: =[1]ATIVO!H118 -> 6 | I117: =[1]ATIVO!I118 -> 0 | J117: =[1]ATIVO!J118 -> 0 | K117: =[1]ATIVO!K118 -> 7 | M117: =[1]ATIVO!M118 -> 3 | N117: =[1]ATIVO!N118 -> 4 | O117: =[1]ATIVO!O118 -> 7
B119: =[1]ATIVO!B120 -> Departamento de Políticas Sociais e Universalização do Acesso à Energia Elétrica | C119: =[1]ATIVO!C120 -> 0 | D119: =[1]ATIVO!D120 -> 1 | E119: =[1]ATIVO!E120 -> 1 | F119: =[1]ATIVO!F120 -> 1 | G119: =[1]ATIVO!G120 -> 4 | H119: =[1]ATIVO!H120 -> 1 | I119: =[1]ATIVO!I120 -> 0 | J119: =[1]ATIVO!J120 -> 4 | K119: =[1]ATIVO!K120 -> 12 | M119: =[1]ATIVO!M120 -> 2 | N119: =[1]ATIVO!N120 -> 10 | O119: =[1]ATIVO!O120 -> 12
B120: =[1]ATIVO!B121 -> Gabinete do Depto de Políticas Sociais e Universalização do Acesso à Energia Elétrica | C120: =[1]ATIVO!C121 -> 0 | D120: =[1]ATIVO!D121 -> 0 | E120: =[1]ATIVO!E121 -> 1 | F120: =[1]ATIVO!F121 -> 0 | G120: =[1]ATIVO!G121 -> 2 | H120: =[1]ATIVO!H121 -> 0 | I120: =[1]ATIVO!I121 -> 0 | J120: =[1]ATIVO!J121 -> 0 | K120: =[1]ATIVO!K121 -> 3 | M120: =[1]ATIVO!M121 -> 1 | N120: =[1]ATIVO!N121 -> 2 | O120: =[1]ATIVO!O121 -> 3
B121: =[1]ATIVO!B122 -> Coordenação-Geral de Desenvolvimento de Políticas Sociais | C121: =[1]ATIVO!C122 -> 0 | D121: =[1]ATIVO!D122 -> 0 | E121: =[1]ATIVO!E122 -> 0 | F121: =[1]ATIVO!F122 -> 1 | G121: =[1]ATIVO!G122 -> 1 | H121: =[1]ATIVO!H122 -> 1 | I121: =[1]ATIVO!I122 -> 0 | J121: =[1]ATIVO!J122 -> 4 | K121: =[1]ATIVO!K122 -> 7 | M121: =[1]ATIVO!M122 -> 0 | N121: =[1]ATIVO!N122 -> 7 | O121: =[1]ATIVO!O122 -> 7
B122: =[1]ATIVO!B123 -> Coordenação-Geral de Universalização do Acesso à Energia | C122: =[1]ATIVO!C123 -> 0 | D122: =[1]ATIVO!D123 -> 1 | E122: =[1]ATIVO!E123 -> 0 | F122: =[1]ATIVO!F123 -> 0 | G122: =[1]ATIVO!G123 -> 1 | H122: =[1]ATIVO!H123 -> 0 | I122: =[1]ATIVO!I123 -> 0 | J122: =[1]ATIVO!J123 -> 0 | K122: =[1]ATIVO!K123 -> 2 | M122: =[1]ATIVO!M123 -> 1 | N122: =[1]ATIVO!N123 -> 1 | O122: =[1]ATIVO!O123 -> 2
B123: =[1]ATIVO!B124 -> TOTAL | C123: =[1]ATIVO!C124 -> 0 | D123: =[1]ATIVO!D124 -> 2 | E123: =[1]ATIVO!E124 -> 3 | F123: =[1]ATIVO!F124 -> 4 | G123: =[1]ATIVO!G124 -> 15 | H123: =[1]ATIVO!H124 -> 19 | I123: =[1]ATIVO!I124 -> 0 | J123: =[1]ATIVO!J124 -> 9 | K123: =[1]ATIVO!K124 -> 52 | L123: =[1]ATIVO!L124 -> 52 | M123: =[1]ATIVO!M124 -> 18 | N123: =[1]ATIVO!N124 -> 34 | O123: =[1]ATIVO!O124 -> 52 | P123: =[1]ATIVO!P124 -> 52
A125: =[1]ATIVO!A126 -> Área | B125: =[1]ATIVO!B126 -> SECRETARIA DE PLANEJAMENTO E DESENVOLVIMENTO ENERGÉTICO | C125: =[1]ATIVO!C126 -> Natureza Especial | D125: =[1]ATIVO!D126 -> Ativo Permanente | E125: =[1]ATIVO!E126 -> Requisitado Órgãos | F125: =[1]ATIVO!F126 -> Requisitado Empresas | G125: =[1]ATIVO!G126 -> Sem Vínculo | H125: =[1]ATIVO!H126 -> Exercício Descentralizado | I125: =[1]ATIVO!I126 -> Contrato Temporário | J125: =[1]ATIVO!J126 -> Anistiado | K125: =[1]ATIVO!K126 -> Total | L125: =[1]ATIVO!L126 -> Total Área | M125: =[1]ATIVO!M126 -> Sexo Feminino | N125: =[1]ATIVO!N126 -> Sexo Masculino | O125: =[1]ATIVO!O126 -> Total | P125: =[1]ATIVO!P126 -> Total Área
A126: =[1]ATIVO!A127 -> FINALÍSTICA | B126: =[1]ATIVO!B127 -> Gabinete da Secretaria de Planejamento e Desenvolvimento Energético | C126: =[1]ATIVO!C127 -> 0 | D126: =[1]ATIVO!D127 -> 6 | E126: =[1]ATIVO!E127 -> 1 | F126: =[1]ATIVO!F127 -> 0 | G126: =[1]ATIVO!G127 -> 5 | H126: =[1]ATIVO!H127 -> 0 | I126: =[1]ATIVO!I127 -> 0 | J126: =[1]ATIVO!J127 -> 1 | K126: =[1]ATIVO!K127 -> 13 | L126: =[1]ATIVO!L127 -> 45 | M126: =[1]ATIVO!M127 -> 8 | N126: =[1]ATIVO!N127 -> 5 | O126: =[1]ATIVO!O127 -> 13 | P126: =[1]ATIVO!P127 -> 45
B128: =[1]ATIVO!B129 -> Departamento de Planejamento Energético | C128: =[1]ATIVO!C129 -> 0 | D128: =[1]ATIVO!D129 -> 1 | E128: =[1]ATIVO!E129 -> 3 | F128: =[1]ATIVO!F129 -> 0 | G128: =[1]ATIVO!G129 -> 1 | H128: =[1]ATIVO!H129 -> 5 | I128: =[1]ATIVO!I129 -> 0 | J128: =[1]ATIVO!J129 -> 2 | K128: =[1]ATIVO!K129 -> 12 | M128: =[1]ATIVO!M129 -> 4 | N128: =[1]ATIVO!N129 -> 8 | O128: =[1]ATIVO!O129 -> 12
B129: =[1]ATIVO!B130 -> Gabinete Departamento de Planejamento Energético | C129: =[1]ATIVO!C130 -> 0 | D129: =[1]ATIVO!D130 -> 1 | E129: =[1]ATIVO!E130 -> 2 | F129: =[1]ATIVO!F130 -> 0 | G129: =[1]ATIVO!G130 -> 0 | H129: =[1]ATIVO!H130 -> 1 | I129: =[1]ATIVO!I130 -> 0 | J129: =[1]ATIVO!J130 -> 2 | K129: =[1]ATIVO!K130 -> 6 | M129: =[1]ATIVO!M130 -> 3 | N129: =[1]ATIVO!N130 -> 3 | O129: =[1]ATIVO!O130 -> 6
B130: =[1]ATIVO!B131 -> Coordenação-Geral de Planejamento da Transmissão | C130: =[1]ATIVO!C131 -> 0 | D130: =[1]ATIVO!D131 -> 0 | E130: =[1]ATIVO!E131 -> 0 | F130: =[1]ATIVO!F131 -> 0 | G130: =[1]ATIVO!G131 -> 1 | H130: =[1]ATIVO!H131 -> 3 | I130: =[1]ATIVO!I131 -> 0 | J130: =[1]ATIVO!J131 -> 0 | K130: =[1]ATIVO!K131 -> 4 | M130: =[1]ATIVO!M131 -> 0 | N130: =[1]ATIVO!N131 -> 4 | O130: =[1]ATIVO!O131 -> 4
B131: =[1]ATIVO!B132 -> Coordenação-Geral de Planejamento da Geração | C131: =[1]ATIVO!C132 -> 0 | D131: =[1]ATIVO!D132 -> 0 | E131: =[1]ATIVO!E132 -> 0 | F131: =[1]ATIVO!F132 -> 0 | G131: =[1]ATIVO!G132 -> 0 | H131: =[1]ATIVO!H132 -> 1 | I131: =[1]ATIVO!I132 -> 0 | J131: =[1]ATIVO!J132 -> 0 | K131: =[1]ATIVO!K132 -> 1 | M131: =[1]ATIVO!M132 -> 1 | N131: =[1]ATIVO!N132 -> 0 | O131: =[1]ATIVO!O132 -> 1
B132: =[1]ATIVO!B133 -> Coordenação-Geral de Planejamento da Expansão Energética | C132: =[1]ATIVO!C133 -> 0 | D132: =[1]ATIVO!D133 -> 0 | E132: =[1]ATIVO!E133 -> 1 | F132: =[1]ATIVO!F133 -> 0 | G132: =[1]ATIVO!G133 -> 0 | H132: =[1]ATIVO!H133 -> 0 | I132: =[1]ATIVO!I133 -> 0 | J132: =[1]ATIVO!J133 -> 0 | K132: =[1]ATIVO!K133 -> 1 | M132: =[1]ATIVO!M133 -> 0 | N132: =[1]ATIVO!N133 -> 1 | O132: =[1]ATIVO!O133 -> 1
B134: =[1]ATIVO!B135 -> Departamento de Desenvolvimento Energético | C134: =[1]ATIVO!C135 -> 0 | D134: =[1]ATIVO!D135 -> 0 | E134: =[1]ATIVO!E135 -> 2 | F134: =[1]ATIVO!F135 -> 0 | G134: =[1]ATIVO!G135 -> 2 | H134: =[1]ATIVO!H135 -> 4 | I134: =[1]ATIVO!I135 -> 0 | J134: =[1]ATIVO!J135 -> 0 | K134: =[1]ATIVO!K135 -> 8 | M134: =[1]ATIVO!M135 -> 4 | N134: =[1]ATIVO!N135 -> 4 | O134: =[1]ATIVO!O135 -> 8
B135: =[1]ATIVO!B136 -> Gabinete Departamento de Desenvolvimento Energético | C135: =[1]ATIVO!C136 -> 0 | D135: =[1]ATIVO!D136 -> 0 | E135: =[1]ATIVO!E136 -> 1 | F135: =[1]ATIVO!F136 -> 0 | G135: =[1]ATIVO!G136 -> 2 | H135: =[1]ATIVO!H136 -> 1 | I135: =[1]ATIVO!I136 -> 0 | J135: =[1]ATIVO!J136 -> 0 | K135: =[1]ATIVO!K136 -> 4 | M135: =[1]ATIVO!M136 -> 3 | N135: =[1]ATIVO!N136 -> 1 | O135: =[1]ATIVO!O136 -> 4
B136: =[1]ATIVO!B137 -> Coordenação-Geral de Eficiência Energética | C136: =[1]ATIVO!C137 -> 0 | D136: =[1]ATIVO!D137 -> 0 | E136: =[1]ATIVO!E137 -> 1 | F136: =[1]ATIVO!F137 -> 0 | G136: =[1]ATIVO!G137 -> 0 | H136: =[1]ATIVO!H137 -> 0 | I136: =[1]ATIVO!I137 -> 0 | J136: =[1]ATIVO!J137 -> 0 | K136: =[1]ATIVO!K137 -> 1 | M136: =[1]ATIVO!M137 -> 1 | N136: =[1]ATIVO!N137 -> 0 | O136: =[1]ATIVO!O137 -> 1
B137: =[1]ATIVO!B138 -> Coordenação-Geral de Sustentabilidade Ambiental do Setor Energético | C137: =[1]ATIVO!C138 -> 0 | D137: =[1]ATIVO!D138 -> 0 | E137: =[1]ATIVO!E138 -> 0 | F137: =[1]ATIVO!F138 -> 0 | G137: =[1]ATIVO!G138 -> 0 | H137: =[1]ATIVO!H138 -> 2 | I137: =[1]ATIVO!I138 -> 0 | J137: =[1]ATIVO!J138 -> 0 | K137: =[1]ATIVO!K138 -> 2 | M137: =[1]ATIVO!M138 -> 0 | N137: =[1]ATIVO!N138 -> 2 | O137: =[1]ATIVO!O138 -> 2
B138: =[1]ATIVO!B139 -> Coordenação-Geral de Fontes Alternativas | C138: =[1]ATIVO!C139 -> 0 | D138: =[1]ATIVO!D139 -> 0 | E138: =[1]ATIVO!E139 -> 0 | F138: =[1]ATIVO!F139 -> 0 | G138: =[1]ATIVO!G139 -> 0 | H138: =[1]ATIVO!H139 -> 1 | I138: =[1]ATIVO!I139 -> 0 | J138: =[1]ATIVO!J139 -> 0 | K138: =[1]ATIVO!K139 -> 1 | M138: =[1]ATIVO!M139 -> 0 | N138: =[1]ATIVO!N139 -> 1 | O138: =[1]ATIVO!O139 -> 1
B140: =[1]ATIVO!B141 -> Departamento e Outorgas de Concessões, Permissões e Autorizações | C140: =[1]ATIVO!C141 -> 0 | D140: =[1]ATIVO!D141 -> 0 | E140: =[1]ATIVO!E141 -> 0 | F140: =[1]ATIVO!F141 -> 0 | G140: =[1]ATIVO!G141 -> 1 | H140: =[1]ATIVO!H141 -> 5 | I140: =[1]ATIVO!I141 -> 0 | J140: =[1]ATIVO!J141 -> 1 | K140: =[1]ATIVO!K141 -> 7 | M140: =[1]ATIVO!M141 -> 1 | N140: =[1]ATIVO!N141 -> 6 | O140: =[1]ATIVO!O141 -> 7
B141: =[1]ATIVO!B142 -> Gabinete Departamento e Outorgas de Concessões, Permissões e Autorizações | C141: =[1]ATIVO!C142 -> 0 | D141: =[1]ATIVO!D142 -> 0 | E141: =[1]ATIVO!E142 -> 0 | F141: =[1]ATIVO!F142 -> 0 | G141: =[1]ATIVO!G142 -> 1 | H141: =[1]ATIVO!H142 -> 1 | I141: =[1]ATIVO!I142 -> 0 | J141: =[1]ATIVO!J142 -> 1 | K141: =[1]ATIVO!K142 -> 3 | M141: =[1]ATIVO!M142 -> 1 | N141: =[1]ATIVO!N142 -> 2 | O141: =[1]ATIVO!O142 -> 3
B142: =[1]ATIVO!B143 -> Coordenação-Geral de Outorgas de Geração de Energia Elétrica | C142: =[1]ATIVO!C143 -> 0 | D142: =[1]ATIVO!D143 -> 0 | E142: =[1]ATIVO!E143 -> 0 | F142: =[1]ATIVO!F143 -> 0 | G142: =[1]ATIVO!G143 -> 0 | H142: =[1]ATIVO!H143 -> 2 | I142: =[1]ATIVO!I143 -> 0 | J142: =[1]ATIVO!J143 -> 0 | K142: =[1]ATIVO!K143 -> 2 | M142: =[1]ATIVO!M143 -> 0 | N142: =[1]ATIVO!N143 -> 2 | O142: =[1]ATIVO!O143 -> 2
B143: =[1]ATIVO!B144 -> Coordenação-Geral de Outorgas de Serviços de Transmissão e Distribuição de Energia | C143: =[1]ATIVO!C144 -> 0 | D143: =[1]ATIVO!D144 -> 0 | E143: =[1]ATIVO!E144 -> 0 | F143: =[1]ATIVO!F144 -> 0 | G143: =[1]ATIVO!G144 -> 0 | H143: =[1]ATIVO!H144 -> 2 | I143: =[1]ATIVO!I144 -> 0 | J143: =[1]ATIVO!J144 -> 0 | K143: =[1]ATIVO!K144 -> 2 | M143: =[1]ATIVO!M144 -> 0 | N143: =[1]ATIVO!N144 -> 2 | O143: =[1]ATIVO!O144 -> 2
B145: =[1]ATIVO!B146 -> Departamento de Informações e Estudos Energéticos | C145: =[1]ATIVO!C146 -> 0 | D145: =[1]ATIVO!D146 -> 0 | E145: =[1]ATIVO!E146 -> 1 | F145: =[1]ATIVO!F146 -> 0 | G145: =[1]ATIVO!G146 -> 3 | H145: =[1]ATIVO!H146 -> 1 | I145: =[1]ATIVO!I146 -> 0 | J145: =[1]ATIVO!J146 -> 0 | K145: =[1]ATIVO!K146 -> 5 | M145: =[1]ATIVO!M146 -> 2 | N145: =[1]ATIVO!N146 -> 3 | O145: =[1]ATIVO!O146 -> 5
B146: =[1]ATIVO!B147 -> Gabinete Departamento de Informações e Estudos Energéticos | C146: =[1]ATIVO!C147 -> 0 | D146: =[1]ATIVO!D147 -> 0 | E146: =[1]ATIVO!E147 -> 1 | F146: =[1]ATIVO!F147 -> 0 | G146: =[1]ATIVO!G147 -> 1 | H146: =[1]ATIVO!H147 -> 0 | I146: =[1]ATIVO!I147 -> 0 | J146: =[1]ATIVO!J147 -> 0 | K146: =[1]ATIVO!K147 -> 2 | M146: =[1]ATIVO!M147 -> 1 | N146: =[1]ATIVO!N147 -> 1 | O146: =[1]ATIVO!O147 -> 2
B147: =[1]ATIVO!B148 -> Coordenação-Geral de Informações Energéticas | C147: =[1]ATIVO!C148 -> 0 | D147: =[1]ATIVO!D148 -> 0 | E147: =[1]ATIVO!E148 -> 0 | F147: =[1]ATIVO!F148 -> 0 | G147: =[1]ATIVO!G148 -> 2 | H147: =[1]ATIVO!H148 -> 1 | I147: =[1]ATIVO!I148 -> 0 | J147: =[1]ATIVO!J148 -> 0 | K147: =[1]ATIVO!K148 -> 3 | M147: =[1]ATIVO!M148 -> 1 | N147: =[1]ATIVO!N148 -> 2 | O147: =[1]ATIVO!O148 -> 3
B148: =[1]ATIVO!B149 -> TOTAL | C148: =[1]ATIVO!C149 -> 0 | D148: =[1]ATIVO!D149 -> 7 | E148: =[1]ATIVO!E149 -> 7 | F148: =[1]ATIVO!F149 -> 0 | G148: =[1]ATIVO!G149 -> 12 | H148: =[1]ATIVO!H149 -> 15 | I148: =[1]ATIVO!I149 -> 0 | J148: =[1]ATIVO!J149 -> 4 | K148: =[1]ATIVO!K149 -> 45 | L148: =[1]ATIVO!L149 -> 45 | M148: =[1]ATIVO!M149 -> 19 | N148: =[1]ATIVO!N149 -> 26 | O148: =[1]ATIVO!O149 -> 45 | P148: =[1]ATIVO!P149 -> 45
A150: =[1]ATIVO!A151 -> Área | B150: =[1]ATIVO!B151 -> SECRETARIA DE PETRÓLEO, GÁS NATURAL E BIOCOMBUSTÍVEIS | C150: =[1]ATIVO!C151 -> Natureza Especial | D150: =[1]ATIVO!D151 -> Ativo Permanente | E150: =[1]ATIVO!E151 -> Requisitado Órgãos | F150: =[1]ATIVO!F151 -> Requisitado Empresas | G150: =[1]ATIVO!G151 -> Sem Vínculo | H150: =[1]ATIVO!H151 -> Exercício Descentralizado | I150: =[1]ATIVO!I151 -> Contrato Temporário | J150: =[1]ATIVO!J151 -> Anistiado | K150: =[1]ATIVO!K151 -> Total | L150: =[1]ATIVO!L151 -> Total Área | M150: =[1]ATIVO!M151 -> Sexo Feminino | N150: =[1]ATIVO!N151 -> Sexo Masculino | O150: =[1]ATIVO!O151 -> Total | P150: =[1]ATIVO!P151 -> Total Área
A151: =[1]ATIVO!A152 -> FINALÍSTICA | B151: =[1]ATIVO!B152 -> Gabinete da Secretaria de Petróleo, Gás Natural e Biocombustíveis | C151: =[1]ATIVO!C152 -> 0 | D151: =[1]ATIVO!D152 -> 2 | E151: =[1]ATIVO!E152 -> 3 | F151: =[1]ATIVO!F152 -> 0 | G151: =[1]ATIVO!G152 -> 4 | H151: =[1]ATIVO!H152 -> 1 | I151: =[1]ATIVO!I152 -> 0 | J151: =[1]ATIVO!J152 -> 0 | K151: =[1]ATIVO!K152 -> 10 | L151: =[1]ATIVO!L152 -> 32 | M151: =[1]ATIVO!M152 -> 5 | N151: =[1]ATIVO!N152 -> 5 | O151: =[1]ATIVO!O152 -> 10 | P151: =[1]ATIVO!P152 -> 32
M152: =[1]ATIVO!M153 -> 0
B153: =[1]ATIVO!B154 -> Departamento de Política de Exploração e Produção de Petróleo e Gás Natural | C153: =[1]ATIVO!C154 -> 0 | D153: =[1]ATIVO!D154 -> 0 | E153: =[1]ATIVO!E154 -> 3 | F153: =[1]ATIVO!F154 -> 0 | G153: =[1]ATIVO!G154 -> 1 | H153: =[1]ATIVO!H154 -> 2 | I153: =[1]ATIVO!I154 -> 0 | J153: =[1]ATIVO!J154 -> 0 | K153: =[1]ATIVO!K154 -> 6 | M153: =[1]ATIVO!M154 -> 0 | N153: =[1]ATIVO!N154 -> 6 | O153: =[1]ATIVO!O154 -> 6
B154: =[1]ATIVO!B155 -> Gabinete Departamento de Política de Exploração e Produção de Petróleo e Gás Natural | C154: =[1]ATIVO!C155 -> 0 | D154: =[1]ATIVO!D155 -> 0 | E154: =[1]ATIVO!E155 -> 2 | F154: =[1]ATIVO!F155 -> 0 | G154: =[1]ATIVO!G155 -> 0 | H154: =[1]ATIVO!H155 -> 2 | I154: =[1]ATIVO!I155 -> 0 | J154: =[1]ATIVO!J155 -> 0 | K154: =[1]ATIVO!K155 -> 4 | M154: =[1]ATIVO!M155 -> 0 | N154: =[1]ATIVO!N155 -> 4 | O154: =[1]ATIVO!O155 -> 4
B155: =[1]ATIVO!B156 -> Coordenação-Geral de Reserva, Exploração e Produção de Petróleo e Gás Natural | C155: =[1]ATIVO!C156 -> 0 | D155: =[1]ATIVO!D156 -> 0 | E155: =[1]ATIVO!E156 -> 1 | F155: =[1]ATIVO!F156 -> 0 | G155: =[1]ATIVO!G156 -> 0 | H155: =[1]ATIVO!H156 -> 0 | I155: =[1]ATIVO!I156 -> 0 | J155: =[1]ATIVO!J156 -> 0 | K155: =[1]ATIVO!K156 -> 1 | M155: =[1]ATIVO!M156 -> 0 | N155: =[1]ATIVO!N156 -> 1 | O155: =[1]ATIVO!O156 -> 1
B156: =[1]ATIVO!B157 -> Coordenação-Geral de Política de Concessão de Blocos Exploratórios | C156: =[1]ATIVO!C157 -> 0 | D156: =[1]ATIVO!D157 -> 0 | E156: =[1]ATIVO!E157 -> 0 | F156: =[1]ATIVO!F157 -> 0 | G156: =[1]ATIVO!G157 -> 1 | H156: =[1]ATIVO!H157 -> 0 | I156: =[1]ATIVO!I157 -> 0 | J156: =[1]ATIVO!J157 -> 0 | K156: =[1]ATIVO!K157 -> 1 | M156: =[1]ATIVO!M157 -> 0 | N156: =[1]ATIVO!N157 -> 1 | O156: =[1]ATIVO!O157 -> 1
B158: =[1]ATIVO!B159 -> Departamento de Gás Natural | C158: =[1]ATIVO!C159 -> 0 | D158: =[1]ATIVO!D159 -> 0 | E158: =[1]ATIVO!E159 -> 1 | F158: =[1]ATIVO!F159 -> 0 | G158: =[1]ATIVO!G159 -> 0 | H158: =[1]ATIVO!H159 -> 5 | I158: =[1]ATIVO!I159 -> 0 | J158: =[1]ATIVO!J159 -> 0 | K158: =[1]ATIVO!K159 -> 6 | M158: =[1]ATIVO!M159 -> 2 | N158: =[1]ATIVO!N159 -> 4 | O158: =[1]ATIVO!O159 -> 6
B159: =[1]ATIVO!B160 -> Gabinete Departamento de Gás Natural | C159: =[1]ATIVO!C160 -> 0 | D159: =[1]ATIVO!D160 -> 0 | E159: =[1]ATIVO!E160 -> 1 | F159: =[1]ATIVO!F160 -> 0 | G159: =[1]ATIVO!G160 -> 0 | H159: =[1]ATIVO!H160 -> 3 | I159: =[1]ATIVO!I160 -> 0 | J159: =[1]ATIVO!J160 -> 0 | K159: =[1]ATIVO!K160 -> 4 | M159: =[1]ATIVO!M160 -> 1 | N159: =[1]ATIVO!N160 -> 3 | O159: =[1]ATIVO!O160 -> 4
B160: =[1]ATIVO!B161 -> Coordenação-Geral de Acompanhamento, Desenvolvimento de Mercado e Produção | C160: =[1]ATIVO!C161 -> 0 | D160: =[1]ATIVO!D161 -> 0 | E160: =[1]ATIVO!E161 -> 0 | F160: =[1]ATIVO!F161 -> 0 | G160: =[1]ATIVO!G161 -> 0 | H160: =[1]ATIVO!H161 -> 1 | I160: =[1]ATIVO!I161 -> 0 | J160: =[1]ATIVO!J161 -> 0 | K160: =[1]ATIVO!K161 -> 1 | M160: =[1]ATIVO!M161 -> 1 | N160: =[1]ATIVO!N161 -> 0 | O160: =[1]ATIVO!O161 -> 1
B161: =[1]ATIVO!B162 -> Coordenação-Geral de Processamento de Infraestrutura e Logística | C161: =[1]ATIVO!C162 -> 0 | D161: =[1]ATIVO!D162 -> 0 | E161: =[1]ATIVO!E162 -> 0 | F161: =[1]ATIVO!F162 -> 0 | G161: =[1]ATIVO!G162 -> 0 | H161: =[1]ATIVO!H162 -> 1 | I161: =[1]ATIVO!I162 -> 0 | J161: =[1]ATIVO!J162 -> 0 | K161: =[1]ATIVO!K162 -> 1 | M161: =[1]ATIVO!M162 -> 0 | N161: =[1]ATIVO!N162 -> 1 | O161: =[1]ATIVO!O162 -> 1
B163: =[1]ATIVO!B164 -> Departamento de Combustíveis Derivados de Petróleo | C163: =[1]ATIVO!C164 -> 0 | D163: =[1]ATIVO!D164 -> 0 | E163: =[1]ATIVO!E164 -> 2 | F163: =[1]ATIVO!F164 -> 0 | G163: =[1]ATIVO!G164 -> 0 | H163: =[1]ATIVO!H164 -> 3 | I163: =[1]ATIVO!I164 -> 0 | J163: =[1]ATIVO!J164 -> 0 | K163: =[1]ATIVO!K164 -> 5 | M163: =[1]ATIVO!M164 -> 2 | N163: =[1]ATIVO!N164 -> 3 | O163: =[1]ATIVO!O164 -> 5
B164: =[1]ATIVO!B165 -> Gabinete Departamento de Combustíveis Derivados de Petróleo | C164: =[1]ATIVO!C165 -> 0 | D164: =[1]ATIVO!D165 -> 0 | E164: =[1]ATIVO!E165 -> 1 | F164: =[1]ATIVO!F165 -> 0 | G164: =[1]ATIVO!G165 -> 0 | H164: =[1]ATIVO!H165 -> 2 | I164: =[1]ATIVO!I165 -> 0 | J164: =[1]ATIVO!J165 -> 0 | K164: =[1]ATIVO!K165 -> 3 | M164: =[1]ATIVO!M165 -> 1 | N164: =[1]ATIVO!N165 -> 2 | O164: =[1]ATIVO!O165 -> 3
B165: =[1]ATIVO!B166 -> Coordenação-Geral de Acompanhamento do Mercado | C165: =[1]ATIVO!C166 -> 0 | D165: =[1]ATIVO!D166 -> 0 | E165: =[1]ATIVO!E166 -> 0 | F165: =[1]ATIVO!F166 -> 0 | G165: =[1]ATIVO!G166 -> 0 | H165: =[1]ATIVO!H166 -> 1 | I165: =[1]ATIVO!I166 -> 0 | J165: =[1]ATIVO!J166 -> 0 | K165: =[1]ATIVO!K166 -> 1 | M165: =[1]ATIVO!M166 -> 0 | N165: =[1]ATIVO!N166 -> 1 | O165: =[1]ATIVO!O166 -> 1
B166: =[1]ATIVO!B167 -> Coordenação-Geral de Refino, Abastecimento e Infraestrutura | C166: =[1]ATIVO!C167 -> 0 | D166: =[1]ATIVO!D167 -> 0 | E166: =[1]ATIVO!E167 -> 1 | F166: =[1]ATIVO!F167 -> 0 | G166: =[1]ATIVO!G167 -> 0 | H166: =[1]ATIVO!H167 -> 0 | I166: =[1]ATIVO!I167 -> 0 | J166: =[1]ATIVO!J167 -> 0 | K166: =[1]ATIVO!K167 -> 1 | M166: =[1]ATIVO!M167 -> 1 | N166: =[1]ATIVO!N167 -> 0 | O166: =[1]ATIVO!O167 -> 1
B168: =[1]ATIVO!B169 -> Departamento de Biocombustíveis | C168: =[1]ATIVO!C169 -> 0 | D168: =[1]ATIVO!D169 -> 0 | E168: =[1]ATIVO!E169 -> 0 | F168: =[1]ATIVO!F169 -> 0 | G168: =[1]ATIVO!G169 -> 0 | H168: =[1]ATIVO!H169 -> 5 | I168: =[1]ATIVO!I169 -> 0 | J168: =[1]ATIVO!J169 -> 0 | K168: =[1]ATIVO!K169 -> 5 | M168: =[1]ATIVO!M169 -> 0 | N168: =[1]ATIVO!N169 -> 5 | O168: =[1]ATIVO!O169 -> 5
B169: =[1]ATIVO!B170 -> Gabinete Departamento de Biocombustíveis | C169: =[1]ATIVO!C170 -> 0 | D169: =[1]ATIVO!D170 -> 0 | E169: =[1]ATIVO!E170 -> 0 | F169: =[1]ATIVO!F170 -> 0 | G169: =[1]ATIVO!G170 -> 0 | H169: =[1]ATIVO!H170 -> 2 | I169: =[1]ATIVO!I170 -> 0 | J169: =[1]ATIVO!J170 -> 0 | K169: =[1]ATIVO!K170 -> 2 | M169: =[1]ATIVO!M170 -> 0 | N169: =[1]ATIVO!N170 -> 2 | O169: =[1]ATIVO!O170 -> 2
B170: =[1]ATIVO!B171 -> Coordenação-Geral de Biodiesel e Outros Biocombustíveis | C170: =[1]ATIVO!C171 -> 0 | D170: =[1]ATIVO!D171 -> 0 | E170: =[1]ATIVO!E171 -> 0 | F170: =[1]ATIVO!F171 -> 0 | G170: =[1]ATIVO!G171 -> 0 | H170: =[1]ATIVO!H171 -> 2 | I170: =[1]ATIVO!I171 -> 0 | J170: =[1]ATIVO!J171 -> 0 | K170: =[1]ATIVO!K171 -> 2 | M170: =[1]ATIVO!M171 -> 0 | N170: =[1]ATIVO!N171 -> 2 | O170: =[1]ATIVO!O171 -> 2
B171: =[1]ATIVO!B172 -> Coordenação-Geral de Etanol | C171: =[1]ATIVO!C172 -> 0 | D171: =[1]ATIVO!D172 -> 0 | E171: =[1]ATIVO!E172 -> 0 | F171: =[1]ATIVO!F172 -> 0 | G171: =[1]ATIVO!G172 -> 0 | H171: =[1]ATIVO!H172 -> 1 | I171: =[1]ATIVO!I172 -> 0 | J171: =[1]ATIVO!J172 -> 0 | K171: =[1]ATIVO!K172 -> 1 | M171: =[1]ATIVO!M172 -> 0 | N171: =[1]ATIVO!N172 -> 1 | O171: =[1]ATIVO!O172 -> 1
B172: =[1]ATIVO!B173 -> TOTAL | C172: =[1]ATIVO!C173 -> 0 | D172: =[1]ATIVO!D173 -> 2 | E172: =[1]ATIVO!E173 -> 9 | F172: =[1]ATIVO!F173 -> 0 | G172: =[1]ATIVO!G173 -> 5 | H172: =[1]ATIVO!H173 -> 16 | I172: =[1]ATIVO!I173 -> 0 | J172: =[1]ATIVO!J173 -> 0 | K172: =[1]ATIVO!K173 -> 32 | L172: =[1]ATIVO!L173 -> 32 | M172: =[1]ATIVO!M173 -> 9 | N172: =[1]ATIVO!N173 -> 23 | O172: =[1]ATIVO!O173 -> 32 | P172: =[1]ATIVO!P173 -> 32
A174: =[1]ATIVO!A177 -> Área | B174: =[1]ATIVO!B177 -> ESCRITÓRIO RIO DE JANEIRO/RJ | C174: =[1]ATIVO!C177 -> Natureza Especial | D174: =[1]ATIVO!D177 -> Ativo Permanente | E174: =[1]ATIVO!E177 -> Requisitado Órgãos | F174: =[1]ATIVO!F177 -> Requisitado Empresas | G174: =[1]ATIVO!G177 -> Sem Vínculo | H174: =[1]ATIVO!H177 -> Exercício Descentralizado | I174: =[1]ATIVO!I177 -> Contrato Temporário | J174: =[1]ATIVO!J177 -> Anistiado | K174: =[1]ATIVO!K177 -> Total | L174: =[1]ATIVO!L177 -> Total Área | M174: =[1]ATIVO!M177 -> Sexo Feminino | N174: =[1]ATIVO!N177 -> Sexo Masculino | O174: =[1]ATIVO!O177 -> Total | P174: =[1]ATIVO!P177 -> Total Área
A175: =[1]ATIVO!A178 -> MEIO | B175: =[1]ATIVO!B178 -> ESCRITÓRIO RIO DE JANEIRO/RJ | C175: =[1]ATIVO!C178 -> 0 | D175: =[1]ATIVO!D178 -> 0 | E175: =[1]ATIVO!E178 -> 11 | F175: =[1]ATIVO!F178 -> 4 | G175: =[1]ATIVO!G178 -> 0 | H175: =[1]ATIVO!H178 -> 0 | I175: =[1]ATIVO!I178 -> 0 | J175: =[1]ATIVO!J178 -> 4 | K175: =[1]ATIVO!K178 -> 19 | L175: =[1]ATIVO!L178 -> 19 | M175: =[1]ATIVO!M178 -> 1 | N175: =[1]ATIVO!N178 -> 3 | O175: =[1]ATIVO!O178 -> 4 | P175: =[1]ATIVO!P178 -> 4
B176: =[1]ATIVO!B179 -> TOTAL | C176: =[1]ATIVO!C179 -> 0 | D176: =[1]ATIVO!D179 -> 0 | E176: =[1]ATIVO!E179 -> 11 | F176: =[1]ATIVO!F179 -> 4 | G176: =[1]ATIVO!G179 -> 0 | H176: =[1]ATIVO!H179 -> 0 | I176: =[1]ATIVO!I179 -> 0 | J176: =[1]ATIVO!J179 -> 4 | K176: =[1]ATIVO!K179 -> 19 | L176: =[1]ATIVO!L179 -> 19 | M176: =[1]ATIVO!M179 -> 1 | N176: =[1]ATIVO!N179 -> 3 | O176: =[1]ATIVO!O179 -> 4 | P176: =[1]ATIVO!P179 -> 4

Sheet PQDEXMMEGRAF
A1: GRÁFICOS -QUADROS DETALHADOS DE PESSOAL ATIVO EM EXERCÍCIO NO MME

Sheet PQESTAGIO
A4: =[1]CONTROLEVAGASEST!B15 -> VAGAS VÁLIDAS | D4: =[1]CONTROLEVAGASEST!E15 -> DEFINIÇÃO DE VAGAS POR UNIDADE | M4: =[1]CONTROLEVAGASEST!N15 -> QUANTITATIVO E OCUPAÇÃO DE VAGAS ATUAL
A5: =[1]CONTROLEVAGASEST!B17 -> Descricao | B5: =[1]CONTROLEVAGASEST!C17 -> Quantidade | D5: =[1]CONTROLEVAGASEST!E17 -> Unidade | E5: =[1]CONTROLEVAGASEST!F17 -> Quantidade Definida | F5: =[1]CONTROLEVAGASEST!G17 -> Nível Médo | H5: =[1]CONTROLEVAGASEST!I17 -> Nível Superior | J5: =[1]CONTROLEVAGASEST!K17 -> Pós-Graduação | M5: =[1]CONTROLEVAGASEST!N17 -> Nível | N5: =[1]CONTROLEVAGASEST!O17 -> Quantitativo Vagas Válidas
A6: =[1]CONTROLEVAGASEST!B18 -> ATIVO PERMANENTE | B6: =[1]CONTROLEVAGASEST!C18 -> 137 | F6: =[1]CONTROLEVAGASEST!G18 -> Definição | G6: =[1]CONTROLEVAGASEST!H18 -> Ocupação | H6: =[1]CONTROLEVAGASEST!I18 -> Definição | I6: =[1]CONTROLEVAGASEST!J18 -> Ocupação | J6: =[1]CONTROLEVAGASEST!K18 -> Definição | K6: =[1]CONTROLEVAGASEST!L18 -> Ocupação | N6: =[1]CONTROLEVAGASEST!O18 -> Previsto | O6: =[1]CONTROLEVAGASEST!P18 -> Preenchido | P6: =[1]CONTROLEVAGASEST!Q18 -> Vago
A7: =[1]CONTROLEVAGASEST!B19 -> REQUISITADO EMPRESAS | B7: =[1]CONTROLEVAGASEST!C19 -> 5 | D7: =[1]CONTROLEVAGASEST!E19 -> GM/GABINETE | E7: =[1]CONTROLEVAGASEST!F19 -> 3 | F7: =[1]CONTROLEVAGASEST!G19 -> 1 | G7: =[1]CONTROLEVAGASEST!H19 -> 0 | H7: =[1]CONTROLEVAGASEST!I19 -> 2 | I7: =[1]CONTROLEVAGASEST!J19 -> 3 | J7: =[1]CONTROLEVAGASEST!K19 -> 0 | K7: =[1]CONTROLEVAGASEST!L19 -> 0 | M7: =[1]CONTROLEVAGASEST!N19 -> Médio | N7: =[1]CONTROLEVAGASEST!O19 -> 8 | O7: =[1]CONTROLEVAGASEST!P19 -> 6 | P7: =[1]CONTROLEVAGASEST!Q19 -> 2
A8: =[1]CONTROLEVAGASEST!B20 -> NOMEADO CARGO COMISÃO | B8: =[1]CONTROLEVAGASEST!C20 -> 119 | D8: =[1]CONTROLEVAGASEST!E20 -> GM/ASCOM | E8: =[1]CONTROLEVAGASEST!F20 -> 4 | F8: =[1]CONTROLEVAGASEST!G20 -> 0 | G8: =[1]CONTROLEVAGASEST!H20 -> 0 | H8: =[1]CONTROLEVAGASEST!I20 -> 4 | I8: =[1]CONTROLEVAGASEST!J20 -> 4 | J8: =[1]CONTROLEVAGASEST!K20 -> 0 | K8: =[1]CONTROLEVAGASEST!L20 -> 0 | M8: =[1]CONTROLEVAGASEST!N20 -> Superior Graduação | N8: =[1]CONTROLEVAGASEST!O20 -> 60 | O8: =[1]CONTROLEVAGASEST!P20 -> 34 | P8: =[1]CONTROLEVAGASEST!Q20 -> 26
A9: =[1]CONTROLEVAGASEST!B21 -> NATUREZA ESPECIAL | B9: =[1]CONTROLEVAGASEST!C21 -> 1 | D9: =[1]CONTROLEVAGASEST!E21 -> GM/ASPAR | E9: =[1]CONTROLEVAGASEST!F21 -> 3 | F9: =[1]CONTROLEVAGASEST!G21 -> 1 | G9: =[1]CONTROLEVAGASEST!H21 -> 1 | H9: =[1]CONTROLEVAGASEST!I21 -> 2 | I9: =[1]CONTROLEVAGASEST!J21 -> 2 | J9: =[1]CONTROLEVAGASEST!K21 -> 0 | K9: =[1]CONTROLEVAGASEST!L21 -> 0 | M9: =[1]CONTROLEVAGASEST!N21 -> Superior Pós-Graduação | N9: =[1]CONTROLEVAGASEST!O21 -> 12 | O9: =[1]CONTROLEVAGASEST!P21 -> 2 | P9: =[1]CONTROLEVAGASEST!Q21 -> 10
A10: =[1]CONTROLEVAGASEST!B22 -> CEDIDO | B10: =[1]CONTROLEVAGASEST!C22 -> 32 | D10: =[1]CONTROLEVAGASEST!E22 -> CONJUR | E10: =[1]CONTROLEVAGASEST!F22 -> 3 | F10: =[1]CONTROLEVAGASEST!G22 -> 0 | G10: =[1]CONTROLEVAGASEST!H22 -> 0 | H10: =[1]CONTROLEVAGASEST!I22 -> 3 | I10: =[1]CONTROLEVAGASEST!J22 -> 2 | J10: =[1]CONTROLEVAGASEST!K22 -> 0 | K10: =[1]CONTROLEVAGASEST!L22 -> 0 | M10: =[1]CONTROLEVAGASEST!N22 -> Total | N10: =[1]CONTROLEVAGASEST!O22 -> 80 | O10: =[1]CONTROLEVAGASEST!P22 -> 42 | P10: =[1]CONTROLEVAGASEST!Q22 -> 38
A11: =[1]CONTROLEVAGASEST!B23 -> REQUISITADO DE OUTROS ORGAOS | B11: =[1]CONTROLEVAGASEST!C23 -> 71 | D11: =[1]CONTROLEVAGASEST!E23 -> ASSINT | E11: =[1]CONTROLEVAGASEST!F23 -> 1 | F11: =[1]CONTROLEVAGASEST!G23 -> 0 | G11: =[1]CONTROLEVAGASEST!H23 -> 0 | H11: =[1]CONTROLEVAGASEST!I23 -> 1 | I11: =[1]CONTROLEVAGASEST!J23 -> 0 | J11: =[1]CONTROLEVAGASEST!K23 -> 0 | K11: =[1]CONTROLEVAGASEST!L23 -> 0
A12: =[1]CONTROLEVAGASEST!B24 -> EXERCÍCIO DESCENTRALIZADO CARREIRA | B12: =[1]CONTROLEVAGASEST!C24 -> 88 | D12: =[1]CONTROLEVAGASEST!E24 -> ASSEC | E12: =[1]CONTROLEVAGASEST!F24 -> 1 | F12: =[1]CONTROLEVAGASEST!G24 -> 0 | G12: =[1]CONTROLEVAGASEST!H24 -> 0 | H12: =[1]CONTROLEVAGASEST!I24 -> 1 | I12: =[1]CONTROLEVAGASEST!J24 -> 0 | J12: =[1]CONTROLEVAGASEST!K24 -> 0 | K12: =[1]CONTROLEVAGASEST!L24 -> 0 | N12: =[1]CONTROLEVAGASEST!O24 -> 100.00% | O12: =[1]CONTROLEVAGASEST!P24 -> 52.50% | P12: =[1]CONTROLEVAGASEST!Q24 -> 47.50%
A13: =[1]CONTROLEVAGASEST!B25 -> ANISTIADO | B13: =[1]CONTROLEVAGASEST!C25 -> 499 | D13: =[1]CONTROLEVAGASEST!E25 -> AEPED | E13: =[1]CONTROLEVAGASEST!F25 -> 1 | F13: =[1]CONTROLEVAGASEST!G25 -> 0 | G13: =[1]CONTROLEVAGASEST!H25 -> 0 | H13: =[1]CONTROLEVAGASEST!I25 -> 1 | I13: =[1]CONTROLEVAGASEST!J25 -> 0 | J13: =[1]CONTROLEVAGASEST!K25 -> 0 | K13: =[1]CONTROLEVAGASEST!L25 -> 0
A14: =[1]CONTROLEVAGASEST!B26 -> TOTAL | B14: =[1]CONTROLEVAGASEST!C26 -> 952 | D14: =[1]CONTROLEVAGASEST!E26 -> AECI | E14: =[1]CONTROLEVAGASEST!F26 -> 1 | F14: =[1]CONTROLEVAGASEST!G26 -> 0 | G14: =[1]CONTROLEVAGASEST!H26 -> 0 | H14: =[1]CONTROLEVAGASEST!I26 -> 1 | I14: =[1]CONTROLEVAGASEST!J26 -> 0 | J14: =[1]CONTROLEVAGASEST!K26 -> 0 | K14: =[1]CONTROLEVAGASEST!L26 -> 0 | M14: =[1]CONTROLEVAGASEST!N26 -> Nível | N14: =[1]CONTROLEVAGASEST!O26 -> Preenchido
A15: =[1]CONTROLEVAGASEST!B27 -> Limite de 8% (nº de vagas válidas) | B15: =ROUNDUP(B14*8%,0) -> 77 | D15: =[1]CONTROLEVAGASEST!E27 -> SE | E15: =[1]CONTROLEVAGASEST!F27 -> 4 | F15: =[1]CONTROLEVAGASEST!G27 -> 1 | G15: =[1]CONTROLEVAGASEST!H27 -> 1 | H15: =[1]CONTROLEVAGASEST!I27 -> 3 | I15: =[1]CONTROLEVAGASEST!J27 -> 0 | J15: =[1]CONTROLEVAGASEST!K27 -> 0 | K15: =[1]CONTROLEVAGASEST!L27 -> 0
D16: =[1]CONTROLEVAGASEST!E28 -> AEGE | E16: =[1]CONTROLEVAGASEST!F28 -> 3 | F16: =[1]CONTROLEVAGASEST!G28 -> 0 | G16: =[1]CONTROLEVAGASEST!H28 -> 0 | H16: =[1]CONTROLEVAGASEST!I28 -> 3 | I16: =[1]CONTROLEVAGASEST!J28 -> 3 | J16: =[1]CONTROLEVAGASEST!K28 -> 0 | K16: =[1]CONTROLEVAGASEST!L28 -> 0 | M16: =[1]CONTROLEVAGASEST!N28 -> Médio | N16: =[1]CONTROLEVAGASEST!O28 -> 6
D17: =[1]CONTROLEVAGASEST!E29 -> AESA | E17: =[1]CONTROLEVAGASEST!F29 -> 2 | F17: =[1]CONTROLEVAGASEST!G29 -> 0 | G17: =[1]CONTROLEVAGASEST!H29 -> 0 | H17: =[1]CONTROLEVAGASEST!I29 -> 2 | I17: =[1]CONTROLEVAGASEST!J29 -> 2 | J17: =[1]CONTROLEVAGASEST!K29 -> 0 | K17: =[1]CONTROLEVAGASEST!L29 -> 0 | M17: =[1]CONTROLEVAGASEST!N29 -> Superior Graduação | N17: =[1]CONTROLEVAGASEST!O29 -> 34
D18: =[1]CONTROLEVAGASEST!E30 -> AEGP | E18: =[1]CONTROLEVAGASEST!F30 -> 2 | F18: =[1]CONTROLEVAGASEST!G30 -> 0 | G18: =[1]CONTROLEVAGASEST!H30 -> 0 | H18: =[1]CONTROLEVAGASEST!I30 -> 2 | I18: =[1]CONTROLEVAGASEST!J30 -> 1 | J18: =[1]CONTROLEVAGASEST!K30 -> 0 | K18: =[1]CONTROLEVAGASEST!L30 -> 0 | M18: =[1]CONTROLEVAGASEST!N30 -> Superior Pós-Graduação | N18: =[1]CONTROLEVAGASEST!O30 -> 2
D19: =[1]CONTROLEVAGASEST!E31 -> CGRH | E19: =[1]CONTROLEVAGASEST!F31 -> 1 | F19: =[1]CONTROLEVAGASEST!G31 -> 0 | G19: =[1]CONTROLEVAGASEST!H31 -> 0 | H19: =[1]CONTROLEVAGASEST!I31 -> 0 | I19: =[1]CONTROLEVAGASEST!J31 -> 0 | J19: =[1]CONTROLEVAGASEST!K31 -> 1 | K19: =[1]CONTROLEVAGASEST!L31 -> 1 | M19: =[1]CONTROLEVAGASEST!N31 -> Total | N19: =[1]CONTROLEVAGASEST!O31 -> 42
D20: =[1]CONTROLEVAGASEST!E32 -> CGRL | E20: =[1]CONTROLEVAGASEST!F32 -> 3 | F20: =[1]CONTROLEVAGASEST!G32 -> 2 | G20: =[1]CONTROLEVAGASEST!H32 -> 2 | H20: =[1]CONTROLEVAGASEST!I32 -> 1 | I20: =[1]CONTROLEVAGASEST!J32 -> 0 | J20: =[1]CONTROLEVAGASEST!K32 -> 0 | K20: =[1]CONTROLEVAGASEST!L32 -> 0 | M20: =[1]CONTROLEVAGASEST!N32&" ("&ROUNDUP(B15,0)&" vagas)" -> % de ocupação considerando o limite de 8% (77 vagas) | N20: =[1]CONTROLEVAGASEST!O32 -> 55.15%
D21: =[1]CONTROLEVAGASEST!E33 -> CGTI | E21: =[1]CONTROLEVAGASEST!F33 -> 1 | F21: =[1]CONTROLEVAGASEST!G33 -> 0 | G21: =[1]CONTROLEVAGASEST!H33 -> 0 | H21: =[1]CONTROLEVAGASEST!I33 -> 1 | I21: =[1]CONTROLEVAGASEST!J33 -> 1 | J21: =[1]CONTROLEVAGASEST!K33 -> 0 | K21: =[1]CONTROLEVAGASEST!L33 -> 0
D22: =[1]CONTROLEVAGASEST!E34 -> CGCC | E22: =[1]CONTROLEVAGASEST!F34 -> 1 | F22: =[1]CONTROLEVAGASEST!G34 -> 0 | G22: =[1]CONTROLEVAGASEST!H34 -> 0 | H22: =[1]CONTROLEVAGASEST!I34 -> 1 | I22: =[1]CONTROLEVAGASEST!J34 -> 0 | J22: =[1]CONTROLEVAGASEST!K34 -> 0 | K22: =[1]CONTROLEVAGASEST!L34 -> 0
D23: =[1]CONTROLEVAGASEST!E35 -> SEE | E23: =[1]CONTROLEVAGASEST!F35 -> 12 | F23: =[1]CONTROLEVAGASEST!G35 -> 0 | G23: =[1]CONTROLEVAGASEST!H35 -> 0 | H23: =[1]CONTROLEVAGASEST!I35 -> 8 | I23: =[1]CONTROLEVAGASEST!J35 -> 5 | J23: =[1]CONTROLEVAGASEST!K35 -> 4 | K23: =[1]CONTROLEVAGASEST!L35 -> 1
D24: =[1]CONTROLEVAGASEST!E36 -> SGM | E24: =[1]CONTROLEVAGASEST!F36 -> 10 | F24: =[1]CONTROLEVAGASEST!G36 -> 0 | G24: =[1]CONTROLEVAGASEST!H36 -> 0 | H24: =[1]CONTROLEVAGASEST!I36 -> 6 | I24: =[1]CONTROLEVAGASEST!J36 -> 2 | J24: =[1]CONTROLEVAGASEST!K36 -> 4 | K24: =[1]CONTROLEVAGASEST!L36 -> 0
D25: =[1]CONTROLEVAGASEST!E37 -> SPE | E25: =[1]CONTROLEVAGASEST!F37 -> 12 | F25: =[1]CONTROLEVAGASEST!G37 -> 2 | G25: =[1]CONTROLEVAGASEST!H37 -> 2 | H25: =[1]CONTROLEVAGASEST!I37 -> 8 | I25: =[1]CONTROLEVAGASEST!J37 -> 7 | J25: =[1]CONTROLEVAGASEST!K37 -> 2 | K25: =[1]CONTROLEVAGASEST!L37 -> 0
D26: =[1]CONTROLEVAGASEST!E38 -> SPG | E26: =[1]CONTROLEVAGASEST!F38 -> 12 | F26: =[1]CONTROLEVAGASEST!G38 -> 1 | G26: =[1]CONTROLEVAGASEST!H38 -> 0 | H26: =[1]CONTROLEVAGASEST!I38 -> 10 | I26: =[1]CONTROLEVAGASEST!J38 -> 2 | J26: =[1]CONTROLEVAGASEST!K38 -> 1 | K26: =[1]CONTROLEVAGASEST!L38 -> 0
D27: =[1]CONTROLEVAGASEST!E39 -> Total | E27: =[1]CONTROLEVAGASEST!F39 -> 80 | F27: =[1]CONTROLEVAGASEST!G39 -> 8 | G27: =[1]CONTROLEVAGASEST!H39 -> 6 | H27: =[1]CONTROLEVAGASEST!I39 -> 60 | I27: =[1]CONTROLEVAGASEST!J39 -> 34 | J27: =[1]CONTROLEVAGASEST!K39 -> 12 | K27: =[1]CONTROLEVAGASEST!L39 -> 2
D29: Observação: | E29: Ocupação ultrapassou o nº de vagas definido | I29: =80-ROUNDUP(B15,0)&" vagas devem ser suspensas" -> 3 vagas devem ser suspensas
E30: Ocupação atingiu o nº de vagas definido | I30: ="por ultrapassar o limite de 8%" -> por ultrapassar o limite de 8%
D32: ='[1]CONTROLE%NEGROS'!B8 -> Planilha de Acompanhamento do Decreto nº 9.427, de 28/06/2019
D34: ='[1]CONTROLE%NEGROS'!B11 -> Nível x Cor/Raça
D35: ='[1]CONTROLE%NEGROS'!B12 -> NÍVEL | E35: ='[1]CONTROLE%NEGROS'!C12 -> PRETA | F35: ='[1]CONTROLE%NEGROS'!D12 -> PARDA | G35: ='[1]CONTROLE%NEGROS'!E12 -> BRANCA | H35: ='[1]CONTROLE%NEGROS'!F12 -> AMARELA | I35: ='[1]CONTROLE%NEGROS'!G12 -> INDÍGENA | J35: ='[1]CONTROLE%NEGROS'!H12 -> TOTAL
D36: ='[1]CONTROLE%NEGROS'!B14 -> Médio | E36: ='[1]CONTROLE%NEGROS'!C14 -> 0 | F36: ='[1]CONTROLE%NEGROS'!D14 -> 4 | G36: ='[1]CONTROLE%NEGROS'!E14 -> 2 | H36: ='[1]CONTROLE%NEGROS'!F14 -> 0 | I36: ='[1]CONTROLE%NEGROS'!G14 -> 0 | J36: ='[1]CONTROLE%NEGROS'!H14 -> 6
D37: ='[1]CONTROLE%NEGROS'!B15 -> Superior Graduação | E37: ='[1]CONTROLE%NEGROS'!C15 -> 3 | F37: ='[1]CONTROLE%NEGROS'!D15 -> 16 | G37: ='[1]CONTROLE%NEGROS'!E15 -> 15 | H37: ='[1]CONTROLE%NEGROS'!F15 -> 0 | I37: ='[1]CONTROLE%NEGROS'!G15 -> 0 | J37: ='[1]CONTROLE%NEGROS'!H15 -> 34
D38: ='[1]CONTROLE%NEGROS'!B16 -> Superior Pós-Graduação | E38: ='[1]CONTROLE%NEGROS'!C16 -> 0 | F38: ='[1]CONTROLE%NEGROS'!D16 -> 1 | G38: ='[1]CONTROLE%NEGROS'!E16 -> 1 | H38: ='[1]CONTROLE%NEGROS'!F16 -> 0 | I38: ='[1]CONTROLE%NEGROS'!G16 -> 0 | J38: ='[1]CONTROLE%NEGROS'!H16 -> 2
D39: ='[1]CONTROLE%NEGROS'!B17 -> Total | E39: ='[1]CONTROLE%NEGROS'!C17 -> 3 | F39: ='[1]CONTROLE%NEGROS'!D17 -> 21 | G39: ='[1]CONTROLE%NEGROS'!E17 -> 18 | H39: ='[1]CONTROLE%NEGROS'!F17 -> 0 | I39: ='[1]CONTROLE%NEGROS'!G17 -> 0 | J39: ='[1]CONTROLE%NEGROS'!H17 -> 42
D40: ='[1]CONTROLE%NEGROS'!B18 -> Total em % | E40: ='[1]CONTROLE%NEGROS'!C18 -> 7.14% | F40: ='[1]CONTROLE%NEGROS'!D18 -> 50.00% | G40: ='[1]CONTROLE%NEGROS'!E18 -> 42.86% | H40: ='[1]CONTROLE%NEGROS'!F18 -> *** | I40: ='[1]CONTROLE%NEGROS'!G18 -> *** | J40: ='[1]CONTROLE%NEGROS'!H18 -> 100.00%
J41: =E40+F40 -> 57.14%
D42: Ficam reservadas aos negros (pretos ou pardos) 30% (trinta por cento) das vagas oferecidas nas seleções para estágio no âmbito da administração pública federal direta, autárquica e fundacional.

Sheet PEVOLUÇÃO
M12: CGRH/MME

Sheet PEVGLOBAL
A1: QUADRO DE EVOLUÇÃO GLOBAL
A3: =[1]GLOBAL!A4 -> Ano | B3: =[1]GLOBAL!B4 -> Quantitativo Geral de Servidores/Empregados Ativos | C3: =[1]GLOBAL!C4 -> % de aumento ou redução Quantitativo Geral | D3: =[1]GLOBAL!D4 -> Ativo Permanente | F3: =[1]GLOBAL!F4 -> Cedidos | H3: =[1]GLOBAL!H4 -> Anistiado | J3: =[1]GLOBAL!J4 -> Requisitado de Empresa | L3: =[1]GLOBAL!L4 -> Requisitado Órgãos | N3: =[1]GLOBAL!N4 -> Sem Vínculo | P3: =[1]GLOBAL!P4 -> Exercício Descentralizado | R3: =[1]GLOBAL!R4 -> Contrato Temporário
D4: =[1]GLOBAL!D5 -> Qtd | E4: =[1]GLOBAL!E5 -> % de aumento ou redução Ativo Permanente | F4: =[1]GLOBAL!F5 -> Qtd | G4: =[1]GLOBAL!G5 -> % de aumento ou redução Cedidos | H4: =[1]GLOBAL!H5 -> Qtd | I4: =[1]GLOBAL!I5 -> % de aumento ou redução Anistiado | J4: =[1]GLOBAL!J5 -> Qtd | K4: =[1]GLOBAL!K5 -> % de aumento ou redução Requisitado de Empresa | L4: =[1]GLOBAL!L5 -> Qtd | M4: =[1]GLOBAL!M5 -> % de aumento ou redução Requisitado Órgãos | N4: =[1]GLOBAL!N5 -> Qtd | O4: =[1]GLOBAL!O5 -> % de aumento ou redução Sem Vínculo | P4: =[1]GLOBAL!P5 -> Qtd | Q4: =[1]GLOBAL!Q5 -> % de aumento ou redução Exercício Descentralizado | R4: =[1]GLOBAL!R5 -> Qtd | S4: =[1]GLOBAL!S5 -> % de aumento ou redução Contrato Temporário
A5: =[1]GLOBAL!A6 -> 2009 | B5: =[1]GLOBAL!B6 -> 1,105 | C5: =[1]GLOBAL!C6 -> ** | D5: =[1]GLOBAL!D6 -> 307 | E5: =[1]GLOBAL!E6 -> ** | F5: =[1]GLOBAL!F6 -> 100 | G5: =[1]GLOBAL!G6 -> ** | H5: =[1]GLOBAL!H6 -> 419 | I5: =[1]GLOBAL!I6 -> ** | J5: =[1]GLOBAL!J6 -> 47 | K5: =[1]GLOBAL!K6 -> ** | L5: =[1]GLOBAL!L6 -> 34 | M5: =[1]GLOBAL!M6 -> ** | N5: =[1]GLOBAL!N6 -> 161 | O5: =[1]GLOBAL!O6 -> ** | P5: =[1]GLOBAL!P6 -> 37 | Q5: =[1]GLOBAL!Q6 -> ** | R5: =[1]GLOBAL!R6 -> 0 | S5: =[1]GLOBAL!S6 -> **
A6: =[1]GLOBAL!A7 -> 2010 | B6: =[1]GLOBAL!B7 -> 1,160 | C6: =[1]GLOBAL!C7 -> 4.9774 | D6: =[1]GLOBAL!D7 -> 305 | E6: =[1]GLOBAL!E7 -> -0.6515 | F6: =[1]GLOBAL!F7 -> 100 | G6: =[1]GLOBAL!G7 -> 0.0000 | H6: =[1]GLOBAL!H7 -> 437 | I6: =[1]GLOBAL!I7 -> 4.2959 | J6: =[1]GLOBAL!J7 -> 45 | K6: =[1]GLOBAL!K7 -> -4.2553 | L6: =[1]GLOBAL!L7 -> 30 | M6: =[1]GLOBAL!M7 -> -11.7647 | N6: =[1]GLOBAL!N7 -> 158 | O6: =[1]GLOBAL!O7 -> -1.8634 | P6: =[1]GLOBAL!P7 -> 85 | Q6: =[1]GLOBAL!Q7 -> 129.7297 | R6: =[1]GLOBAL!R7 -> 0 | S6: =[1]GLOBAL!S7 -> **
A7: =[1]GLOBAL!A8 -> 2011 | B7: =[1]GLOBAL!B8 -> 1,122 | C7: =[1]GLOBAL!C8 -> -3.2759 | D7: =[1]GLOBAL!D8 -> 295 | E7: =[1]GLOBAL!E8 -> -3.2787 | F7: =[1]GLOBAL!F8 -> 94 | G7: =[1]GLOBAL!G8 -> -6.0000 | H7: =[1]GLOBAL!H8 -> 438 | I7: =[1]GLOBAL!I8 -> 0.2288 | J7: =[1]GLOBAL!J8 -> 49 | K7: =[1]GLOBAL!K8 -> 8.8889 | L7: =[1]GLOBAL!L8 -> 32 | M7: =[1]GLOBAL!M8 -> 6.6667 | N7: =[1]GLOBAL!N8 -> 148 | O7: =[1]GLOBAL!O8 -> -6.3291 | P7: =[1]GLOBAL!P8 -> 66 | Q7: =[1]GLOBAL!Q8 -> -22.3529 | R7: =[1]GLOBAL!R8 -> 0 | S7: =[1]GLOBAL!S8 -> **
A8: =[1]GLOBAL!A9 -> 2012 | B8: =[1]GLOBAL!B9 -> 1,204 | C8: =[1]GLOBAL!C9 -> 7.3084 | D8: =[1]GLOBAL!D9 -> 218 | E8: =[1]GLOBAL!E9 -> -26.1017 | F8: =[1]GLOBAL!F9 -> 97 | G8: =[1]GLOBAL!G9 -> 3.1915 | H8: =[1]GLOBAL!H9 -> 519 | I8: =[1]GLOBAL!I9 -> 18.4932 | J8: =[1]GLOBAL!J9 -> 52 | K8: =[1]GLOBAL!K9 -> 6.1224 | L8: =[1]GLOBAL!L9 -> 30 | M8: =[1]GLOBAL!M9 -> -6.2500 | N8: =[1]GLOBAL!N9 -> 150 | O8: =[1]GLOBAL!O9 -> 1.3514 | P8: =[1]GLOBAL!P9 -> 138 | Q8: =[1]GLOBAL!Q9 -> 109.0909 | R8: =[1]GLOBAL!R9 -> 0 | S8: =[1]GLOBAL!S9 -> **
A9: =[1]GLOBAL!A10 -> 2013 | B9: =[1]GLOBAL!B10 -> 1,203 | C9: =[1]GLOBAL!C10 -> -0.0831 | D9: =[1]GLOBAL!D10 -> 203 | E9: =[1]GLOBAL!E10 -> -6.8807 | F9: =[1]GLOBAL!F10 -> 95 | G9: =[1]GLOBAL!G10 -> -2.0619 | H9: =[1]GLOBAL!H10 -> 538 | I9: =[1]GLOBAL!I10 -> 3.6609 | J9: =[1]GLOBAL!J10 -> 48 | K9: =[1]GLOBAL!K10 -> -7.6923 | L9: =[1]GLOBAL!L10 -> 32 | M9: =[1]GLOBAL!M10 -> 6.6667 | N9: =[1]GLOBAL!N10 -> 150 | O9: =[1]GLOBAL!O10 -> 0.0000 | P9: =[1]GLOBAL!P10 -> 133 | Q9: =[1]GLOBAL!Q10 -> -3.6232 | R9: =[1]GLOBAL!R10 -> 4 | S9: =[1]GLOBAL!S10 -> **
A10: =[1]GLOBAL!A11 -> 2014 | B10: =[1]GLOBAL!B11 -> 1,190 | C10: =[1]GLOBAL!C11 -> -1.0806 | D10: =[1]GLOBAL!D11 -> 199 | E10: =[1]GLOBAL!E11 -> -1.9704 | F10: =[1]GLOBAL!F11 -> 86 | G10: =[1]GLOBAL!G11 -> -9.4737 | H10: =[1]GLOBAL!H11 -> 546 | I10: =[1]GLOBAL!I11 -> 1.4870 | J10: =[1]GLOBAL!J11 -> 43 | K10: =[1]GLOBAL!K11 -> -10.4167 | L10: =[1]GLOBAL!L11 -> 37 | M10: =[1]GLOBAL!M11 -> 15.6250 | N10: =[1]GLOBAL!N11 -> 154 | O10: =[1]GLOBAL!O11 -> 2.6667 | P10: =[1]GLOBAL!P11 -> 118 | Q10: =[1]GLOBAL!Q11 -> -11.2782 | R10: =[1]GLOBAL!R11 -> 7 | S10: =[1]GLOBAL!S11 -> 75.0000
A11: =[1]GLOBAL!A12 -> 2015 | B11: =[1]GLOBAL!B12 -> 1,167 | C11: =[1]GLOBAL!C12 -> -1.9328 | D11: =[1]GLOBAL!D12 -> 194 | E11: =[1]GLOBAL!E12 -> -2.5126 | F11: =[1]GLOBAL!F12 -> 76 | G11: =[1]GLOBAL!G12 -> -11.6279 | H11: =[1]GLOBAL!H12 -> 556 | I11: =[1]GLOBAL!I12 -> 1.8315 | J11: =[1]GLOBAL!J12 -> 41 | K11: =[1]GLOBAL!K12 -> -4.6512 | L11: =[1]GLOBAL!L12 -> 32 | M11: =[1]GLOBAL!M12 -> -13.5135 | N11: =[1]GLOBAL!N12 -> 152 | O11: =[1]GLOBAL!O12 -> -1.2987 | P11: =[1]GLOBAL!P12 -> 109 | Q11: =[1]GLOBAL!Q12 -> -7.6271 | R11: =[1]GLOBAL!R12 -> 7 | S11: =[1]GLOBAL!S12 -> 0.0000
A12: =[1]GLOBAL!A13 -> 2016 | B12: =[1]GLOBAL!B13 -> 1,116 | C12: =[1]GLOBAL!C13 -> -4.3702 | D12: =[1]GLOBAL!D13 -> 193 | E12: =[1]GLOBAL!E13 -> -0.5155 | F12: =[1]GLOBAL!F13 -> 67 | G12: =[1]GLOBAL!G13 -> -11.8421 | H12: =[1]GLOBAL!H13 -> 561 | I12: =[1]GLOBAL!I13 -> 0.8993 | J12: =[1]GLOBAL!J13 -> 26 | K12: =[1]GLOBAL!K13 -> -36.5854 | L12: =[1]GLOBAL!L13 -> 28 | M12: =[1]GLOBAL!M13 -> -12.5000 | N12: =[1]GLOBAL!N13 -> 129 | O12: =[1]GLOBAL!O13 -> -15.1316 | P12: =[1]GLOBAL!P13 -> 105 | Q12: =[1]GLOBAL!Q13 -> -3.6697 | R12: =[1]GLOBAL!R13 -> 7 | S12: =[1]GLOBAL!S13 -> 0.0000
A13: =[1]GLOBAL!A14 -> 2017 | B13: =[1]GLOBAL!B14 -> 1,091 | C13: =[1]GLOBAL!C14 -> -2.2401 | D13: =[1]GLOBAL!D14 -> 174 | E13: =[1]GLOBAL!E14 -> -9.8446 | F13: =[1]GLOBAL!F14 -> 62 | G13: =[1]GLOBAL!G14 -> -7.4627 | H13: =[1]GLOBAL!H14 -> 548 | I13: =[1]GLOBAL!I14 -> -2.3173 | J13: =[1]GLOBAL!J14 -> 20 | K13: =[1]GLOBAL!K14 -> -23.0769 | L13: =[1]GLOBAL!L14 -> 37 | M13: =[1]GLOBAL!M14 -> 32.1429 | N13: =[1]GLOBAL!N14 -> 137 | O13: =[1]GLOBAL!O14 -> 6.2016 | P13: =[1]GLOBAL!P14 -> 104 | Q13: =[1]GLOBAL!Q14 -> -0.9524 | R13: =[1]GLOBAL!R14 -> 9 | S13: =[1]GLOBAL!S14 -> 28.5714
A14: =[1]GLOBAL!A15 -> 2018 | B14: =[1]GLOBAL!B15 -> 1,046 | C14: =[1]GLOBAL!C15 -> -4.1247 | D14: =[1]GLOBAL!D15 -> 162 | E14: =[1]GLOBAL!E15 -> -6.8966 | F14: =[1]GLOBAL!F15 -> 58 | G14: =[1]GLOBAL!G15 -> -6.4516 | H14: =[1]GLOBAL!H15 -> 529 | I14: =[1]GLOBAL!I15 -> -3.4672 | J14: =[1]GLOBAL!J15 -> 12 | K14: =[1]GLOBAL!K15 -> -40.0000 | L14: =[1]GLOBAL!L15 -> 40 | M14: =[1]GLOBAL!M15 -> 8.1081 | N14: =[1]GLOBAL!N15 -> 138 | O14: =[1]GLOBAL!O15 -> 0.7299 | P14: =[1]GLOBAL!P15 -> 102 | Q14: =[1]GLOBAL!Q15 -> -1.9231 | R14: =[1]GLOBAL!R15 -> 5 | S14: =[1]GLOBAL!S15 -> -44.4444
A15: =[1]GLOBAL!A16 -> 2019 | B15: =[1]GLOBAL!B16 -> 1,000 | C15: =[1]GLOBAL!C16 -> -4.3977 | D15: =[1]GLOBAL!D16 -> 145 | E15: =[1]GLOBAL!E16 -> -10.4938 | F15: =[1]GLOBAL!F16 -> 47 | G15: =[1]GLOBAL!G16 -> -18.9655 | H15: =[1]GLOBAL!H16 -> 513 | I15: =[1]GLOBAL!I16 -> -3.0246 | J15: =[1]GLOBAL!J16 -> 9 | K15: =[1]GLOBAL!K16 -> -25.0000 | L15: =[1]GLOBAL!L16 -> 62 | M15: =[1]GLOBAL!M16 -> 55.0000 | N15: =[1]GLOBAL!N16 -> 125 | O15: =[1]GLOBAL!O16 -> -9.4203 | P15: =[1]GLOBAL!P16 -> 95 | Q15: =[1]GLOBAL!Q16 -> -6.8627 | R15: =[1]GLOBAL!R16 -> 4 | S15: =[1]GLOBAL!S16 -> -20.0000
A16: =[1]GLOBAL!A17 -> 2020 | B16: =[1]GLOBAL!B17 -> 954 | C16: =[1]GLOBAL!C17 -> -4.6000 | D16: =[1]GLOBAL!D17 -> 137 | E16: =[1]GLOBAL!E17 -> -5.5172 | F16: =[1]GLOBAL!F17 -> 32 | G16: =[1]GLOBAL!G17 -> -31.9149 | H16: =[1]GLOBAL!H17 -> 499 | I16: =[1]GLOBAL!I17 -> -2.7290 | J16: =[1]GLOBAL!J17 -> 5 | K16: =[1]GLOBAL!K17 -> -44.4444 | L16: =[1]GLOBAL!L17 -> 71 | M16: =[1]GLOBAL!M17 -> 14.5161 | N16: =[1]GLOBAL!N17 -> 119 | O16: =[1]GLOBAL!O17 -> -4.8000 | P16: =[1]GLOBAL!P17 -> 88 | Q16: =[1]GLOBAL!Q17 -> -13.7255 | R16: =[1]GLOBAL!R17 -> 3 | S16: =[1]GLOBAL!S17 -> -25.0000

Sheet PEVSIT
A1: QUADRO DE EVOLUÇÃO POR SITUAÇÃO
A4: ='[1]ATIV-CED-ANIST'!A4 -> ANO | B4: ='[1]ATIV-CED-ANIST'!B4 -> Ativo Permanente | E4: ='[1]ATIV-CED-ANIST'!E4 -> Cedido | H4: ='[1]ATIV-CED-ANIST'!H4 -> Anistiado | M4: ='[1]FINALISTICA-MEIO'!A4 -> ANO | N4: ='[1]FINALISTICA-MEIO'!B4 -> Total MME | O4: ='[1]FINALISTICA-MEIO'!C4 -> ÁREA FINALISTICA | Q4: ='[1]FINALISTICA-MEIO'!E4 -> ÁREA MEIO | S4: ='[1]FINALISTICA-MEIO'!H4 -> Direferença de aumento ou redução Total MME | T4: ='[1]FINALISTICA-MEIO'!I4 -> Direferença de aumento ou redução Área Finalistica | U4: ='[1]FINALISTICA-MEIO'!J4 -> Direferença de aumento ou redução Área Meio
B5: ='[1]ATIV-CED-ANIST'!B5 -> Quantitativo | C5: ='[1]ATIV-CED-ANIST'!C5 -> Diferença de aumento ou redução | D5: ='[1]ATIV-CED-ANIST'!D5 -> % de aumento ou redução | E5: ='[1]ATIV-CED-ANIST'!E5 -> Quantitativo | F5: ='[1]ATIV-CED-ANIST'!F5 -> Diferença de aumento ou redução | G5: ='[1]ATIV-CED-ANIST'!G5 -> % de aumento ou redução | H5: ='[1]ATIV-CED-ANIST'!H5 -> Quantitativo | I5: ='[1]ATIV-CED-ANIST'!I5 -> Diferença de aumento ou redução | J5: ='[1]ATIV-CED-ANIST'!J5 -> % de aumento ou redução | O5: ='[1]FINALISTICA-MEIO'!C5 -> Quantitativo | P5: ='[1]FINALISTICA-MEIO'!D5 -> % de aumento ou redução | Q5: ='[1]FINALISTICA-MEIO'!E5 -> Quantitativo | R5: ='[1]FINALISTICA-MEIO'!F5 -> % de aumento ou redução
A6: ='[1]ATIV-CED-ANIST'!A6 -> 2009 | B6: ='[1]ATIV-CED-ANIST'!B6 -> 307 | C6: ='[1]ATIV-CED-ANIST'!C6 -> ** | D6: ='[1]ATIV-CED-ANIST'!D6 -> ** | E6: ='[1]ATIV-CED-ANIST'!E6 -> 100 | F6: ='[1]ATIV-CED-ANIST'!F6 -> ** | G6: ='[1]ATIV-CED-ANIST'!G6 -> ** | H6: ='[1]ATIV-CED-ANIST'!H6 -> 419 | I6: ='[1]ATIV-CED-ANIST'!I6 -> ** | J6: ='[1]ATIV-CED-ANIST'!J6 -> ** | M6: ='[1]FINALISTICA-MEIO'!A6 -> 2011 | N6: ='[1]FINALISTICA-MEIO'!B6 -> 695 | O6: ='[1]FINALISTICA-MEIO'!C6 -> 245 | P6: ='[1]FINALISTICA-MEIO'!D6 -> ** | Q6: ='[1]FINALISTICA-MEIO'!E6 -> 450 | R6: ='[1]FINALISTICA-MEIO'!F6 -> ** | S6: ='[1]FINALISTICA-MEIO'!H6 -> ** | T6: ='[1]FINALISTICA-MEIO'!I6 -> ** | U6: ='[1]FINALISTICA-MEIO'!J6 -> **
A7: ='[1]ATIV-CED-ANIST'!A7 -> 2010 | B7: ='[1]ATIV-CED-ANIST'!B7 -> 305 | C7: ='[1]ATIV-CED-ANIST'!C7 -> -2 | D7: ='[1]ATIV-CED-ANIST'!D7 -> -0.6515 | E7: ='[1]ATIV-CED-ANIST'!E7 -> 100 | F7: ='[1]ATIV-CED-ANIST'!F7 -> 0 | G7: ='[1]ATIV-CED-ANIST'!G7 -> 0.0000 | H7: ='[1]ATIV-CED-ANIST'!H7 -> 437 | I7: ='[1]ATIV-CED-ANIST'!I7 -> 18 | J7: ='[1]ATIV-CED-ANIST'!J7 -> 4.2959 | M7: ='[1]FINALISTICA-MEIO'!A7 -> 2012 | N7: ='[1]FINALISTICA-MEIO'!B7 -> 634 | O7: ='[1]FINALISTICA-MEIO'!C7 -> 239 | P7: ='[1]FINALISTICA-MEIO'!D7 -> -2.4490 | Q7: ='[1]FINALISTICA-MEIO'!E7 -> 395 | R7: ='[1]FINALISTICA-MEIO'!F7 -> -12.2222 | S7: ='[1]FINALISTICA-MEIO'!H7 -> -61 | T7: ='[1]FINALISTICA-MEIO'!I7 -> -6 | U7: ='[1]FINALISTICA-MEIO'!J7 -> -55
A8: ='[1]ATIV-CED-ANIST'!A8 -> 2011 | B8: ='[1]ATIV-CED-ANIST'!B8 -> 295 | C8: ='[1]ATIV-CED-ANIST'!C8 -> -10 | D8: ='[1]ATIV-CED-ANIST'!D8 -> -3.2787 | E8: ='[1]ATIV-CED-ANIST'!E8 -> 94 | F8: ='[1]ATIV-CED-ANIST'!F8 -> -6 | G8: ='[1]ATIV-CED-ANIST'!G8 -> -6.0000 | H8: ='[1]ATIV-CED-ANIST'!H8 -> 438 | I8: ='[1]ATIV-CED-ANIST'!I8 -> 1 | J8: ='[1]ATIV-CED-ANIST'!J8 -> 0.2288 | M8: ='[1]FINALISTICA-MEIO'!A8 -> 2013 | N8: ='[1]FINALISTICA-MEIO'!B8 -> 646 | O8: ='[1]FINALISTICA-MEIO'!C8 -> 252 | P8: ='[1]FINALISTICA-MEIO'!D8 -> 5.4393 | Q8: ='[1]FINALISTICA-MEIO'!E8 -> 394 | R8: ='[1]FINALISTICA-MEIO'!F8 -> -0.2532 | S8: ='[1]FINALISTICA-MEIO'!H8 -> 12 | T8: ='[1]FINALISTICA-MEIO'!I8 -> 13 | U8: ='[1]FINALISTICA-MEIO'!J8 -> -1
A9: ='[1]ATIV-CED-ANIST'!A9 -> 2012 | B9: ='[1]ATIV-CED-ANIST'!B9 -> 218 | C9: ='[1]ATIV-CED-ANIST'!C9 -> -77 | D9: ='[1]ATIV-CED-ANIST'!D9 -> -26.1017 | E9: ='[1]ATIV-CED-ANIST'!E9 -> 97 | F9: ='[1]ATIV-CED-ANIST'!F9 -> 3 | G9: ='[1]ATIV-CED-ANIST'!G9 -> 3.1915 | H9: ='[1]ATIV-CED-ANIST'!H9 -> 519 | I9: ='[1]ATIV-CED-ANIST'!I9 -> 81 | J9: ='[1]ATIV-CED-ANIST'!J9 -> 18.4932 | M9: ='[1]FINALISTICA-MEIO'!A9 -> 2014 | N9: ='[1]FINALISTICA-MEIO'!B9 -> 634 | O9: ='[1]FINALISTICA-MEIO'!C9 -> 239 | P9: ='[1]FINALISTICA-MEIO'!D9 -> -5.1587 | Q9: ='[1]FINALISTICA-MEIO'!E9 -> 395 | R9: ='[1]FINALISTICA-MEIO'!F9 -> 0.2538 | S9: ='[1]FINALISTICA-MEIO'!H9 -> -12 | T9: ='[1]FINALISTICA-MEIO'!I9 -> -13 | U9: ='[1]FINALISTICA-MEIO'!J9 -> 1
A10: ='[1]ATIV-CED-ANIST'!A10 -> 2013 | B10: ='[1]ATIV-CED-ANIST'!B10 -> 203 | C10: ='[1]ATIV-CED-ANIST'!C10 -> -15 | D10: ='[1]ATIV-CED-ANIST'!D10 -> -6.8807 | E10: ='[1]ATIV-CED-ANIST'!E10 -> 95 | F10: ='[1]ATIV-CED-ANIST'!F10 -> -2 | G10: ='[1]ATIV-CED-ANIST'!G10 -> -2.0619 | H10: ='[1]ATIV-CED-ANIST'!H10 -> 538 | I10: ='[1]ATIV-CED-ANIST'!I10 -> 19 | J10: ='[1]ATIV-CED-ANIST'!J10 -> 3.6609 | M10: ='[1]FINALISTICA-MEIO'!A10 -> 2015 | N10: ='[1]FINALISTICA-MEIO'!B10 -> 606 | O10: ='[1]FINALISTICA-MEIO'!C10 -> 223 | P10: ='[1]FINALISTICA-MEIO'!D10 -> -6.6946 | Q10: ='[1]FINALISTICA-MEIO'!E10 -> 383 | R10: ='[1]FINALISTICA-MEIO'!F10 -> -3.0380 | S10: ='[1]FINALISTICA-MEIO'!H10 -> -28 | T10: ='[1]FINALISTICA-MEIO'!I10 -> -16 | U10: ='[1]FINALISTICA-MEIO'!J10 -> -12
A11: ='[1]ATIV-CED-ANIST'!A11 -> 2014 | B11: ='[1]ATIV-CED-ANIST'!B11 -> 199 | C11: ='[1]ATIV-CED-ANIST'!C11 -> -4 | D11: ='[1]ATIV-CED-ANIST'!D11 -> -1.9704 | E11: ='[1]ATIV-CED-ANIST'!E11 -> 86 | F11: ='[1]ATIV-CED-ANIST'!F11 -> -9 | G11: ='[1]ATIV-CED-ANIST'!G11 -> -9.4737 | H11: ='[1]ATIV-CED-ANIST'!H11 -> 546 | I11: ='[1]ATIV-CED-ANIST'!I11 -> 8 | J11: ='[1]ATIV-CED-ANIST'!J11 -> 1.4870 | M11: ='[1]FINALISTICA-MEIO'!A11 -> 2016 | N11: ='[1]FINALISTICA-MEIO'!B11 -> 565 | O11: ='[1]FINALISTICA-MEIO'!C11 -> 206 | P11: ='[1]FINALISTICA-MEIO'!D11 -> -7.6233 | Q11: ='[1]FINALISTICA-MEIO'!E11 -> 359 | R11: ='[1]FINALISTICA-MEIO'!F11 -> -6.2663 | S11: ='[1]FINALISTICA-MEIO'!H11 -> -41 | T11: ='[1]FINALISTICA-MEIO'!I11 -> -17 | U11: ='[1]FINALISTICA-MEIO'!J11 -> -24
A12: ='[1]ATIV-CED-ANIST'!A12 -> 2015 | B12: ='[1]ATIV-CED-ANIST'!B12 -> 194 | C12: ='[1]ATIV-CED-ANIST'!C12 -> -5 | D12: ='[1]ATIV-CED-ANIST'!D12 -> -2.5126 | E12: ='[1]ATIV-CED-ANIST'!E12 -> 76 | F12: ='[1]ATIV-CED-ANIST'!F12 -> -10 | G12: ='[1]ATIV-CED-ANIST'!G12 -> -11.6279 | H12: ='[1]ATIV-CED-ANIST'!H12 -> 556 | I12: ='[1]ATIV-CED-ANIST'!I12 -> 10 | J12: ='[1]ATIV-CED-ANIST'!J12 -> 1.8315 | M12: ='[1]FINALISTICA-MEIO'!A12 -> 2017 | N12: ='[1]FINALISTICA-MEIO'!B12 -> 562 | O12: ='[1]FINALISTICA-MEIO'!C12 -> 212 | P12: ='[1]FINALISTICA-MEIO'!D12 -> 2.9126 | Q12: ='[1]FINALISTICA-MEIO'!E12 -> 350 | R12: ='[1]FINALISTICA-MEIO'!F12 -> -2.5070 | S12: ='[1]FINALISTICA-MEIO'!H12 -> -3 | T12: ='[1]FINALISTICA-MEIO'!I12 -> 6 | U12: ='[1]FINALISTICA-MEIO'!J12 -> -9
A13: ='[1]ATIV-CED-ANIST'!A13 -> 2016 | B13: ='[1]ATIV-CED-ANIST'!B13 -> 193 | C13: ='[1]ATIV-CED-ANIST'!C13 -> -1 | D13: ='[1]ATIV-CED-ANIST'!D13 -> -0.5155 | E13: ='[1]ATIV-CED-ANIST'!E13 -> 67 | F13: ='[1]ATIV-CED-ANIST'!F13 -> -9 | G13: ='[1]ATIV-CED-ANIST'!G13 -> -11.8421 | H13: ='[1]ATIV-CED-ANIST'!H13 -> 561 | I13: ='[1]ATIV-CED-ANIST'!I13 -> 5 | J13: ='[1]ATIV-CED-ANIST'!J13 -> 0.8993 | M13: ='[1]FINALISTICA-MEIO'!A13 -> 2018 | N13: ='[1]FINALISTICA-MEIO'!B13 -> 520 | O13: ='[1]FINALISTICA-MEIO'!C13 -> 184 | P13: ='[1]FINALISTICA-MEIO'!D13 -> -13.2075 | Q13: ='[1]FINALISTICA-MEIO'!E13 -> 336 | R13: ='[1]FINALISTICA-MEIO'!F13 -> -4.0000 | S13: ='[1]FINALISTICA-MEIO'!H13 -> -42 | T13: ='[1]FINALISTICA-MEIO'!I13 -> -28 | U13: ='[1]FINALISTICA-MEIO'!J13 -> -14
A14: ='[1]ATIV-CED-ANIST'!A14 -> 2017 | B14: ='[1]ATIV-CED-ANIST'!B14 -> 174 | C14: ='[1]ATIV-CED-ANIST'!C14 -> -19 | D14: ='[1]ATIV-CED-ANIST'!D14 -> -9.8446 | E14: ='[1]ATIV-CED-ANIST'!E14 -> 62 | F14: ='[1]ATIV-CED-ANIST'!F14 -> -5 | G14: ='[1]ATIV-CED-ANIST'!G14 -> -7.4627 | H14: ='[1]ATIV-CED-ANIST'!H14 -> 548 | I14: ='[1]ATIV-CED-ANIST'!I14 -> -13 | J14: ='[1]ATIV-CED-ANIST'!J14 -> -2.3173 | M14: ='[1]FINALISTICA-MEIO'!A14 -> 2019 | N14: ='[1]FINALISTICA-MEIO'!B14 -> 528 | O14: ='[1]FINALISTICA-MEIO'!C14 -> 177 | P14: ='[1]FINALISTICA-MEIO'!D14 -> -3.8043 | Q14: ='[1]FINALISTICA-MEIO'!E14 -> 351 | R14: ='[1]FINALISTICA-MEIO'!F14 -> 4.4643 | S14: ='[1]FINALISTICA-MEIO'!H14 -> 8 | T14: ='[1]FINALISTICA-MEIO'!I14 -> -7 | U14: ='[1]FINALISTICA-MEIO'!J14 -> 15
A15: ='[1]ATIV-CED-ANIST'!A15 -> 2018 | B15: ='[1]ATIV-CED-ANIST'!B15 -> 162 | C15: ='[1]ATIV-CED-ANIST'!C15 -> -12 | D15: ='[1]ATIV-CED-ANIST'!D15 -> -6.8966 | E15: ='[1]ATIV-CED-ANIST'!E15 -> 58 | F15: ='[1]ATIV-CED-ANIST'!F15 -> -4 | G15: ='[1]ATIV-CED-ANIST'!G15 -> -6.4516 | H15: ='[1]ATIV-CED-ANIST'!H15 -> 529 | I15: ='[1]ATIV-CED-ANIST'!I15 -> -19 | J15: ='[1]ATIV-CED-ANIST'!J15 -> -3.4672 | M15: ='[1]FINALISTICA-MEIO'!A15 -> 2020 | N15: ='[1]FINALISTICA-MEIO'!B15 -> 490 | O15: ='[1]FINALISTICA-MEIO'!C15 -> 168 | P15: ='[1]FINALISTICA-MEIO'!D15 -> -5.0847 | Q15: ='[1]FINALISTICA-MEIO'!E15 -> 322 | R15: ='[1]FINALISTICA-MEIO'!F15 -> -8.2621 | S15: ='[1]FINALISTICA-MEIO'!H15 -> -38 | T15: ='[1]FINALISTICA-MEIO'!I15 -> -9 | U15: ='[1]FINALISTICA-MEIO'!J15 -> -29
A16: ='[1]ATIV-CED-ANIST'!A16 -> 2019 | B16: ='[1]ATIV-CED-ANIST'!B16 -> 145 | C16: ='[1]ATIV-CED-ANIST'!C16 -> -17 | D16: ='[1]ATIV-CED-ANIST'!D16 -> -10.4938 | E16: ='[1]ATIV-CED-ANIST'!E16 -> 47 | F16: ='[1]ATIV-CED-ANIST'!F16 -> -11 | G16: ='[1]ATIV-CED-ANIST'!G16 -> -18.9655 | H16: ='[1]ATIV-CED-ANIST'!H16 -> 529 | I16: ='[1]ATIV-CED-ANIST'!I16 -> 0 | J16: ='[1]ATIV-CED-ANIST'!J16 -> 0.0000
A17: ='[1]ATIV-CED-ANIST'!A17 -> 2020 | B17: ='[1]ATIV-CED-ANIST'!B17 -> 137 | C17: ='[1]ATIV-CED-ANIST'!C17 -> -8 | D17: ='[1]ATIV-CED-ANIST'!D17 -> -5.5172 | E17: ='[1]ATIV-CED-ANIST'!E17 -> 32 | F17: ='[1]ATIV-CED-ANIST'!F17 -> -15 | G17: ='[1]ATIV-CED-ANIST'!G17 -> -31.9149 | H17: ='[1]ATIV-CED-ANIST'!H17 -> 499 | I17: ='[1]ATIV-CED-ANIST'!I17 -> -30 | J17: ='[1]ATIV-CED-ANIST'!J17 -> -5.6711
A20: ='[1]REQ-SVINC-EXDESC'!A4 -> ANO | B20: ='[1]REQ-SVINC-EXDESC'!B4 -> REQUISITADO DE EMPRESA | E20: ='[1]REQ-SVINC-EXDESC'!E4 -> REQUISITADO ÓRGÃOS | H20: ='[1]REQ-SVINC-EXDESC'!H4 -> SEM VÍNCULO | K20: ='[1]REQ-SVINC-EXDESC'!K4 -> EXERCÍCIO DESCENTRALIZADO | N20: ='[1]REQ-SVINC-EXDESC'!N4 -> CONTRATO TEMPORÁRIO | R20: ='[1]APOS-PENS'!A4 -> ANO | S20: ='[1]APOS-PENS'!B4 -> APOSENTADO | V20: ='[1]APOS-PENS'!E4 -> BENEFICIÁRIO DE PENSÃO
B21: ='[1]REQ-SVINC-EXDESC'!B5 -> Quantitativo | C21: ='[1]REQ-SVINC-EXDESC'!C5 -> Diferença de aumento ou redução | D21: ='[1]REQ-SVINC-EXDESC'!D5 -> % de aumento ou redução | E21: ='[1]REQ-SVINC-EXDESC'!E5 -> Quantitativo | F21: ='[1]REQ-SVINC-EXDESC'!F5 -> Diferença de aumento ou redução | G21: ='[1]REQ-SVINC-EXDESC'!G5 -> % de aumento ou redução | H21: ='[1]REQ-SVINC-EXDESC'!H5 -> Quantitativo | I21: ='[1]REQ-SVINC-EXDESC'!I5 -> Diferença de aumento ou redução | J21: ='[1]REQ-SVINC-EXDESC'!J5 -> % de aumento ou redução | K21: ='[1]REQ-SVINC-EXDESC'!K5 -> Quantitativo | L21: ='[1]REQ-SVINC-EXDESC'!L5 -> Diferença de aumento ou redução | M21: ='[1]REQ-SVINC-EXDESC'!M5 -> % de aumento ou redução | N21: ='[1]REQ-SVINC-EXDESC'!N5 -> Quantitativo | O21: ='[1]REQ-SVINC-EXDESC'!O5 -> Diferença de aumento ou redução | P21: ='[1]REQ-SVINC-EXDESC'!P5 -> % de aumento ou redução | S21: ='[1]APOS-PENS'!B5 -> Quantitativo | T21: ='[1]APOS-PENS'!C5 -> Diferença de aumento ou redução | U21: ='[1]APOS-PENS'!D5 -> % de aumento ou redução | V21: ='[1]APOS-PENS'!E5 -> Quantitativo | W21: ='[1]APOS-PENS'!F5 -> Diferença de aumento ou redução | X21: ='[1]APOS-PENS'!G5 -> % de aumento ou redução
A22: ='[1]REQ-SVINC-EXDESC'!A6 -> 2009 | B22: ='[1]REQ-SVINC-EXDESC'!B6 -> 47 | C22: ='[1]REQ-SVINC-EXDESC'!C6 -> ** | D22: ='[1]REQ-SVINC-EXDESC'!D6 -> ** | E22: ='[1]REQ-SVINC-EXDESC'!E6 -> 34 | F22: ='[1]REQ-SVINC-EXDESC'!F6 -> ** | G22: ='[1]REQ-SVINC-EXDESC'!G6 -> ** | H22: ='[1]REQ-SVINC-EXDESC'!H6 -> 161 | I22: ='[1]REQ-SVINC-EXDESC'!I6 -> ** | J22: ='[1]REQ-SVINC-EXDESC'!J6 -> ** | K22: ='[1]REQ-SVINC-EXDESC'!K6 -> 37 | L22: ='[1]REQ-SVINC-EXDESC'!L6 -> ** | M22: ='[1]REQ-SVINC-EXDESC'!M6 -> ** | N22: ='[1]REQ-SVINC-EXDESC'!N6 -> 0 | O22: ='[1]REQ-SVINC-EXDESC'!O6 -> ** | P22: ='[1]REQ-SVINC-EXDESC'!P6 -> ** | R22: ='[1]APOS-PENS'!A6 -> 2009 | S22: ='[1]APOS-PENS'!B6 -> 845 | T22: ='[1]APOS-PENS'!C6 -> ** | U22: ='[1]APOS-PENS'!D6 -> ** | V22: ='[1]APOS-PENS'!E6 -> 833 | W22: ='[1]APOS-PENS'!F6 -> ** | X22: ='[1]APOS-PENS'!G6 -> **
A23: ='[1]REQ-SVINC-EXDESC'!A7 -> 2010 | B23: ='[1]REQ-SVINC-EXDESC'!B7 -> 45 | C23: ='[1]REQ-SVINC-EXDESC'!C7 -> -2 | D23: ='[1]REQ-SVINC-EXDESC'!D7 -> -4.2553 | E23: ='[1]REQ-SVINC-EXDESC'!E7 -> 30 | F23: ='[1]REQ-SVINC-EXDESC'!F7 -> -4 | G23: ='[1]REQ-SVINC-EXDESC'!G7 -> -11.7647 | H23: ='[1]REQ-SVINC-EXDESC'!H7 -> 158 | I23: ='[1]REQ-SVINC-EXDESC'!I7 -> -3 | J23: ='[1]REQ-SVINC-EXDESC'!J7 -> -1.8634 | K23: ='[1]REQ-SVINC-EXDESC'!K7 -> 85 | L23: ='[1]REQ-SVINC-EXDESC'!L7 -> 48 | M23: ='[1]REQ-SVINC-EXDESC'!M7 -> 129.7297 | N23: ='[1]REQ-SVINC-EXDESC'!N7 -> 0 | O23: ='[1]REQ-SVINC-EXDESC'!O7 -> 0 | P23: ='[1]REQ-SVINC-EXDESC'!P7 -> ** | R23: ='[1]APOS-PENS'!A7 -> 2010 | S23: ='[1]APOS-PENS'!B7 -> 816 | T23: ='[1]APOS-PENS'!C7 -> -29 | U23: ='[1]APOS-PENS'!D7 -> -3.4320 | V23: ='[1]APOS-PENS'!E7 -> 826 | W23: ='[1]APOS-PENS'!F7 -> -7 | X23: ='[1]APOS-PENS'!G7 -> -0.8403
A24: ='[1]REQ-SVINC-EXDESC'!A8 -> 2011 | B24: ='[1]REQ-SVINC-EXDESC'!B8 -> 49 | C24: ='[1]REQ-SVINC-EXDESC'!C8 -> 4 | D24: ='[1]REQ-SVINC-EXDESC'!D8 -> 8.8889 | E24: ='[1]REQ-SVINC-EXDESC'!E8 -> 32 | F24: ='[1]REQ-SVINC-EXDESC'!F8 -> 2 | G24: ='[1]REQ-SVINC-EXDESC'!G8 -> 6.6667 | H24: ='[1]REQ-SVINC-EXDESC'!H8 -> 148 | I24: ='[1]REQ-SVINC-EXDESC'!I8 -> -10 | J24: ='[1]REQ-SVINC-EXDESC'!J8 -> -6.3291 | K24: ='[1]REQ-SVINC-EXDESC'!K8 -> 66 | L24: ='[1]REQ-SVINC-EXDESC'!L8 -> -19 | M24: ='[1]REQ-SVINC-EXDESC'!M8 -> -22.3529 | N24: ='[1]REQ-SVINC-EXDESC'!N8 -> 0 | O24: ='[1]REQ-SVINC-EXDESC'!O8 -> 0 | P24: ='[1]REQ-SVINC-EXDESC'!P8 -> ** | R24: ='[1]APOS-PENS'!A8 -> 2011 | S24: ='[1]APOS-PENS'!B8 -> 793 | T24: ='[1]APOS-PENS'!C8 -> -23 | U24: ='[1]APOS-PENS'!D8 -> -2.8186 | V24: ='[1]APOS-PENS'!E8 -> 815 | W24: ='[1]APOS-PENS'!F8 -> -11 | X24: ='[1]APOS-PENS'!G8 -> -1.3317
A25: ='[1]REQ-SVINC-EXDESC'!A9 -> 2012 | B25: ='[1]REQ-SVINC-EXDESC'!B9 -> 52 | C25: ='[1]REQ-SVINC-EXDESC'!C9 -> 3 | D25: ='[1]REQ-SVINC-EXDESC'!D9 -> 6.1224 | E25: ='[1]REQ-SVINC-EXDESC'!E9 -> 30 | F25: ='[1]REQ-SVINC-EXDESC'!F9 -> -2 | G25: ='[1]REQ-SVINC-EXDESC'!G9 -> -6.2500 | H25: ='[1]REQ-SVINC-EXDESC'!H9 -> 150 | I25: ='[1]REQ-SVINC-EXDESC'!I9 -> 2 | J25: ='[1]REQ-SVINC-EXDESC'!J9 -> 1.3514 | K25: ='[1]REQ-SVINC-EXDESC'!K9 -> 138 | L25: ='[1]REQ-SVINC-EXDESC'!L9 -> 72 | M25: ='[1]REQ-SVINC-EXDESC'!M9 -> 109.0909 | N25: ='[1]REQ-SVINC-EXDESC'!N9 -> 0 | O25: ='[1]REQ-SVINC-EXDESC'!O9 -> 0 | P25: ='[1]REQ-SVINC-EXDESC'!P9 -> ** | R25: ='[1]APOS-PENS'!A9 -> 2012 | S25: ='[1]APOS-PENS'!B9 -> 765 | T25: ='[1]APOS-PENS'!C9 -> -28 | U25: ='[1]APOS-PENS'!D9 -> -3.5309 | V25: ='[1]APOS-PENS'!E9 -> 802 | W25: ='[1]APOS-PENS'!F9 -> -13 | X25: ='[1]APOS-PENS'!G9 -> -1.5951
A26: ='[1]REQ-SVINC-EXDESC'!A10 -> 2013 | B26: ='[1]REQ-SVINC-EXDESC'!B10 -> 48 | C26: ='[1]REQ-SVINC-EXDESC'!C10 -> -4 | D26: ='[1]REQ-SVINC-EXDESC'!D10 -> -7.6923 | E26: ='[1]REQ-SVINC-EXDESC'!E10 -> 32 | F26: ='[1]REQ-SVINC-EXDESC'!F10 -> 2 | G26: ='[1]REQ-SVINC-EXDESC'!G10 -> 6.6667 | H26: ='[1]REQ-SVINC-EXDESC'!H10 -> 150 | I26: ='[1]REQ-SVINC-EXDESC'!I10 -> 0 | J26: ='[1]REQ-SVINC-EXDESC'!J10 -> 0.0000 | K26: ='[1]REQ-SVINC-EXDESC'!K10 -> 133 | L26: ='[1]REQ-SVINC-EXDESC'!L10 -> -5 | M26: ='[1]REQ-SVINC-EXDESC'!M10 -> -3.6232 | N26: ='[1]REQ-SVINC-EXDESC'!N10 -> 4 | O26: ='[1]REQ-SVINC-EXDESC'!O10 -> 4 | P26: ='[1]REQ-SVINC-EXDESC'!P10 -> ** | R26: ='[1]APOS-PENS'!A10 -> 2013 | S26: ='[1]APOS-PENS'!B10 -> 727 | T26: ='[1]APOS-PENS'!C10 -> -38 | U26: ='[1]APOS-PENS'!D10 -> -4.9673 | V26: ='[1]APOS-PENS'!E10 -> 796 | W26: ='[1]APOS-PENS'!F10 -> -6 | X26: ='[1]APOS-PENS'!G10 -> -0.7481
A27: ='[1]REQ-SVINC-EXDESC'!A11 -> 2014 | B27: ='[1]REQ-SVINC-EXDESC'!B11 -> 43 | C27: ='[1]REQ-SVINC-EXDESC'!C11 -> -5 | D27: ='[1]REQ-SVINC-EXDESC'!D11 -> -10.4167 | E27: ='[1]REQ-SVINC-EXDESC'!E11 -> 37 | F27: ='[1]REQ-SVINC-EXDESC'!F11 -> 5 | G27: ='[1]REQ-SVINC-EXDESC'!G11 -> 15.6250 | H27: ='[1]REQ-SVINC-EXDESC'!H11 -> 154 | I27: ='[1]REQ-SVINC-EXDESC'!I11 -> 4 | J27: ='[1]REQ-SVINC-EXDESC'!J11 -> 2.6667 | K27: ='[1]REQ-SVINC-EXDESC'!K11 -> 118 | L27: ='[1]REQ-SVINC-EXDESC'!L11 -> -15 | M27: ='[1]REQ-SVINC-EXDESC'!M11 -> -11.2782 | N27: ='[1]REQ-SVINC-EXDESC'!N11 -> 7 | O27: ='[1]REQ-SVINC-EXDESC'!O11 -> 3 | P27: ='[1]REQ-SVINC-EXDESC'!P11 -> 75.0000 | R27: ='[1]APOS-PENS'!A11 -> 2014 | S27: ='[1]APOS-PENS'!B11 -> 696 | T27: ='[1]APOS-PENS'!C11 -> -31 | U27: ='[1]APOS-PENS'!D11 -> -4.2641 | V27: ='[1]APOS-PENS'!E11 -> 788 | W27: ='[1]APOS-PENS'!F11 -> -8 | X27: ='[1]APOS-PENS'!G11 -> -1.0050
A28: ='[1]REQ-SVINC-EXDESC'!A12 -> 2015 | B28: ='[1]REQ-SVINC-EXDESC'!B12 -> 41 | C28: ='[1]REQ-SVINC-EXDESC'!C12 -> -2 | D28: ='[1]REQ-SVINC-EXDESC'!D12 -> -4.6512 | E28: ='[1]REQ-SVINC-EXDESC'!E12 -> 32 | F28: ='[1]REQ-SVINC-EXDESC'!F12 -> -5 | G28: ='[1]REQ-SVINC-EXDESC'!G12 -> -13.5135 | H28: ='[1]REQ-SVINC-EXDESC'!H12 -> 152 | I28: ='[1]REQ-SVINC-EXDESC'!I12 -> -2 | J28: ='[1]REQ-SVINC-EXDESC'!J12 -> -1.2987 | K28: ='[1]REQ-SVINC-EXDESC'!K12 -> 109 | L28: ='[1]REQ-SVINC-EXDESC'!L12 -> -9 | M28: ='[1]REQ-SVINC-EXDESC'!M12 -> -7.6271 | N28: ='[1]REQ-SVINC-EXDESC'!N12 -> 7 | O28: ='[1]REQ-SVINC-EXDESC'!O12 -> 0 | P28: ='[1]REQ-SVINC-EXDESC'!P12 -> 0.0000 | R28: ='[1]APOS-PENS'!A12 -> 2015 | S28: ='[1]APOS-PENS'!B12 -> 681 | T28: ='[1]APOS-PENS'!C12 -> -15 | U28: ='[1]APOS-PENS'!D12 -> -2.1552 | V28: ='[1]APOS-PENS'!E12 -> 768 | W28: ='[1]APOS-PENS'!F12 -> -20 | X28: ='[1]APOS-PENS'!G12 -> -2.5381
A29: ='[1]REQ-SVINC-EXDESC'!A13 -> 2016 | B29: ='[1]REQ-SVINC-EXDESC'!B13 -> 26 | C29: ='[1]REQ-SVINC-EXDESC'!C13 -> -15 | D29: ='[1]REQ-SVINC-EXDESC'!D13 -> -36.5854 | E29: ='[1]REQ-SVINC-EXDESC'!E13 -> 28 | F29: ='[1]REQ-SVINC-EXDESC'!F13 -> -4 | G29: ='[1]REQ-SVINC-EXDESC'!G13 -> -12.5000 | H29: ='[1]REQ-SVINC-EXDESC'!H13 -> 129 | I29: ='[1]REQ-SVINC-EXDESC'!I13 -> -23 | J29: ='[1]REQ-SVINC-EXDESC'!J13 -> -15.1316 | K29: ='[1]REQ-SVINC-EXDESC'!K13 -> 105 | L29: ='[1]REQ-SVINC-EXDESC'!L13 -> -4 | M29: ='[1]REQ-SVINC-EXDESC'!M13 -> -3.6697 | N29: ='[1]REQ-SVINC-EXDESC'!N13 -> 7 | O29: ='[1]REQ-SVINC-EXDESC'!O13 -> 0 | P29: ='[1]REQ-SVINC-EXDESC'!P13 -> 0.0000 | R29: ='[1]APOS-PENS'!A13 -> 2016 | S29: ='[1]APOS-PENS'!B13 -> 660 | T29: ='[1]APOS-PENS'!C13 -> -21 | U29: ='[1]APOS-PENS'!D13 -> -3.0837 | V29: ='[1]APOS-PENS'!E13 -> 755 | W29: ='[1]APOS-PENS'!F13 -> -13 | X29: ='[1]APOS-PENS'!G13 -> -1.6927
A30: ='[1]REQ-SVINC-EXDESC'!A14 -> 2017 | B30: ='[1]REQ-SVINC-EXDESC'!B14 -> 20 | C30: ='[1]REQ-SVINC-EXDESC'!C14 -> -6 | D30: ='[1]REQ-SVINC-EXDESC'!D14 -> -23.0769 | E30: ='[1]REQ-SVINC-EXDESC'!E14 -> 37 | F30: ='[1]REQ-SVINC-EXDESC'!F14 -> 9 | G30: ='[1]REQ-SVINC-EXDESC'!G14 -> 32.1429 | H30: ='[1]REQ-SVINC-EXDESC'!H14 -> 137 | I30: ='[1]REQ-SVINC-EXDESC'!I14 -> 8 | J30: ='[1]REQ-SVINC-EXDESC'!J14 -> 6.2016 | K30: ='[1]REQ-SVINC-EXDESC'!K14 -> 104 | L30: ='[1]REQ-SVINC-EXDESC'!L14 -> -1 | M30: ='[1]REQ-SVINC-EXDESC'!M14 -> -0.9524 | N30: ='[1]REQ-SVINC-EXDESC'!N14 -> 9 | O30: ='[1]REQ-SVINC-EXDESC'!O14 -> 2 | P30: ='[1]REQ-SVINC-EXDESC'!P14 -> 28.5714 | R30: ='[1]APOS-PENS'!A14 -> 2017 | S30: ='[1]APOS-PENS'!B14 -> 650 | T30: ='[1]APOS-PENS'!C14 -> -10 | U30: ='[1]APOS-PENS'!D14 -> -1.5152 | V30: ='[1]APOS-PENS'!E14 -> 722 | W30: ='[1]APOS-PENS'!F14 -> -33 | X30: ='[1]APOS-PENS'!G14 -> -4.3709
A31: ='[1]REQ-SVINC-EXDESC'!A15 -> 2018 | B31: ='[1]REQ-SVINC-EXDESC'!B15 -> 12 | C31: ='[1]REQ-SVINC-EXDESC'!C15 -> -8 | D31: ='[1]REQ-SVINC-EXDESC'!D15 -> -40.0000 | E31: ='[1]REQ-SVINC-EXDESC'!E15 -> 40 | F31: ='[1]REQ-SVINC-EXDESC'!F15 -> 3 | G31: ='[1]REQ-SVINC-EXDESC'!G15 -> 8.1081 | H31: ='[1]REQ-SVINC-EXDESC'!H15 -> 138 | I31: ='[1]REQ-SVINC-EXDESC'!I15 -> 1 | J31: ='[1]REQ-SVINC-EXDESC'!J15 -> 0.7299 | K31: ='[1]REQ-SVINC-EXDESC'!K15 -> 102 | L31: ='[1]REQ-SVINC-EXDESC'!L15 -> -2 | M31: ='[1]REQ-SVINC-EXDESC'!M15 -> -1.9231 | N31: ='[1]REQ-SVINC-EXDESC'!N15 -> 5 | O31: ='[1]REQ-SVINC-EXDESC'!O15 -> -4 | P31: ='[1]REQ-SVINC-EXDESC'!P15 -> -44.4444 | R31: ='[1]APOS-PENS'!A15 -> 2018 | S31: ='[1]APOS-PENS'!B15 -> 633 | T31: ='[1]APOS-PENS'!C15 -> -17 | U31: ='[1]APOS-PENS'!D15 -> -2.6154 | V31: ='[1]APOS-PENS'!E15 -> 697 | W31: ='[1]APOS-PENS'!F15 -> -25 | X31: ='[1]APOS-PENS'!G15 -> -3.4626
A32: ='[1]REQ-SVINC-EXDESC'!A16 -> 2019 | B32: ='[1]REQ-SVINC-EXDESC'!B16 -> 9 | C32: ='[1]REQ-SVINC-EXDESC'!C16 -> -3 | D32: ='[1]REQ-SVINC-EXDESC'!D16 -> -25.0000 | E32: ='[1]REQ-SVINC-EXDESC'!E16 -> 62 | F32: ='[1]REQ-SVINC-EXDESC'!F16 -> 22 | G32: ='[1]REQ-SVINC-EXDESC'!G16 -> 55.0000 | H32: ='[1]REQ-SVINC-EXDESC'!H16 -> 125 | I32: ='[1]REQ-SVINC-EXDESC'!I16 -> -13 | J32: ='[1]REQ-SVINC-EXDESC'!J16 -> -9.4203 | K32: ='[1]REQ-SVINC-EXDESC'!K16 -> 95 | L32: ='[1]REQ-SVINC-EXDESC'!L16 -> -7 | M32: ='[1]REQ-SVINC-EXDESC'!M16 -> -6.8627 | N32: ='[1]REQ-SVINC-EXDESC'!N16 -> 4 | O32: ='[1]REQ-SVINC-EXDESC'!O16 -> -1 | P32: ='[1]REQ-SVINC-EXDESC'!P16 -> -20.0000 | R32: ='[1]APOS-PENS'!A16 -> 2019 | S32: ='[1]APOS-PENS'!B16 -> 636 | T32: ='[1]APOS-PENS'!C16 -> 3 | U32: ='[1]APOS-PENS'!D16 -> 0.4739 | V32: ='[1]APOS-PENS'!E16 -> 675 | W32: ='[1]APOS-PENS'!F16 -> -22 | X32: ='[1]APOS-PENS'!G16 -> -3.1564
A33: ='[1]REQ-SVINC-EXDESC'!A17 -> 2020 | B33: ='[1]REQ-SVINC-EXDESC'!B17 -> 5 | C33: ='[1]REQ-SVINC-EXDESC'!C17 -> -4 | D33: ='[1]REQ-SVINC-EXDESC'!D17 -> -44.4444 | E33: ='[1]REQ-SVINC-EXDESC'!E17 -> 71 | F33: ='[1]REQ-SVINC-EXDESC'!F17 -> 9 | G33: ='[1]REQ-SVINC-EXDESC'!G17 -> 14.5161 | H33: ='[1]REQ-SVINC-EXDESC'!H17 -> 119 | I33: ='[1]REQ-SVINC-EXDESC'!I17 -> -6 | J33: ='[1]REQ-SVINC-EXDESC'!J17 -> -4.8000 | K33: ='[1]REQ-SVINC-EXDESC'!K17 -> 88 | L33: ='[1]REQ-SVINC-EXDESC'!L17 -> -7 | M33: ='[1]REQ-SVINC-EXDESC'!M17 -> -7.3684 | N33: ='[1]REQ-SVINC-EXDESC'!N17 -> 3 | O33: ='[1]REQ-SVINC-EXDESC'!O17 -> -1 | P33: ='[1]REQ-SVINC-EXDESC'!P17 -> -25.0000 | R33: ='[1]APOS-PENS'!A17 -> 2020 | S33: ='[1]APOS-PENS'!B17 -> 613 | T33: ='[1]APOS-PENS'!C17 -> -23 | U33: ='[1]APOS-PENS'!D17 -> -3.6164 | V33: ='[1]APOS-PENS'!E17 -> 649 | W33: ='[1]APOS-PENS'!F17 -> -26 | X33: ='[1]APOS-PENS'!G17 -> -3.8519

Sheet PCOMISSÃO
M12: CGRH/MME

Sheet NOMEADOSFUNÇÃO
A2: MINISTÉRIO DE MINAS E ENERGIA - MME
A3: UNIDADE | B3: DENOMINAÇÃO CARGO/FUNÇÃO | C3: NE/DAS/FCPE | D3: NÍVEL DA FUNÇÃO | E3: SERVIDOR | F3: SEXO | G3: SITUAÇÃO | H3: ORIGEM | I3: ATO DE NOMEAÇÃO | J3: SUBSTITUTO EVENTUAL | K3: DESIGNAÇÃO | L3: Alteração de local de exercício | M3: ID FUNÇÃO | N3: ID SUBSTITUIÇÃO
A4: MME | B4: Ministro de Estado | C4: NE | D4: GER | E4: BENTO COSTA LIMA LEITE DE ALBUQUERQUE JUNIOR | F4: M | G4: Sem Vínculo | H4: Sem Vínculo | I4: Portaria nº Inciso III do art. 1º do Decreto nº8.851 de 20/09/2016 - DOU de 21/09/2019, de 14/03/2017 - DOU de 16/03/2017 - Ret. 17/03/2017 | J4: MARISETE FATIMA DADALD PEREIRA | K4: Portaria nº Inciso III do art. 1º do Decreto nº8.851 de 20/09/2016 - DOU de 21/09/2019, de 14/03/2017 - DOU de 16/03/2017 - Ret. 17/03/2017 | L4: - | M4: MIN01 | N4: MIN01S
A7: ESCRITÓRIO DE REPRESENTAÇÃO RJ
A8: UNIDADE | B8: DENOMINAÇÃO CARGO/FUNÇÃO | C8: NE/DAS/FCPE | D8: NÍVEL DA FUNÇÃO | E8: SERVIDOR | F8: SEXO | G8: SITUAÇÃO | H8: ORIGEM | I8: ATO DE NOMEAÇÃO | J8: SUBSTITUTO EVENTUAL | K8: DESIGNAÇÃO | L8: Alteração de local de exercício | M8: ID FUNÇÃO | N8: ID SUBSTITUIÇÃO
A9: ESCRITÓRIO DE REPRESENTAÇÃO RJ | B9: Chefe de Escritório | C9: DAS 101.4 | D9: GER | E9: =INDEX([1]RELAÇÃO!$A$1:$AQ$576,MATCH($M9,[1]RELAÇÃO!$AP$1:$AP$576,0),1) -> MARCOS ANDRE DOS SANTOS SOEIRO | F9: =IF(E9=0,"-",LEFT(INDEX([1]RELAÇÃO!$A$1:$AQ$576,MATCH($M9,[1]RELAÇÃO!$AP$1:$AP$576,0),32),1)) -> M | G9: =IF(E9=0,"-",INDEX([1]RELAÇÃO!$A$1:$AQ$576,MATCH($M9,[1]RELAÇÃO!$AP$1:$AP$576,0),5)) -> Requisitado Militar | H9: =IF(E9=0,"-",INDEX([1]RELAÇÃO!$A$1:$AQ$576,MATCH($M9,[1]RELAÇÃO!$AP$1:$AP$576,0),6)) -> Marinha | I9: =IF(B9=0,"-",INDEX([1]RELAÇÃO!$A$1:$AQ$576,MATCH($M9,[1]RELAÇÃO!$AP$1:$AP$576,0),12)&INDEX([1]RELAÇÃO!$A$1:$AQ$576,MATCH($M9,[1]RELAÇÃO!$AP$1:$AP$576,0),13)&", de "&INDEX([1]RELAÇÃO!$A$1:$AQ$576,MATCH($M9,[1]RELAÇÃO!$AP$1:$AP$576,0),14)&" - "&INDEX([1]RELAÇÃO!$A$1:$AQ$576,MATCH($M9,[1]RELAÇÃO!$AP$1:$AP$576,0),16)&" de "&INDEX([1]RELAÇÃO!$A$1:$AQ$576,MATCH($M9,[1]RELAÇÃO!$AP$1:$AP$576,0),15)) -> Portaria nº 269, de 01/07/2020 - DOU de 02/07/2020 | J9: =INDEX([1]RELAÇÃO!$A$1:$AQ$576,MATCH($N9,[1]RELAÇÃO!$AQ$1:$AQ$576,0),1) -> 0 | K9: =IF(J9=0,"-",INDEX([1]RELAÇÃO!$A$1:$AQ$576,MATCH($N9,[1]RELAÇÃO!$AQ$1:$AQ$576,0),27)&INDEX([1]RELAÇÃO!$A$1:$AQ$576,MATCH($N9,[1]RELAÇÃO!$AQ$1:$AQ$576,0),28)&", de "&INDEX([1]RELAÇÃO!$A$1:$AQ$576,MATCH($N9,[1]RELAÇÃO!$AQ$1:$AQ$576,0),29)&" - "&INDEX([1]RELAÇÃO!$A$1:$AQ$576,MATCH($N9,[1]RELAÇÃO!$AQ$1:$AQ$576,0),31)&" de "&INDEX([1]RELAÇÃO!$A$1:$AQ$576,MATCH($N9,[1]RELAÇÃO!$AQ$1:$AQ$576,0),30)) -> - | L9: =IF($E9=0,"-",IF(INDEX([1]RELAÇÃO!$A$1:$AQ$576,MATCH($M9,[1]RELAÇÃO!$AP$1:$AP$576,0),8)="99.000.000","-",INDEX([1]RELAÇÃO!$A$1:$AQ$576,MATCH($M9,[1]RELAÇÃO!$AP$1:$AP$576,0),7))) -> - | M9: TEMP01 | N9: TEMP01S
B10: Assessor Técnico | C10: DAS 102.3 | D10: ASS | E10: =INDEX([1]RELAÇÃO!$A$1:$AQ$576,MATCH($M10,[1]RELAÇÃO!$AP$1:$AP$576,0),1) -> VINICIUS SALES PEREIRA | F10: =IF(E10=0,"-",LEFT(INDEX([1]RELAÇÃO!$A$1:$AQ$576,MATCH($M10,[1]RELAÇÃO!$AP$1:$AP$576,0),32),1)) -> M | G10: =IF(E10=0,"-",INDEX([1]RELAÇÃO!$A$1:$AQ$576,MATCH($M10,[1]RELAÇÃO!$AP$1:$AP$576,0),5)) -> Requisitado Militar | H10: =IF(E10=0,"-",INDEX([1]RELAÇÃO!$A$1:$AQ$576,MATCH($M10,[1]RELAÇÃO!$AP$1:$AP$576,0),6)) -> Marinha | I10: =IF(B10=0,"-",INDEX([1]RELAÇÃO!$A$1:$AQ$576,MATCH($M10,[1]RELAÇÃO!$AP$1:$AP$576,0),12)&INDEX([1]RELAÇÃO!$A$1:$AQ$576,MATCH($M10,[1]RELAÇÃO!$AP$1:$AP$576,0),13)&", de "&INDEX([1]RELAÇÃO!$A$1:$AQ$576,MATCH($M10,[1]RELAÇÃO!$AP$1:$AP$576,0),14)&" - "&INDEX([1]RELAÇÃO!$A$1:$AQ$576,MATCH($M10,[1]RELAÇÃO!$AP$1:$AP$576,0),16)&" de "&INDEX([1]RELAÇÃO!$A$1:$AQ$576,MATCH($M10,[1]RELAÇÃO!$AP$1:$AP$576,0),15)) -> Portaria nº 287, de 17/07/2020 - DOU de 20/07/2020 | L10: =IF($E10=0,"-",IF(INDEX([1]RELAÇÃO!$A$1:$AQ$576,MATCH($M10,[1]RELAÇÃO!$AP$1:$AP$576,0),8)="99.000.000","-",INDEX([1]RELAÇÃO!$A$1:$AQ$576,MATCH($M10,[1]RELAÇÃO!$AP$1:$AP$576,0),7))) -> - | M10: TEMP02
B11: Assessor Técnico | C11: DAS 102.3 | D11: ASS | E11: =INDEX([1]RELAÇÃO!$A$1:$AQ$576,MATCH($M11,[1]RELAÇÃO!$AP$1:$AP$576,0),1) -> DANIELLE GONCALVES BRITTO | F11: =IF(E11=0,"-",LEFT(INDEX([1]RELAÇÃO!$A$1:$AQ$576,MATCH($M11,[1]RELAÇÃO!$AP$1:$AP$576,0),32),1)) -> F | G11: =IF(E11=0,"-",INDEX([1]RELAÇÃO!$A$1:$AQ$576,MATCH($M11,[1]RELAÇÃO!$AP$1:$AP$576,0),5)) -> Requisitado Militar | H11: =IF(E11=0,"-",INDEX([1]RELAÇÃO!$A$1:$AQ$576,MATCH($M11,[1]RELAÇÃO!$AP$1:$AP$576,0),6)) -> Marinha | I11: =IF(B11=0,"-",INDEX([1]RELAÇÃO!$A$1:$AQ$576,MATCH($M11,[1]RELAÇÃO!$AP$1:$AP$576,0),12)&INDEX([1]RELAÇÃO!$A$1:$AQ$576,MATCH($M11,[1]RELAÇÃO!$AP$1:$AP$576,0),13)&", de "&INDEX([1]RELAÇÃO!$A$1:$AQ$576,MATCH($M11,[1]RELAÇÃO!$AP$1:$AP$576,0),14)&" - "&INDEX([1]RELAÇÃO!$A$1:$AQ$576,MATCH($M11,[1]RELAÇÃO!$AP$1:$AP$576,0),16)&" de "&INDEX([1]RELAÇÃO!$A$1:$AQ$576,MATCH($M11,[1]RELAÇÃO!$AP$1:$AP$576,0),15)) -> Portaria nº 270, de 01/07/2020 - DOU de 02/07/2020 | L11: =IF($E11=0,"-",IF(INDEX([1]RELAÇÃO!$A$1:$AQ$576,MATCH($M11,[1]RELAÇÃO!$AP$1:$AP$576,0),8)="99.000.000","-",INDEX([1]RELAÇÃO!$A$1:$AQ$576,MATCH($M11,[1]RELAÇÃO!$AP$1:$AP$576,0),7))) -> - | M11: TEMP03
B12: Assessor Técnico | C12: DAS 102.3 | D12: ASS | E12: =INDEX([1]RELAÇÃO!$A$1:$AQ$576,MATCH($M12,[1]RELAÇÃO!$AP$1:$AP$576,0),1) -> RAIMUNDO WANGLER VIANA SERRAO | F12: =IF(E12=0,"-",LEFT(INDEX([1]RELAÇÃO!$A$1:$AQ$576,MATCH($M12,[1]RELAÇÃO!$AP$1:$AP$576,0),32),1)) -> M | G12: =IF(E12=0,"-",INDEX([1]RELAÇÃO!$A$1:$AQ$576,MATCH($M12,[1]RELAÇÃO!$AP$1:$AP$576,0),5)) -> Requisitado Militar | H12: =IF(E12=0,"-",INDEX([1]RELAÇÃO!$A$1:$AQ$576,MATCH($M12,[1]RELAÇÃO!$AP$1:$AP$576,0),6)) -> Marinha | I12: =IF(B12=0,"-",INDEX([1]RELAÇÃO!$A$1:$AQ$576,MATCH($M12,[1]RELAÇÃO!$AP$1:$AP$576,0),12)&INDEX([1]RELAÇÃO!$A$1:$AQ$576,MATCH($M12,[1]RELAÇÃO!$AP$1:$AP$576,0),13)&", de "&INDEX([1]RELAÇÃO!$A$1:$AQ$576,MATCH($M12,[1]RELAÇÃO!$AP$1:$AP$576,0),14)&" - "&INDEX([1]RELAÇÃO!$A$1:$AQ$576,MATCH($M12,[1]RELAÇÃO!$AP$1:$AP$576,0),16)&" de "&INDEX([1]RELAÇÃO!$A$1:$AQ$576,MATCH($M12,[1]RELAÇÃO!$AP$1:$AP$576,0),15)) -> Portaria nº 271, de 01/07/2020 - DOU de 02/07/2020 | L12: =IF($E12=0,"-",IF(INDEX([1]RELAÇÃO!$A$1:$AQ$576,MATCH($M12,[1]RELAÇÃO!$AP$1:$AP$576,0),8)="99.000.000","-",INDEX([1]RELAÇÃO!$A$1:$AQ$576,MATCH($M12,[1]RELAÇÃO!$AP$1:$AP$576,0),7))) -> - | M12: TEMP04
A14: GABINETE DO MINISTRO - GM
A15: UNIDADE | B15: DENOMINAÇÃO CARGO/FUNÇÃO | C15: NE/DAS/FCPE | D15: NÍVEL DA FUNÇÃO | E15: SERVIDOR | F15: SEXO | G15: SITUAÇÃO | H15: ORIGEM | I15: ATO DE NOMEAÇÃO | J15: SUBSTITUTO EVENTUAL | K15: DESIGNAÇÃO | L15: Alteração de local de exercício | M15: ID FUNÇÃO | N15: ID SUBSTITUIÇÃO
A16: ASSESSORES DO MINISTRO | B16: Assessor Especial | C16: DAS 102.5 | D16: ASS | E16: =INDEX([1]RELAÇÃO!$A$1:$AQ$576,MATCH($M16,[1]RELAÇÃO!$AP$1:$AP$576,0),1) -> ANTONIO CARLOS RAMOS DE BARROS MELLO | F16: =IF(E16=0,"-",LEFT(INDEX([1]RELAÇÃO!$A$1:$AQ$576,MATCH($M16,[1]RELAÇÃO!$AP$1:$AP$576,0),32),1)) -> M | G16: =IF(E16=0,"-",INDEX([1]RELAÇÃO!$A$1:$AQ$576,MATCH($M16,[1]RELAÇÃO!$AP$1:$AP$576,0),5)) -> Sem Vínculo | H16: =IF(E16=0,"-",INDEX([1]RELAÇÃO!$A$1:$AQ$576,MATCH($M16,[1]RELAÇÃO!$AP$1:$AP$576,0),6)) -> Sem Vínculo | I16: =IF(E16=0,"-",INDEX([1]RELAÇÃO!$A$1:$AQ$576,MATCH($M16,[1]RELAÇÃO!$AP$1:$AP$576,0),12)&INDEX([1]RELAÇÃO!$A$1:$AQ$576,MATCH($M16,[1]RELAÇÃO!$AP$1:$AP$576,0),13)&", de "&INDEX([1]RELAÇÃO!$A$1:$AQ$576,MATCH($M16,[1]RELAÇÃO!$AP$1:$AP$576,0),14)&" - "&INDEX([1]RELAÇÃO!$A$1:$AQ$576,MATCH($M16,[1]RELAÇÃO!$AP$1:$AP$576,0),16)&" de "&INDEX([1]RELAÇÃO!$A$1:$AQ$576,MATCH($M16,[1]RELAÇÃO!$AP$1:$AP$576,0),15)) -> Portaria nº 524, de 03/11/2016 - DOU de 04/11/2016 | L16: =IF($E16=0,"-",IF(INDEX([1]RELAÇÃO!$A$1:$AQ$576,MATCH($M16,[1]RELAÇÃO!$AP$1:$AP$576,0),8)="2.000.000","-",INDEX([1]RELAÇÃO!$A$1:$AQ$576,MATCH($M16,[1]RELAÇÃO!$AP$1:$AP$576,0),7))) -> - | M16: GM01
B17: Assessor Especial | C17: DAS 102.5 | D17: ASS | E17: =INDEX([1]RELAÇÃO!$A$1:$AQ$576,MATCH($M17,[1]RELAÇÃO!$AP$1:$AP$576,0),1) -> CESAR FERREIRA BORGES | F17: =IF(E17=0,"-",LEFT(INDEX([1]RELAÇÃO!$A$1:$AQ$576,MATCH($M17,[1]RELAÇÃO!$AP$1:$AP$576,0),32),1)) -> M | G17: =IF(E17=0,"-",INDEX([1]RELAÇÃO!$A$1:$AQ$576,MATCH($M17,[1]RELAÇÃO!$AP$1:$AP$576,0),5)) -> Sem Vínculo | H17: =IF(E17=0,"-",INDEX([1]RELAÇÃO!$A$1:$AQ$576,MATCH($M17,[1]RELAÇÃO!$AP$1:$AP$576,0),6)) -> Sem Vínculo | I17: =IF(E17=0,"-",INDEX([1]RELAÇÃO!$A$1:$AQ$576,MATCH($M17,[1]RELAÇÃO!$AP$1:$AP$576,0),12)&INDEX([1]RELAÇÃO!$A$1:$AQ$576,MATCH($M17,[1]RELAÇÃO!$AP$1:$AP$576,0),13)&", de "&INDEX([1]RELAÇÃO!$A$1:$AQ$576,MATCH($M17,[1]RELAÇÃO!$AP$1:$AP$576,0),14)&" - "&INDEX([1]RELAÇÃO!$A$1:$AQ$576,MATCH($M17,[1]RELAÇÃO!$AP$1:$AP$576,0),16)&" de "&INDEX([1]RELAÇÃO!$A$1:$AQ$576,MATCH($M17,[1]RELAÇÃO!$AP$1:$AP$576,0),15)) -> Portaria nº 556, de 30/05/2017 - DOU de 31/05/2017 | L17: =IF($E17=0,"-",IF(INDEX([1]RELAÇÃO!$A$1:$AQ$576,MATCH($M17,[1]RELAÇÃO!$AP$1:$AP$576,0),8)="2.000.000","-",INDEX([1]RELAÇÃO!$A$1:$AQ$576,MATCH($M17,[1]RELAÇÃO!$AP$1:$AP$576,0),7))) -> GM / ASSESSORIA DE COMUNICAÇÃO SOCIAL - ASCOM | M17: GM02
B18: Assessor Especial | C18: DAS 102.5 | D18: ASS | E18: =INDEX([1]RELAÇÃO!$A$1:$AQ$576,MATCH($M18,[1]RELAÇÃO!$AP$1:$AP$576,0),1) -> ANA PAULA ALVES DE SOUZA | F18: =IF(E18=0,"-",LEFT(INDEX([1]RELAÇÃO!$A$1:$AQ$576,MATCH($M18,[1]RELAÇÃO!$AP$1:$AP$576,0),32),1)) -> F | G18: =IF(E18=0,"-",INDEX([1]RELAÇÃO!$A$1:$AQ$576,MATCH($M18,[1]RELAÇÃO!$AP$1:$AP$576,0),5)) -> Requisitado Militar | H18: =IF(E18=0,"-",INDEX([1]RELAÇÃO!$A$1:$AQ$576,MATCH($M18,[1]RELAÇÃO!$AP$1:$AP$576,0),6)) -> Marinha | I18: =IF(E18=0,"-",INDEX([1]RELAÇÃO!$A$1:$AQ$576,MATCH($M18,[1]RELAÇÃO!$AP$1:$AP$576,0),12)&INDEX([1]RELAÇÃO!$A$1:$AQ$576,MATCH($M18,[1]RELAÇÃO!$AP$1:$AP$576,0),13)&", de "&INDEX([1]RELAÇÃO!$A$1:$AQ$576,MATCH($M18,[1]RELAÇÃO!$AP$1:$AP$576,0),14)&" - "&INDEX([1]RELAÇÃO!$A$1:$AQ$576,MATCH($M18,[1]RELAÇÃO!$AP$1:$AP$576,0),16)&" de "&INDEX([1]RELAÇÃO!$A$1:$AQ$576,MATCH($M18,[1]RELAÇÃO!$AP$1:$AP$576,0),15)) -> Portaria nº 75, de 02/03/2020 - DOU de 04/03/2020 | L18: =IF($E18=0,"-",IF(INDEX([1]RELAÇÃO!$A$1:$AQ$576,MATCH($M18,[1]RELAÇÃO!$AP$1:$AP$576,0),8)="2.000.000","-",INDEX([1]RELAÇÃO!$A$1:$AQ$576,MATCH($M18,[1]RELAÇÃO!$AP$1:$AP$576,0),7))) -> - | M18: GM03
B19: Assessor Especial | C19: DAS 102.5 | D19: ASS | E19: =INDEX([1]RELAÇÃO!$A$1:$AQ$576,MATCH($M19,[1]RELAÇÃO!$AP$1:$AP$576,0),1) -> ALAN SAMPAIO SANTOS | F19: =IF(E19=0,"-",LEFT(INDEX([1]RELAÇÃO!$A$1:$AQ$576,MATCH($M19,[1]RELAÇÃO!$AP$1:$AP$576,0),32),1)) -> M | G19: =IF(E19=0,"-",INDEX([1]RELAÇÃO!$A$1:$AQ$576,MATCH($M19,[1]RELAÇÃO!$AP$1:$AP$576,0),5)) -> Sem Vínculo | H19: =IF(E19=0,"-",INDEX([1]RELAÇÃO!$A$1:$AQ$576,MATCH($M19,[1]RELAÇÃO!$AP$1:$AP$576,0),6)) -> Sem Vínculo | I19: =IF(E19=0,"-",INDEX([1]RELAÇÃO!$A$1:$AQ$576,MATCH($M19,[1]RELAÇÃO!$AP$1:$AP$576,0),12)&INDEX([1]RELAÇÃO!$A$1:$AQ$576,MATCH($M19,[1]RELAÇÃO!$AP$1:$AP$576,0),13)&", de "&INDEX([1]RELAÇÃO!$A$1:$AQ$576,MATCH($M19,[1]RELAÇÃO!$AP$1:$AP$576,0),14)&" - "&INDEX([1]RELAÇÃO!$A$1:$AQ$576,MATCH($M19,[1]RELAÇÃO!$AP$1:$AP$576,0),16)&" de "&INDEX([1]RELAÇÃO!$A$1:$AQ$576,MATCH($M19,[1]RELAÇÃO!$AP$1:$AP$576,0),15)) -> Portaria nº 1124, de 08/10/2018 - DOU de 09/10/2018 | L19: =IF($E19=0,"-",IF(INDEX([1]RELAÇÃO!$A$1:$AQ$576,MATCH($M19,[1]RELAÇÃO!$AP$1:$AP$576,0),8)="2.000.000","-",INDEX([1]RELAÇÃO!$A$1:$AQ$576,MATCH($M19,[1]RELAÇÃO!$AP$1:$AP$576,0),7))) -> ASSESSORIA ESPECIAL DE ACOMPANHAMENTO DE POLÍTICAS, ESTRATÉGIAS E DESEMPENHO SETORIAL - AEPED | M19: GM04
B20: Assessor Especial | C20: DAS 102.5 | D20: ASS | E20: =INDEX([1]RELAÇÃO!$A$1:$AQ$576,MATCH($M20,[1]RELAÇÃO!$AP$1:$AP$576,0),1) -> PEDRO HUGO TEIXEIRA DE OLIVEIRA JUNIOR | F20: =IF(E20=0,"-",LEFT(INDEX([1]RELAÇÃO!$A$1:$AQ$576,MATCH($M20,[1]RELAÇÃO!$AP$1:$AP$576,0),32),1)) -> M | G20: =IF(E20=0,"-",INDEX([1]RELAÇÃO!$A$1:$AQ$576,MATCH($M20,[1]RELAÇÃO!$AP$1:$AP$576,0),5)) -> Sem Vínculo | H20: =IF(E20=0,"-",INDEX([1]RELAÇÃO!$A$1:$AQ$576,MATCH($M20,[1]RELAÇÃO!$AP$1:$AP$576,0),6)) -> Sem Vínculo | I20: =IF(E20=0,"-",INDEX([1]RELAÇÃO!$A$1:$AQ$576,MATCH($M20,[1]RELAÇÃO!$AP$1:$AP$576,0),12)&INDEX([1]RELAÇÃO!$A$1:$AQ$576,MATCH($M20,[1]RELAÇÃO!$AP$1:$AP$576,0),13)&", de "&INDEX([1]RELAÇÃO!$A$1:$AQ$576,MATCH($M20,[1]RELAÇÃO!$AP$1:$AP$576,0),14)&" - "&INDEX([1]RELAÇÃO!$A$1:$AQ$576,MATCH($M20,[1]RELAÇÃO!$AP$1:$AP$576,0),16)&" de "&INDEX([1]RELAÇÃO!$A$1:$AQ$576,MATCH($M20,[1]RELAÇÃO!$AP$1:$AP$576,0),15)) -> Portaria nº 623, de 17/01/2019 - DOU de 17/01/2019 | L20: =IF($E20=0,"-",IF(INDEX([1]RELAÇÃO!$A$1:$AQ$576,MATCH($M20,[1]RELAÇÃO!$AP$1:$AP$576,0),8)="2.000.000","-",INDEX([1]RELAÇÃO!$A$1:$AQ$576,MATCH($M20,[1]RELAÇÃO!$AP$1:$AP$576,0),7))) -> GM / ASSESSORIA PARLAMENTAR - ASPAR | M20: GM05
B21: Diretor de Programa | C21: DAS 101.5 | D21: GER | E21: =INDEX([1]RELAÇÃO!$A$1:$AQ$576,MATCH($M21,[1]RELAÇÃO!$AP$1:$AP$576,0),1) -> RENATA ROSADA DA SILVA | F21: =IF(E21=0,"-",LEFT(INDEX([1]RELAÇÃO!$A$1:$AQ$576,MATCH($M21,[1]RELAÇÃO!$AP$1:$AP$576,0),32),1)) -> F | G21: =IF(E21=0,"-",INDEX([1]RELAÇÃO!$A$1:$AQ$576,MATCH($M21,[1]RELAÇÃO!$AP$1:$AP$576,0),5)) -> Requisitado de Órgãos | H21: =IF(E21=0,"-",INDEX([1]RELAÇÃO!$A$1:$AQ$576,MATCH($M21,[1]RELAÇÃO!$AP$1:$AP$576,0),6)) -> ANEEL - Agência Nacional de Energia Elétrica | I21: =IF(E21=0,"-",INDEX([1]RELAÇÃO!$A$1:$AQ$576,MATCH($M21,[1]RELAÇÃO!$AP$1:$AP$576,0),12)&INDEX([1]RELAÇÃO!$A$1:$AQ$576,MATCH($M21,[1]RELAÇÃO!$AP$1:$AP$576,0),13)&", de "&INDEX([1]RELAÇÃO!$A$1:$AQ$576,MATCH($M21,[1]RELAÇÃO!$AP$1:$AP$576,0),14)&" - "&INDEX([1]RELAÇÃO!$A$1:$AQ$576,MATCH($M21,[1]RELAÇÃO!$AP$1:$AP$576,0),16)&" de "&INDEX([1]RELAÇÃO!$A$1:$AQ$576,MATCH($M21,[1]RELAÇÃO!$AP$1:$AP$576,0),15)) -> Portaria nº 597, de 16/01/2019 - DOU de 17/01/2019 | J21: =INDEX([1]RELAÇÃO!$A$1:$AQ$576,MATCH($N21,[1]RELAÇÃO!$AQ$1:$AQ$576,0),1) -> 0 | K21: =IF(J21=0,"-",INDEX([1]RELAÇÃO!$A$1:$AQ$576,MATCH($N21,[1]RELAÇÃO!$AQ$1:$AQ$576,0),27)&INDEX([1]RELAÇÃO!$A$1:$AQ$576,MATCH($N21,[1]RELAÇÃO!$AQ$1:$AQ$576,0),28)&", de "&INDEX([1]RELAÇÃO!$A$1:$AQ$576,MATCH($N21,[1]RELAÇÃO!$AQ$1:$AQ$576,0),29)&" - "&INDEX([1]RELAÇÃO!$A$1:$AQ$576,MATCH($N21,[1]RELAÇÃO!$AQ$1:$AQ$576,0),31)&" de "&INDEX([1]RELAÇÃO!$A$1:$AQ$576,MATCH($N21,[1]RELAÇÃO!$AQ$1:$AQ$576,0),30)) -> - | L21: =IF($E21=0,"-",IF(INDEX([1]RELAÇÃO!$A$1:$AQ$576,MATCH($M21,[1]RELAÇÃO!$AP$1:$AP$576,0),8)="2.000.000","-",INDEX([1]RELAÇÃO!$A$1:$AQ$576,MATCH($M21,[1]RELAÇÃO!$AP$1:$AP$576,0),7))) -> ASSESSORIA ESPECIAL DE ASSUNTOS ECONÔMICOS - ASSEC | M21: GM06 | N21: GM01S
B22: Diretor de Programa | C22: DAS 101.5 | D22: GER | E22: =INDEX([1]RELAÇÃO!$A$1:$AQ$576,MATCH($M22,[1]RELAÇÃO!$AP$1:$AP$576,0),1) -> 0 | F22: =IF(E22=0,"-",LEFT(INDEX([1]RELAÇÃO!$A$1:$AQ$576,MATCH($M22,[1]RELAÇÃO!$AP$1:$AP$576,0),32),1)) -> - | G22: =IF(E22=0,"-",INDEX([1]RELAÇÃO!$A$1:$AQ$576,MATCH($M22,[1]RELAÇÃO!$AP$1:$AP$576,0),5)) -> - | H22: =IF(E22=0,"-",INDEX([1]RELAÇÃO!$A$1:$AQ$576,MATCH($M22,[1]RELAÇÃO!$AP$1:$AP$576,0),6)) -> - | I22: =IF(E22=0,"-",INDEX([1]RELAÇÃO!$A$1:$AQ$576,MATCH($M22,[1]RELAÇÃO!$AP$1:$AP$576,0),12)&INDEX([1]RELAÇÃO!$A$1:$AQ$576,MATCH($M22,[1]RELAÇÃO!$AP$1:$AP$576,0),13)&", de "&INDEX([1]RELAÇÃO!$A$1:$AQ$576,MATCH($M22,[1]RELAÇÃO!$AP$1:$AP$576,0),14)&" - "&INDEX([1]RELAÇÃO!$A$1:$AQ$576,MATCH($M22,[1]RELAÇÃO!$AP$1:$AP$576,0),16)&" de "&INDEX([1]RELAÇÃO!$A$1:$AQ$576,MATCH($M22,[1]RELAÇÃO!$AP$1:$AP$576,0),15)) -> - | J22: =INDEX([1]RELAÇÃO!$A$1:$AQ$576,MATCH($N22,[1]RELAÇÃO!$AQ$1:$AQ$576,0),1) -> 0 | K22: =IF(J22=0,"-",INDEX([1]RELAÇÃO!$A$1:$AQ$576,MATCH($N22,[1]RELAÇÃO!$AQ$1:$AQ$576,0),27)&INDEX([1]RELAÇÃO!$A$1:$AQ$576,MATCH($N22,[1]RELAÇÃO!$AQ$1:$AQ$576,0),28)&", de "&INDEX([1]RELAÇÃO!$A$1:$AQ$576,MATCH($N22,[1]RELAÇÃO!$AQ$1:$AQ$576,0),29)&" - "&INDEX([1]RELAÇÃO!$A$1:$AQ$576,MATCH($N22,[1]RELAÇÃO!$AQ$1:$AQ$576,0),31)&" de "&INDEX([1]RELAÇÃO!$A$1:$AQ$576,MATCH($N22,[1]RELAÇÃO!$AQ$1:$AQ$576,0),30)) -> - | L22: =IF($E22=0,"-",IF(INDEX([1]RELAÇÃO!$A$1:$AQ$576,MATCH($M22,[1]RELAÇÃO!$AP$1:$AP$576,0),8)="2.000.000","-",INDEX([1]RELAÇÃO!$A$1:$AQ$576,MATCH($M22,[1]RELAÇÃO!$AP$1:$AP$576,0),7))) -> - | M22: GM07 | N22: GM02S
B23: Assessor | C23: DAS 102.4 | D23: ASS | E23: =INDEX([1]RELAÇÃO!$A$1:$AQ$576,MATCH($M23,[1]RELAÇÃO!$AP$1:$AP$576,0),1) -> VALERIA DE JESUS RODRIGUES SOUZA | F23: =IF(E23=0,"-",LEFT(INDEX([1]RELAÇÃO!$A$1:$AQ$576,MATCH($M23,[1]RELAÇÃO!$AP$1:$AP$576,0),32),1)) -> F | G23: =IF(E23=0,"-",INDEX([1]RELAÇÃO!$A$1:$AQ$576,MATCH($M23,[1]RELAÇÃO!$AP$1:$AP$576,0),5)) -> Requisitado Militar | H23: =IF(E23=0,"-",INDEX([1]RELAÇÃO!$A$1:$AQ$576,MATCH($M23,[1]RELAÇÃO!$AP$1:$AP$576,0),6)) -> Marinha | I23: =IF(E23=0,"-",INDEX([1]RELAÇÃO!$A$1:$AQ$576,MATCH($M23,[1]RELAÇÃO!$AP$1:$AP$576,0),12)&INDEX([1]RELAÇÃO!$A$1:$AQ$576,MATCH($M23,[1]RELAÇÃO!$AP$1:$AP$576,0),13)&", de "&INDEX([1]RELAÇÃO!$A$1:$AQ$576,MATCH($M23,[1]RELAÇÃO!$AP$1:$AP$576,0),14)&" - "&INDEX([1]RELAÇÃO!$A$1:$AQ$576,MATCH($M23,[1]RELAÇÃO!$AP$1:$AP$576,0),16)&" de "&INDEX([1]RELAÇÃO!$A$1:$AQ$576,MATCH($M23,[1]RELAÇÃO!$AP$1:$AP$576,0),15)) -> Portaria nº 60, de 24/01/2019 - DOU de 29/01/2019 | L23: =IF($E23=0,"-",IF(INDEX([1]RELAÇÃO!$A$1:$AQ$576,MATCH($M23,[1]RELAÇÃO!$AP$1:$AP$576,0),8)="2.000.000","-",INDEX([1]RELAÇÃO!$A$1:$AQ$576,MATCH($M23,[1]RELAÇÃO!$AP$1:$AP$576,0),7))) -> - | M23: GM08
B24: Assessor | C24: DAS 102.4 | D24: ASS | E24: =INDEX([1]RELAÇÃO!$A$1:$AQ$576,MATCH($M24,[1]RELAÇÃO!$AP$1:$AP$576,0),1) -> JOÃO DE AMORIM LITAIFF JUNIOR | F24: =IF(E24=0,"-",LEFT(INDEX([1]RELAÇÃO!$A$1:$AQ$576,MATCH($M24,[1]RELAÇÃO!$AP$1:$AP$576,0),32),1)) -> M | G24: =IF(E24=0,"-",INDEX([1]RELAÇÃO!$A$1:$AQ$576,MATCH($M24,[1]RELAÇÃO!$AP$1:$AP$576,0),5)) -> Sem Vínculo | H24: =IF(E24=0,"-",INDEX([1]RELAÇÃO!$A$1:$AQ$576,MATCH($M24,[1]RELAÇÃO!$AP$1:$AP$576,0),6)) -> Sem Vínculo | I24: =IF(E24=0,"-",INDEX([1]RELAÇÃO!$A$1:$AQ$576,MATCH($M24,[1]RELAÇÃO!$AP$1:$AP$576,0),12)&INDEX([1]RELAÇÃO!$A$1:$AQ$576,MATCH($M24,[1]RELAÇÃO!$AP$1:$AP$576,0),13)&", de "&INDEX([1]RELAÇÃO!$A$1:$AQ$576,MATCH($M24,[1]RELAÇÃO!$AP$1:$AP$576,0),14)&" - "&INDEX([1]RELAÇÃO!$A$1:$AQ$576,MATCH($M24,[1]RELAÇÃO!$AP$1:$AP$576,0),16)&" de "&INDEX([1]RELAÇÃO!$A$1:$AQ$576,MATCH($M24,[1]RELAÇÃO!$AP$1:$AP$576,0),15)) -> Portaria nº 37, de 17/01/2019 - DOU de 21/01/2019 | L24: =IF($E24=0,"-",IF(INDEX([1]RELAÇÃO!$A$1:$AQ$576,MATCH($M24,[1]RELAÇÃO!$AP$1:$AP$576,0),8)="2.000.000","-",INDEX([1]RELAÇÃO!$A$1:$AQ$576,MATCH($M24,[1]RELAÇÃO!$AP$1:$AP$576,0),7))) -> ASSESSORIA ESPECIAL DE ACOMPANHAMENTO DE POLÍTICAS, ESTRATÉGIAS E DESEMPENHO SETORIAL - AEPED | M24: GM09
B25: Assessor | C25: DAS 102.4 | D25: ASS | E25: =INDEX([1]RELAÇÃO!$A$1:$AQ$576,MATCH($M25,[1]RELAÇÃO!$AP$1:$AP$576,0),1) -> ANDREIA ALVES NASCIMENTO FRAGA | F25: =IF(E25=0,"-",LEFT(INDEX([1]RELAÇÃO!$A$1:$AQ$576,MATCH($M25,[1]RELAÇÃO!$AP$1:$AP$576,0),32),1)) -> F | G25: =IF(E25=0,"-",INDEX([1]RELAÇÃO!$A$1:$AQ$576,MATCH($M25,[1]RELAÇÃO!$AP$1:$AP$576,0),5)) -> Sem Vínculo | H25: =IF(E25=0,"-",INDEX([1]RELAÇÃO!$A$1:$AQ$576,MATCH($M25,[1]RELAÇÃO!$AP$1:$AP$576,0),6)) -> Sem Vínculo | I25: =IF(E25=0,"-",INDEX([1]RELAÇÃO!$A$1:$AQ$576,MATCH($M25,[1]RELAÇÃO!$AP$1:$AP$576,0),12)&INDEX([1]RELAÇÃO!$A$1:$AQ$576,MATCH($M25,[1]RELAÇÃO!$AP$1:$AP$576,0),13)&", de "&INDEX([1]RELAÇÃO!$A$1:$AQ$576,MATCH($M25,[1]RELAÇÃO!$AP$1:$AP$576,0),14)&" - "&INDEX([1]RELAÇÃO!$A$1:$AQ$576,MATCH($M25,[1]RELAÇÃO!$AP$1:$AP$576,0),16)&" de "&INDEX([1]RELAÇÃO!$A$1:$AQ$576,MATCH($M25,[1]RELAÇÃO!$AP$1:$AP$576,0),15)) -> Portaria nº 238, de 03/06/2019 - DOU de 06/06/2019 | L25: =IF($E25=0,"-",IF(INDEX([1]RELAÇÃO!$A$1:$AQ$576,MATCH($M25,[1]RELAÇÃO!$AP$1:$AP$576,0),8)="2.000.000","-",INDEX([1]RELAÇÃO!$A$1:$AQ$576,MATCH($M25,[1]RELAÇÃO!$AP$1:$AP$576,0),7))) -> - | M25: GM10
B26: Assessor | C26: DAS 102.4 | D26: ASS | E26: =INDEX([1]RELAÇÃO!$A$1:$AQ$576,MATCH($M26,[1]RELAÇÃO!$AP$1:$AP$576,0),1) -> EDUARDO SOUZA GRIVOT DE GRAND COURT | F26: =IF(E26=0,"-",LEFT(INDEX([1]RELAÇÃO!$A$1:$AQ$576,MATCH($M26,[1]RELAÇÃO!$AP$1:$AP$576,0),32),1)) -> M | G26: =IF(E26=0,"-",INDEX([1]RELAÇÃO!$A$1:$AQ$576,MATCH($M26,[1]RELAÇÃO!$AP$1:$AP$576,0),5)) -> Sem Vínculo | H26: =IF(E26=0,"-",INDEX([1]RELAÇÃO!$A$1:$AQ$576,MATCH($M26,[1]RELAÇÃO!$AP$1:$AP$576,0),6)) -> S/VÍNCULO | I26: =IF(E26=0,"-",INDEX([1]RELAÇÃO!$A$1:$AQ$576,MATCH($M26,[1]RELAÇÃO!$AP$1:$AP$576,0),12)&INDEX([1]RELAÇÃO!$A$1:$AQ$576,MATCH($M26,[1]RELAÇÃO!$AP$1:$AP$576,0),13)&", de "&INDEX([1]RELAÇÃO!$A$1:$AQ$576,MATCH($M26,[1]RELAÇÃO!$AP$1:$AP$576,0),14)&" - "&INDEX([1]RELAÇÃO!$A$1:$AQ$576,MATCH($M26,[1]RELAÇÃO!$AP$1:$AP$576,0),16)&" de "&INDEX([1]RELAÇÃO!$A$1:$AQ$576,MATCH($M26,[1]RELAÇÃO!$AP$1:$AP$576,0),15)) -> Portaria nº 325, de 27/08/2020 - DOU de 31/08/2020 | L26: =IF($E26=0,"-",IF(INDEX([1]RELAÇÃO!$A$1:$AQ$576,MATCH($M26,[1]RELAÇÃO!$AP$1:$AP$576,0),8)="2.000.000","-",INDEX([1]RELAÇÃO!$A$1:$AQ$576,MATCH($M26,[1]RELAÇÃO!$AP$1:$AP$576,0),7))) -> SE / ASSESSORIA ESPECIAL DE GESTÃO ESTRATÉGICA - AEGE | M26: GM45
B27: Assessor | C27: DAS 102.4 | D27: ASS | E27: =INDEX([1]RELAÇÃO!$A$1:$AQ$576,MATCH($M27,[1]RELAÇÃO!$AP$1:$AP$576,0),1) -> GUSTAVO CERQUEIRA ATAIDE | F27: =IF(E27=0,"-",LEFT(INDEX([1]RELAÇÃO!$A$1:$AQ$576,MATCH($M27,[1]RELAÇÃO!$AP$1:$AP$576,0),32),1)) -> M | G27: =IF(E27=0,"-",INDEX([1]RELAÇÃO!$A$1:$AQ$576,MATCH($M27,[1]RELAÇÃO!$AP$1:$AP$576,0),5)) -> Requisitado de Órgãos | H27: =IF(E27=0,"-",INDEX([1]RELAÇÃO!$A$1:$AQ$576,MATCH($M27,[1]RELAÇÃO!$AP$1:$AP$576,0),6)) -> ME - Ministério da Economia | I27: =IF(E27=0,"-",INDEX([1]RELAÇÃO!$A$1:$AQ$576,MATCH($M27,[1]RELAÇÃO!$AP$1:$AP$576,0),12)&INDEX([1]RELAÇÃO!$A$1:$AQ$576,MATCH($M27,[1]RELAÇÃO!$AP$1:$AP$576,0),13)&", de "&INDEX([1]RELAÇÃO!$A$1:$AQ$576,MATCH($M27,[1]RELAÇÃO!$AP$1:$AP$576,0),14)&" - "&INDEX([1]RELAÇÃO!$A$1:$AQ$576,MATCH($M27,[1]RELAÇÃO!$AP$1:$AP$576,0),16)&" de "&INDEX([1]RELAÇÃO!$A$1:$AQ$576,MATCH($M27,[1]RELAÇÃO!$AP$1:$AP$576,0),15)) -> Portaria nº 366, de 01/10/2020 - DOU de 08/10/2020 | L27: =IF($E27=0,"-",IF(INDEX([1]RELAÇÃO!$A$1:$AQ$576,MATCH($M27,[1]RELAÇÃO!$AP$1:$AP$576,0),8)="2.000.000","-",INDEX([1]RELAÇÃO!$A$1:$AQ$576,MATCH($M27,[1]RELAÇÃO!$AP$1:$AP$576,0),7))) -> SPE / DEPARTAMENTO DE PLANEJAMENTO ENERGÉTICO - DPE | M27: GM46
B28: Assessor | C28: DAS 102.4 | D28: ASS | E28: =INDEX([1]RELAÇÃO!$A$1:$AQ$576,MATCH($M28,[1]RELAÇÃO!$AP$1:$AP$576,0),1) -> 0 | F28: =IF(E28=0,"-",LEFT(INDEX([1]RELAÇÃO!$A$1:$AQ$576,MATCH($M28,[1]RELAÇÃO!$AP$1:$AP$576,0),32),1)) -> - | G28: =IF(E28=0,"-",INDEX([1]RELAÇÃO!$A$1:$AQ$576,MATCH($M28,[1]RELAÇÃO!$AP$1:$AP$576,0),5)) -> - | H28: =IF(E28=0,"-",INDEX([1]RELAÇÃO!$A$1:$AQ$576,MATCH($M28,[1]RELAÇÃO!$AP$1:$AP$576,0),6)) -> - | I28: =IF(E28=0,"-",INDEX([1]RELAÇÃO!$A$1:$AQ$576,MATCH($M28,[1]RELAÇÃO!$AP$1:$AP$576,0),12)&INDEX([1]RELAÇÃO!$A$1:$AQ$576,MATCH($M28,[1]RELAÇÃO!$AP$1:$AP$576,0),13)&", de "&INDEX([1]RELAÇÃO!$A$1:$AQ$576,MATCH($M28,[1]RELAÇÃO!$AP$1:$AP$576,0),14)&" - "&INDEX([1]RELAÇÃO!$A$1:$AQ$576,MATCH($M28,[1]RELAÇÃO!$AP$1:$AP$576,0),16)&" de "&INDEX([1]RELAÇÃO!$A$1:$AQ$576,MATCH($M28,[1]RELAÇÃO!$AP$1:$AP$576,0),15)) -> - | L28: =IF($E28=0,"-",IF(INDEX([1]RELAÇÃO!$A$1:$AQ$576,MATCH($M28,[1]RELAÇÃO!$AP$1:$AP$576,0),8)="2.000.000","-",INDEX([1]RELAÇÃO!$A$1:$AQ$576,MATCH($M28,[1]RELAÇÃO!$AP$1:$AP$576,0),7))) -> - | M28: GM47
B29: Assessor | C29: DAS 102.4 | D29: ASS | E29: =INDEX([1]RELAÇÃO!$A$1:$AQ$576,MATCH($M29,[1]RELAÇÃO!$AP$1:$AP$576,0),1) -> 0 | F29: =IF(E29=0,"-",LEFT(INDEX([1]RELAÇÃO!$A$1:$AQ$576,MATCH($M29,[1]RELAÇÃO!$AP$1:$AP$576,0),32),1)) -> - | G29: =IF(E29=0,"-",INDEX([1]RELAÇÃO!$A$1:$AQ$576,MATCH($M29,[1]RELAÇÃO!$AP$1:$AP$576,0),5)) -> - | H29: =IF(E29=0,"-",INDEX([1]RELAÇÃO!$A$1:$AQ$576,MATCH($M29,[1]RELAÇÃO!$AP$1:$AP$576,0),6)) -> - | I29: =IF(E29=0,"-",INDEX([1]RELAÇÃO!$A$1:$AQ$576,MATCH($M29,[1]RELAÇÃO!$AP$1:$AP$576,0),12)&INDEX([1]RELAÇÃO!$A$1:$AQ$576,MATCH($M29,[1]RELAÇÃO!$AP$1:$AP$576,0),13)&", de "&INDEX([1]RELAÇÃO!$A$1:$AQ$576,MATCH($M29,[1]RELAÇÃO!$AP$1:$AP$576,0),14)&" - "&INDEX([1]RELAÇÃO!$A$1:$AQ$576,MATCH($M29,[1]RELAÇÃO!$AP$1:$AP$576,0),16)&" de "&INDEX([1]RELAÇÃO!$A$1:$AQ$576,MATCH($M29,[1]RELAÇÃO!$AP$1:$AP$576,0),15)) -> - | L29: =IF($E29=0,"-",IF(INDEX([1]RELAÇÃO!$A$1:$AQ$576,MATCH($M29,[1]RELAÇÃO!$AP$1:$AP$576,0),8)="2.000.000","-",INDEX([1]RELAÇÃO!$A$1:$AQ$576,MATCH($M29,[1]RELAÇÃO!$AP$1:$AP$576,0),7))) -> - | M29: GM48
B30: Assessor Técnico | C30: DAS 102.3 | D30: ASS | E30: =INDEX([1]RELAÇÃO!$A$1:$AQ$576,MATCH($M30,[1]RELAÇÃO!$AP$1:$AP$576,0),1) -> 0 | F30: =IF(E30=0,"-",LEFT(INDEX([1]RELAÇÃO!$A$1:$AQ$576,MATCH($M30,[1]RELAÇÃO!$AP$1:$AP$576,0),32),1)) -> - | G30: =IF(E30=0,"-",INDEX([1]RELAÇÃO!$A$1:$AQ$576,MATCH($M30,[1]RELAÇÃO!$AP$1:$AP$576,0),5)) -> - | H30: =IF(E30=0,"-",INDEX([1]RELAÇÃO!$A$1:$AQ$576,MATCH($M30,[1]RELAÇÃO!$AP$1:$AP$576,0),6)) -> - | I30: =IF(E30=0,"-",INDEX([1]RELAÇÃO!$A$1:$AQ$576,MATCH($M30,[1]RELAÇÃO!$AP$1:$AP$576,0),12)&INDEX([1]RELAÇÃO!$A$1:$AQ$576,MATCH($M30,[1]RELAÇÃO!$AP$1:$AP$576,0),13)&", de "&INDEX([1]RELAÇÃO!$A$1:$AQ$576,MATCH($M30,[1]RELAÇÃO!$AP$1:$AP$576,0),14)&" - "&INDEX([1]RELAÇÃO!$A$1:$AQ$576,MATCH($M30,[1]RELAÇÃO!$AP$1:$AP$576,0),16)&" de "&INDEX([1]RELAÇÃO!$A$1:$AQ$576,MATCH($M30,[1]RELAÇÃO!$AP$1:$AP$576,0),15)) -> - | L30: =IF($E30=0,"-",IF(INDEX([1]RELAÇÃO!$A$1:$AQ$576,MATCH($M30,[1]RELAÇÃO!$AP$1:$AP$576,0),8)="2.000.000","-",INDEX([1]RELAÇÃO!$A$1:$AQ$576,MATCH($M30,[1]RELAÇÃO!$AP$1:$AP$576,0),7))) -> - | M30: GM49
B31: Assessor Técnico | C31: DAS 102.3 | D31: ASS | E31: =INDEX([1]RELAÇÃO!$A$1:$AQ$576,MATCH($M31,[1]RELAÇÃO!$AP$1:$AP$576,0),1) -> ANA LUCIA ALVARES ALVES | F31: =IF(E31=0,"-",LEFT(INDEX([1]RELAÇÃO!$A$1:$AQ$576,MATCH($M31,[1]RELAÇÃO!$AP$1:$AP$576,0),32),1)) -> F | G31: =IF(E31=0,"-",INDEX([1]RELAÇÃO!$A$1:$AQ$576,MATCH($M31,[1]RELAÇÃO!$AP$1:$AP$576,0),5)) -> Requisitado de Órgãos | H31: =IF(E31=0,"-",INDEX([1]RELAÇÃO!$A$1:$AQ$576,MATCH($M31,[1]RELAÇÃO!$AP$1:$AP$576,0),6)) -> ME - Ministério da Economia | I31: =IF(E31=0,"-",INDEX([1]RELAÇÃO!$A$1:$AQ$576,MATCH($M31,[1]RELAÇÃO!$AP$1:$AP$576,0),12)&INDEX([1]RELAÇÃO!$A$1:$AQ$576,MATCH($M31,[1]RELAÇÃO!$AP$1:$AP$576,0),13)&", de "&INDEX([1]RELAÇÃO!$A$1:$AQ$576,MATCH($M31,[1]RELAÇÃO!$AP$1:$AP$576,0),14)&" - "&INDEX([1]RELAÇÃO!$A$1:$AQ$576,MATCH($M31,[1]RELAÇÃO!$AP$1:$AP$576,0),16)&" de "&INDEX([1]RELAÇÃO!$A$1:$AQ$576,MATCH($M31,[1]RELAÇÃO!$AP$1:$AP$576,0),15)) -> Portaria nº 319, de 24/08/2020 - DOU de 28/08/2020 | L31: =IF($E31=0,"-",IF(INDEX([1]RELAÇÃO!$A$1:$AQ$576,MATCH($M31,[1]RELAÇÃO!$AP$1:$AP$576,0),8)="2.000.000","-",INDEX([1]RELAÇÃO!$A$1:$AQ$576,MATCH($M31,[1]RELAÇÃO!$AP$1:$AP$576,0),7))) -> SEE / DMSE / COORDENAÇÃO GERAL DE MONITORAMENTO DO DESEMPENHO DO SISTEMA ELÉTRICO | M31: GM50
B32: Assessor Técnico | C32: DAS 102.3 | D32: ASS | E32: =INDEX([1]RELAÇÃO!$A$1:$AQ$576,MATCH($M32,[1]RELAÇÃO!$AP$1:$AP$576,0),1) -> 0 | F32: =IF(E32=0,"-",LEFT(INDEX([1]RELAÇÃO!$A$1:$AQ$576,MATCH($M32,[1]RELAÇÃO!$AP$1:$AP$576,0),32),1)) -> - | G32: =IF(E32=0,"-",INDEX([1]RELAÇÃO!$A$1:$AQ$576,MATCH($M32,[1]RELAÇÃO!$AP$1:$AP$576,0),5)) -> - | H32: =IF(E32=0,"-",INDEX([1]RELAÇÃO!$A$1:$AQ$576,MATCH($M32,[1]RELAÇÃO!$AP$1:$AP$576,0),6)) -> - | I32: =IF(E32=0,"-",INDEX([1]RELAÇÃO!$A$1:$AQ$576,MATCH($M32,[1]RELAÇÃO!$AP$1:$AP$576,0),12)&INDEX([1]RELAÇÃO!$A$1:$AQ$576,MATCH($M32,[1]RELAÇÃO!$AP$1:$AP$576,0),13)&", de "&INDEX([1]RELAÇÃO!$A$1:$AQ$576,MATCH($M32,[1]RELAÇÃO!$AP$1:$AP$576,0),14)&" - "&INDEX([1]RELAÇÃO!$A$1:$AQ$576,MATCH($M32,[1]RELAÇÃO!$AP$1:$AP$576,0),16)&" de "&INDEX([1]RELAÇÃO!$A$1:$AQ$576,MATCH($M32,[1]RELAÇÃO!$AP$1:$AP$576,0),15)) -> - | L32: =IF($E32=0,"-",IF(INDEX([1]RELAÇÃO!$A$1:$AQ$576,MATCH($M32,[1]RELAÇÃO!$AP$1:$AP$576,0),8)="2.000.000","-",INDEX([1]RELAÇÃO!$A$1:$AQ$576,MATCH($M32,[1]RELAÇÃO!$AP$1:$AP$576,0),7))) -> - | M32: GM51
A33: GABINETE DO MINISTRO | B33: Chefe de Gabinete | C33: DAS 101.5 | D33: GER | E33: =INDEX([1]RELAÇÃO!$A$1:$AQ$576,MATCH($M33,[1]RELAÇÃO!$AP$1:$AP$576,0),1) -> JOSE ROBERTO BUENO JUNIOR | F33: =IF(E33=0,"-",LEFT(INDEX([1]RELAÇÃO!$A$1:$AQ$576,MATCH($M33,[1]RELAÇÃO!$AP$1:$AP$576,0),32),1)) -> M | G33: =IF(E33=0,"-",INDEX([1]RELAÇÃO!$A$1:$AQ$576,MATCH($M33,[1]RELAÇÃO!$AP$1:$AP$576,0),5)) -> Sem Vínculo | H33: =IF(E33=0,"-",INDEX([1]RELAÇÃO!$A$1:$AQ$576,MATCH($M33,[1]RELAÇÃO!$AP$1:$AP$576,0),6)) -> Sem Vínculo | I33: =IF(E33=0,"-",INDEX([1]RELAÇÃO!$A$1:$AQ$576,MATCH($M33,[1]RELAÇÃO!$AP$1:$AP$576,0),12)&INDEX([1]RELAÇÃO!$A$1:$AQ$576,MATCH($M33,[1]RELAÇÃO!$AP$1:$AP$576,0),13)&", de "&INDEX([1]RELAÇÃO!$A$1:$AQ$576,MATCH($M33,[1]RELAÇÃO!$AP$1:$AP$576,0),14)&" - "&INDEX([1]RELAÇÃO!$A$1:$AQ$576,MATCH($M33,[1]RELAÇÃO!$AP$1:$AP$576,0),16)&" de "&INDEX([1]RELAÇÃO!$A$1:$AQ$576,MATCH($M33,[1]RELAÇÃO!$AP$1:$AP$576,0),15)) -> Portaria nº 594, de 16/01/2019 - DOU de 17/01/2019 | J33: =INDEX([1]RELAÇÃO!$A$1:$AQ$576,MATCH($N33,[1]RELAÇÃO!$AQ$1:$AQ$576,0),1) -> ANTONIO CARLOS RAMOS DE BARROS MELLO | K33: =IF(J33=0,"-",INDEX([1]RELAÇÃO!$A$1:$AQ$576,MATCH($N33,[1]RELAÇÃO!$AQ$1:$AQ$576,0),27)&INDEX([1]RELAÇÃO!$A$1:$AQ$576,MATCH($N33,[1]RELAÇÃO!$AQ$1:$AQ$576,0),28)&", de "&INDEX([1]RELAÇÃO!$A$1:$AQ$576,MATCH($N33,[1]RELAÇÃO!$AQ$1:$AQ$576,0),29)&" - "&INDEX([1]RELAÇÃO!$A$1:$AQ$576,MATCH($N33,[1]RELAÇÃO!$AQ$1:$AQ$576,0),31)&" de "&INDEX([1]RELAÇÃO!$A$1:$AQ$576,MATCH($N33,[1]RELAÇÃO!$AQ$1:$AQ$576,0),30)) -> Portaria nº 332, de 29/07/2005 - DOU de 01/08/2005 | L33: =IF($E33=0,"-",IF(INDEX([1]RELAÇÃO!$A$1:$AQ$576,MATCH($M33,[1]RELAÇÃO!$AP$1:$AP$576,0),8)="2.100.000","-",INDEX([1]RELAÇÃO!$A$1:$AQ$576,MATCH($M33,[1]RELAÇÃO!$AP$1:$AP$576,0),7))) -> - | M33: GM11 | N33: GM03S
B34: Assessor Técnico | C34: DAS 102.3 | D34: ASS | E34: =INDEX([1]RELAÇÃO!$A$1:$AQ$576,MATCH($M34,[1]RELAÇÃO!$AP$1:$AP$576,0),1) -> JORGE RICARDO KAUTSCHER BENTO | F34: =IF(E34=0,"-",LEFT(INDEX([1]RELAÇÃO!$A$1:$AQ$576,MATCH($M34,[1]RELAÇÃO!$AP$1:$AP$576,0),32),1)) -> M | G34: =IF(E34=0,"-",INDEX([1]RELAÇÃO!$A$1:$AQ$576,MATCH($M34,[1]RELAÇÃO!$AP$1:$AP$576,0),5)) -> Requisitado Militar | H34: =IF(E34=0,"-",INDEX([1]RELAÇÃO!$A$1:$AQ$576,MATCH($M34,[1]RELAÇÃO!$AP$1:$AP$576,0),6)) -> Marinha | I34: =IF(E34=0,"-",INDEX([1]RELAÇÃO!$A$1:$AQ$576,MATCH($M34,[1]RELAÇÃO!$AP$1:$AP$576,0),12)&INDEX([1]RELAÇÃO!$A$1:$AQ$576,MATCH($M34,[1]RELAÇÃO!$AP$1:$AP$576,0),13)&", de "&INDEX([1]RELAÇÃO!$A$1:$AQ$576,MATCH($M34,[1]RELAÇÃO!$AP$1:$AP$576,0),14)&" - "&INDEX([1]RELAÇÃO!$A$1:$AQ$576,MATCH($M34,[1]RELAÇÃO!$AP$1:$AP$576,0),16)&" de "&INDEX([1]RELAÇÃO!$A$1:$AQ$576,MATCH($M34,[1]RELAÇÃO!$AP$1:$AP$576,0),15)) -> Portaria nº 178, de 26/03/2019 - DOU de 28/03/2019 | L34: =IF($E34=0,"-",IF(INDEX([1]RELAÇÃO!$A$1:$AQ$576,MATCH($M34,[1]RELAÇÃO!$AP$1:$AP$576,0),8)="2.100.000","-",INDEX([1]RELAÇÃO!$A$1:$AQ$576,MATCH($M34,[1]RELAÇÃO!$AP$1:$AP$576,0),7))) -> GABINETE DO MINISTRO - GM | M34: GM12
B35: Assistente | C35: DAS 102.2 | D35: ASS | E35: =INDEX([1]RELAÇÃO!$A$1:$AQ$576,MATCH($M35,[1]RELAÇÃO!$AP$1:$AP$576,0),1) -> FRUTUOSO DA SILVA LOREGA NETO | F35: =IF(E35=0,"-",LEFT(INDEX([1]RELAÇÃO!$A$1:$AQ$576,MATCH($M35,[1]RELAÇÃO!$AP$1:$AP$576,0),32),1)) -> M | G35: =IF(E35=0,"-",INDEX([1]RELAÇÃO!$A$1:$AQ$576,MATCH($M35,[1]RELAÇÃO!$AP$1:$AP$576,0),5)) -> Requisitado Militar | H35: =IF(E35=0,"-",INDEX([1]RELAÇÃO!$A$1:$AQ$576,MATCH($M35,[1]RELAÇÃO!$AP$1:$AP$576,0),6)) -> Marinha | I35: =IF(E35=0,"-",INDEX([1]RELAÇÃO!$A$1:$AQ$576,MATCH($M35,[1]RELAÇÃO!$AP$1:$AP$576,0),12)&INDEX([1]RELAÇÃO!$A$1:$AQ$576,MATCH($M35,[1]RELAÇÃO!$AP$1:$AP$576,0),13)&", de "&INDEX([1]RELAÇÃO!$A$1:$AQ$576,MATCH($M35,[1]RELAÇÃO!$AP$1:$AP$576,0),14)&" - "&INDEX([1]RELAÇÃO!$A$1:$AQ$576,MATCH($M35,[1]RELAÇÃO!$AP$1:$AP$576,0),16)&" de "&INDEX([1]RELAÇÃO!$A$1:$AQ$576,MATCH($M35,[1]RELAÇÃO!$AP$1:$AP$576,0),15)) -> Portaria nº 65, de 24/01/2019 - DOU de 29/01/2019 | L35: =IF($E35=0,"-",IF(INDEX([1]RELAÇÃO!$A$1:$AQ$576,MATCH($M35,[1]RELAÇÃO!$AP$1:$AP$576,0),8)="2.100.000","-",INDEX([1]RELAÇÃO!$A$1:$AQ$576,MATCH($M35,[1]RELAÇÃO!$AP$1:$AP$576,0),7))) -> GABINETE DO MINISTRO - GM | M35: GM13
B36: Assistente | C36: FCPE 102.2 | D36: ASS | E36: =INDEX([1]RELAÇÃO!$A$1:$AQ$576,MATCH($M36,[1]RELAÇÃO!$AP$1:$AP$576,0),1) -> ALTAMIRO MOREIRA CALDEIRA | F36: =IF(E36=0,"-",LEFT(INDEX([1]RELAÇÃO!$A$1:$AQ$576,MATCH($M36,[1]RELAÇÃO!$AP$1:$AP$576,0),32),1)) -> M | G36: =IF(E36=0,"-",INDEX([1]RELAÇÃO!$A$1:$AQ$576,MATCH($M36,[1]RELAÇÃO!$AP$1:$AP$576,0),5)) -> Ativo Permanente | H36: =IF(E36=0,"-",INDEX([1]RELAÇÃO!$A$1:$AQ$576,MATCH($M36,[1]RELAÇÃO!$AP$1:$AP$576,0),6)) -> MME - Ministério de Minas e Energia | I36: =IF(E36=0,"-",INDEX([1]RELAÇÃO!$A$1:$AQ$576,MATCH($M36,[1]RELAÇÃO!$AP$1:$AP$576,0),12)&INDEX([1]RELAÇÃO!$A$1:$AQ$576,MATCH($M36,[1]RELAÇÃO!$AP$1:$AP$576,0),13)&", de "&INDEX([1]RELAÇÃO!$A$1:$AQ$576,MATCH($M36,[1]RELAÇÃO!$AP$1:$AP$576,0),14)&" - "&INDEX([1]RELAÇÃO!$A$1:$AQ$576,MATCH($M36,[1]RELAÇÃO!$AP$1:$AP$576,0),16)&" de "&INDEX([1]RELAÇÃO!$A$1:$AQ$576,MATCH($M36,[1]RELAÇÃO!$AP$1:$AP$576,0),15)) -> Portaria nº 524, de 03/11/2016 - BPE de 04/11/2016 | L36: =IF($E36=0,"-",IF(INDEX([1]RELAÇÃO!$A$1:$AQ$576,MATCH($M36,[1]RELAÇÃO!$AP$1:$AP$576,0),8)="2.100.000","-",INDEX([1]RELAÇÃO!$A$1:$AQ$576,MATCH($M36,[1]RELAÇÃO!$AP$1:$AP$576,0),7))) -> GM / ASTAD / COORDENAÇÃO DE ATIVIDADES ADMINISTRATIVAS | M36: GM14
B37: Assistente | C37: FCPE 102.2 | D37: ASS | E37: =INDEX([1]RELAÇÃO!$A$1:$AQ$576,MATCH($M37,[1]RELAÇÃO!$AP$1:$AP$576,0),1) -> ELIS REGINA PIRES GARCIA | F37: =IF(E37=0,"-",LEFT(INDEX([1]RELAÇÃO!$A$1:$AQ$576,MATCH($M37,[1]RELAÇÃO!$AP$1:$AP$576,0),32),1)) -> F | G37: =IF(E37=0,"-",INDEX([1]RELAÇÃO!$A$1:$AQ$576,MATCH($M37,[1]RELAÇÃO!$AP$1:$AP$576,0),5)) -> Ativo Permanente | H37: =IF(E37=0,"-",INDEX([1]RELAÇÃO!$A$1:$AQ$576,MATCH($M37,[1]RELAÇÃO!$AP$1:$AP$576,0),6)) -> MME - Ministério de Minas e Energia | I37: =IF(E37=0,"-",INDEX([1]RELAÇÃO!$A$1:$AQ$576,MATCH($M37,[1]RELAÇÃO!$AP$1:$AP$576,0),12)&INDEX([1]RELAÇÃO!$A$1:$AQ$576,MATCH($M37,[1]RELAÇÃO!$AP$1:$AP$576,0),13)&", de "&INDEX([1]RELAÇÃO!$A$1:$AQ$576,MATCH($M37,[1]RELAÇÃO!$AP$1:$AP$576,0),14)&" - "&INDEX([1]RELAÇÃO!$A$1:$AQ$576,MATCH($M37,[1]RELAÇÃO!$AP$1:$AP$576,0),16)&" de "&INDEX([1]RELAÇÃO!$A$1:$AQ$576,MATCH($M37,[1]RELAÇÃO!$AP$1:$AP$576,0),15)) -> Portaria nº 524, de 03/11/2016 - BPE de 04/11/2016 | L37: =IF($E37=0,"-",IF(INDEX([1]RELAÇÃO!$A$1:$AQ$576,MATCH($M37,[1]RELAÇÃO!$AP$1:$AP$576,0),8)="2.100.000","-",INDEX([1]RELAÇÃO!$A$1:$AQ$576,MATCH($M37,[1]RELAÇÃO!$AP$1:$AP$576,0),7))) -> GM / ASTAD / COORDENAÇÃO DE ATIVIDADES ADMINISTRATIVAS | M37: GM15
B38: Assistente | C38: FCPE 102.2 | D38: ASS | E38: =INDEX([1]RELAÇÃO!$A$1:$AQ$576,MATCH($M38,[1]RELAÇÃO!$AP$1:$AP$576,0),1) -> JORGE GABRIEL MOISÉS FILHO | F38: =IF(E38=0,"-",LEFT(INDEX([1]RELAÇÃO!$A$1:$AQ$576,MATCH($M38,[1]RELAÇÃO!$AP$1:$AP$576,0),32),1)) -> M | G38: =IF(E38=0,"-",INDEX([1]RELAÇÃO!$A$1:$AQ$576,MATCH($M38,[1]RELAÇÃO!$AP$1:$AP$576,0),5)) -> Exercício Descentralizado | H38: =IF(E38=0,"-",INDEX([1]RELAÇÃO!$A$1:$AQ$576,MATCH($M38,[1]RELAÇÃO!$AP$1:$AP$576,0),6)) -> ME - Ministério da Economia | I38: =IF(E38=0,"-",INDEX([1]RELAÇÃO!$A$1:$AQ$576,MATCH($M38,[1]RELAÇÃO!$AP$1:$AP$576,0),12)&INDEX([1]RELAÇÃO!$A$1:$AQ$576,MATCH($M38,[1]RELAÇÃO!$AP$1:$AP$576,0),13)&", de "&INDEX([1]RELAÇÃO!$A$1:$AQ$576,MATCH($M38,[1]RELAÇÃO!$AP$1:$AP$576,0),14)&" - "&INDEX([1]RELAÇÃO!$A$1:$AQ$576,MATCH($M38,[1]RELAÇÃO!$AP$1:$AP$576,0),16)&" de "&INDEX([1]RELAÇÃO!$A$1:$AQ$576,MATCH($M38,[1]RELAÇÃO!$AP$1:$AP$576,0),15)) -> Portaria nº 377, de 30/09/2019 - DOU de 02/10/2019 | L38: =IF($E38=0,"-",IF(INDEX([1]RELAÇÃO!$A$1:$AQ$576,MATCH($M38,[1]RELAÇÃO!$AP$1:$AP$576,0),8)="2.100.000","-",INDEX([1]RELAÇÃO!$A$1:$AQ$576,MATCH($M38,[1]RELAÇÃO!$AP$1:$AP$576,0),7))) -> SE / SPOA / CGOF / COORDENAÇÃO DE ORÇAMENTO - CORC | M38: GM16
A39: Assessoria Técncia e Administrativa do GM | B39: Chefe de Assessoria | C39: DAS 101.4 | D39: GER | E39: =INDEX([1]RELAÇÃO!$A$1:$AQ$576,MATCH($M39,[1]RELAÇÃO!$AP$1:$AP$576,0),1) -> BRENNO LEOPOLDO CAVALCANTE DE PAULA | F39: =IF(E39=0,"-",LEFT(INDEX([1]RELAÇÃO!$A$1:$AQ$576,MATCH($M39,[1]RELAÇÃO!$AP$1:$AP$576,0),32),1)) -> M | G39: =IF(E39=0,"-",INDEX([1]RELAÇÃO!$A$1:$AQ$576,MATCH($M39,[1]RELAÇÃO!$AP$1:$AP$576,0),5)) -> Sem Vínculo | H39: =IF(E39=0,"-",INDEX([1]RELAÇÃO!$A$1:$AQ$576,MATCH($M39,[1]RELAÇÃO!$AP$1:$AP$576,0),6)) -> Sem Vínculo | I39: =IF(E39=0,"-",INDEX([1]RELAÇÃO!$A$1:$AQ$576,MATCH($M39,[1]RELAÇÃO!$AP$1:$AP$576,0),12)&INDEX([1]RELAÇÃO!$A$1:$AQ$576,MATCH($M39,[1]RELAÇÃO!$AP$1:$AP$576,0),13)&", de "&INDEX([1]RELAÇÃO!$A$1:$AQ$576,MATCH($M39,[1]RELAÇÃO!$AP$1:$AP$576,0),14)&" - "&INDEX([1]RELAÇÃO!$A$1:$AQ$576,MATCH($M39,[1]RELAÇÃO!$AP$1:$AP$576,0),16)&" de "&INDEX([1]RELAÇÃO!$A$1:$AQ$576,MATCH($M39,[1]RELAÇÃO!$AP$1:$AP$576,0),15)) -> Portaria nº 450, de 23/11/2017 - DOU de 27/11/2017 | J39: =INDEX([1]RELAÇÃO!$A$1:$AQ$576,MATCH($N39,[1]RELAÇÃO!$AQ$1:$AQ$576,0),1) -> CARLOS ROBERTO NOVAIS DE ALMEIDA | K39: =IF(J39=0,"-",INDEX([1]RELAÇÃO!$A$1:$AQ$576,MATCH($N39,[1]RELAÇÃO!$AQ$1:$AQ$576,0),27)&INDEX([1]RELAÇÃO!$A$1:$AQ$576,MATCH($N39,[1]RELAÇÃO!$AQ$1:$AQ$576,0),28)&", de "&INDEX([1]RELAÇÃO!$A$1:$AQ$576,MATCH($N39,[1]RELAÇÃO!$AQ$1:$AQ$576,0),29)&" - "&INDEX([1]RELAÇÃO!$A$1:$AQ$576,MATCH($N39,[1]RELAÇÃO!$AQ$1:$AQ$576,0),31)&" de "&INDEX([1]RELAÇÃO!$A$1:$AQ$576,MATCH($N39,[1]RELAÇÃO!$AQ$1:$AQ$576,0),30)) -> Portaria nº 484, de 04/10/2005 - DOU de 05/10/2005 | L39: =IF($E39=0,"-",IF(INDEX([1]RELAÇÃO!$A$1:$AQ$576,MATCH($M39,[1]RELAÇÃO!$AP$1:$AP$576,0),8)="2.100.100","-",INDEX([1]RELAÇÃO!$A$1:$AQ$576,MATCH($M39,[1]RELAÇÃO!$AP$1:$AP$576,0),7))) -> - | M39: GM17 | N39: GM04S
B40: Assessor Técnico | C40: FCPE 102.3 | D40: ASS | E40: =INDEX([1]RELAÇÃO!$A$1:$AQ$576,MATCH($M40,[1]RELAÇÃO!$AP$1:$AP$576,0),1) -> LUIZ CLAUDIO FONTENELE GONCALVES | F40: =IF(E40=0,"-",LEFT(INDEX([1]RELAÇÃO!$A$1:$AQ$576,MATCH($M40,[1]RELAÇÃO!$AP$1:$AP$576,0),32),1)) -> M | G40: =IF(E40=0,"-",INDEX([1]RELAÇÃO!$A$1:$AQ$576,MATCH($M40,[1]RELAÇÃO!$AP$1:$AP$576,0),5)) -> Ativo Permanente | H40: =IF(E40=0,"-",INDEX([1]RELAÇÃO!$A$1:$AQ$576,MATCH($M40,[1]RELAÇÃO!$AP$1:$AP$576,0),6)) -> MME - Ministério de Minas e Energia | I40: =IF(E40=0,"-",INDEX([1]RELAÇÃO!$A$1:$AQ$576,MATCH($M40,[1]RELAÇÃO!$AP$1:$AP$576,0),12)&INDEX([1]RELAÇÃO!$A$1:$AQ$576,MATCH($M40,[1]RELAÇÃO!$AP$1:$AP$576,0),13)&", de "&INDEX([1]RELAÇÃO!$A$1:$AQ$576,MATCH($M40,[1]RELAÇÃO!$AP$1:$AP$576,0),14)&" - "&INDEX([1]RELAÇÃO!$A$1:$AQ$576,MATCH($M40,[1]RELAÇÃO!$AP$1:$AP$576,0),16)&" de "&INDEX([1]RELAÇÃO!$A$1:$AQ$576,MATCH($M40,[1]RELAÇÃO!$AP$1:$AP$576,0),15)) -> Portaria nº 89, de 14/03/2018 - DOU de 15/03/2018 | L40: =IF($E40=0,"-",IF(INDEX([1]RELAÇÃO!$A$1:$AQ$576,MATCH($M40,[1]RELAÇÃO!$AP$1:$AP$576,0),8)="2.100.100","-",INDEX([1]RELAÇÃO!$A$1:$AQ$576,MATCH($M40,[1]RELAÇÃO!$AP$1:$AP$576,0),7))) -> SE / SPOA / CGRH / COORDENAÇÃO DE DESENVOLVIMENTO E SEGURIDADE SOCIAL - CODES | M40: GM18
A41: Coordenação de Atividades Administrativas do GM | B41: Coordenador | C41: FCPE 101.3 | D41: GER | E41: =INDEX([1]RELAÇÃO!$A$1:$AQ$576,MATCH($M41,[1]RELAÇÃO!$AP$1:$AP$576,0),1) -> CARLOS ROBERTO NOVAIS DE ALMEIDA | F41: =IF(E41=0,"-",LEFT(INDEX([1]RELAÇÃO!$A$1:$AQ$576,MATCH($M41,[1]RELAÇÃO!$AP$1:$AP$576,0),32),1)) -> M | G41: =IF(E41=0,"-",INDEX([1]RELAÇÃO!$A$1:$AQ$576,MATCH($M41,[1]RELAÇÃO!$AP$1:$AP$576,0),5)) -> Ativo Permanente | H41: =IF(E41=0,"-",INDEX([1]RELAÇÃO!$A$1:$AQ$576,MATCH($M41,[1]RELAÇÃO!$AP$1:$AP$576,0),6)) -> MME - Ministério de Minas e Energia | I41: =IF(E41=0,"-",INDEX([1]RELAÇÃO!$A$1:$AQ$576,MATCH($M41,[1]RELAÇÃO!$AP$1:$AP$576,0),12)&INDEX([1]RELAÇÃO!$A$1:$AQ$576,MATCH($M41,[1]RELAÇÃO!$AP$1:$AP$576,0),13)&", de "&INDEX([1]RELAÇÃO!$A$1:$AQ$576,MATCH($M41,[1]RELAÇÃO!$AP$1:$AP$576,0),14)&" - "&INDEX([1]RELAÇÃO!$A$1:$AQ$576,MATCH($M41,[1]RELAÇÃO!$AP$1:$AP$576,0),16)&" de "&INDEX([1]RELAÇÃO!$A$1:$AQ$576,MATCH($M41,[1]RELAÇÃO!$AP$1:$AP$576,0),15)) -> Portaria nº 524, de 03/11/2016 - BPE de 04/11/2016 | J41: =INDEX([1]RELAÇÃO!$A$1:$AQ$576,MATCH($N41,[1]RELAÇÃO!$AQ$1:$AQ$576,0),1) -> 0 | K41: =IF(J41=0,"-",INDEX([1]RELAÇÃO!$A$1:$AQ$576,MATCH($N41,[1]RELAÇÃO!$AQ$1:$AQ$576,0),27)&INDEX([1]RELAÇÃO!$A$1:$AQ$576,MATCH($N41,[1]RELAÇÃO!$AQ$1:$AQ$576,0),28)&", de "&INDEX([1]RELAÇÃO!$A$1:$AQ$576,MATCH($N41,[1]RELAÇÃO!$AQ$1:$AQ$576,0),29)&" - "&INDEX([1]RELAÇÃO!$A$1:$AQ$576,MATCH($N41,[1]RELAÇÃO!$AQ$1:$AQ$576,0),31)&" de "&INDEX([1]RELAÇÃO!$A$1:$AQ$576,MATCH($N41,[1]RELAÇÃO!$AQ$1:$AQ$576,0),30)) -> - | L41: =IF($E41=0,"-",IF(INDEX([1]RELAÇÃO!$A$1:$AQ$576,MATCH($M41,[1]RELAÇÃO!$AP$1:$AP$576,0),8)="2.100.101","-",INDEX([1]RELAÇÃO!$A$1:$AQ$576,MATCH($M41,[1]RELAÇÃO!$AP$1:$AP$576,0),7))) -> - | M41: GM19 | N41: GM05S
B42: Assistente | C42: DAS 102.2 | D42: ASS | E42: =INDEX([1]RELAÇÃO!$A$1:$AQ$576,MATCH($M42,[1]RELAÇÃO!$AP$1:$AP$576,0),1) -> JOSE EVARISTO DA SILVA | F42: =IF(E42=0,"-",LEFT(INDEX([1]RELAÇÃO!$A$1:$AQ$576,MATCH($M42,[1]RELAÇÃO!$AP$1:$AP$576,0),32),1)) -> M | G42: =IF(E42=0,"-",INDEX([1]RELAÇÃO!$A$1:$AQ$576,MATCH($M42,[1]RELAÇÃO!$AP$1:$AP$576,0),5)) -> Ativo Permanente | H42: =IF(E42=0,"-",INDEX([1]RELAÇÃO!$A$1:$AQ$576,MATCH($M42,[1]RELAÇÃO!$AP$1:$AP$576,0),6)) -> MME - Ministério de Minas e Energia | I42: =IF(E42=0,"-",INDEX([1]RELAÇÃO!$A$1:$AQ$576,MATCH($M42,[1]RELAÇÃO!$AP$1:$AP$576,0),12)&INDEX([1]RELAÇÃO!$A$1:$AQ$576,MATCH($M42,[1]RELAÇÃO!$AP$1:$AP$576,0),13)&", de "&INDEX([1]RELAÇÃO!$A$1:$AQ$576,MATCH($M42,[1]RELAÇÃO!$AP$1:$AP$576,0),14)&" - "&INDEX([1]RELAÇÃO!$A$1:$AQ$576,MATCH($M42,[1]RELAÇÃO!$AP$1:$AP$576,0),16)&" de "&INDEX([1]RELAÇÃO!$A$1:$AQ$576,MATCH($M42,[1]RELAÇÃO!$AP$1:$AP$576,0),15)) -> Portaria nº 524, de 03/11/2016 - BPE de 04/11/2016 | L42: =IF($E42=0,"-",IF(INDEX([1]RELAÇÃO!$A$1:$AQ$576,MATCH($M42,[1]RELAÇÃO!$AP$1:$AP$576,0),8)="2.100.101","-",INDEX([1]RELAÇÃO!$A$1:$AQ$576,MATCH($M42,[1]RELAÇÃO!$AP$1:$AP$576,0),7))) -> - | M42: GM20
B43: Assistente Técnico | C43: DAS 102.1 | D43: ASS | E43: =INDEX([1]RELAÇÃO!$A$1:$AQ$576,MATCH($M43,[1]RELAÇÃO!$AP$1:$AP$576,0),1) -> GENESIO SOARES DE OLIVEIRA | F43: =IF(E43=0,"-",LEFT(INDEX([1]RELAÇÃO!$A$1:$AQ$576,MATCH($M43,[1]RELAÇÃO!$AP$1:$AP$576,0),32),1)) -> M | G43: =IF(E43=0,"-",INDEX([1]RELAÇÃO!$A$1:$AQ$576,MATCH($M43,[1]RELAÇÃO!$AP$1:$AP$576,0),5)) -> Sem Vínculo | H43: =IF(E43=0,"-",INDEX([1]RELAÇÃO!$A$1:$AQ$576,MATCH($M43,[1]RELAÇÃO!$AP$1:$AP$576,0),6)) -> Sem Vínculo | I43: =IF(E43=0,"-",INDEX([1]RELAÇÃO!$A$1:$AQ$576,MATCH($M43,[1]RELAÇÃO!$AP$1:$AP$576,0),12)&INDEX([1]RELAÇÃO!$A$1:$AQ$576,MATCH($M43,[1]RELAÇÃO!$AP$1:$AP$576,0),13)&", de "&INDEX([1]RELAÇÃO!$A$1:$AQ$576,MATCH($M43,[1]RELAÇÃO!$AP$1:$AP$576,0),14)&" - "&INDEX([1]RELAÇÃO!$A$1:$AQ$576,MATCH($M43,[1]RELAÇÃO!$AP$1:$AP$576,0),16)&" de "&INDEX([1]RELAÇÃO!$A$1:$AQ$576,MATCH($M43,[1]RELAÇÃO!$AP$1:$AP$576,0),15)) -> Portaria nº 528, de 03/11/2016 - DOU de 04/11/2016 | L43: =IF($E43=0,"-",IF(INDEX([1]RELAÇÃO!$A$1:$AQ$576,MATCH($M43,[1]RELAÇÃO!$AP$1:$AP$576,0),8)="2.100.101","-",INDEX([1]RELAÇÃO!$A$1:$AQ$576,MATCH($M43,[1]RELAÇÃO!$AP$1:$AP$576,0),7))) -> - | M43: GM21
B44: Assistente Técnico | C44: FCPE 102.1 | D44: ASS | E44: =INDEX([1]RELAÇÃO!$A$1:$AQ$576,MATCH($M44,[1]RELAÇÃO!$AP$1:$AP$576,0),1) -> ERIVELTO FURTADO NEVES | F44: =IF(E44=0,"-",LEFT(INDEX([1]RELAÇÃO!$A$1:$AQ$576,MATCH($M44,[1]RELAÇÃO!$AP$1:$AP$576,0),32),1)) -> M | G44: =IF(E44=0,"-",INDEX([1]RELAÇÃO!$A$1:$AQ$576,MATCH($M44,[1]RELAÇÃO!$AP$1:$AP$576,0),5)) -> Ativo Permanente | H44: =IF(E44=0,"-",INDEX([1]RELAÇÃO!$A$1:$AQ$576,MATCH($M44,[1]RELAÇÃO!$AP$1:$AP$576,0),6)) -> MME - Ministério de Minas e Energia | I44: =IF(E44=0,"-",INDEX([1]RELAÇÃO!$A$1:$AQ$576,MATCH($M44,[1]RELAÇÃO!$AP$1:$AP$576,0),12)&INDEX([1]RELAÇÃO!$A$1:$AQ$576,MATCH($M44,[1]RELAÇÃO!$AP$1:$AP$576,0),13)&", de "&INDEX([1]RELAÇÃO!$A$1:$AQ$576,MATCH($M44,[1]RELAÇÃO!$AP$1:$AP$576,0),14)&" - "&INDEX([1]RELAÇÃO!$A$1:$AQ$576,MATCH($M44,[1]RELAÇÃO!$AP$1:$AP$576,0),16)&" de "&INDEX([1]RELAÇÃO!$A$1:$AQ$576,MATCH($M44,[1]RELAÇÃO!$AP$1:$AP$576,0),15)) -> Portaria nº 524, de 03/11/2016 - BPE de 04/11/2016 | L44: =IF($E44=0,"-",IF(INDEX([1]RELAÇÃO!$A$1:$AQ$576,MATCH($M44,[1]RELAÇÃO!$AP$1:$AP$576,0),8)="2.100.101","-",INDEX([1]RELAÇÃO!$A$1:$AQ$576,MATCH($M44,[1]RELAÇÃO!$AP$1:$AP$576,0),7))) -> - | M44: GM22
B45: Assistente Técnico | C45: FCPE 102.1 | D45: ASS | E45: =INDEX([1]RELAÇÃO!$A$1:$AQ$576,MATCH($M45,[1]RELAÇÃO!$AP$1:$AP$576,0),1) -> ALMIR DE SOUZA FIGUEIREDO | F45: =IF(E45=0,"-",LEFT(INDEX([1]RELAÇÃO!$A$1:$AQ$576,MATCH($M45,[1]RELAÇÃO!$AP$1:$AP$576,0),32),1)) -> M | G45: =IF(E45=0,"-",INDEX([1]RELAÇÃO!$A$1:$AQ$576,MATCH($M45,[1]RELAÇÃO!$AP$1:$AP$576,0),5)) -> Ativo Permanente | H45: =IF(E45=0,"-",INDEX([1]RELAÇÃO!$A$1:$AQ$576,MATCH($M45,[1]RELAÇÃO!$AP$1:$AP$576,0),6)) -> MME - Ministério de Minas e Energia | I45: =IF(E45=0,"-",INDEX([1]RELAÇÃO!$A$1:$AQ$576,MATCH($M45,[1]RELAÇÃO!$AP$1:$AP$576,0),12)&INDEX([1]RELAÇÃO!$A$1:$AQ$576,MATCH($M45,[1]RELAÇÃO!$AP$1:$AP$576,0),13)&", de "&INDEX([1]RELAÇÃO!$A$1:$AQ$576,MATCH($M45,[1]RELAÇÃO!$AP$1:$AP$576,0),14)&" - "&INDEX([1]RELAÇÃO!$A$1:$AQ$576,MATCH($M45,[1]RELAÇÃO!$AP$1:$AP$576,0),16)&" de "&INDEX([1]RELAÇÃO!$A$1:$AQ$576,MATCH($M45,[1]RELAÇÃO!$AP$1:$AP$576,0),15)) -> Portaria nº 524, de 03/11/2016 - BPE de 04/11/2016 | L45: =IF($E45=0,"-",IF(INDEX([1]RELAÇÃO!$A$1:$AQ$576,MATCH($M45,[1]RELAÇÃO!$AP$1:$AP$576,0),8)="2.100.101","-",INDEX([1]RELAÇÃO!$A$1:$AQ$576,MATCH($M45,[1]RELAÇÃO!$AP$1:$AP$576,0),7))) -> - | M45: GM23
B46: Assistente Técnico | C46: FCPE 102.1 | D46: ASS | E46: =INDEX([1]RELAÇÃO!$A$1:$AQ$576,MATCH($M46,[1]RELAÇÃO!$AP$1:$AP$576,0),1) -> ALCIDEMES LIMA FRANCO | F46: =IF(E46=0,"-",LEFT(INDEX([1]RELAÇÃO!$A$1:$AQ$576,MATCH($M46,[1]RELAÇÃO!$AP$1:$AP$576,0),32),1)) -> M | G46: =IF(E46=0,"-",INDEX([1]RELAÇÃO!$A$1:$AQ$576,MATCH($M46,[1]RELAÇÃO!$AP$1:$AP$576,0),5)) -> Ativo Permanente | H46: =IF(E46=0,"-",INDEX([1]RELAÇÃO!$A$1:$AQ$576,MATCH($M46,[1]RELAÇÃO!$AP$1:$AP$576,0),6)) -> MME - Ministério de Minas e Energia | I46: =IF(E46=0,"-",INDEX([1]RELAÇÃO!$A$1:$AQ$576,MATCH($M46,[1]RELAÇÃO!$AP$1:$AP$576,0),12)&INDEX([1]RELAÇÃO!$A$1:$AQ$576,MATCH($M46,[1]RELAÇÃO!$AP$1:$AP$576,0),13)&", de "&INDEX([1]RELAÇÃO!$A$1:$AQ$576,MATCH($M46,[1]RELAÇÃO!$AP$1:$AP$576,0),14)&" - "&INDEX([1]RELAÇÃO!$A$1:$AQ$576,MATCH($M46,[1]RELAÇÃO!$AP$1:$AP$576,0),16)&" de "&INDEX([1]RELAÇÃO!$A$1:$AQ$576,MATCH($M46,[1]RELAÇÃO!$AP$1:$AP$576,0),15)) -> Portaria nº 24, de 23/01/2018 - DOU de 29/01/2018 | L46: =IF($E46=0,"-",IF(INDEX([1]RELAÇÃO!$A$1:$AQ$576,MATCH($M46,[1]RELAÇÃO!$AP$1:$AP$576,0),8)="2.100.101","-",INDEX([1]RELAÇÃO!$A$1:$AQ$576,MATCH($M46,[1]RELAÇÃO!$AP$1:$AP$576,0),7))) -> - | M46: GM24
B47: Assistente Técnico | C47: FCPE 102.1 | D47: ASS | E47: =INDEX([1]RELAÇÃO!$A$1:$AQ$576,MATCH($M47,[1]RELAÇÃO!$AP$1:$AP$576,0),1) -> NIRIA DE MOURA CHAGAS | F47: =IF(E47=0,"-",LEFT(INDEX([1]RELAÇÃO!$A$1:$AQ$576,MATCH($M47,[1]RELAÇÃO!$AP$1:$AP$576,0),32),1)) -> F | G47: =IF(E47=0,"-",INDEX([1]RELAÇÃO!$A$1:$AQ$576,MATCH($M47,[1]RELAÇÃO!$AP$1:$AP$576,0),5)) -> Requisitado de Órgãos | H47: =IF(E47=0,"-",INDEX([1]RELAÇÃO!$A$1:$AQ$576,MATCH($M47,[1]RELAÇÃO!$AP$1:$AP$576,0),6)) -> MD - Ministério da Defesa | I47: =IF(E47=0,"-",INDEX([1]RELAÇÃO!$A$1:$AQ$576,MATCH($M47,[1]RELAÇÃO!$AP$1:$AP$576,0),12)&INDEX([1]RELAÇÃO!$A$1:$AQ$576,MATCH($M47,[1]RELAÇÃO!$AP$1:$AP$576,0),13)&", de "&INDEX([1]RELAÇÃO!$A$1:$AQ$576,MATCH($M47,[1]RELAÇÃO!$AP$1:$AP$576,0),14)&" - "&INDEX([1]RELAÇÃO!$A$1:$AQ$576,MATCH($M47,[1]RELAÇÃO!$AP$1:$AP$576,0),16)&" de "&INDEX([1]RELAÇÃO!$A$1:$AQ$576,MATCH($M47,[1]RELAÇÃO!$AP$1:$AP$576,0),15)) -> Portaria nº 239, de 04/06/2016 - DOU de 06/06/2019 | L47: =IF($E47=0,"-",IF(INDEX([1]RELAÇÃO!$A$1:$AQ$576,MATCH($M47,[1]RELAÇÃO!$AP$1:$AP$576,0),8)="2.100.101","-",INDEX([1]RELAÇÃO!$A$1:$AQ$576,MATCH($M47,[1]RELAÇÃO!$AP$1:$AP$576,0),7))) -> GM / ASSESSORIA DE APOIO AO MINISTRO - AAM | M47: GM25
A48: Assessoria Parlamentar | B48: Chefe de Assessoria | C48: DAS 101.4 | D48: GER | E48: =INDEX([1]RELAÇÃO!$A$1:$AQ$576,MATCH($M48,[1]RELAÇÃO!$AP$1:$AP$576,0),1) -> ROSA MARIA SCHOOL MARQUES DE ANDRADE MARCET DE OLIVEIRA | F48: =IF(E48=0,"-",LEFT(INDEX([1]RELAÇÃO!$A$1:$AQ$576,MATCH($M48,[1]RELAÇÃO!$AP$1:$AP$576,0),32),1)) -> F | G48: =IF(E48=0,"-",INDEX([1]RELAÇÃO!$A$1:$AQ$576,MATCH($M48,[1]RELAÇÃO!$AP$1:$AP$576,0),5)) -> Sem Vínculo | H48: =IF(E48=0,"-",INDEX([1]RELAÇÃO!$A$1:$AQ$576,MATCH($M48,[1]RELAÇÃO!$AP$1:$AP$576,0),6)) -> Sem Vínculo | I48: =IF(E48=0,"-",INDEX([1]RELAÇÃO!$A$1:$AQ$576,MATCH($M48,[1]RELAÇÃO!$AP$1:$AP$576,0),12)&INDEX([1]RELAÇÃO!$A$1:$AQ$576,MATCH($M48,[1]RELAÇÃO!$AP$1:$AP$576,0),13)&", de "&INDEX([1]RELAÇÃO!$A$1:$AQ$576,MATCH($M48,[1]RELAÇÃO!$AP$1:$AP$576,0),14)&" - "&INDEX([1]RELAÇÃO!$A$1:$AQ$576,MATCH($M48,[1]RELAÇÃO!$AP$1:$AP$576,0),16)&" de "&INDEX([1]RELAÇÃO!$A$1:$AQ$576,MATCH($M48,[1]RELAÇÃO!$AP$1:$AP$576,0),15)) -> Portaria nº 1270, de 20/02/2019 - DOU de 21/02/2019 | J48: =INDEX([1]RELAÇÃO!$A$1:$AQ$576,MATCH($N48,[1]RELAÇÃO!$AQ$1:$AQ$576,0),1) -> 0 | K48: =IF(J48=0,"-",INDEX([1]RELAÇÃO!$A$1:$AQ$576,MATCH($N48,[1]RELAÇÃO!$AQ$1:$AQ$576,0),27)&INDEX([1]RELAÇÃO!$A$1:$AQ$576,MATCH($N48,[1]RELAÇÃO!$AQ$1:$AQ$576,0),28)&", de "&INDEX([1]RELAÇÃO!$A$1:$AQ$576,MATCH($N48,[1]RELAÇÃO!$AQ$1:$AQ$576,0),29)&" - "&INDEX([1]RELAÇÃO!$A$1:$AQ$576,MATCH($N48,[1]RELAÇÃO!$AQ$1:$AQ$576,0),31)&" de "&INDEX([1]RELAÇÃO!$A$1:$AQ$576,MATCH($N48,[1]RELAÇÃO!$AQ$1:$AQ$576,0),30)) -> - | L48: =IF($E48=0,"-",IF(INDEX([1]RELAÇÃO!$A$1:$AQ$576,MATCH($M48,[1]RELAÇÃO!$AP$1:$AP$576,0),8)="2.100.200","-",INDEX([1]RELAÇÃO!$A$1:$AQ$576,MATCH($M48,[1]RELAÇÃO!$AP$1:$AP$576,0),7))) -> - | M48: GM26 | N48: GM06S
B49: Assessor Técnico | C49: DAS 102.3 | D49: ASS | E49: =INDEX([1]RELAÇÃO!$A$1:$AQ$576,MATCH($M49,[1]RELAÇÃO!$AP$1:$AP$576,0),1) -> GABRIELA PEREIRA GONCALVES | F49: =IF(E49=0,"-",LEFT(INDEX([1]RELAÇÃO!$A$1:$AQ$576,MATCH($M49,[1]RELAÇÃO!$AP$1:$AP$576,0),32),1)) -> F | G49: =IF(E49=0,"-",INDEX([1]RELAÇÃO!$A$1:$AQ$576,MATCH($M49,[1]RELAÇÃO!$AP$1:$AP$576,0),5)) -> Sem Vínculo | H49: =IF(E49=0,"-",INDEX([1]RELAÇÃO!$A$1:$AQ$576,MATCH($M49,[1]RELAÇÃO!$AP$1:$AP$576,0),6)) -> Sem Vínculo | I49: =IF(E49=0,"-",INDEX([1]RELAÇÃO!$A$1:$AQ$576,MATCH($M49,[1]RELAÇÃO!$AP$1:$AP$576,0),12)&INDEX([1]RELAÇÃO!$A$1:$AQ$576,MATCH($M49,[1]RELAÇÃO!$AP$1:$AP$576,0),13)&", de "&INDEX([1]RELAÇÃO!$A$1:$AQ$576,MATCH($M49,[1]RELAÇÃO!$AP$1:$AP$576,0),14)&" - "&INDEX([1]RELAÇÃO!$A$1:$AQ$576,MATCH($M49,[1]RELAÇÃO!$AP$1:$AP$576,0),16)&" de "&INDEX([1]RELAÇÃO!$A$1:$AQ$576,MATCH($M49,[1]RELAÇÃO!$AP$1:$AP$576,0),15)) -> Portaria nº 524, de 03/11/2016 - BPE de 04/11/2016 | L49: =IF($E49=0,"-",IF(INDEX([1]RELAÇÃO!$A$1:$AQ$576,MATCH($M49,[1]RELAÇÃO!$AP$1:$AP$576,0),8)="2.100.200","-",INDEX([1]RELAÇÃO!$A$1:$AQ$576,MATCH($M49,[1]RELAÇÃO!$AP$1:$AP$576,0),7))) -> - | M49: GM27
B50: Assistente Técnico | C50: DAS 102.1 | D50: ASS | E50: =INDEX([1]RELAÇÃO!$A$1:$AQ$576,MATCH($M50,[1]RELAÇÃO!$AP$1:$AP$576,0),1) -> FRANCISCO SANTANA PEREIRA | F50: =IF(E50=0,"-",LEFT(INDEX([1]RELAÇÃO!$A$1:$AQ$576,MATCH($M50,[1]RELAÇÃO!$AP$1:$AP$576,0),32),1)) -> M | G50: =IF(E50=0,"-",INDEX([1]RELAÇÃO!$A$1:$AQ$576,MATCH($M50,[1]RELAÇÃO!$AP$1:$AP$576,0),5)) -> Ativo Permanente | H50: =IF(E50=0,"-",INDEX([1]RELAÇÃO!$A$1:$AQ$576,MATCH($M50,[1]RELAÇÃO!$AP$1:$AP$576,0),6)) -> MME - Ministério de Minas e Energia | I50: =IF(E50=0,"-",INDEX([1]RELAÇÃO!$A$1:$AQ$576,MATCH($M50,[1]RELAÇÃO!$AP$1:$AP$576,0),12)&INDEX([1]RELAÇÃO!$A$1:$AQ$576,MATCH($M50,[1]RELAÇÃO!$AP$1:$AP$576,0),13)&", de "&INDEX([1]RELAÇÃO!$A$1:$AQ$576,MATCH($M50,[1]RELAÇÃO!$AP$1:$AP$576,0),14)&" - "&INDEX([1]RELAÇÃO!$A$1:$AQ$576,MATCH($M50,[1]RELAÇÃO!$AP$1:$AP$576,0),16)&" de "&INDEX([1]RELAÇÃO!$A$1:$AQ$576,MATCH($M50,[1]RELAÇÃO!$AP$1:$AP$576,0),15)) -> Portaria nº 66, de 28/02/2020 - DOU de 02/03/2020 | L50: =IF($E50=0,"-",IF(INDEX([1]RELAÇÃO!$A$1:$AQ$576,MATCH($M50,[1]RELAÇÃO!$AP$1:$AP$576,0),8)="2.100.200","-",INDEX([1]RELAÇÃO!$A$1:$AQ$576,MATCH($M50,[1]RELAÇÃO!$AP$1:$AP$576,0),7))) -> GM / ASSESSORIA DE COMUNICAÇÃO SOCIAL - ASCOM | M50: GM28
B51: Assistente Técnico | C51: DAS 102.1 | D51: ASS | E51: =INDEX([1]RELAÇÃO!$A$1:$AQ$576,MATCH($M51,[1]RELAÇÃO!$AP$1:$AP$576,0),1) -> MARCIA CRISTINA DA SILVA DO NASCIMENTO | F51: =IF(E51=0,"-",LEFT(INDEX([1]RELAÇÃO!$A$1:$AQ$576,MATCH($M51,[1]RELAÇÃO!$AP$1:$AP$576,0),32),1)) -> F | G51: =IF(E51=0,"-",INDEX([1]RELAÇÃO!$A$1:$AQ$576,MATCH($M51,[1]RELAÇÃO!$AP$1:$AP$576,0),5)) -> Sem Vínculo | H51: =IF(E51=0,"-",INDEX([1]RELAÇÃO!$A$1:$AQ$576,MATCH($M51,[1]RELAÇÃO!$AP$1:$AP$576,0),6)) -> Sem Vínculo | I51: =IF(E51=0,"-",INDEX([1]RELAÇÃO!$A$1:$AQ$576,MATCH($M51,[1]RELAÇÃO!$AP$1:$AP$576,0),12)&INDEX([1]RELAÇÃO!$A$1:$AQ$576,MATCH($M51,[1]RELAÇÃO!$AP$1:$AP$576,0),13)&", de "&INDEX([1]RELAÇÃO!$A$1:$AQ$576,MATCH($M51,[1]RELAÇÃO!$AP$1:$AP$576,0),14)&" - "&INDEX([1]RELAÇÃO!$A$1:$AQ$576,MATCH($M51,[1]RELAÇÃO!$AP$1:$AP$576,0),16)&" de "&INDEX([1]RELAÇÃO!$A$1:$AQ$576,MATCH($M51,[1]RELAÇÃO!$AP$1:$AP$576,0),15)) -> Portaria nº 454, de 23/10/2018 - DOU de 24/10/2018 | L51: =IF($E51=0,"-",IF(INDEX([1]RELAÇÃO!$A$1:$AQ$576,MATCH($M51,[1]RELAÇÃO!$AP$1:$AP$576,0),8)="2.100.200","-",INDEX([1]RELAÇÃO!$A$1:$AQ$576,MATCH($M51,[1]RELAÇÃO!$AP$1:$AP$576,0),7))) -> - | M51: GM29
B52: Assistente Técnico | C52: DAS 102.1 | D52: ASS | E52: =INDEX([1]RELAÇÃO!$A$1:$AQ$576,MATCH($M52,[1]RELAÇÃO!$AP$1:$AP$576,0),1) -> MARIA DE FATIMA SILVA FRANCO | F52: =IF(E52=0,"-",LEFT(INDEX([1]RELAÇÃO!$A$1:$AQ$576,MATCH($M52,[1]RELAÇÃO!$AP$1:$AP$576,0),32),1)) -> F | G52: =IF(E52=0,"-",INDEX([1]RELAÇÃO!$A$1:$AQ$576,MATCH($M52,[1]RELAÇÃO!$AP$1:$AP$576,0),5)) -> Sem Vínculo | H52: =IF(E52=0,"-",INDEX([1]RELAÇÃO!$A$1:$AQ$576,MATCH($M52,[1]RELAÇÃO!$AP$1:$AP$576,0),6)) -> Sem Vínculo | I52: =IF(E52=0,"-",INDEX([1]RELAÇÃO!$A$1:$AQ$576,MATCH($M52,[1]RELAÇÃO!$AP$1:$AP$576,0),12)&INDEX([1]RELAÇÃO!$A$1:$AQ$576,MATCH($M52,[1]RELAÇÃO!$AP$1:$AP$576,0),13)&", de "&INDEX([1]RELAÇÃO!$A$1:$AQ$576,MATCH($M52,[1]RELAÇÃO!$AP$1:$AP$576,0),14)&" - "&INDEX([1]RELAÇÃO!$A$1:$AQ$576,MATCH($M52,[1]RELAÇÃO!$AP$1:$AP$576,0),16)&" de "&INDEX([1]RELAÇÃO!$A$1:$AQ$576,MATCH($M52,[1]RELAÇÃO!$AP$1:$AP$576,0),15)) -> Portaria nº 524, de 03/11/2016 - BPE de 04/11/2016 | L52: =IF($E52=0,"-",IF(INDEX([1]RELAÇÃO!$A$1:$AQ$576,MATCH($M52,[1]RELAÇÃO!$AP$1:$AP$576,0),8)="2.100.200","-",INDEX([1]RELAÇÃO!$A$1:$AQ$576,MATCH($M52,[1]RELAÇÃO!$AP$1:$AP$576,0),7))) -> - | M52: GM30
B53: Assistente Técnico | C53: DAS 102.1 | D53: ASS | E53: =INDEX([1]RELAÇÃO!$A$1:$AQ$576,MATCH($M53,[1]RELAÇÃO!$AP$1:$AP$576,0),1) -> ELISANGELA APARECIDA FERNANDES | F53: =IF(E53=0,"-",LEFT(INDEX([1]RELAÇÃO!$A$1:$AQ$576,MATCH($M53,[1]RELAÇÃO!$AP$1:$AP$576,0),32),1)) -> F | G53: =IF(E53=0,"-",INDEX([1]RELAÇÃO!$A$1:$AQ$576,MATCH($M53,[1]RELAÇÃO!$AP$1:$AP$576,0),5)) -> Sem Vínculo | H53: =IF(E53=0,"-",INDEX([1]RELAÇÃO!$A$1:$AQ$576,MATCH($M53,[1]RELAÇÃO!$AP$1:$AP$576,0),6)) -> Sem Vínculo | I53: =IF(E53=0,"-",INDEX([1]RELAÇÃO!$A$1:$AQ$576,MATCH($M53,[1]RELAÇÃO!$AP$1:$AP$576,0),12)&INDEX([1]RELAÇÃO!$A$1:$AQ$576,MATCH($M53,[1]RELAÇÃO!$AP$1:$AP$576,0),13)&", de "&INDEX([1]RELAÇÃO!$A$1:$AQ$576,MATCH($M53,[1]RELAÇÃO!$AP$1:$AP$576,0),14)&" - "&INDEX([1]RELAÇÃO!$A$1:$AQ$576,MATCH($M53,[1]RELAÇÃO!$AP$1:$AP$576,0),16)&" de "&INDEX([1]RELAÇÃO!$A$1:$AQ$576,MATCH($M53,[1]RELAÇÃO!$AP$1:$AP$576,0),15)) -> Portaria nº 414, de 11/11/2019 - DOU de 12/11/2019 | L53: =IF($E53=0,"-",IF(INDEX([1]RELAÇÃO!$A$1:$AQ$576,MATCH($M53,[1]RELAÇÃO!$AP$1:$AP$576,0),8)="2.100.200","-",INDEX([1]RELAÇÃO!$A$1:$AQ$576,MATCH($M53,[1]RELAÇÃO!$AP$1:$AP$576,0),7))) -> - | M53: GM31
A54: Assessoria de Comunicação Social | B54: Chefe de Assessoria | C54: DAS 101.4 | D54: GER | E54: =INDEX([1]RELAÇÃO!$A$1:$AQ$576,MATCH($M54,[1]RELAÇÃO!$AP$1:$AP$576,0),1) -> SAULO ROBERTO DE VARGAS | F54: =IF(E54=0,"-",LEFT(INDEX([1]RELAÇÃO!$A$1:$AQ$576,MATCH($M54,[1]RELAÇÃO!$AP$1:$AP$576,0),32),1)) -> M | G54: =IF(E54=0,"-",INDEX([1]RELAÇÃO!$A$1:$AQ$576,MATCH($M54,[1]RELAÇÃO!$AP$1:$AP$576,0),5)) -> Sem Vínculo | H54: =IF(E54=0,"-",INDEX([1]RELAÇÃO!$A$1:$AQ$576,MATCH($M54,[1]RELAÇÃO!$AP$1:$AP$576,0),6)) -> S/VÍNCULO | I54: =IF(E54=0,"-",INDEX([1]RELAÇÃO!$A$1:$AQ$576,MATCH($M54,[1]RELAÇÃO!$AP$1:$AP$576,0),12)&INDEX([1]RELAÇÃO!$A$1:$AQ$576,MATCH($M54,[1]RELAÇÃO!$AP$1:$AP$576,0),13)&", de "&INDEX([1]RELAÇÃO!$A$1:$AQ$576,MATCH($M54,[1]RELAÇÃO!$AP$1:$AP$576,0),14)&" - "&INDEX([1]RELAÇÃO!$A$1:$AQ$576,MATCH($M54,[1]RELAÇÃO!$AP$1:$AP$576,0),16)&" de "&INDEX([1]RELAÇÃO!$A$1:$AQ$576,MATCH($M54,[1]RELAÇÃO!$AP$1:$AP$576,0),15)) -> Portaria nº 265, de 30/01/2020 - DOU de 01/07/2020 | J54: =INDEX([1]RELAÇÃO!$A$1:$AQ$576,MATCH($N54,[1]RELAÇÃO!$AQ$1:$AQ$576,0),1) -> 0 | K54: =IF(J54=0,"-",INDEX([1]RELAÇÃO!$A$1:$AQ$576,MATCH($N54,[1]RELAÇÃO!$AQ$1:$AQ$576,0),27)&INDEX([1]RELAÇÃO!$A$1:$AQ$576,MATCH($N54,[1]RELAÇÃO!$AQ$1:$AQ$576,0),28)&", de "&INDEX([1]RELAÇÃO!$A$1:$AQ$576,MATCH($N54,[1]RELAÇÃO!$AQ$1:$AQ$576,0),29)&" - "&INDEX([1]RELAÇÃO!$A$1:$AQ$576,MATCH($N54,[1]RELAÇÃO!$AQ$1:$AQ$576,0),31)&" de "&INDEX([1]RELAÇÃO!$A$1:$AQ$576,MATCH($N54,[1]RELAÇÃO!$AQ$1:$AQ$576,0),30)) -> - | L54: =IF($E54=0,"-",IF(INDEX([1]RELAÇÃO!$A$1:$AQ$576,MATCH($M54,[1]RELAÇÃO!$AP$1:$AP$576,0),8)="2.100.300","-",INDEX([1]RELAÇÃO!$A$1:$AQ$576,MATCH($M54,[1]RELAÇÃO!$AP$1:$AP$576,0),7))) -> - | M54: GM32 | N54: GM07S
B55: Assessor Técnico | C55: DAS 102.3 | D55: ASS | E55: =INDEX([1]RELAÇÃO!$A$1:$AQ$576,MATCH($M55,[1]RELAÇÃO!$AP$1:$AP$576,0),1) -> BRUNO CESAR SPADA | F55: =IF(E55=0,"-",LEFT(INDEX([1]RELAÇÃO!$A$1:$AQ$576,MATCH($M55,[1]RELAÇÃO!$AP$1:$AP$576,0),32),1)) -> M | G55: =IF(E55=0,"-",INDEX([1]RELAÇÃO!$A$1:$AQ$576,MATCH($M55,[1]RELAÇÃO!$AP$1:$AP$576,0),5)) -> Sem Vínculo | H55: =IF(E55=0,"-",INDEX([1]RELAÇÃO!$A$1:$AQ$576,MATCH($M55,[1]RELAÇÃO!$AP$1:$AP$576,0),6)) -> Sem Vínculo | I55: =IF(E55=0,"-",INDEX([1]RELAÇÃO!$A$1:$AQ$576,MATCH($M55,[1]RELAÇÃO!$AP$1:$AP$576,0),12)&INDEX([1]RELAÇÃO!$A$1:$AQ$576,MATCH($M55,[1]RELAÇÃO!$AP$1:$AP$576,0),13)&", de "&INDEX([1]RELAÇÃO!$A$1:$AQ$576,MATCH($M55,[1]RELAÇÃO!$AP$1:$AP$576,0),14)&" - "&INDEX([1]RELAÇÃO!$A$1:$AQ$576,MATCH($M55,[1]RELAÇÃO!$AP$1:$AP$576,0),16)&" de "&INDEX([1]RELAÇÃO!$A$1:$AQ$576,MATCH($M55,[1]RELAÇÃO!$AP$1:$AP$576,0),15)) -> Portaria nº 195, de 11/04/2019 - DOU de 16/04/2019 | L55: =IF($E55=0,"-",IF(INDEX([1]RELAÇÃO!$A$1:$AQ$576,MATCH($M55,[1]RELAÇÃO!$AP$1:$AP$576,0),8)="2.100.300","-",INDEX([1]RELAÇÃO!$A$1:$AQ$576,MATCH($M55,[1]RELAÇÃO!$AP$1:$AP$576,0),7))) -> - | M55: GM33
B56: Assistente | C56: DAS 102.2 | D56: ASS | E56: =INDEX([1]RELAÇÃO!$A$1:$AQ$576,MATCH($M56,[1]RELAÇÃO!$AP$1:$AP$576,0),1) -> LISANDRA PEREIRA DA FONSECA | F56: =IF(E56=0,"-",LEFT(INDEX([1]RELAÇÃO!$A$1:$AQ$576,MATCH($M56,[1]RELAÇÃO!$AP$1:$AP$576,0),32),1)) -> F | G56: =IF(E56=0,"-",INDEX([1]RELAÇÃO!$A$1:$AQ$576,MATCH($M56,[1]RELAÇÃO!$AP$1:$AP$576,0),5)) -> Sem Vínculo | H56: =IF(E56=0,"-",INDEX([1]RELAÇÃO!$A$1:$AQ$576,MATCH($M56,[1]RELAÇÃO!$AP$1:$AP$576,0),6)) -> Sem Vínculo | I56: =IF(E56=0,"-",INDEX([1]RELAÇÃO!$A$1:$AQ$576,MATCH($M56,[1]RELAÇÃO!$AP$1:$AP$576,0),12)&INDEX([1]RELAÇÃO!$A$1:$AQ$576,MATCH($M56,[1]RELAÇÃO!$AP$1:$AP$576,0),13)&", de "&INDEX([1]RELAÇÃO!$A$1:$AQ$576,MATCH($M56,[1]RELAÇÃO!$AP$1:$AP$576,0),14)&" - "&INDEX([1]RELAÇÃO!$A$1:$AQ$576,MATCH($M56,[1]RELAÇÃO!$AP$1:$AP$576,0),16)&" de "&INDEX([1]RELAÇÃO!$A$1:$AQ$576,MATCH($M56,[1]RELAÇÃO!$AP$1:$AP$576,0),15)) -> Portaria nº 524, de 03/11/2016 - BPE de 04/11/2016 | L56: =IF($E56=0,"-",IF(INDEX([1]RELAÇÃO!$A$1:$AQ$576,MATCH($M56,[1]RELAÇÃO!$AP$1:$AP$576,0),8)="2.100.300","-",INDEX([1]RELAÇÃO!$A$1:$AQ$576,MATCH($M56,[1]RELAÇÃO!$AP$1:$AP$576,0),7))) -> - | M56: GM34
B57: Assistente | C57: DAS 102.2 | D57: ASS | E57: =INDEX([1]RELAÇÃO!$A$1:$AQ$576,MATCH($M57,[1]RELAÇÃO!$AP$1:$AP$576,0),1) -> NICOLE ANGEL OLIVEIRA BORGES | F57: =IF(E57=0,"-",LEFT(INDEX([1]RELAÇÃO!$A$1:$AQ$576,MATCH($M57,[1]RELAÇÃO!$AP$1:$AP$576,0),32),1)) -> F | G57: =IF(E57=0,"-",INDEX([1]RELAÇÃO!$A$1:$AQ$576,MATCH($M57,[1]RELAÇÃO!$AP$1:$AP$576,0),5)) -> Sem Vínculo | H57: =IF(E57=0,"-",INDEX([1]RELAÇÃO!$A$1:$AQ$576,MATCH($M57,[1]RELAÇÃO!$AP$1:$AP$576,0),6)) -> S/VÍNCULO | I57: =IF(E57=0,"-",INDEX([1]RELAÇÃO!$A$1:$AQ$576,MATCH($M57,[1]RELAÇÃO!$AP$1:$AP$576,0),12)&INDEX([1]RELAÇÃO!$A$1:$AQ$576,MATCH($M57,[1]RELAÇÃO!$AP$1:$AP$576,0),13)&", de "&INDEX([1]RELAÇÃO!$A$1:$AQ$576,MATCH($M57,[1]RELAÇÃO!$AP$1:$AP$576,0),14)&" - "&INDEX([1]RELAÇÃO!$A$1:$AQ$576,MATCH($M57,[1]RELAÇÃO!$AP$1:$AP$576,0),16)&" de "&INDEX([1]RELAÇÃO!$A$1:$AQ$576,MATCH($M57,[1]RELAÇÃO!$AP$1:$AP$576,0),15)) -> Portaria nº 309, de 18/08/2020 - DOU de 21/08/2020 | L57: =IF($E57=0,"-",IF(INDEX([1]RELAÇÃO!$A$1:$AQ$576,MATCH($M57,[1]RELAÇÃO!$AP$1:$AP$576,0),8)="2.100.300","-",INDEX([1]RELAÇÃO!$A$1:$AQ$576,MATCH($M57,[1]RELAÇÃO!$AP$1:$AP$576,0),7))) -> - | M57: GM35
B58: Assistente | C58: DAS 102.2 | D58: ASS | E58: =INDEX([1]RELAÇÃO!$A$1:$AQ$576,MATCH($M58,[1]RELAÇÃO!$AP$1:$AP$576,0),1) -> DIANA BISPO DE JESUS | F58: =IF(E58=0,"-",LEFT(INDEX([1]RELAÇÃO!$A$1:$AQ$576,MATCH($M58,[1]RELAÇÃO!$AP$1:$AP$576,0),32),1)) -> F | G58: =IF(E58=0,"-",INDEX([1]RELAÇÃO!$A$1:$AQ$576,MATCH($M58,[1]RELAÇÃO!$AP$1:$AP$576,0),5)) -> Sem Vínculo | H58: =IF(E58=0,"-",INDEX([1]RELAÇÃO!$A$1:$AQ$576,MATCH($M58,[1]RELAÇÃO!$AP$1:$AP$576,0),6)) -> Sem Vínculo | I58: =IF(E58=0,"-",INDEX([1]RELAÇÃO!$A$1:$AQ$576,MATCH($M58,[1]RELAÇÃO!$AP$1:$AP$576,0),12)&INDEX([1]RELAÇÃO!$A$1:$AQ$576,MATCH($M58,[1]RELAÇÃO!$AP$1:$AP$576,0),13)&", de "&INDEX([1]RELAÇÃO!$A$1:$AQ$576,MATCH($M58,[1]RELAÇÃO!$AP$1:$AP$576,0),14)&" - "&INDEX([1]RELAÇÃO!$A$1:$AQ$576,MATCH($M58,[1]RELAÇÃO!$AP$1:$AP$576,0),16)&" de "&INDEX([1]RELAÇÃO!$A$1:$AQ$576,MATCH($M58,[1]RELAÇÃO!$AP$1:$AP$576,0),15)) -> Portaria nº 360, de 30/09/2020 - DOU de 02/10/2020 | L58: =IF($E58=0,"-",IF(INDEX([1]RELAÇÃO!$A$1:$AQ$576,MATCH($M58,[1]RELAÇÃO!$AP$1:$AP$576,0),8)="2.100.300","-",INDEX([1]RELAÇÃO!$A$1:$AQ$576,MATCH($M58,[1]RELAÇÃO!$AP$1:$AP$576,0),7))) -> - | M58: GM36
A59: Assessoria de Apoio ao Ministro | B59: Chefe de Assessoria | C59: DAS 101.4 | D59: GER | E59: =INDEX([1]RELAÇÃO!$A$1:$AQ$576,MATCH($M59,[1]RELAÇÃO!$AP$1:$AP$576,0),1) -> BÁRBARA BÉLKIOR DE SOUZA E SILVA | F59: =IF(E59=0,"-",LEFT(INDEX([1]RELAÇÃO!$A$1:$AQ$576,MATCH($M59,[1]RELAÇÃO!$AP$1:$AP$576,0),32),1)) -> F | G59: =IF(E59=0,"-",INDEX([1]RELAÇÃO!$A$1:$AQ$576,MATCH($M59,[1]RELAÇÃO!$AP$1:$AP$576,0),5)) -> Requisitado de Órgãos | H59: =IF(E59=0,"-",INDEX([1]RELAÇÃO!$A$1:$AQ$576,MATCH($M59,[1]RELAÇÃO!$AP$1:$AP$576,0),6)) -> MRE - Ministério das Relações Exteriores | I59: =IF(E59=0,"-",INDEX([1]RELAÇÃO!$A$1:$AQ$576,MATCH($M59,[1]RELAÇÃO!$AP$1:$AP$576,0),12)&INDEX([1]RELAÇÃO!$A$1:$AQ$576,MATCH($M59,[1]RELAÇÃO!$AP$1:$AP$576,0),13)&", de "&INDEX([1]RELAÇÃO!$A$1:$AQ$576,MATCH($M59,[1]RELAÇÃO!$AP$1:$AP$576,0),14)&" - "&INDEX([1]RELAÇÃO!$A$1:$AQ$576,MATCH($M59,[1]RELAÇÃO!$AP$1:$AP$576,0),16)&" de "&INDEX([1]RELAÇÃO!$A$1:$AQ$576,MATCH($M59,[1]RELAÇÃO!$AP$1:$AP$576,0),15)) -> Portaria nº 8, de 08/01/2020 - DOU de 10/01/2020 | J59: =INDEX([1]RELAÇÃO!$A$1:$AQ$576,MATCH($N59,[1]RELAÇÃO!$AQ$1:$AQ$576,0),1) -> 0 | K59: =IF(J59=0,"-",INDEX([1]RELAÇÃO!$A$1:$AQ$576,MATCH($N59,[1]RELAÇÃO!$AQ$1:$AQ$576,0),27)&INDEX([1]RELAÇÃO!$A$1:$AQ$576,MATCH($N59,[1]RELAÇÃO!$AQ$1:$AQ$576,0),28)&", de "&INDEX([1]RELAÇÃO!$A$1:$AQ$576,MATCH($N59,[1]RELAÇÃO!$AQ$1:$AQ$576,0),29)&" - "&INDEX([1]RELAÇÃO!$A$1:$AQ$576,MATCH($N59,[1]RELAÇÃO!$AQ$1:$AQ$576,0),31)&" de "&INDEX([1]RELAÇÃO!$A$1:$AQ$576,MATCH($N59,[1]RELAÇÃO!$AQ$1:$AQ$576,0),30)) -> - | L59: =IF($E59=0,"-",IF(INDEX([1]RELAÇÃO!$A$1:$AQ$576,MATCH($M59,[1]RELAÇÃO!$AP$1:$AP$576,0),8)="2.100.400","-",INDEX([1]RELAÇÃO!$A$1:$AQ$576,MATCH($M59,[1]RELAÇÃO!$AP$1:$AP$576,0),7))) -> - | M59: GM37 | N59: GM08S
B60: Assessor | C60: DAS 102.4 | D60: ASS | E60: =INDEX([1]RELAÇÃO!$A$1:$AQ$576,MATCH($M60,[1]RELAÇÃO!$AP$1:$AP$576,0),1) -> LUIS FELIPE MONTEIRO SERRAO | F60: =IF(E60=0,"-",LEFT(INDEX([1]RELAÇÃO!$A$1:$AQ$576,MATCH($M60,[1]RELAÇÃO!$AP$1:$AP$576,0),32),1)) -> M | G60: =IF(E60=0,"-",INDEX([1]RELAÇÃO!$A$1:$AQ$576,MATCH($M60,[1]RELAÇÃO!$AP$1:$AP$576,0),5)) -> Sem Vínculo | H60: =IF(E60=0,"-",INDEX([1]RELAÇÃO!$A$1:$AQ$576,MATCH($M60,[1]RELAÇÃO!$AP$1:$AP$576,0),6)) -> Sem Vínculo | I60: =IF(E60=0,"-",INDEX([1]RELAÇÃO!$A$1:$AQ$576,MATCH($M60,[1]RELAÇÃO!$AP$1:$AP$576,0),12)&INDEX([1]RELAÇÃO!$A$1:$AQ$576,MATCH($M60,[1]RELAÇÃO!$AP$1:$AP$576,0),13)&", de "&INDEX([1]RELAÇÃO!$A$1:$AQ$576,MATCH($M60,[1]RELAÇÃO!$AP$1:$AP$576,0),14)&" - "&INDEX([1]RELAÇÃO!$A$1:$AQ$576,MATCH($M60,[1]RELAÇÃO!$AP$1:$AP$576,0),16)&" de "&INDEX([1]RELAÇÃO!$A$1:$AQ$576,MATCH($M60,[1]RELAÇÃO!$AP$1:$AP$576,0),15)) -> Portaria nº 149, de 28/02/2019 - DOU de 06/03/2019 | L60: =IF($E60=0,"-",IF(INDEX([1]RELAÇÃO!$A$1:$AQ$576,MATCH($M60,[1]RELAÇÃO!$AP$1:$AP$576,0),8)="2.100.400","-",INDEX([1]RELAÇÃO!$A$1:$AQ$576,MATCH($M60,[1]RELAÇÃO!$AP$1:$AP$576,0),7))) -> GM / ASSESSORIA PARLAMENTAR - ASPAR | M60: GM38
B61: Assessor Técnico | C61: DAS 102.3 | D61: ASS | E61: =INDEX([1]RELAÇÃO!$A$1:$AQ$576,MATCH($M61,[1]RELAÇÃO!$AP$1:$AP$576,0),1) -> JOANNE LUNA SANTANA DE CARVALHO | F61: =IF(E61=0,"-",LEFT(INDEX([1]RELAÇÃO!$A$1:$AQ$576,MATCH($M61,[1]RELAÇÃO!$AP$1:$AP$576,0),32),1)) -> F | G61: =IF(E61=0,"-",INDEX([1]RELAÇÃO!$A$1:$AQ$576,MATCH($M61,[1]RELAÇÃO!$AP$1:$AP$576,0),5)) -> Sem Vínculo | H61: =IF(E61=0,"-",INDEX([1]RELAÇÃO!$A$1:$AQ$576,MATCH($M61,[1]RELAÇÃO!$AP$1:$AP$576,0),6)) -> Sem Vínculo | I61: =IF(E61=0,"-",INDEX([1]RELAÇÃO!$A$1:$AQ$576,MATCH($M61,[1]RELAÇÃO!$AP$1:$AP$576,0),12)&INDEX([1]RELAÇÃO!$A$1:$AQ$576,MATCH($M61,[1]RELAÇÃO!$AP$1:$AP$576,0),13)&", de "&INDEX([1]RELAÇÃO!$A$1:$AQ$576,MATCH($M61,[1]RELAÇÃO!$AP$1:$AP$576,0),14)&" - "&INDEX([1]RELAÇÃO!$A$1:$AQ$576,MATCH($M61,[1]RELAÇÃO!$AP$1:$AP$576,0),16)&" de "&INDEX([1]RELAÇÃO!$A$1:$AQ$576,MATCH($M61,[1]RELAÇÃO!$AP$1:$AP$576,0),15)) -> Portaria nº 430, de 10/10/2018 - DOU de 22/10/2018 | L61: =IF($E61=0,"-",IF(INDEX([1]RELAÇÃO!$A$1:$AQ$576,MATCH($M61,[1]RELAÇÃO!$AP$1:$AP$576,0),8)="2.100.400","-",INDEX([1]RELAÇÃO!$A$1:$AQ$576,MATCH($M61,[1]RELAÇÃO!$AP$1:$AP$576,0),7))) -> - | M61: GM39
B62: Assistente | C62: DAS 102.2 | D62: ASS | E62: =INDEX([1]RELAÇÃO!$A$1:$AQ$576,MATCH($M62,[1]RELAÇÃO!$AP$1:$AP$576,0),1) -> LEILA MARIA BASTOS PERES DOS SANTOS | F62: =IF(E62=0,"-",LEFT(INDEX([1]RELAÇÃO!$A$1:$AQ$576,MATCH($M62,[1]RELAÇÃO!$AP$1:$AP$576,0),32),1)) -> F | G62: =IF(E62=0,"-",INDEX([1]RELAÇÃO!$A$1:$AQ$576,MATCH($M62,[1]RELAÇÃO!$AP$1:$AP$576,0),5)) -> Sem Vínculo | H62: =IF(E62=0,"-",INDEX([1]RELAÇÃO!$A$1:$AQ$576,MATCH($M62,[1]RELAÇÃO!$AP$1:$AP$576,0),6)) -> Sem Vínculo | I62: =IF(E62=0,"-",INDEX([1]RELAÇÃO!$A$1:$AQ$576,MATCH($M62,[1]RELAÇÃO!$AP$1:$AP$576,0),12)&INDEX([1]RELAÇÃO!$A$1:$AQ$576,MATCH($M62,[1]RELAÇÃO!$AP$1:$AP$576,0),13)&", de "&INDEX([1]RELAÇÃO!$A$1:$AQ$576,MATCH($M62,[1]RELAÇÃO!$AP$1:$AP$576,0),14)&" - "&INDEX([1]RELAÇÃO!$A$1:$AQ$576,MATCH($M62,[1]RELAÇÃO!$AP$1:$AP$576,0),16)&" de "&INDEX([1]RELAÇÃO!$A$1:$AQ$576,MATCH($M62,[1]RELAÇÃO!$AP$1:$AP$576,0),15)) -> Portaria nº 431, de 10/10/2018 - DOU de 22/10/2018 | L62: =IF($E62=0,"-",IF(INDEX([1]RELAÇÃO!$A$1:$AQ$576,MATCH($M62,[1]RELAÇÃO!$AP$1:$AP$576,0),8)="2.100.400","-",INDEX([1]RELAÇÃO!$A$1:$AQ$576,MATCH($M62,[1]RELAÇÃO!$AP$1:$AP$576,0),7))) -> - | M62: GM40
B63: Assistente Técnico | C63: DAS 102.1 | D63: ASS | E63: =INDEX([1]RELAÇÃO!$A$1:$AQ$576,MATCH($M63,[1]RELAÇÃO!$AP$1:$AP$576,0),1) -> MILENA BARBOSA CARVALHEDO RIBEIRO | F63: =IF(E63=0,"-",LEFT(INDEX([1]RELAÇÃO!$A$1:$AQ$576,MATCH($M63,[1]RELAÇÃO!$AP$1:$AP$576,0),32),1)) -> F | G63: =IF(E63=0,"-",INDEX([1]RELAÇÃO!$A$1:$AQ$576,MATCH($M63,[1]RELAÇÃO!$AP$1:$AP$576,0),5)) -> Sem Vínculo | H63: =IF(E63=0,"-",INDEX([1]RELAÇÃO!$A$1:$AQ$576,MATCH($M63,[1]RELAÇÃO!$AP$1:$AP$576,0),6)) -> Sem Vínculo | I63: =IF(E63=0,"-",INDEX([1]RELAÇÃO!$A$1:$AQ$576,MATCH($M63,[1]RELAÇÃO!$AP$1:$AP$576,0),12)&INDEX([1]RELAÇÃO!$A$1:$AQ$576,MATCH($M63,[1]RELAÇÃO!$AP$1:$AP$576,0),13)&", de "&INDEX([1]RELAÇÃO!$A$1:$AQ$576,MATCH($M63,[1]RELAÇÃO!$AP$1:$AP$576,0),14)&" - "&INDEX([1]RELAÇÃO!$A$1:$AQ$576,MATCH($M63,[1]RELAÇÃO!$AP$1:$AP$576,0),16)&" de "&INDEX([1]RELAÇÃO!$A$1:$AQ$576,MATCH($M63,[1]RELAÇÃO!$AP$1:$AP$576,0),15)) -> Portaria nº 524, de 03/11/2016 - BPE de 04/11/2016 | L63: =IF($E63=0,"-",IF(INDEX([1]RELAÇÃO!$A$1:$AQ$576,MATCH($M63,[1]RELAÇÃO!$AP$1:$AP$576,0),8)="2.100.400","-",INDEX([1]RELAÇÃO!$A$1:$AQ$576,MATCH($M63,[1]RELAÇÃO!$AP$1:$AP$576,0),7))) -> - | M63: GM41
A64: Ouvidoria-Geral | B64: Ouvidor-Geral | C64: FCPE 101.4 | D64: GER | E64: =INDEX([1]RELAÇÃO!$A$1:$AQ$576,MATCH($M64,[1]RELAÇÃO!$AP$1:$AP$576,0),1) -> GRAYCE MARTINS DA SILVA GONCALVES | F64: =IF(E64=0,"-",LEFT(INDEX([1]RELAÇÃO!$A$1:$AQ$576,MATCH($M64,[1]RELAÇÃO!$AP$1:$AP$576,0),32),1)) -> F | G64: =IF(E64=0,"-",INDEX([1]RELAÇÃO!$A$1:$AQ$576,MATCH($M64,[1]RELAÇÃO!$AP$1:$AP$576,0),5)) -> Requisitado de Órgãos | H64: =IF(E64=0,"-",INDEX([1]RELAÇÃO!$A$1:$AQ$576,MATCH($M64,[1]RELAÇÃO!$AP$1:$AP$576,0),6)) -> MDR - Ministério do Desenvolvimento Regional | I64: =IF(E64=0,"-",INDEX([1]RELAÇÃO!$A$1:$AQ$576,MATCH($M64,[1]RELAÇÃO!$AP$1:$AP$576,0),12)&INDEX([1]RELAÇÃO!$A$1:$AQ$576,MATCH($M64,[1]RELAÇÃO!$AP$1:$AP$576,0),13)&", de "&INDEX([1]RELAÇÃO!$A$1:$AQ$576,MATCH($M64,[1]RELAÇÃO!$AP$1:$AP$576,0),14)&" - "&INDEX([1]RELAÇÃO!$A$1:$AQ$576,MATCH($M64,[1]RELAÇÃO!$AP$1:$AP$576,0),16)&" de "&INDEX([1]RELAÇÃO!$A$1:$AQ$576,MATCH($M64,[1]RELAÇÃO!$AP$1:$AP$576,0),15)) -> Portaria nº 268, de 13/07/2017 - DOU de 18/07/2017 | J64: =INDEX([1]RELAÇÃO!$A$1:$AQ$576,MATCH($N64,[1]RELAÇÃO!$AQ$1:$AQ$576,0),1) -> TANIA GOMES RIBEIRO DE MORAES | K64: =IF(J64=0,"-",INDEX([1]RELAÇÃO!$A$1:$AQ$576,MATCH($N64,[1]RELAÇÃO!$AQ$1:$AQ$576,0),27)&INDEX([1]RELAÇÃO!$A$1:$AQ$576,MATCH($N64,[1]RELAÇÃO!$AQ$1:$AQ$576,0),28)&", de "&INDEX([1]RELAÇÃO!$A$1:$AQ$576,MATCH($N64,[1]RELAÇÃO!$AQ$1:$AQ$576,0),29)&" - "&INDEX([1]RELAÇÃO!$A$1:$AQ$576,MATCH($N64,[1]RELAÇÃO!$AQ$1:$AQ$576,0),31)&" de "&INDEX([1]RELAÇÃO!$A$1:$AQ$576,MATCH($N64,[1]RELAÇÃO!$AQ$1:$AQ$576,0),30)) -> Portaria nº 327, de 21/08/2017 - DOU de 22/08/2017 | L64: =IF($E64=0,"-",IF(INDEX([1]RELAÇÃO!$A$1:$AQ$576,MATCH($M64,[1]RELAÇÃO!$AP$1:$AP$576,0),8)="2.100.500","-",INDEX([1]RELAÇÃO!$A$1:$AQ$576,MATCH($M64,[1]RELAÇÃO!$AP$1:$AP$576,0),7))) -> - | M64: GM42 | N64: GM09S
B65: Assistente | C65: DAS 102.2 | D65: ASS | E65: =INDEX([1]RELAÇÃO!$A$1:$AQ$576,MATCH($M65,[1]RELAÇÃO!$AP$1:$AP$576,0),1) -> FABIO SKAF NACFUR | F65: =IF(E65=0,"-",LEFT(INDEX([1]RELAÇÃO!$A$1:$AQ$576,MATCH($M65,[1]RELAÇÃO!$AP$1:$AP$576,0),32),1)) -> M | G65: =IF(E65=0,"-",INDEX([1]RELAÇÃO!$A$1:$AQ$576,MATCH($M65,[1]RELAÇÃO!$AP$1:$AP$576,0),5)) -> Sem Vínculo | H65: =IF(E65=0,"-",INDEX([1]RELAÇÃO!$A$1:$AQ$576,MATCH($M65,[1]RELAÇÃO!$AP$1:$AP$576,0),6)) -> Sem Vínculo | I65: =IF(E65=0,"-",INDEX([1]RELAÇÃO!$A$1:$AQ$576,MATCH($M65,[1]RELAÇÃO!$AP$1:$AP$576,0),12)&INDEX([1]RELAÇÃO!$A$1:$AQ$576,MATCH($M65,[1]RELAÇÃO!$AP$1:$AP$576,0),13)&", de "&INDEX([1]RELAÇÃO!$A$1:$AQ$576,MATCH($M65,[1]RELAÇÃO!$AP$1:$AP$576,0),14)&" - "&INDEX([1]RELAÇÃO!$A$1:$AQ$576,MATCH($M65,[1]RELAÇÃO!$AP$1:$AP$576,0),16)&" de "&INDEX([1]RELAÇÃO!$A$1:$AQ$576,MATCH($M65,[1]RELAÇÃO!$AP$1:$AP$576,0),15)) -> Portaria nº 33, de 17/01/2019 - DOU de 23/01/2019 | L65: =IF($E65=0,"-",IF(INDEX([1]RELAÇÃO!$A$1:$AQ$576,MATCH($M65,[1]RELAÇÃO!$AP$1:$AP$576,0),8)="2.100.500","-",INDEX([1]RELAÇÃO!$A$1:$AQ$576,MATCH($M65,[1]RELAÇÃO!$AP$1:$AP$576,0),7))) -> - | M65: GM43
B66: Assistente Técnico | C66: FCPE 102.1 | D66: ASS | E66: =INDEX([1]RELAÇÃO!$A$1:$AQ$576,MATCH($M66,[1]RELAÇÃO!$AP$1:$AP$576,0),1) -> ABDON TAVARES REIS | F66: =IF(E66=0,"-",LEFT(INDEX([1]RELAÇÃO!$A$1:$AQ$576,MATCH($M66,[1]RELAÇÃO!$AP$1:$AP$576,0),32),1)) -> M | G66: =IF(E66=0,"-",INDEX([1]RELAÇÃO!$A$1:$AQ$576,MATCH($M66,[1]RELAÇÃO!$AP$1:$AP$576,0),5)) -> Exercício Descentralizado | H66: =IF(E66=0,"-",INDEX([1]RELAÇÃO!$A$1:$AQ$576,MATCH($M66,[1]RELAÇÃO!$AP$1:$AP$576,0),6)) -> ME - Ministério da Economia | I66: =IF(E66=0,"-",INDEX([1]RELAÇÃO!$A$1:$AQ$576,MATCH($M66,[1]RELAÇÃO!$AP$1:$AP$576,0),12)&INDEX([1]RELAÇÃO!$A$1:$AQ$576,MATCH($M66,[1]RELAÇÃO!$AP$1:$AP$576,0),13)&", de "&INDEX([1]RELAÇÃO!$A$1:$AQ$576,MATCH($M66,[1]RELAÇÃO!$AP$1:$AP$576,0),14)&" - "&INDEX([1]RELAÇÃO!$A$1:$AQ$576,MATCH($M66,[1]RELAÇÃO!$AP$1:$AP$576,0),16)&" de "&INDEX([1]RELAÇÃO!$A$1:$AQ$576,MATCH($M66,[1]RELAÇÃO!$AP$1:$AP$576,0),15)) -> Portaria nº 332, de 15/08/2018 - DOU de 16/08/2018 | L66: =IF($E66=0,"-",IF(INDEX([1]RELAÇÃO!$A$1:$AQ$576,MATCH($M66,[1]RELAÇÃO!$AP$1:$AP$576,0),8)="2.100.500","-",INDEX([1]RELAÇÃO!$A$1:$AQ$576,MATCH($M66,[1]RELAÇÃO!$AP$1:$AP$576,0),7))) -> SE / SPOA / CGOF / COORDENAÇÃO DE ADMINISTRAÇÃO FINANCEIRA -COAF | M66: GM44
A68: SECRETARIA-EXECUTIVA - SE
A69: UNIDADE | B69: DENOMINAÇÃO CARGO/FUNÇÃO | C69: NE/DAS/FCPE | D69: NÍVEL DA FUNÇÃO | E69: SERVIDOR | F69: SEXO | G69: SITUAÇÃO | H69: ORIGEM | I69: ATO DE NOMEAÇÃO | J69: SUBSTITUTO EVENTUAL | K69: DESIGNAÇÃO | L69: Alteração de local de exercício | M69: ID FUNÇÃO | N69: ID SUBSTITUIÇÃO
A70: SECRETARIA-EXECUTIVA | B70: Secretário-Executivo | C70: NE | D70: GER | E70: =INDEX([1]RELAÇÃO!$A$1:$AQ$576,MATCH($M70,[1]RELAÇÃO!$AP$1:$AP$576,0),1) -> MARISETE FATIMA DADALD PEREIRA | F70: =IF(E70=0,"-",LEFT(INDEX([1]RELAÇÃO!$A$1:$AQ$576,MATCH($M70,[1]RELAÇÃO!$AP$1:$AP$576,0),32),1)) -> F | G70: =IF(E70=0,"-",INDEX([1]RELAÇÃO!$A$1:$AQ$576,MATCH($M70,[1]RELAÇÃO!$AP$1:$AP$576,0),5)) -> Sem Vínculo | H70: =IF(E70=0,"-",INDEX([1]RELAÇÃO!$A$1:$AQ$576,MATCH($M70,[1]RELAÇÃO!$AP$1:$AP$576,0),6)) -> Sem Vínculo | I70: =IF(E70=0,"-",INDEX([1]RELAÇÃO!$A$1:$AQ$576,MATCH($M70,[1]RELAÇÃO!$AP$1:$AP$576,0),12)&INDEX([1]RELAÇÃO!$A$1:$AQ$576,MATCH($M70,[1]RELAÇÃO!$AP$1:$AP$576,0),13)&", de "&INDEX([1]RELAÇÃO!$A$1:$AQ$576,MATCH($M70,[1]RELAÇÃO!$AP$1:$AP$576,0),14)&" - "&INDEX([1]RELAÇÃO!$A$1:$AQ$576,MATCH($M70,[1]RELAÇÃO!$AP$1:$AP$576,0),16)&" de "&INDEX([1]RELAÇÃO!$A$1:$AQ$576,MATCH($M70,[1]RELAÇÃO!$AP$1:$AP$576,0),15)) -> Decreto nº s/n, de 01/01/2019 - DOU de 02/01/2019 | J70: =INDEX([1]RELAÇÃO!$A$1:$AQ$576,MATCH($N70,[1]RELAÇÃO!$AQ$1:$AQ$576,0),1) -> BRUNO EUSTÁQUIO FERREIRA CASTRO DE CARVALHO | K70: =IF(J70=0,"-",INDEX([1]RELAÇÃO!$A$1:$AQ$576,MATCH($N70,[1]RELAÇÃO!$AQ$1:$AQ$576,0),27)&INDEX([1]RELAÇÃO!$A$1:$AQ$576,MATCH($N70,[1]RELAÇÃO!$AQ$1:$AQ$576,0),28)&", de "&INDEX([1]RELAÇÃO!$A$1:$AQ$576,MATCH($N70,[1]RELAÇÃO!$AQ$1:$AQ$576,0),29)&" - "&INDEX([1]RELAÇÃO!$A$1:$AQ$576,MATCH($N70,[1]RELAÇÃO!$AQ$1:$AQ$576,0),31)&" de "&INDEX([1]RELAÇÃO!$A$1:$AQ$576,MATCH($N70,[1]RELAÇÃO!$AQ$1:$AQ$576,0),30)) -> Portaria nº 108 - Anexo II, Art. 55,IV do RI da SE, de 14/03/2017 - DOU de 16/03/2017 - Ret. 17/03/2017 | L70: =IF($E70=0,"-",IF(INDEX([1]RELAÇÃO!$A$1:$AQ$576,MATCH($M70,[1]RELAÇÃO!$AP$1:$AP$576,0),8)="8.000.000","-",INDEX([1]RELAÇÃO!$A$1:$AQ$576,MATCH($M70,[1]RELAÇÃO!$AP$1:$AP$576,0),7))) -> - | M70: SE01 | N70: SE01S
B71: Secretário-Executivo Adjunto | C71: DAS 101.6 | D71: GER | E71: =INDEX([1]RELAÇÃO!$A$1:$AQ$576,MATCH($M71,[1]RELAÇÃO!$AP$1:$AP$576,0),1) -> BRUNO EUSTÁQUIO FERREIRA CASTRO DE CARVALHO | F71: =IF(E71=0,"-",LEFT(INDEX([1]RELAÇÃO!$A$1:$AQ$576,MATCH($M71,[1]RELAÇÃO!$AP$1:$AP$576,0),32),1)) -> M | G71: =IF(E71=0,"-",INDEX([1]RELAÇÃO!$A$1:$AQ$576,MATCH($M71,[1]RELAÇÃO!$AP$1:$AP$576,0),5)) -> Requisitado de Órgãos | H71: =IF(E71=0,"-",INDEX([1]RELAÇÃO!$A$1:$AQ$576,MATCH($M71,[1]RELAÇÃO!$AP$1:$AP$576,0),6)) -> ME - Ministério da Economia | I71: =IF(E71=0,"-",INDEX([1]RELAÇÃO!$A$1:$AQ$576,MATCH($M71,[1]RELAÇÃO!$AP$1:$AP$576,0),12)&INDEX([1]RELAÇÃO!$A$1:$AQ$576,MATCH($M71,[1]RELAÇÃO!$AP$1:$AP$576,0),13)&", de "&INDEX([1]RELAÇÃO!$A$1:$AQ$576,MATCH($M71,[1]RELAÇÃO!$AP$1:$AP$576,0),14)&" - "&INDEX([1]RELAÇÃO!$A$1:$AQ$576,MATCH($M71,[1]RELAÇÃO!$AP$1:$AP$576,0),16)&" de "&INDEX([1]RELAÇÃO!$A$1:$AQ$576,MATCH($M71,[1]RELAÇÃO!$AP$1:$AP$576,0),15)) -> Portaria nº 592, de 16/01/2019 - DOU de 17/01/2019 | J71: =INDEX([1]RELAÇÃO!$A$1:$AQ$576,MATCH($N71,[1]RELAÇÃO!$AQ$1:$AQ$576,0),1) -> 0 | K71: =IF(J71=0,"-",INDEX([1]RELAÇÃO!$A$1:$AQ$576,MATCH($N71,[1]RELAÇÃO!$AQ$1:$AQ$576,0),27)&INDEX([1]RELAÇÃO!$A$1:$AQ$576,MATCH($N71,[1]RELAÇÃO!$AQ$1:$AQ$576,0),28)&", de "&INDEX([1]RELAÇÃO!$A$1:$AQ$576,MATCH($N71,[1]RELAÇÃO!$AQ$1:$AQ$576,0),29)&" - "&INDEX([1]RELAÇÃO!$A$1:$AQ$576,MATCH($N71,[1]RELAÇÃO!$AQ$1:$AQ$576,0),31)&" de "&INDEX([1]RELAÇÃO!$A$1:$AQ$576,MATCH($N71,[1]RELAÇÃO!$AQ$1:$AQ$576,0),30)) -> - | L71: =IF($E71=0,"-",IF(INDEX([1]RELAÇÃO!$A$1:$AQ$576,MATCH($M71,[1]RELAÇÃO!$AP$1:$AP$576,0),8)="8.000.000","-",INDEX([1]RELAÇÃO!$A$1:$AQ$576,MATCH($M71,[1]RELAÇÃO!$AP$1:$AP$576,0),7))) -> SE / CHEFIA DE GABINETE SE | M71: SE02 | N71: SE02S
B72: Diretor de Programa | C72: DAS 101.5 | D72: GER | E72: =INDEX([1]RELAÇÃO!$A$1:$AQ$576,MATCH($M72,[1]RELAÇÃO!$AP$1:$AP$576,0),1) -> ANDERSON MARCIO DE OLIVEIRA | F72: =IF(E72=0,"-",LEFT(INDEX([1]RELAÇÃO!$A$1:$AQ$576,MATCH($M72,[1]RELAÇÃO!$AP$1:$AP$576,0),32),1)) -> M | G72: =IF(E72=0,"-",INDEX([1]RELAÇÃO!$A$1:$AQ$576,MATCH($M72,[1]RELAÇÃO!$AP$1:$AP$576,0),5)) -> Requisitado de Empresa | H72: =IF(E72=0,"-",INDEX([1]RELAÇÃO!$A$1:$AQ$576,MATCH($M72,[1]RELAÇÃO!$AP$1:$AP$576,0),6)) -> BNDES - Banco Nacional de Desenvolvimento Econômico e Social | I72: =IF(E72=0,"-",INDEX([1]RELAÇÃO!$A$1:$AQ$576,MATCH($M72,[1]RELAÇÃO!$AP$1:$AP$576,0),12)&INDEX([1]RELAÇÃO!$A$1:$AQ$576,MATCH($M72,[1]RELAÇÃO!$AP$1:$AP$576,0),13)&", de "&INDEX([1]RELAÇÃO!$A$1:$AQ$576,MATCH($M72,[1]RELAÇÃO!$AP$1:$AP$576,0),14)&" - "&INDEX([1]RELAÇÃO!$A$1:$AQ$576,MATCH($M72,[1]RELAÇÃO!$AP$1:$AP$576,0),16)&" de "&INDEX([1]RELAÇÃO!$A$1:$AQ$576,MATCH($M72,[1]RELAÇÃO!$AP$1:$AP$576,0),15)) -> Portaria nº 1931, de 27/06/2019 - DOU de 28/06/2019 | J72: =INDEX([1]RELAÇÃO!$A$1:$AQ$576,MATCH($N72,[1]RELAÇÃO!$AQ$1:$AQ$576,0),1) -> 0 | K72: =IF(J72=0,"-",INDEX([1]RELAÇÃO!$A$1:$AQ$576,MATCH($N72,[1]RELAÇÃO!$AQ$1:$AQ$576,0),27)&INDEX([1]RELAÇÃO!$A$1:$AQ$576,MATCH($N72,[1]RELAÇÃO!$AQ$1:$AQ$576,0),28)&", de "&INDEX([1]RELAÇÃO!$A$1:$AQ$576,MATCH($N72,[1]RELAÇÃO!$AQ$1:$AQ$576,0),29)&" - "&INDEX([1]RELAÇÃO!$A$1:$AQ$576,MATCH($N72,[1]RELAÇÃO!$AQ$1:$AQ$576,0),31)&" de "&INDEX([1]RELAÇÃO!$A$1:$AQ$576,MATCH($N72,[1]RELAÇÃO!$AQ$1:$AQ$576,0),30)) -> - | L72: =IF($E72=0,"-",IF(INDEX([1]RELAÇÃO!$A$1:$AQ$576,MATCH($M72,[1]RELAÇÃO!$AP$1:$AP$576,0),8)="8.000.000","-",INDEX([1]RELAÇÃO!$A$1:$AQ$576,MATCH($M72,[1]RELAÇÃO!$AP$1:$AP$576,0),7))) -> SE / CHEFIA DE GABINETE SE | M72: SE03 | N72: SE03S
B73: Diretor de Programa | C73: DAS 101.5 | D73: GER | E73: =INDEX([1]RELAÇÃO!$A$1:$AQ$576,MATCH($M73,[1]RELAÇÃO!$AP$1:$AP$576,0),1) -> CAMILLA DE ANDRADE GONÇALVES FERNANDES | F73: =IF(E73=0,"-",LEFT(INDEX([1]RELAÇÃO!$A$1:$AQ$576,MATCH($M73,[1]RELAÇÃO!$AP$1:$AP$576,0),32),1)) -> F | G73: =IF(E73=0,"-",INDEX([1]RELAÇÃO!$A$1:$AQ$576,MATCH($M73,[1]RELAÇÃO!$AP$1:$AP$576,0),5)) -> Requisitado de Órgãos | H73: =IF(E73=0,"-",INDEX([1]RELAÇÃO!$A$1:$AQ$576,MATCH($M73,[1]RELAÇÃO!$AP$1:$AP$576,0),6)) -> ANEEL - Agência Nacional de Energia Elétrica | I73: =IF(E73=0,"-",INDEX([1]RELAÇÃO!$A$1:$AQ$576,MATCH($M73,[1]RELAÇÃO!$AP$1:$AP$576,0),12)&INDEX([1]RELAÇÃO!$A$1:$AQ$576,MATCH($M73,[1]RELAÇÃO!$AP$1:$AP$576,0),13)&", de "&INDEX([1]RELAÇÃO!$A$1:$AQ$576,MATCH($M73,[1]RELAÇÃO!$AP$1:$AP$576,0),14)&" - "&INDEX([1]RELAÇÃO!$A$1:$AQ$576,MATCH($M73,[1]RELAÇÃO!$AP$1:$AP$576,0),16)&" de "&INDEX([1]RELAÇÃO!$A$1:$AQ$576,MATCH($M73,[1]RELAÇÃO!$AP$1:$AP$576,0),15)) -> Portaria nº 301, de 31/07/2020 - DOU de 04/08/2020 | J73: =INDEX([1]RELAÇÃO!$A$1:$AQ$576,MATCH($N73,[1]RELAÇÃO!$AQ$1:$AQ$576,0),1) -> 0 | K73: =IF(J73=0,"-",INDEX([1]RELAÇÃO!$A$1:$AQ$576,MATCH($N73,[1]RELAÇÃO!$AQ$1:$AQ$576,0),27)&INDEX([1]RELAÇÃO!$A$1:$AQ$576,MATCH($N73,[1]RELAÇÃO!$AQ$1:$AQ$576,0),28)&", de "&INDEX([1]RELAÇÃO!$A$1:$AQ$576,MATCH($N73,[1]RELAÇÃO!$AQ$1:$AQ$576,0),29)&" - "&INDEX([1]RELAÇÃO!$A$1:$AQ$576,MATCH($N73,[1]RELAÇÃO!$AQ$1:$AQ$576,0),31)&" de "&INDEX([1]RELAÇÃO!$A$1:$AQ$576,MATCH($N73,[1]RELAÇÃO!$AQ$1:$AQ$576,0),30)) -> - | L73: =IF($E73=0,"-",IF(INDEX([1]RELAÇÃO!$A$1:$AQ$576,MATCH($M73,[1]RELAÇÃO!$AP$1:$AP$576,0),8)="8.000.000","-",INDEX([1]RELAÇÃO!$A$1:$AQ$576,MATCH($M73,[1]RELAÇÃO!$AP$1:$AP$576,0),7))) -> SE / CHEFIA DE GABINETE SE | M73: SE04 | N73: SE04S
B74: Assessor | C74: DAS 102.4 | D74: ASS | E74: =INDEX([1]RELAÇÃO!$A$1:$AQ$576,MATCH($M74,[1]RELAÇÃO!$AP$1:$AP$576,0),1) -> JEFFERSON DE SOUZA OLIVEIRA | F74: =IF(E74=0,"-",LEFT(INDEX([1]RELAÇÃO!$A$1:$AQ$576,MATCH($M74,[1]RELAÇÃO!$AP$1:$AP$576,0),32),1)) -> M | G74: =IF(E74=0,"-",INDEX([1]RELAÇÃO!$A$1:$AQ$576,MATCH($M74,[1]RELAÇÃO!$AP$1:$AP$576,0),5)) -> Sem Vínculo | H74: =IF(E74=0,"-",INDEX([1]RELAÇÃO!$A$1:$AQ$576,MATCH($M74,[1]RELAÇÃO!$AP$1:$AP$576,0),6)) -> Sem Vínculo | I74: =IF(E74=0,"-",INDEX([1]RELAÇÃO!$A$1:$AQ$576,MATCH($M74,[1]RELAÇÃO!$AP$1:$AP$576,0),12)&INDEX([1]RELAÇÃO!$A$1:$AQ$576,MATCH($M74,[1]RELAÇÃO!$AP$1:$AP$576,0),13)&", de "&INDEX([1]RELAÇÃO!$A$1:$AQ$576,MATCH($M74,[1]RELAÇÃO!$AP$1:$AP$576,0),14)&" - "&INDEX([1]RELAÇÃO!$A$1:$AQ$576,MATCH($M74,[1]RELAÇÃO!$AP$1:$AP$576,0),16)&" de "&INDEX([1]RELAÇÃO!$A$1:$AQ$576,MATCH($M74,[1]RELAÇÃO!$AP$1:$AP$576,0),15)) -> Portaria nº 147, de 27/02/2019 - DOU de 01/03/2019 | L74: =IF($E74=0,"-",IF(INDEX([1]RELAÇÃO!$A$1:$AQ$576,MATCH($M74,[1]RELAÇÃO!$AP$1:$AP$576,0),8)="8.000.000","-",INDEX([1]RELAÇÃO!$A$1:$AQ$576,MATCH($M74,[1]RELAÇÃO!$AP$1:$AP$576,0),7))) -> ASSESSORIA ESPECIAL DE ACOMPANHAMENTO DE POLÍTICAS, ESTRATÉGIAS E DESEMPENHO SETORIAL - AEPED | M74: SE05
B75: Assessor | C75: DAS 102.4 | D75: ASS | E75: =INDEX([1]RELAÇÃO!$A$1:$AQ$576,MATCH($M75,[1]RELAÇÃO!$AP$1:$AP$576,0),1) -> WIDISMAR MARTINS DA SILVA | F75: =IF(E75=0,"-",LEFT(INDEX([1]RELAÇÃO!$A$1:$AQ$576,MATCH($M75,[1]RELAÇÃO!$AP$1:$AP$576,0),32),1)) -> M | G75: =IF(E75=0,"-",INDEX([1]RELAÇÃO!$A$1:$AQ$576,MATCH($M75,[1]RELAÇÃO!$AP$1:$AP$576,0),5)) -> Sem Vínculo | H75: =IF(E75=0,"-",INDEX([1]RELAÇÃO!$A$1:$AQ$576,MATCH($M75,[1]RELAÇÃO!$AP$1:$AP$576,0),6)) -> Sem Vínculo | I75: =IF(E75=0,"-",INDEX([1]RELAÇÃO!$A$1:$AQ$576,MATCH($M75,[1]RELAÇÃO!$AP$1:$AP$576,0),12)&INDEX([1]RELAÇÃO!$A$1:$AQ$576,MATCH($M75,[1]RELAÇÃO!$AP$1:$AP$576,0),13)&", de "&INDEX([1]RELAÇÃO!$A$1:$AQ$576,MATCH($M75,[1]RELAÇÃO!$AP$1:$AP$576,0),14)&" - "&INDEX([1]RELAÇÃO!$A$1:$AQ$576,MATCH($M75,[1]RELAÇÃO!$AP$1:$AP$576,0),16)&" de "&INDEX([1]RELAÇÃO!$A$1:$AQ$576,MATCH($M75,[1]RELAÇÃO!$AP$1:$AP$576,0),15)) -> Portaria nº 524, de 03/11/2016 - DOU de 04/11/2016 | L75: =IF($E75=0,"-",IF(INDEX([1]RELAÇÃO!$A$1:$AQ$576,MATCH($M75,[1]RELAÇÃO!$AP$1:$AP$576,0),8)="8.000.000","-",INDEX([1]RELAÇÃO!$A$1:$AQ$576,MATCH($M75,[1]RELAÇÃO!$AP$1:$AP$576,0),7))) -> SE / CHEFIA DE GABINETE SE | M75: SE06
B76: Assessor | C76: DAS 102.4 | D76: ASS | E76: =INDEX([1]RELAÇÃO!$A$1:$AQ$576,MATCH($M76,[1]RELAÇÃO!$AP$1:$AP$576,0),1) -> RICARDO TAKEMITSU SIMABUKU | F76: =IF(E76=0,"-",LEFT(INDEX([1]RELAÇÃO!$A$1:$AQ$576,MATCH($M76,[1]RELAÇÃO!$AP$1:$AP$576,0),32),1)) -> M | G76: =IF(E76=0,"-",INDEX([1]RELAÇÃO!$A$1:$AQ$576,MATCH($M76,[1]RELAÇÃO!$AP$1:$AP$576,0),5)) -> Requisitado de Órgãos | H76: =IF(E76=0,"-",INDEX([1]RELAÇÃO!$A$1:$AQ$576,MATCH($M76,[1]RELAÇÃO!$AP$1:$AP$576,0),6)) -> ME - Ministério da Economia | I76: =IF(E76=0,"-",INDEX([1]RELAÇÃO!$A$1:$AQ$576,MATCH($M76,[1]RELAÇÃO!$AP$1:$AP$576,0),12)&INDEX([1]RELAÇÃO!$A$1:$AQ$576,MATCH($M76,[1]RELAÇÃO!$AP$1:$AP$576,0),13)&", de "&INDEX([1]RELAÇÃO!$A$1:$AQ$576,MATCH($M76,[1]RELAÇÃO!$AP$1:$AP$576,0),14)&" - "&INDEX([1]RELAÇÃO!$A$1:$AQ$576,MATCH($M76,[1]RELAÇÃO!$AP$1:$AP$576,0),16)&" de "&INDEX([1]RELAÇÃO!$A$1:$AQ$576,MATCH($M76,[1]RELAÇÃO!$AP$1:$AP$576,0),15)) -> Portaria nº 275, de 03/07/2019 - DOU de 05/07/2019 | L76: =IF($E76=0,"-",IF(INDEX([1]RELAÇÃO!$A$1:$AQ$576,MATCH($M76,[1]RELAÇÃO!$AP$1:$AP$576,0),8)="8.000.000","-",INDEX([1]RELAÇÃO!$A$1:$AQ$576,MATCH($M76,[1]RELAÇÃO!$AP$1:$AP$576,0),7))) -> SE / CHEFIA DE GABINETE SE | M76: SE07
B77: Assessor | C77: DAS 102.4 | D77: ASS | E77: =INDEX([1]RELAÇÃO!$A$1:$AQ$576,MATCH($M77,[1]RELAÇÃO!$AP$1:$AP$576,0),1) -> ALEXANDRE LAURI HENRIKSEN | F77: =IF(E77=0,"-",LEFT(INDEX([1]RELAÇÃO!$A$1:$AQ$576,MATCH($M77,[1]RELAÇÃO!$AP$1:$AP$576,0),32),1)) -> M | G77: =IF(E77=0,"-",INDEX([1]RELAÇÃO!$A$1:$AQ$576,MATCH($M77,[1]RELAÇÃO!$AP$1:$AP$576,0),5)) -> Requisitado de Órgãos | H77: =IF(E77=0,"-",INDEX([1]RELAÇÃO!$A$1:$AQ$576,MATCH($M77,[1]RELAÇÃO!$AP$1:$AP$576,0),6)) -> ME - Ministério da Economia | I77: =IF(E77=0,"-",INDEX([1]RELAÇÃO!$A$1:$AQ$576,MATCH($M77,[1]RELAÇÃO!$AP$1:$AP$576,0),12)&INDEX([1]RELAÇÃO!$A$1:$AQ$576,MATCH($M77,[1]RELAÇÃO!$AP$1:$AP$576,0),13)&", de "&INDEX([1]RELAÇÃO!$A$1:$AQ$576,MATCH($M77,[1]RELAÇÃO!$AP$1:$AP$576,0),14)&" - "&INDEX([1]RELAÇÃO!$A$1:$AQ$576,MATCH($M77,[1]RELAÇÃO!$AP$1:$AP$576,0),16)&" de "&INDEX([1]RELAÇÃO!$A$1:$AQ$576,MATCH($M77,[1]RELAÇÃO!$AP$1:$AP$576,0),15)) -> Portaria nº 321, de 26/08/2020 - DOU de 28/08/2020 | L77: =IF($E77=0,"-",IF(INDEX([1]RELAÇÃO!$A$1:$AQ$576,MATCH($M77,[1]RELAÇÃO!$AP$1:$AP$576,0),8)="8.000.000","-",INDEX([1]RELAÇÃO!$A$1:$AQ$576,MATCH($M77,[1]RELAÇÃO!$AP$1:$AP$576,0),7))) -> ASSESSORIA ESPECIAL DE ASSUNTOS ECONÔMICOS - ASSEC | M77: SE08
B78: Assessor Técnico | C78: DAS 102.3 | D78: ASS | E78: =INDEX([1]RELAÇÃO!$A$1:$AQ$576,MATCH($M78,[1]RELAÇÃO!$AP$1:$AP$576,0),1) -> WALDIR ANTONIO GERVASIO | F78: =IF(E78=0,"-",LEFT(INDEX([1]RELAÇÃO!$A$1:$AQ$576,MATCH($M78,[1]RELAÇÃO!$AP$1:$AP$576,0),32),1)) -> M | G78: =IF(E78=0,"-",INDEX([1]RELAÇÃO!$A$1:$AQ$576,MATCH($M78,[1]RELAÇÃO!$AP$1:$AP$576,0),5)) -> Ativo Permanente | H78: =IF(E78=0,"-",INDEX([1]RELAÇÃO!$A$1:$AQ$576,MATCH($M78,[1]RELAÇÃO!$AP$1:$AP$576,0),6)) -> MME - Ministério de Minas e Energia | I78: =IF(E78=0,"-",INDEX([1]RELAÇÃO!$A$1:$AQ$576,MATCH($M78,[1]RELAÇÃO!$AP$1:$AP$576,0),12)&INDEX([1]RELAÇÃO!$A$1:$AQ$576,MATCH($M78,[1]RELAÇÃO!$AP$1:$AP$576,0),13)&", de "&INDEX([1]RELAÇÃO!$A$1:$AQ$576,MATCH($M78,[1]RELAÇÃO!$AP$1:$AP$576,0),14)&" - "&INDEX([1]RELAÇÃO!$A$1:$AQ$576,MATCH($M78,[1]RELAÇÃO!$AP$1:$AP$576,0),16)&" de "&INDEX([1]RELAÇÃO!$A$1:$AQ$576,MATCH($M78,[1]RELAÇÃO!$AP$1:$AP$576,0),15)) -> Portaria nº 390, de 15/10/2019 - DOU de 23/10/2019 | L78: =IF($E78=0,"-",IF(INDEX([1]RELAÇÃO!$A$1:$AQ$576,MATCH($M78,[1]RELAÇÃO!$AP$1:$AP$576,0),8)="8.000.000","-",INDEX([1]RELAÇÃO!$A$1:$AQ$576,MATCH($M78,[1]RELAÇÃO!$AP$1:$AP$576,0),7))) -> GM / ASTAD / COORDENAÇÃO DE ATIVIDADES ADMINISTRATIVAS | M78: SE09
B79: Assessor Técnico | C79: DAS 102.3 | D79: ASS | E79: =INDEX([1]RELAÇÃO!$A$1:$AQ$576,MATCH($M79,[1]RELAÇÃO!$AP$1:$AP$576,0),1) -> GLAUCIA MARIA DE MEIRELES | F79: =IF(E79=0,"-",LEFT(INDEX([1]RELAÇÃO!$A$1:$AQ$576,MATCH($M79,[1]RELAÇÃO!$AP$1:$AP$576,0),32),1)) -> F | G79: =IF(E79=0,"-",INDEX([1]RELAÇÃO!$A$1:$AQ$576,MATCH($M79,[1]RELAÇÃO!$AP$1:$AP$576,0),5)) -> Sem Vínculo | H79: =IF(E79=0,"-",INDEX([1]RELAÇÃO!$A$1:$AQ$576,MATCH($M79,[1]RELAÇÃO!$AP$1:$AP$576,0),6)) -> Sem Vínculo | I79: =IF(E79=0,"-",INDEX([1]RELAÇÃO!$A$1:$AQ$576,MATCH($M79,[1]RELAÇÃO!$AP$1:$AP$576,0),12)&INDEX([1]RELAÇÃO!$A$1:$AQ$576,MATCH($M79,[1]RELAÇÃO!$AP$1:$AP$576,0),13)&", de "&INDEX([1]RELAÇÃO!$A$1:$AQ$576,MATCH($M79,[1]RELAÇÃO!$AP$1:$AP$576,0),14)&" - "&INDEX([1]RELAÇÃO!$A$1:$AQ$576,MATCH($M79,[1]RELAÇÃO!$AP$1:$AP$576,0),16)&" de "&INDEX([1]RELAÇÃO!$A$1:$AQ$576,MATCH($M79,[1]RELAÇÃO!$AP$1:$AP$576,0),15)) -> Portaria nº 35, de 17/01/2019 - DOU de 21/01/2019 | L79: =IF($E79=0,"-",IF(INDEX([1]RELAÇÃO!$A$1:$AQ$576,MATCH($M79,[1]RELAÇÃO!$AP$1:$AP$576,0),8)="8.000.000","-",INDEX([1]RELAÇÃO!$A$1:$AQ$576,MATCH($M79,[1]RELAÇÃO!$AP$1:$AP$576,0),7))) -> SE / CHEFIA DE GABINETE SE | M79: SE10
B80: Assessor Técnico | C80: DAS 102.3 | D80: ASS | E80: =INDEX([1]RELAÇÃO!$A$1:$AQ$576,MATCH($M80,[1]RELAÇÃO!$AP$1:$AP$576,0),1) -> MARIZA FREIRE DE SOUZA | F80: =IF(E80=0,"-",LEFT(INDEX([1]RELAÇÃO!$A$1:$AQ$576,MATCH($M80,[1]RELAÇÃO!$AP$1:$AP$576,0),32),1)) -> F | G80: =IF(E80=0,"-",INDEX([1]RELAÇÃO!$A$1:$AQ$576,MATCH($M80,[1]RELAÇÃO!$AP$1:$AP$576,0),5)) -> Sem Vínculo | H80: =IF(E80=0,"-",INDEX([1]RELAÇÃO!$A$1:$AQ$576,MATCH($M80,[1]RELAÇÃO!$AP$1:$AP$576,0),6)) -> Sem Vínculo | I80: =IF(E80=0,"-",INDEX([1]RELAÇÃO!$A$1:$AQ$576,MATCH($M80,[1]RELAÇÃO!$AP$1:$AP$576,0),12)&INDEX([1]RELAÇÃO!$A$1:$AQ$576,MATCH($M80,[1]RELAÇÃO!$AP$1:$AP$576,0),13)&", de "&INDEX([1]RELAÇÃO!$A$1:$AQ$576,MATCH($M80,[1]RELAÇÃO!$AP$1:$AP$576,0),14)&" - "&INDEX([1]RELAÇÃO!$A$1:$AQ$576,MATCH($M80,[1]RELAÇÃO!$AP$1:$AP$576,0),16)&" de "&INDEX([1]RELAÇÃO!$A$1:$AQ$576,MATCH($M80,[1]RELAÇÃO!$AP$1:$AP$576,0),15)) -> Portaria nº 138, de 18/02/2019 - DOU de 22/02/2019 | L80: =IF($E80=0,"-",IF(INDEX([1]RELAÇÃO!$A$1:$AQ$576,MATCH($M80,[1]RELAÇÃO!$AP$1:$AP$576,0),8)="8.000.000","-",INDEX([1]RELAÇÃO!$A$1:$AQ$576,MATCH($M80,[1]RELAÇÃO!$AP$1:$AP$576,0),7))) -> SPE / DEPARTAMENTO DE DESENVOLVIMENTO ENERGÉTICO - DDE | M80: SE11
B81: Assessor Técnico | C81: DAS 102.3 | D81: ASS | E81: =INDEX([1]RELAÇÃO!$A$1:$AQ$576,MATCH($M81,[1]RELAÇÃO!$AP$1:$AP$576,0),1) -> REJANE INNECCO DA COSTA | F81: =IF(E81=0,"-",LEFT(INDEX([1]RELAÇÃO!$A$1:$AQ$576,MATCH($M81,[1]RELAÇÃO!$AP$1:$AP$576,0),32),1)) -> F | G81: =IF(E81=0,"-",INDEX([1]RELAÇÃO!$A$1:$AQ$576,MATCH($M81,[1]RELAÇÃO!$AP$1:$AP$576,0),5)) -> Sem Vínculo | H81: =IF(E81=0,"-",INDEX([1]RELAÇÃO!$A$1:$AQ$576,MATCH($M81,[1]RELAÇÃO!$AP$1:$AP$576,0),6)) -> Sem Vínculo | I81: =IF(E81=0,"-",INDEX([1]RELAÇÃO!$A$1:$AQ$576,MATCH($M81,[1]RELAÇÃO!$AP$1:$AP$576,0),12)&INDEX([1]RELAÇÃO!$A$1:$AQ$576,MATCH($M81,[1]RELAÇÃO!$AP$1:$AP$576,0),13)&", de "&INDEX([1]RELAÇÃO!$A$1:$AQ$576,MATCH($M81,[1]RELAÇÃO!$AP$1:$AP$576,0),14)&" - "&INDEX([1]RELAÇÃO!$A$1:$AQ$576,MATCH($M81,[1]RELAÇÃO!$AP$1:$AP$576,0),16)&" de "&INDEX([1]RELAÇÃO!$A$1:$AQ$576,MATCH($M81,[1]RELAÇÃO!$AP$1:$AP$576,0),15)) -> Portaria nº 146, de 27/02/2019 - DOU de 01/03/2019 | L81: =IF($E81=0,"-",IF(INDEX([1]RELAÇÃO!$A$1:$AQ$576,MATCH($M81,[1]RELAÇÃO!$AP$1:$AP$576,0),8)="8.000.000","-",INDEX([1]RELAÇÃO!$A$1:$AQ$576,MATCH($M81,[1]RELAÇÃO!$AP$1:$AP$576,0),7))) -> ASSESSORIA ESPECIAL DE CONTROLE INTERNO - AECI | M81: SE12
A82: GABINETE DA SECRETARIA EXECUTIVA | B82: Chefe de Gabinete | C82: DAS 101.4 | D82: GER | E82: =INDEX([1]RELAÇÃO!$A$1:$AQ$576,MATCH($M82,[1]RELAÇÃO!$AP$1:$AP$576,0),1) -> JULIETTE QUEIROZ MONSA | F82: =IF(E82=0,"-",LEFT(INDEX([1]RELAÇÃO!$A$1:$AQ$576,MATCH($M82,[1]RELAÇÃO!$AP$1:$AP$576,0),32),1)) -> F | G82: =IF(E82=0,"-",INDEX([1]RELAÇÃO!$A$1:$AQ$576,MATCH($M82,[1]RELAÇÃO!$AP$1:$AP$576,0),5)) -> Sem Vínculo | H82: =IF(E82=0,"-",INDEX([1]RELAÇÃO!$A$1:$AQ$576,MATCH($M82,[1]RELAÇÃO!$AP$1:$AP$576,0),6)) -> Sem Vínculo | I82: =IF(E82=0,"-",INDEX([1]RELAÇÃO!$A$1:$AQ$576,MATCH($M82,[1]RELAÇÃO!$AP$1:$AP$576,0),12)&INDEX([1]RELAÇÃO!$A$1:$AQ$576,MATCH($M82,[1]RELAÇÃO!$AP$1:$AP$576,0),13)&", de "&INDEX([1]RELAÇÃO!$A$1:$AQ$576,MATCH($M82,[1]RELAÇÃO!$AP$1:$AP$576,0),14)&" - "&INDEX([1]RELAÇÃO!$A$1:$AQ$576,MATCH($M82,[1]RELAÇÃO!$AP$1:$AP$576,0),16)&" de "&INDEX([1]RELAÇÃO!$A$1:$AQ$576,MATCH($M82,[1]RELAÇÃO!$AP$1:$AP$576,0),15)) -> Portaria nº 524, de 03/11/2016 - BPE de 04/11/2016 | J82: =INDEX([1]RELAÇÃO!$A$1:$AQ$576,MATCH($N82,[1]RELAÇÃO!$AQ$1:$AQ$576,0),1) -> 0 | K82: =IF(J82=0,"-",INDEX([1]RELAÇÃO!$A$1:$AQ$576,MATCH($N82,[1]RELAÇÃO!$AQ$1:$AQ$576,0),27)&INDEX([1]RELAÇÃO!$A$1:$AQ$576,MATCH($N82,[1]RELAÇÃO!$AQ$1:$AQ$576,0),28)&", de "&INDEX([1]RELAÇÃO!$A$1:$AQ$576,MATCH($N82,[1]RELAÇÃO!$AQ$1:$AQ$576,0),29)&" - "&INDEX([1]RELAÇÃO!$A$1:$AQ$576,MATCH($N82,[1]RELAÇÃO!$AQ$1:$AQ$576,0),31)&" de "&INDEX([1]RELAÇÃO!$A$1:$AQ$576,MATCH($N82,[1]RELAÇÃO!$AQ$1:$AQ$576,0),30)) -> - | L82: =IF($E82=0,"-",IF(INDEX([1]RELAÇÃO!$A$1:$AQ$576,MATCH($M82,[1]RELAÇÃO!$AP$1:$AP$576,0),8)="8.100.000","-",INDEX([1]RELAÇÃO!$A$1:$AQ$576,MATCH($M82,[1]RELAÇÃO!$AP$1:$AP$576,0),7))) -> - | M82: SE13 | N82: SE05S
B83: Assistente | C83: DAS 102.2 | D83: ASS | E83: =INDEX([1]RELAÇÃO!$A$1:$AQ$576,MATCH($M83,[1]RELAÇÃO!$AP$1:$AP$576,0),1) -> ALYNE SOUSA CARVALHO LIBERAL FERREIRA | F83: =IF(E83=0,"-",LEFT(INDEX([1]RELAÇÃO!$A$1:$AQ$576,MATCH($M83,[1]RELAÇÃO!$AP$1:$AP$576,0),32),1)) -> F | G83: =IF(E83=0,"-",INDEX([1]RELAÇÃO!$A$1:$AQ$576,MATCH($M83,[1]RELAÇÃO!$AP$1:$AP$576,0),5)) -> Sem Vínculo | H83: =IF(E83=0,"-",INDEX([1]RELAÇÃO!$A$1:$AQ$576,MATCH($M83,[1]RELAÇÃO!$AP$1:$AP$576,0),6)) -> Sem Vínculo | I83: =IF(E83=0,"-",INDEX([1]RELAÇÃO!$A$1:$AQ$576,MATCH($M83,[1]RELAÇÃO!$AP$1:$AP$576,0),12)&INDEX([1]RELAÇÃO!$A$1:$AQ$576,MATCH($M83,[1]RELAÇÃO!$AP$1:$AP$576,0),13)&", de "&INDEX([1]RELAÇÃO!$A$1:$AQ$576,MATCH($M83,[1]RELAÇÃO!$AP$1:$AP$576,0),14)&" - "&INDEX([1]RELAÇÃO!$A$1:$AQ$576,MATCH($M83,[1]RELAÇÃO!$AP$1:$AP$576,0),16)&" de "&INDEX([1]RELAÇÃO!$A$1:$AQ$576,MATCH($M83,[1]RELAÇÃO!$AP$1:$AP$576,0),15)) -> Portaria nº 161, de 11/03/2019 - DOU de 14/03/2019 | L83: =IF($E83=0,"-",IF(INDEX([1]RELAÇÃO!$A$1:$AQ$576,MATCH($M83,[1]RELAÇÃO!$AP$1:$AP$576,0),8)="8.100.000","-",INDEX([1]RELAÇÃO!$A$1:$AQ$576,MATCH($M83,[1]RELAÇÃO!$AP$1:$AP$576,0),7))) -> - | M83: SE14
B84: Assistente | C84: DAS 102.2 | D84: ASS | E84: =INDEX([1]RELAÇÃO!$A$1:$AQ$576,MATCH($M84,[1]RELAÇÃO!$AP$1:$AP$576,0),1) -> ROZANA SANTOS PEREIRA CAIXETA | F84: =IF(E84=0,"-",LEFT(INDEX([1]RELAÇÃO!$A$1:$AQ$576,MATCH($M84,[1]RELAÇÃO!$AP$1:$AP$576,0),32),1)) -> F | G84: =IF(E84=0,"-",INDEX([1]RELAÇÃO!$A$1:$AQ$576,MATCH($M84,[1]RELAÇÃO!$AP$1:$AP$576,0),5)) -> Sem Vínculo | H84: =IF(E84=0,"-",INDEX([1]RELAÇÃO!$A$1:$AQ$576,MATCH($M84,[1]RELAÇÃO!$AP$1:$AP$576,0),6)) -> Sem Vínculo | I84: =IF(E84=0,"-",INDEX([1]RELAÇÃO!$A$1:$AQ$576,MATCH($M84,[1]RELAÇÃO!$AP$1:$AP$576,0),12)&INDEX([1]RELAÇÃO!$A$1:$AQ$576,MATCH($M84,[1]RELAÇÃO!$AP$1:$AP$576,0),13)&", de "&INDEX([1]RELAÇÃO!$A$1:$AQ$576,MATCH($M84,[1]RELAÇÃO!$AP$1:$AP$576,0),14)&" - "&INDEX([1]RELAÇÃO!$A$1:$AQ$576,MATCH($M84,[1]RELAÇÃO!$AP$1:$AP$576,0),16)&" de "&INDEX([1]RELAÇÃO!$A$1:$AQ$576,MATCH($M84,[1]RELAÇÃO!$AP$1:$AP$576,0),15)) -> Portaria nº 524, de 03/11/2016 - BPE de 04/11/2016 | L84: =IF($E84=0,"-",IF(INDEX([1]RELAÇÃO!$A$1:$AQ$576,MATCH($M84,[1]RELAÇÃO!$AP$1:$AP$576,0),8)="8.100.000","-",INDEX([1]RELAÇÃO!$A$1:$AQ$576,MATCH($M84,[1]RELAÇÃO!$AP$1:$AP$576,0),7))) -> SPG / CHEFIA DE GABINETE SPG | M84: SE15
B85: Assistente | C85: DAS 102.2 | D85: ASS | E85: =INDEX([1]RELAÇÃO!$A$1:$AQ$576,MATCH($M85,[1]RELAÇÃO!$AP$1:$AP$576,0),1) -> CLAREN MARCIA DE AZEVEDO | F85: =IF(E85=0,"-",LEFT(INDEX([1]RELAÇÃO!$A$1:$AQ$576,MATCH($M85,[1]RELAÇÃO!$AP$1:$AP$576,0),32),1)) -> F | G85: =IF(E85=0,"-",INDEX([1]RELAÇÃO!$A$1:$AQ$576,MATCH($M85,[1]RELAÇÃO!$AP$1:$AP$576,0),5)) -> Sem Vínculo | H85: =IF(E85=0,"-",INDEX([1]RELAÇÃO!$A$1:$AQ$576,MATCH($M85,[1]RELAÇÃO!$AP$1:$AP$576,0),6)) -> Sem Vínculo | I85: =IF(E85=0,"-",INDEX([1]RELAÇÃO!$A$1:$AQ$576,MATCH($M85,[1]RELAÇÃO!$AP$1:$AP$576,0),12)&INDEX([1]RELAÇÃO!$A$1:$AQ$576,MATCH($M85,[1]RELAÇÃO!$AP$1:$AP$576,0),13)&", de "&INDEX([1]RELAÇÃO!$A$1:$AQ$576,MATCH($M85,[1]RELAÇÃO!$AP$1:$AP$576,0),14)&" - "&INDEX([1]RELAÇÃO!$A$1:$AQ$576,MATCH($M85,[1]RELAÇÃO!$AP$1:$AP$576,0),16)&" de "&INDEX([1]RELAÇÃO!$A$1:$AQ$576,MATCH($M85,[1]RELAÇÃO!$AP$1:$AP$576,0),15)) -> Portaria nº 524, de 03/11/2016 - BPE de 04/11/2016 | L85: =IF($E85=0,"-",IF(INDEX([1]RELAÇÃO!$A$1:$AQ$576,MATCH($M85,[1]RELAÇÃO!$AP$1:$AP$576,0),8)="8.100.000","-",INDEX([1]RELAÇÃO!$A$1:$AQ$576,MATCH($M85,[1]RELAÇÃO!$AP$1:$AP$576,0),7))) -> - | M85: SE16
B86: Assistente Técnico | C86: FCPE 102.1 | D86: ASS | E86: =INDEX([1]RELAÇÃO!$A$1:$AQ$576,MATCH($M86,[1]RELAÇÃO!$AP$1:$AP$576,0),1) -> JOELMA MENDES DE MELLO | F86: =IF(E86=0,"-",LEFT(INDEX([1]RELAÇÃO!$A$1:$AQ$576,MATCH($M86,[1]RELAÇÃO!$AP$1:$AP$576,0),32),1)) -> F | G86: =IF(E86=0,"-",INDEX([1]RELAÇÃO!$A$1:$AQ$576,MATCH($M86,[1]RELAÇÃO!$AP$1:$AP$576,0),5)) -> Ativo Permanente | H86: =IF(E86=0,"-",INDEX([1]RELAÇÃO!$A$1:$AQ$576,MATCH($M86,[1]RELAÇÃO!$AP$1:$AP$576,0),6)) -> MME - Ministério de Minas e Energia | I86: =IF(E86=0,"-",INDEX([1]RELAÇÃO!$A$1:$AQ$576,MATCH($M86,[1]RELAÇÃO!$AP$1:$AP$576,0),12)&INDEX([1]RELAÇÃO!$A$1:$AQ$576,MATCH($M86,[1]RELAÇÃO!$AP$1:$AP$576,0),13)&", de "&INDEX([1]RELAÇÃO!$A$1:$AQ$576,MATCH($M86,[1]RELAÇÃO!$AP$1:$AP$576,0),14)&" - "&INDEX([1]RELAÇÃO!$A$1:$AQ$576,MATCH($M86,[1]RELAÇÃO!$AP$1:$AP$576,0),16)&" de "&INDEX([1]RELAÇÃO!$A$1:$AQ$576,MATCH($M86,[1]RELAÇÃO!$AP$1:$AP$576,0),15)) -> Portaria nº 202, de 15/04/2019 - DOU de 16/04/2019 | L86: =IF($E86=0,"-",IF(INDEX([1]RELAÇÃO!$A$1:$AQ$576,MATCH($M86,[1]RELAÇÃO!$AP$1:$AP$576,0),8)="8.100.000","-",INDEX([1]RELAÇÃO!$A$1:$AQ$576,MATCH($M86,[1]RELAÇÃO!$AP$1:$AP$576,0),7))) -> SE / SPOA / CGCC / COORDENAÇÃO DE ADMINISTRAÇÃO DE CONTRATOS - CAC | M86: SE17
B87: Assistente Técnico | C87: FCPE 102.1 | D87: ASS | E87: =INDEX([1]RELAÇÃO!$A$1:$AQ$576,MATCH($M87,[1]RELAÇÃO!$AP$1:$AP$576,0),1) -> ANTONIELA BRAGGIO STAMM | F87: =IF(E87=0,"-",LEFT(INDEX([1]RELAÇÃO!$A$1:$AQ$576,MATCH($M87,[1]RELAÇÃO!$AP$1:$AP$576,0),32),1)) -> F | G87: =IF(E87=0,"-",INDEX([1]RELAÇÃO!$A$1:$AQ$576,MATCH($M87,[1]RELAÇÃO!$AP$1:$AP$576,0),5)) -> Requisitado de Órgãos | H87: =IF(E87=0,"-",INDEX([1]RELAÇÃO!$A$1:$AQ$576,MATCH($M87,[1]RELAÇÃO!$AP$1:$AP$576,0),6)) -> ME - Ministério da Economia | I87: =IF(E87=0,"-",INDEX([1]RELAÇÃO!$A$1:$AQ$576,MATCH($M87,[1]RELAÇÃO!$AP$1:$AP$576,0),12)&INDEX([1]RELAÇÃO!$A$1:$AQ$576,MATCH($M87,[1]RELAÇÃO!$AP$1:$AP$576,0),13)&", de "&INDEX([1]RELAÇÃO!$A$1:$AQ$576,MATCH($M87,[1]RELAÇÃO!$AP$1:$AP$576,0),14)&" - "&INDEX([1]RELAÇÃO!$A$1:$AQ$576,MATCH($M87,[1]RELAÇÃO!$AP$1:$AP$576,0),16)&" de "&INDEX([1]RELAÇÃO!$A$1:$AQ$576,MATCH($M87,[1]RELAÇÃO!$AP$1:$AP$576,0),15)) -> Portaria nº 99, de 01/02/2019 - DOU de 05/02/2019 | L87: =IF($E87=0,"-",IF(INDEX([1]RELAÇÃO!$A$1:$AQ$576,MATCH($M87,[1]RELAÇÃO!$AP$1:$AP$576,0),8)="8.100.000","-",INDEX([1]RELAÇÃO!$A$1:$AQ$576,MATCH($M87,[1]RELAÇÃO!$AP$1:$AP$576,0),7))) -> SE / SPOA / CGRL / COORDENAÇÃO DE ATIVIDADES GERAIS - COAGE | M87: SE18
B88: Assistente Técnico | C88: FCPE 102.1 | D88: ASS | E88: =INDEX([1]RELAÇÃO!$A$1:$AQ$576,MATCH($M88,[1]RELAÇÃO!$AP$1:$AP$576,0),1) -> ANDRE ROBERTO CORTEZ | F88: =IF(E88=0,"-",LEFT(INDEX([1]RELAÇÃO!$A$1:$AQ$576,MATCH($M88,[1]RELAÇÃO!$AP$1:$AP$576,0),32),1)) -> M | G88: =IF(E88=0,"-",INDEX([1]RELAÇÃO!$A$1:$AQ$576,MATCH($M88,[1]RELAÇÃO!$AP$1:$AP$576,0),5)) -> Ativo Permanente | H88: =IF(E88=0,"-",INDEX([1]RELAÇÃO!$A$1:$AQ$576,MATCH($M88,[1]RELAÇÃO!$AP$1:$AP$576,0),6)) -> MME - Ministério de Minas e Energia | I88: =IF(E88=0,"-",INDEX([1]RELAÇÃO!$A$1:$AQ$576,MATCH($M88,[1]RELAÇÃO!$AP$1:$AP$576,0),12)&INDEX([1]RELAÇÃO!$A$1:$AQ$576,MATCH($M88,[1]RELAÇÃO!$AP$1:$AP$576,0),13)&", de "&INDEX([1]RELAÇÃO!$A$1:$AQ$576,MATCH($M88,[1]RELAÇÃO!$AP$1:$AP$576,0),14)&" - "&INDEX([1]RELAÇÃO!$A$1:$AQ$576,MATCH($M88,[1]RELAÇÃO!$AP$1:$AP$576,0),16)&" de "&INDEX([1]RELAÇÃO!$A$1:$AQ$576,MATCH($M88,[1]RELAÇÃO!$AP$1:$AP$576,0),15)) -> Portaria nº 524, de 03/11/2016 - BPE de 04/11/2016 | L88: =IF($E88=0,"-",IF(INDEX([1]RELAÇÃO!$A$1:$AQ$576,MATCH($M88,[1]RELAÇÃO!$AP$1:$AP$576,0),8)="8.100.000","-",INDEX([1]RELAÇÃO!$A$1:$AQ$576,MATCH($M88,[1]RELAÇÃO!$AP$1:$AP$576,0),7))) -> SE / AEGE / COORDENAÇÃO GERAL DE PLANEJAMENTO ESTRATÉGICO, SUPERVISÃO E AVALIAÇÃO - CGPE | M88: SE19
A89: ASSESSORIA ESPECIAL DE GESTÃO ESTRATÉGICA | B89: Chefe da Assessoria Especial | C89: DAS 101.5 | D89: GER | E89: =INDEX([1]RELAÇÃO!$A$1:$AQ$576,MATCH($M89,[1]RELAÇÃO!$AP$1:$AP$576,0),1) -> NEY ZANELLA DOS SANTOS | F89: =IF(E89=0,"-",LEFT(INDEX([1]RELAÇÃO!$A$1:$AQ$576,MATCH($M89,[1]RELAÇÃO!$AP$1:$AP$576,0),32),1)) -> M | G89: =IF(E89=0,"-",INDEX([1]RELAÇÃO!$A$1:$AQ$576,MATCH($M89,[1]RELAÇÃO!$AP$1:$AP$576,0),5)) -> Sem Vínculo | H89: =IF(E89=0,"-",INDEX([1]RELAÇÃO!$A$1:$AQ$576,MATCH($M89,[1]RELAÇÃO!$AP$1:$AP$576,0),6)) -> Sem Vínculo | I89: =IF(E89=0,"-",INDEX([1]RELAÇÃO!$A$1:$AQ$576,MATCH($M89,[1]RELAÇÃO!$AP$1:$AP$576,0),12)&INDEX([1]RELAÇÃO!$A$1:$AQ$576,MATCH($M89,[1]RELAÇÃO!$AP$1:$AP$576,0),13)&", de "&INDEX([1]RELAÇÃO!$A$1:$AQ$576,MATCH($M89,[1]RELAÇÃO!$AP$1:$AP$576,0),14)&" - "&INDEX([1]RELAÇÃO!$A$1:$AQ$576,MATCH($M89,[1]RELAÇÃO!$AP$1:$AP$576,0),16)&" de "&INDEX([1]RELAÇÃO!$A$1:$AQ$576,MATCH($M89,[1]RELAÇÃO!$AP$1:$AP$576,0),15)) -> Portaria nº 1760, de 13/05/2019 - DOU de 14/05/2019 | J89: =INDEX([1]RELAÇÃO!$A$1:$AQ$576,MATCH($N89,[1]RELAÇÃO!$AQ$1:$AQ$576,0),1) -> JAIREZ ELÓI DE SOUSA PAULISTA | K89: =IF(J89=0,"-",INDEX([1]RELAÇÃO!$A$1:$AQ$576,MATCH($N89,[1]RELAÇÃO!$AQ$1:$AQ$576,0),27)&INDEX([1]RELAÇÃO!$A$1:$AQ$576,MATCH($N89,[1]RELAÇÃO!$AQ$1:$AQ$576,0),28)&", de "&INDEX([1]RELAÇÃO!$A$1:$AQ$576,MATCH($N89,[1]RELAÇÃO!$AQ$1:$AQ$576,0),29)&" - "&INDEX([1]RELAÇÃO!$A$1:$AQ$576,MATCH($N89,[1]RELAÇÃO!$AQ$1:$AQ$576,0),31)&" de "&INDEX([1]RELAÇÃO!$A$1:$AQ$576,MATCH($N89,[1]RELAÇÃO!$AQ$1:$AQ$576,0),30)) -> Portaria nº 433, de 07/11/2017 - DOU de 09/11/2017 | L89: =IF($E89=0,"-",IF(INDEX([1]RELAÇÃO!$A$1:$AQ$576,MATCH($M89,[1]RELAÇÃO!$AP$1:$AP$576,0),8)="8.101.000","-",INDEX([1]RELAÇÃO!$A$1:$AQ$576,MATCH($M89,[1]RELAÇÃO!$AP$1:$AP$576,0),7))) -> - | M89: SE20 | N89: SE06S
B90: Assessor Técnico | C90: DAS 102.3 | D90: ASS | E90: =INDEX([1]RELAÇÃO!$A$1:$AQ$576,MATCH($M90,[1]RELAÇÃO!$AP$1:$AP$576,0),1) -> JOÃO CLAUDIO LIMA DE FRANCO | F90: =IF(E90=0,"-",LEFT(INDEX([1]RELAÇÃO!$A$1:$AQ$576,MATCH($M90,[1]RELAÇÃO!$AP$1:$AP$576,0),32),1)) -> M | G90: =IF(E90=0,"-",INDEX([1]RELAÇÃO!$A$1:$AQ$576,MATCH($M90,[1]RELAÇÃO!$AP$1:$AP$576,0),5)) -> Sem Vínculo | H90: =IF(E90=0,"-",INDEX([1]RELAÇÃO!$A$1:$AQ$576,MATCH($M90,[1]RELAÇÃO!$AP$1:$AP$576,0),6)) -> Sem Vínculo | I90: =IF(E90=0,"-",INDEX([1]RELAÇÃO!$A$1:$AQ$576,MATCH($M90,[1]RELAÇÃO!$AP$1:$AP$576,0),12)&INDEX([1]RELAÇÃO!$A$1:$AQ$576,MATCH($M90,[1]RELAÇÃO!$AP$1:$AP$576,0),13)&", de "&INDEX([1]RELAÇÃO!$A$1:$AQ$576,MATCH($M90,[1]RELAÇÃO!$AP$1:$AP$576,0),14)&" - "&INDEX([1]RELAÇÃO!$A$1:$AQ$576,MATCH($M90,[1]RELAÇÃO!$AP$1:$AP$576,0),16)&" de "&INDEX([1]RELAÇÃO!$A$1:$AQ$576,MATCH($M90,[1]RELAÇÃO!$AP$1:$AP$576,0),15)) -> Portaria nº 524, de 03/11/2016 - BPE de 04/11/2016 | L90: =IF($E90=0,"-",IF(INDEX([1]RELAÇÃO!$A$1:$AQ$576,MATCH($M90,[1]RELAÇÃO!$AP$1:$AP$576,0),8)="8.101.000","-",INDEX([1]RELAÇÃO!$A$1:$AQ$576,MATCH($M90,[1]RELAÇÃO!$AP$1:$AP$576,0),7))) -> - | M90: SE21
B91: Assistente | C91: DAS 102.2 | D91: ASS | E91: =INDEX([1]RELAÇÃO!$A$1:$AQ$576,MATCH($M91,[1]RELAÇÃO!$AP$1:$AP$576,0),1) -> CLAUDIA MARIA DA SILVA MEIRA | F91: =IF(E91=0,"-",LEFT(INDEX([1]RELAÇÃO!$A$1:$AQ$576,MATCH($M91,[1]RELAÇÃO!$AP$1:$AP$576,0),32),1)) -> F | G91: =IF(E91=0,"-",INDEX([1]RELAÇÃO!$A$1:$AQ$576,MATCH($M91,[1]RELAÇÃO!$AP$1:$AP$576,0),5)) -> Sem Vínculo | H91: =IF(E91=0,"-",INDEX([1]RELAÇÃO!$A$1:$AQ$576,MATCH($M91,[1]RELAÇÃO!$AP$1:$AP$576,0),6)) -> Sem Vínculo | I91: =IF(E91=0,"-",INDEX([1]RELAÇÃO!$A$1:$AQ$576,MATCH($M91,[1]RELAÇÃO!$AP$1:$AP$576,0),12)&INDEX([1]RELAÇÃO!$A$1:$AQ$576,MATCH($M91,[1]RELAÇÃO!$AP$1:$AP$576,0),13)&", de "&INDEX([1]RELAÇÃO!$A$1:$AQ$576,MATCH($M91,[1]RELAÇÃO!$AP$1:$AP$576,0),14)&" - "&INDEX([1]RELAÇÃO!$A$1:$AQ$576,MATCH($M91,[1]RELAÇÃO!$AP$1:$AP$576,0),16)&" de "&INDEX([1]RELAÇÃO!$A$1:$AQ$576,MATCH($M91,[1]RELAÇÃO!$AP$1:$AP$576,0),15)) -> Portaria nº 524, de 03/11/2016 - BPE de 04/11/2016 | L91: =IF($E91=0,"-",IF(INDEX([1]RELAÇÃO!$A$1:$AQ$576,MATCH($M91,[1]RELAÇÃO!$AP$1:$AP$576,0),8)="8.101.000","-",INDEX([1]RELAÇÃO!$A$1:$AQ$576,MATCH($M91,[1]RELAÇÃO!$AP$1:$AP$576,0),7))) -> - | M91: SE22
A92: Coordenação-Geral de Planejamento Estratégico, Supervisão e Avaliação da Gestão | B92: Coordenador-Geral | C92: DAS 101.4 | D92: GER | E92: =INDEX([1]RELAÇÃO!$A$1:$AQ$576,MATCH($M92,[1]RELAÇÃO!$AP$1:$AP$576,0),1) -> JAIREZ ELÓI DE SOUSA PAULISTA | F92: =IF(E92=0,"-",LEFT(INDEX([1]RELAÇÃO!$A$1:$AQ$576,MATCH($M92,[1]RELAÇÃO!$AP$1:$AP$576,0),32),1)) -> M | G92: =IF(E92=0,"-",INDEX([1]RELAÇÃO!$A$1:$AQ$576,MATCH($M92,[1]RELAÇÃO!$AP$1:$AP$576,0),5)) -> Sem Vínculo | H92: =IF(E92=0,"-",INDEX([1]RELAÇÃO!$A$1:$AQ$576,MATCH($M92,[1]RELAÇÃO!$AP$1:$AP$576,0),6)) -> Sem Vínculo | I92: =IF(E92=0,"-",INDEX([1]RELAÇÃO!$A$1:$AQ$576,MATCH($M92,[1]RELAÇÃO!$AP$1:$AP$576,0),12)&INDEX([1]RELAÇÃO!$A$1:$AQ$576,MATCH($M92,[1]RELAÇÃO!$AP$1:$AP$576,0),13)&", de "&INDEX([1]RELAÇÃO!$A$1:$AQ$576,MATCH($M92,[1]RELAÇÃO!$AP$1:$AP$576,0),14)&" - "&INDEX([1]RELAÇÃO!$A$1:$AQ$576,MATCH($M92,[1]RELAÇÃO!$AP$1:$AP$576,0),16)&" de "&INDEX([1]RELAÇÃO!$A$1:$AQ$576,MATCH($M92,[1]RELAÇÃO!$AP$1:$AP$576,0),15)) -> Portaria nº 385, de 02/10/2017 - DOU de 11/10/2017 | J92: =INDEX([1]RELAÇÃO!$A$1:$AQ$576,MATCH($N92,[1]RELAÇÃO!$AQ$1:$AQ$576,0),1) -> JOÃO CLAUDIO LIMA DE FRANCO | K92: =IF(J92=0,"-",INDEX([1]RELAÇÃO!$A$1:$AQ$576,MATCH($N92,[1]RELAÇÃO!$AQ$1:$AQ$576,0),27)&INDEX([1]RELAÇÃO!$A$1:$AQ$576,MATCH($N92,[1]RELAÇÃO!$AQ$1:$AQ$576,0),28)&", de "&INDEX([1]RELAÇÃO!$A$1:$AQ$576,MATCH($N92,[1]RELAÇÃO!$AQ$1:$AQ$576,0),29)&" - "&INDEX([1]RELAÇÃO!$A$1:$AQ$576,MATCH($N92,[1]RELAÇÃO!$AQ$1:$AQ$576,0),31)&" de "&INDEX([1]RELAÇÃO!$A$1:$AQ$576,MATCH($N92,[1]RELAÇÃO!$AQ$1:$AQ$576,0),30)) -> Portaria nº 692, de 06/12/2016 - DOU de 08/12/2016 | L92: =IF($E92=0,"-",IF(INDEX([1]RELAÇÃO!$A$1:$AQ$576,MATCH($M92,[1]RELAÇÃO!$AP$1:$AP$576,0),8)="8.101.100","-",INDEX([1]RELAÇÃO!$A$1:$AQ$576,MATCH($M92,[1]RELAÇÃO!$AP$1:$AP$576,0),7))) -> - | M92: SE23 | N92: SE07S
A93: Coordenação de Supervisão e Avalliação da Gestão | B93: Coordenador | C93: DAS 101.3 | D93: GER | E93: =INDEX([1]RELAÇÃO!$A$1:$AQ$576,MATCH($M93,[1]RELAÇÃO!$AP$1:$AP$576,0),1) -> VIVALDO BELARMINO VALENCA | F93: =IF(E93=0,"-",LEFT(INDEX([1]RELAÇÃO!$A$1:$AQ$576,MATCH($M93,[1]RELAÇÃO!$AP$1:$AP$576,0),32),1)) -> M | G93: =IF(E93=0,"-",INDEX([1]RELAÇÃO!$A$1:$AQ$576,MATCH($M93,[1]RELAÇÃO!$AP$1:$AP$576,0),5)) -> Ativo Permanente | H93: =IF(E93=0,"-",INDEX([1]RELAÇÃO!$A$1:$AQ$576,MATCH($M93,[1]RELAÇÃO!$AP$1:$AP$576,0),6)) -> MME - Ministério de Minas e Energia | I93: =IF(E93=0,"-",INDEX([1]RELAÇÃO!$A$1:$AQ$576,MATCH($M93,[1]RELAÇÃO!$AP$1:$AP$576,0),12)&INDEX([1]RELAÇÃO!$A$1:$AQ$576,MATCH($M93,[1]RELAÇÃO!$AP$1:$AP$576,0),13)&", de "&INDEX([1]RELAÇÃO!$A$1:$AQ$576,MATCH($M93,[1]RELAÇÃO!$AP$1:$AP$576,0),14)&" - "&INDEX([1]RELAÇÃO!$A$1:$AQ$576,MATCH($M93,[1]RELAÇÃO!$AP$1:$AP$576,0),16)&" de "&INDEX([1]RELAÇÃO!$A$1:$AQ$576,MATCH($M93,[1]RELAÇÃO!$AP$1:$AP$576,0),15)) -> Portaria nº 115, de 18/03/2020 - DOU de 19/03/2020 | J93: =INDEX([1]RELAÇÃO!$A$1:$AQ$576,MATCH($N93,[1]RELAÇÃO!$AQ$1:$AQ$576,0),1) -> 0 | K93: =IF(J93=0,"-",INDEX([1]RELAÇÃO!$A$1:$AQ$576,MATCH($N93,[1]RELAÇÃO!$AQ$1:$AQ$576,0),27)&INDEX([1]RELAÇÃO!$A$1:$AQ$576,MATCH($N93,[1]RELAÇÃO!$AQ$1:$AQ$576,0),28)&", de "&INDEX([1]RELAÇÃO!$A$1:$AQ$576,MATCH($N93,[1]RELAÇÃO!$AQ$1:$AQ$576,0),29)&" - "&INDEX([1]RELAÇÃO!$A$1:$AQ$576,MATCH($N93,[1]RELAÇÃO!$AQ$1:$AQ$576,0),31)&" de "&INDEX([1]RELAÇÃO!$A$1:$AQ$576,MATCH($N93,[1]RELAÇÃO!$AQ$1:$AQ$576,0),30)) -> - | L93: =IF($E93=0,"-",IF(INDEX([1]RELAÇÃO!$A$1:$AQ$576,MATCH($M93,[1]RELAÇÃO!$AP$1:$AP$576,0),8)="8.101.120","-",INDEX([1]RELAÇÃO!$A$1:$AQ$576,MATCH($M93,[1]RELAÇÃO!$AP$1:$AP$576,0),7))) -> - | M93: SE24 | N93: SE08S
A94: Coordenação de Planejamento Estratégico e Orçamento | B94: Coordenador | C94: FCPE 101.3 | D94: GER | E94: =INDEX([1]RELAÇÃO!$A$1:$AQ$576,MATCH($M94,[1]RELAÇÃO!$AP$1:$AP$576,0),1) -> SILVIO CASTILHO DAS OLIVEIRAS | F94: =IF(E94=0,"-",LEFT(INDEX([1]RELAÇÃO!$A$1:$AQ$576,MATCH($M94,[1]RELAÇÃO!$AP$1:$AP$576,0),32),1)) -> M | G94: =IF(E94=0,"-",INDEX([1]RELAÇÃO!$A$1:$AQ$576,MATCH($M94,[1]RELAÇÃO!$AP$1:$AP$576,0),5)) -> Exercício Descentralizado | H94: =IF(E94=0,"-",INDEX([1]RELAÇÃO!$A$1:$AQ$576,MATCH($M94,[1]RELAÇÃO!$AP$1:$AP$576,0),6)) -> ME - Ministério da Economia | I94: =IF(E94=0,"-",INDEX([1]RELAÇÃO!$A$1:$AQ$576,MATCH($M94,[1]RELAÇÃO!$AP$1:$AP$576,0),12)&INDEX([1]RELAÇÃO!$A$1:$AQ$576,MATCH($M94,[1]RELAÇÃO!$AP$1:$AP$576,0),13)&", de "&INDEX([1]RELAÇÃO!$A$1:$AQ$576,MATCH($M94,[1]RELAÇÃO!$AP$1:$AP$576,0),14)&" - "&INDEX([1]RELAÇÃO!$A$1:$AQ$576,MATCH($M94,[1]RELAÇÃO!$AP$1:$AP$576,0),16)&" de "&INDEX([1]RELAÇÃO!$A$1:$AQ$576,MATCH($M94,[1]RELAÇÃO!$AP$1:$AP$576,0),15)) -> Portaria nº 524, de 03/11/2016 - BPE de 04/11/2016 | J94: =INDEX([1]RELAÇÃO!$A$1:$AQ$576,MATCH($N94,[1]RELAÇÃO!$AQ$1:$AQ$576,0),1) -> 0 | K94: =IF(J94=0,"-",INDEX([1]RELAÇÃO!$A$1:$AQ$576,MATCH($N94,[1]RELAÇÃO!$AQ$1:$AQ$576,0),27)&INDEX([1]RELAÇÃO!$A$1:$AQ$576,MATCH($N94,[1]RELAÇÃO!$AQ$1:$AQ$576,0),28)&", de "&INDEX([1]RELAÇÃO!$A$1:$AQ$576,MATCH($N94,[1]RELAÇÃO!$AQ$1:$AQ$576,0),29)&" - "&INDEX([1]RELAÇÃO!$A$1:$AQ$576,MATCH($N94,[1]RELAÇÃO!$AQ$1:$AQ$576,0),31)&" de "&INDEX([1]RELAÇÃO!$A$1:$AQ$576,MATCH($N94,[1]RELAÇÃO!$AQ$1:$AQ$576,0),30)) -> - | L94: =IF($E94=0,"-",IF(INDEX([1]RELAÇÃO!$A$1:$AQ$576,MATCH($M94,[1]RELAÇÃO!$AP$1:$AP$576,0),8)="8.101.110","-",INDEX([1]RELAÇÃO!$A$1:$AQ$576,MATCH($M94,[1]RELAÇÃO!$AP$1:$AP$576,0),7))) -> - | M94: SE25 | N94: SE09S
B95: Assistente | C95: DAS 102.2 | D95: ASS | E95: =INDEX([1]RELAÇÃO!$A$1:$AQ$576,MATCH($M95,[1]RELAÇÃO!$AP$1:$AP$576,0),1) -> ALLAN CARLO LOPES DE MENEZES | F95: =IF(E95=0,"-",LEFT(INDEX([1]RELAÇÃO!$A$1:$AQ$576,MATCH($M95,[1]RELAÇÃO!$AP$1:$AP$576,0),32),1)) -> M | G95: =IF(E95=0,"-",INDEX([1]RELAÇÃO!$A$1:$AQ$576,MATCH($M95,[1]RELAÇÃO!$AP$1:$AP$576,0),5)) -> Sem Vínculo | H95: =IF(E95=0,"-",INDEX([1]RELAÇÃO!$A$1:$AQ$576,MATCH($M95,[1]RELAÇÃO!$AP$1:$AP$576,0),6)) -> Sem Vínculo | I95: =IF(E95=0,"-",INDEX([1]RELAÇÃO!$A$1:$AQ$576,MATCH($M95,[1]RELAÇÃO!$AP$1:$AP$576,0),12)&INDEX([1]RELAÇÃO!$A$1:$AQ$576,MATCH($M95,[1]RELAÇÃO!$AP$1:$AP$576,0),13)&", de "&INDEX([1]RELAÇÃO!$A$1:$AQ$576,MATCH($M95,[1]RELAÇÃO!$AP$1:$AP$576,0),14)&" - "&INDEX([1]RELAÇÃO!$A$1:$AQ$576,MATCH($M95,[1]RELAÇÃO!$AP$1:$AP$576,0),16)&" de "&INDEX([1]RELAÇÃO!$A$1:$AQ$576,MATCH($M95,[1]RELAÇÃO!$AP$1:$AP$576,0),15)) -> Portaria nº 114, de 18/03/2020 - DOU de 19/03/2020 | L95: =IF($E95=0,"-",IF(INDEX([1]RELAÇÃO!$A$1:$AQ$576,MATCH($M95,[1]RELAÇÃO!$AP$1:$AP$576,0),8)="8.101.120","-",INDEX([1]RELAÇÃO!$A$1:$AQ$576,MATCH($M95,[1]RELAÇÃO!$AP$1:$AP$576,0),7))) -> - | M95: SE26
B96: Assistente | C96: DAS 102.2 | E96: Excluído pelo Dec. 9675/2019
B97: Assistente Técnico | C97: DAS 102.1 | D97: ASS | E97: =INDEX([1]RELAÇÃO!$A$1:$AQ$576,MATCH($M97,[1]RELAÇÃO!$AP$1:$AP$576,0),1) -> MARIA JOSE COSTA OLIVEIRA | F97: =IF(E97=0,"-",LEFT(INDEX([1]RELAÇÃO!$A$1:$AQ$576,MATCH($M97,[1]RELAÇÃO!$AP$1:$AP$576,0),32),1)) -> M | G97: =IF(E97=0,"-",INDEX([1]RELAÇÃO!$A$1:$AQ$576,MATCH($M97,[1]RELAÇÃO!$AP$1:$AP$576,0),5)) -> Sem Vínculo | H97: =IF(E97=0,"-",INDEX([1]RELAÇÃO!$A$1:$AQ$576,MATCH($M97,[1]RELAÇÃO!$AP$1:$AP$576,0),6)) -> Sem Vínculo | I97: =IF(E97=0,"-",INDEX([1]RELAÇÃO!$A$1:$AQ$576,MATCH($M97,[1]RELAÇÃO!$AP$1:$AP$576,0),12)&INDEX([1]RELAÇÃO!$A$1:$AQ$576,MATCH($M97,[1]RELAÇÃO!$AP$1:$AP$576,0),13)&", de "&INDEX([1]RELAÇÃO!$A$1:$AQ$576,MATCH($M97,[1]RELAÇÃO!$AP$1:$AP$576,0),14)&" - "&INDEX([1]RELAÇÃO!$A$1:$AQ$576,MATCH($M97,[1]RELAÇÃO!$AP$1:$AP$576,0),16)&" de "&INDEX([1]RELAÇÃO!$A$1:$AQ$576,MATCH($M97,[1]RELAÇÃO!$AP$1:$AP$576,0),15)) -> Portaria nº 524, de 03/11/2016 - BPE de 04/11/2016 | L97: =IF($E97=0,"-",IF(INDEX([1]RELAÇÃO!$A$1:$AQ$576,MATCH($M97,[1]RELAÇÃO!$AP$1:$AP$576,0),8)="8.101.100","-",INDEX([1]RELAÇÃO!$A$1:$AQ$576,MATCH($M97,[1]RELAÇÃO!$AP$1:$AP$576,0),7))) -> SE / ASSESSORIA ESPECIAL DE MEIO AMBIENTE - AESA | M97: SE27
A98: ASSESSORIA ESPECIAL EM ASSUNTOS REGULATÓRIOS | B98: Chefe da Assessoria Especial | C98: DAS 101.5 | D98: GER | E98: =INDEX([1]RELAÇÃO!$A$1:$AQ$576,MATCH($M98,[1]RELAÇÃO!$AP$1:$AP$576,0),1) -> AGNES MARIA DE ARAGAO DA COSTA | F98: =IF(E98=0,"-",LEFT(INDEX([1]RELAÇÃO!$A$1:$AQ$576,MATCH($M98,[1]RELAÇÃO!$AP$1:$AP$576,0),32),1)) -> F | G98: =IF(E98=0,"-",INDEX([1]RELAÇÃO!$A$1:$AQ$576,MATCH($M98,[1]RELAÇÃO!$AP$1:$AP$576,0),5)) -> Exercício Descentralizado | H98: =IF(E98=0,"-",INDEX([1]RELAÇÃO!$A$1:$AQ$576,MATCH($M98,[1]RELAÇÃO!$AP$1:$AP$576,0),6)) -> ME - Ministério da Economia | I98: =IF(E98=0,"-",INDEX([1]RELAÇÃO!$A$1:$AQ$576,MATCH($M98,[1]RELAÇÃO!$AP$1:$AP$576,0),12)&INDEX([1]RELAÇÃO!$A$1:$AQ$576,MATCH($M98,[1]RELAÇÃO!$AP$1:$AP$576,0),13)&", de "&INDEX([1]RELAÇÃO!$A$1:$AQ$576,MATCH($M98,[1]RELAÇÃO!$AP$1:$AP$576,0),14)&" - "&INDEX([1]RELAÇÃO!$A$1:$AQ$576,MATCH($M98,[1]RELAÇÃO!$AP$1:$AP$576,0),16)&" de "&INDEX([1]RELAÇÃO!$A$1:$AQ$576,MATCH($M98,[1]RELAÇÃO!$AP$1:$AP$576,0),15)) -> Portaria nº 591, de 16/01/2019 - DOU de 17/01/2019 | J98: =INDEX([1]RELAÇÃO!$A$1:$AQ$576,MATCH($N98,[1]RELAÇÃO!$AQ$1:$AQ$576,0),1) -> 0 | K98: =IF(J98=0,"-",INDEX([1]RELAÇÃO!$A$1:$AQ$576,MATCH($N98,[1]RELAÇÃO!$AQ$1:$AQ$576,0),27)&INDEX([1]RELAÇÃO!$A$1:$AQ$576,MATCH($N98,[1]RELAÇÃO!$AQ$1:$AQ$576,0),28)&", de "&INDEX([1]RELAÇÃO!$A$1:$AQ$576,MATCH($N98,[1]RELAÇÃO!$AQ$1:$AQ$576,0),29)&" - "&INDEX([1]RELAÇÃO!$A$1:$AQ$576,MATCH($N98,[1]RELAÇÃO!$AQ$1:$AQ$576,0),31)&" de "&INDEX([1]RELAÇÃO!$A$1:$AQ$576,MATCH($N98,[1]RELAÇÃO!$AQ$1:$AQ$576,0),30)) -> - | L98: =IF($E98=0,"-",IF(INDEX([1]RELAÇÃO!$A$1:$AQ$576,MATCH($M98,[1]RELAÇÃO!$AP$1:$AP$576,0),8)="8.102.000","-",INDEX([1]RELAÇÃO!$A$1:$AQ$576,MATCH($M98,[1]RELAÇÃO!$AP$1:$AP$576,0),7))) -> - | M98: SE28 | N98: SE10S
B99: Assistente | C99: FCPE 102.2 | D99: ASS | E99: =INDEX([1]RELAÇÃO!$A$1:$AQ$576,MATCH($M99,[1]RELAÇÃO!$AP$1:$AP$576,0),1) -> MARILUZIA RODRIGUES NOGUEIRA | F99: =IF(E99=0,"-",LEFT(INDEX([1]RELAÇÃO!$A$1:$AQ$576,MATCH($M99,[1]RELAÇÃO!$AP$1:$AP$576,0),32),1)) -> F | G99: =IF(E99=0,"-",INDEX([1]RELAÇÃO!$A$1:$AQ$576,MATCH($M99,[1]RELAÇÃO!$AP$1:$AP$576,0),5)) -> Ativo Permanente | H99: =IF(E99=0,"-",INDEX([1]RELAÇÃO!$A$1:$AQ$576,MATCH($M99,[1]RELAÇÃO!$AP$1:$AP$576,0),6)) -> MME - Ministério de Minas e Energia | I99: =IF(E99=0,"-",INDEX([1]RELAÇÃO!$A$1:$AQ$576,MATCH($M99,[1]RELAÇÃO!$AP$1:$AP$576,0),12)&INDEX([1]RELAÇÃO!$A$1:$AQ$576,MATCH($M99,[1]RELAÇÃO!$AP$1:$AP$576,0),13)&", de "&INDEX([1]RELAÇÃO!$A$1:$AQ$576,MATCH($M99,[1]RELAÇÃO!$AP$1:$AP$576,0),14)&" - "&INDEX([1]RELAÇÃO!$A$1:$AQ$576,MATCH($M99,[1]RELAÇÃO!$AP$1:$AP$576,0),16)&" de "&INDEX([1]RELAÇÃO!$A$1:$AQ$576,MATCH($M99,[1]RELAÇÃO!$AP$1:$AP$576,0),15)) -> Portaria nº 524, de 03/11/2016 - BPE de 04/11/2016 | L99: =IF($E99=0,"-",IF(INDEX([1]RELAÇÃO!$A$1:$AQ$576,MATCH($M99,[1]RELAÇÃO!$AP$1:$AP$576,0),8)="8.102.000","-",INDEX([1]RELAÇÃO!$A$1:$AQ$576,MATCH($M99,[1]RELAÇÃO!$AP$1:$AP$576,0),7))) -> ASSESSORIA ESPECIAL DE ASSUNTOS ECONÔMICOS - ASSEC | M99: SE29
A100: ASSESSORIA ESPECIAL DE GESTÃO DE PROJETOS | B100: Chefe da Assessoria Especial | C100: DAS 101.5 | D100: GER | E100: =INDEX([1]RELAÇÃO!$A$1:$AQ$576,MATCH($M100,[1]RELAÇÃO!$AP$1:$AP$576,0),1) -> DENIS DE MOURA SOARES | F100: =IF(E100=0,"-",LEFT(INDEX([1]RELAÇÃO!$A$1:$AQ$576,MATCH($M100,[1]RELAÇÃO!$AP$1:$AP$576,0),32),1)) -> M | G100: =IF(E100=0,"-",INDEX([1]RELAÇÃO!$A$1:$AQ$576,MATCH($M100,[1]RELAÇÃO!$AP$1:$AP$576,0),5)) -> Requisitado de Órgãos | H100: =IF(E100=0,"-",INDEX([1]RELAÇÃO!$A$1:$AQ$576,MATCH($M100,[1]RELAÇÃO!$AP$1:$AP$576,0),6)) -> ME - Ministério da Economia | I100: =IF(E100=0,"-",INDEX([1]RELAÇÃO!$A$1:$AQ$576,MATCH($M100,[1]RELAÇÃO!$AP$1:$AP$576,0),12)&INDEX([1]RELAÇÃO!$A$1:$AQ$576,MATCH($M100,[1]RELAÇÃO!$AP$1:$AP$576,0),13)&", de "&INDEX([1]RELAÇÃO!$A$1:$AQ$576,MATCH($M100,[1]RELAÇÃO!$AP$1:$AP$576,0),14)&" - "&INDEX([1]RELAÇÃO!$A$1:$AQ$576,MATCH($M100,[1]RELAÇÃO!$AP$1:$AP$576,0),16)&" de "&INDEX([1]RELAÇÃO!$A$1:$AQ$576,MATCH($M100,[1]RELAÇÃO!$AP$1:$AP$576,0),15)) -> Portaria nº 1740, de 09/05/2019 - DOU de 10/05/2019 | J100: =INDEX([1]RELAÇÃO!$A$1:$AQ$576,MATCH($N100,[1]RELAÇÃO!$AQ$1:$AQ$576,0),1) -> 0 | K100: =IF(J100=0,"-",INDEX([1]RELAÇÃO!$A$1:$AQ$576,MATCH($N100,[1]RELAÇÃO!$AQ$1:$AQ$576,0),27)&INDEX([1]RELAÇÃO!$A$1:$AQ$576,MATCH($N100,[1]RELAÇÃO!$AQ$1:$AQ$576,0),28)&", de "&INDEX([1]RELAÇÃO!$A$1:$AQ$576,MATCH($N100,[1]RELAÇÃO!$AQ$1:$AQ$576,0),29)&" - "&INDEX([1]RELAÇÃO!$A$1:$AQ$576,MATCH($N100,[1]RELAÇÃO!$AQ$1:$AQ$576,0),31)&" de "&INDEX([1]RELAÇÃO!$A$1:$AQ$576,MATCH($N100,[1]RELAÇÃO!$AQ$1:$AQ$576,0),30)) -> - | L100: =IF($E100=0,"-",IF(INDEX([1]RELAÇÃO!$A$1:$AQ$576,MATCH($M100,[1]RELAÇÃO!$AP$1:$AP$576,0),8)="8.103.000","-",INDEX([1]RELAÇÃO!$A$1:$AQ$576,MATCH($M100,[1]RELAÇÃO!$AP$1:$AP$576,0),7))) -> - | M100: SE30 | N100: SE11S
A101: Coordenação-Geral de Planejamento, Finanças e Controle | B101: Coordenador-Geral | C101: FCPE 101.4 | D101: GER | E101: =INDEX([1]RELAÇÃO!$A$1:$AQ$576,MATCH($M101,[1]RELAÇÃO!$AP$1:$AP$576,0),1) -> GUSTAVO SANTOS MASILI | F101: =IF(E101=0,"-",LEFT(INDEX([1]RELAÇÃO!$A$1:$AQ$576,MATCH($M101,[1]RELAÇÃO!$AP$1:$AP$576,0),32),1)) -> M | G101: =IF(E101=0,"-",INDEX([1]RELAÇÃO!$A$1:$AQ$576,MATCH($M101,[1]RELAÇÃO!$AP$1:$AP$576,0),5)) -> Requisitado de Órgãos | H101: =IF(E101=0,"-",INDEX([1]RELAÇÃO!$A$1:$AQ$576,MATCH($M101,[1]RELAÇÃO!$AP$1:$AP$576,0),6)) -> ME - Ministério da Economia | I101: =IF(E101=0,"-",INDEX([1]RELAÇÃO!$A$1:$AQ$576,MATCH($M101,[1]RELAÇÃO!$AP$1:$AP$576,0),12)&INDEX([1]RELAÇÃO!$A$1:$AQ$576,MATCH($M101,[1]RELAÇÃO!$AP$1:$AP$576,0),13)&", de "&INDEX([1]RELAÇÃO!$A$1:$AQ$576,MATCH($M101,[1]RELAÇÃO!$AP$1:$AP$576,0),14)&" - "&INDEX([1]RELAÇÃO!$A$1:$AQ$576,MATCH($M101,[1]RELAÇÃO!$AP$1:$AP$576,0),16)&" de "&INDEX([1]RELAÇÃO!$A$1:$AQ$576,MATCH($M101,[1]RELAÇÃO!$AP$1:$AP$576,0),15)) -> Portaria nº 544, de 03/11/2016 - DOU de 04/11/2016 | J101: =INDEX([1]RELAÇÃO!$A$1:$AQ$576,MATCH($N101,[1]RELAÇÃO!$AQ$1:$AQ$576,0),1) -> 0 | K101: =IF(J101=0,"-",INDEX([1]RELAÇÃO!$A$1:$AQ$576,MATCH($N101,[1]RELAÇÃO!$AQ$1:$AQ$576,0),27)&INDEX([1]RELAÇÃO!$A$1:$AQ$576,MATCH($N101,[1]RELAÇÃO!$AQ$1:$AQ$576,0),28)&", de "&INDEX([1]RELAÇÃO!$A$1:$AQ$576,MATCH($N101,[1]RELAÇÃO!$AQ$1:$AQ$576,0),29)&" - "&INDEX([1]RELAÇÃO!$A$1:$AQ$576,MATCH($N101,[1]RELAÇÃO!$AQ$1:$AQ$576,0),31)&" de "&INDEX([1]RELAÇÃO!$A$1:$AQ$576,MATCH($N101,[1]RELAÇÃO!$AQ$1:$AQ$576,0),30)) -> - | L101: =IF($E101=0,"-",IF(INDEX([1]RELAÇÃO!$A$1:$AQ$576,MATCH($M101,[1]RELAÇÃO!$AP$1:$AP$576,0),8)="8.103.100","-",INDEX([1]RELAÇÃO!$A$1:$AQ$576,MATCH($M101,[1]RELAÇÃO!$AP$1:$AP$576,0),7))) -> - | M101: SE31 | N101: SE12S
